Workbook

Sheet Review Video
B4: 1. Fix formatting and new generic macros
B5: 2. Add a button
B6: 3. Clean up Units and Formatting
B7: 4. Investment Account
B8: 5. Addition of Growth | J8: annual | L8: (1+J8)^(1/6)-1
B9: 6. Proof that method works with different time periods
B10: 7. Implications of Risk Premium Method
B12: Themes
B13: Put flag for Pre-COD and Post-COD
B14: Use periods in year variable

Sheet Summary
B20: Project IRR Pre-tax | D20: ='Financial Model'!F31 -> 0.09300350845 | J20: EBITDA | K20: =InputC!F20 -> 100000
B21: Project IRR Post-tax | J21: Cap Exp | K21: =InputC!F19 -> 1000000
B22: Debt IRR Pre-tax | D22: ='Financial Model'!F95 -> 0 | J22: Growth | K22: =InputC!F21 -> 0
B23: Debt IRR Post-tax
B24: Equity IRR | D24: ='Financial Model'!F93 -> 0

Sheet InputC
D2: Scenario | E2: =scenario -> 1 | F2: Project IRR | G2: ='Financial Model'!F31 -> 0.09300350845
F3: Rf + Premium | G3: ='Financial Model'!G161 -> 0.07647084663
I4: 1 | J4: 2 | K4: 3 | L4: 4 | M4: 5 | N4: 6 | O4: 7 | P4: 8 | Q4: 9 | R4: 10 | S4: 11 | T4: 12
F5: =INDEX(I5:XFD5,Sensitivity!G5) -> Base Case - Annual | I5: Base Case - Annual | J5: Base Case Alternative Timing | K5: Longer-Construction | L5: Shorter-Life | M5: Higher Capital Expenditure | N5: Lower Base EBITDA | O5: Lower Growth Rate | P5: Base Case | Q5: Break-Even DSCR Case | R5: Break-Even LLCR Case | S5: Break-Even PLCR Case | T5: Loss Case
B6: Timeline
D7: Start Date | E7: Date | F7: =INDEX(I7:AG7,Sensitivity!$G$5) -> 2026-01-01 | I7: 2026-01-01 | J7: 2026-01-01 | K7: 2026-01-01 | L7: 2026-01-01 | M7: 2026-01-01 | N7: 2026-01-01 | O7: 2026-01-01 | P7: 2026-01-01 | Q7: 2026-01-01 | R7: 2026-01-01 | S7: 2026-01-01 | T7: 2026-01-01
D8: Construction months | E8: months | F8: =INDEX(I8:AG8,Sensitivity!$G$5) -> 12 | I8: 12 | J8: 12 | K8: 36 | L8: 36 | M8: 36 | N8: 36 | O8: 36 | P8: 12 | Q8: 12 | R8: 12 | S8: 12 | T8: 12
D10: Commercial Operation Date | E10: date | F10: =INDEX(I10:AG10,Sensitivity!$G$5) -> 2027-01-01 | I10: =EDATE(I7,I8) -> 2027-01-01 | J10: 2027-01-01 | K10: 2029-01-01 | L10: 2029-01-01 | M10: 2029-01-01 | N10: 2029-01-01 | O10: 2029-01-01 | P10: 2027-01-01 | Q10: 2027-01-01 | R10: 2027-01-01 | S10: 2027-01-01 | T10: 2027-01-01
D11: Months in period - construction | E11: months | F11: =INDEX(I11:AG11,Sensitivity!$G$5) -> 12 | I11: 12 | J11: 1 | K11: 12 | L11: 12 | M11: 12 | N11: 12 | O11: 12 | P11: 12 | Q11: 12 | R11: 12 | S11: 12 | T11: 12
D12: Months in period - operations | E12: months | F12: =INDEX(I12:AG12,Sensitivity!$G$5) -> 12 | I12: 12 | J12: 6 | K12: 12 | L12: 12 | M12: 12 | N12: 12 | O12: 12 | P12: 12 | Q12: 12 | R12: 12 | S12: 12 | T12: 12
D14: Operations Period | E14: years | F14: =INDEX(I14:AG14,Sensitivity!$G$5) -> 30 | I14: 30 | J14: 30 | K14: 30 | L14: 25 | M14: 25 | N14: 25 | O14: 25 | P14: 30 | Q14: 30 | R14: 30 | S14: 30 | T14: 30
D15: Operations End Date | E15: date | F15: =INDEX(I15:AG15,Sensitivity!$G$5) -> 2057-01-01 | I15: =EDATE(I10,I14*12) -> 2057-01-01 | J15: 2057-01-01 | K15: 2059-01-01 | L15: 2054-01-01 | M15: 2054-01-01 | N15: 2054-01-01 | O15: 2054-01-01 | P15: 2057-01-01 | Q15: 2057-01-01 | R15: 2057-01-01 | S15: 2057-01-01 | T15: 2057-01-01
B17: Operations
D19: Capex | E19: EUR | F19: =INDEX(I19:AG19,Sensitivity!$G$5) -> 1000000 | I19: 1000000 | J19: 1000000 | K19: 1000000 | L19: 1000000 | M19: 1400000 | N19: 1400000 | O19: 1400000 | P19: 1000000 | Q19: 1000000 | R19: 1000000 | S19: 1000000 | T19: 1000000
D20: EBITDA | E20: EUR p.a. | F20: =INDEX(I20:AG20,Sensitivity!$G$5) -> 100000 | I20: 100000 | J20: 100000 | K20: 100000 | L20: 100000 | M20: 100000 | N20: 90000 | O20: 90000 | P20: 70000 | Q20: 60891.9955 | R20: 56112.50764 | S20: 43308.41911 | T20: 40000
D21: EBITDA Growth | E21: % p.a. | F21: =INDEX(I21:AG21,Sensitivity!$G$5) -> 0 | I21: 0 | J21: 0.01 | K21: 0.01 | L21: 0.01 | M21: 0.01 | N21: 0.01 | O21: 0 | P21: 0.01 | Q21: 0.01 | R21: 0.01 | S21: 0.01 | T21: 0.01
D23: Volatility | E23: % p.a. | F23: =G23/100 -> 0 | G23: 0 | I23: 0.3 | J23: 0.2 | K23: 0.2 | L23: 0.2 | M23: 0.2 | N23: 0.2 | O23: 0.2 | P23: 0.2 | Q23: 0.2 | R23: 0.2 | S23: 0.2 | T23: 0.2
D24: Mean Reversion | E24: % | F24: =G24/100 -> 0.1 | G24: 10 | I24: 0 | J24: 0 | K24: 0 | L24: 0 | M24: 0 | N24: 0 | O24: 0 | P24: 0 | Q24: 0 | R24: 0 | S24: 0 | T24: 0
B26: Valuation
D27: Risk Free Rate | E27: % p.a. | F27: =INDEX(I27:AG27,Sensitivity!$G$5) -> 0.035 | I27: 0.035 | J27: 0.035 | K27: 0.035 | L27: 0.035 | M27: 0.035 | N27: 0.035 | O27: 0.035 | P27: 0.035 | Q27: 0.035 | R27: 0.035 | S27: 0.035 | T27: 0.035
D28: Valuation Discount Rate | E28: % p.a. | F28: =INDEX(I28:AG28,Sensitivity!$G$5) -> 0.06 | I28: 0.06 | J28: 0.06 | K28: 0.06 | L28: 0.06 | M28: 0.06 | N28: 0.06 | O28: 0.06 | P28: 0.06 | Q28: 0.06 | R28: 0.06 | S28: 0.06 | T28: 0.06
B30: Debt Structuring
C31: Max Debt to Capital | E31: % | F31: =INDEX(I31:AG31,Sensitivity!$G$5) -> 0.8 | I31: 0.8 | J31: 0.8 | K31: 0.8 | L31: 0.8 | M31: 0.8 | N31: 0.8 | O31: 0.8 | P31: 0.8 | Q31: 0.8 | R31: 0.8 | S31: 0.8 | T31: 0.8
C32: Min DSCR | E32: x | F32: =INDEX(I32:AG32,Sensitivity!$G$5) -> 1.4 | I32: 1.4 | J32: 1.4 | K32: 1.4 | L32: 1.4 | M32: 1.4 | N32: 1.4 | O32: 1.4 | P32: 1.4 | Q32: 1.4 | R32: 1.4 | S32: 1.4 | T32: 1.4
C34: Debt Tenure | E34: Years | F34: =INDEX(I34:AG34,Sensitivity!$G$5) -> 20 | I34: 20 | J34: 20 | K34: 20 | L34: 20 | M34: 20 | N34: 20 | O34: 20 | P34: 20 | Q34: 20 | R34: 20 | S34: 20 | T34: 20
C36: Base SOFR Swap Rate | E36: % p.a. | F36: =INDEX(I36:AG36,Sensitivity!$G$5) -> 0.035 | I36: 0.035 | J36: 0.035 | K36: 0.035 | L36: 0.035 | M36: 0.035 | N36: 0.035 | O36: 0.035 | P36: 0.035 | Q36: 0.035 | R36: 0.035 | S36: 0.035 | T36: 0.035
C37: Credit Spread | E37: % p.a. | F37: =INDEX(I37:AG37,Sensitivity!$G$5) -> 0.01 | I37: 0.01 | J37: 0.01 | K37: 0.01 | L37: 0.01 | M37: 0.01 | N37: 0.01 | O37: 0.01 | P37: 0.01 | Q37: 0.01 | R37: 0.01 | S37: 0.01 | T37: 0.01
C39: Pro-Rata Funding | E39: Flag | F39: =INDEX(I39:AG39,Sensitivity!$G$5) -> TRUE | I39: TRUE | J39: TRUE | K39: TRUE | L39: TRUE | M39: TRUE | N39: TRUE | O39: TRUE | P39: TRUE | Q39: TRUE | R39: TRUE | S39: TRUE | T39: TRUE
C40: Equity Up-front | E40: Flag | F40: =INDEX(I40:AG40,Sensitivity!$G$5) -> FALSE | I40: =NOT(I39) -> FALSE | J40: FALSE | K40: FALSE | L40: FALSE | M40: FALSE | N40: FALSE | O40: FALSE | P40: FALSE | Q40: FALSE | R40: FALSE | S40: FALSE | T40: FALSE
B42: Constants
D43: Months in a year | F43: 12 | G43: months
D44: One Range Name | F44: 1 | G44: One
D101: =TRANSPOSE(I5:AK5) -> Base Case - Annual
D102: Base Case Alternative Timing
D103: Longer-Construction
D104: Shorter-Life
D105: Higher Capital Expenditure
D106: Lower Base EBITDA
D107: Lower Growth Rate
D108: Base Case
D109: Break-Even DSCR Case
D110: Break-Even LLCR Case
D111: Break-Even PLCR Case
D112: Loss Case
D113: 0
D114: 0
D115: 0
D116: 0
D117: 0
D118: 0
D119: 0
D120: 0
D121: 0
D122: 0
D123: 0
D124: 0
D125: 0
D126: 0
D127: 0
D128: 0
D129: 0

Sheet Financial Model
B2: Timeline | E2: Input Units | F2: Constants | G2: Constants | H2: Sum | I2: Model Units | J2: Initial
D3: Time Period | I3: Period | K3: 1 | L3: 2 | M3: 3 | N3: 4 | O3: 5 | P3: 6 | Q3: 7 | R3: 8 | S3: 9 | T3: 10 | U3: 11 | V3: 12 | W3: 13 | X3: 14 | Y3: 15 | Z3: 16 | AA3: 17 | AB3: 18 | AC3: 19 | AD3: 20 | AE3: 21 | AF3: 22 | AG3: 23 | AH3: 24 | AI3: 25 | AJ3: 26 | AK3: 27 | AL3: 28 | AM3: 29 | AN3: 30 | AO3: 31 | AP3: 32 | AQ3: 33 | AR3: 34 | AS3: 35 | AT3: 36 | AU3: 37 | AV3: 38 | AW3: 39 | AX3: 40 | AY3: 41 | AZ3: 42 | BA3: 43 | BB3: 44 | BC3: 45 | BD3: 46 | BE3: 47 | BF3: 48 | BG3: 49 | BH3: 50 | BI3: 51 | BJ3: 52 | BK3: 53 | BL3: 54 | BM3: 55 | BN3: 56 | BO3: 57 | BP3: 58 | BQ3: 59 | BR3: 60 | BS3: 61 | BT3: 62 | BU3: 63 | BV3: 64 | BW3: 65 | BX3: 66 | BY3: 67 | BZ3: 68 | CA3: 69 | CB3: 70 | CC3: 71 | CD3: 72 | CE3: 73 | CF3: 74 | CG3: 75 | CH3: 76 | CI3: 77 | CJ3: 78 | CK3: 79 | CL3: 80 | CM3: 81 | CN3: 82 | CO3: 83 | CP3: 84 | CQ3: 85 | CR3: 86 | CS3: 87 | CT3: 88 | CU3: 89 | CV3: 90 | CW3: 91 | CX3: 92 | CY3: 93 | CZ3: 94 | DA3: 95 | DB3: 96 | DC3: 97 | DD3: 98 | DE3: 99 | DF3: 100 | DG3: 101 | DH3: 102 | DI3: 103 | DJ3: 104 | DK3: 105 | DL3: 106 | DM3: 107 | DN3: 108 | DO3: 109 | DP3: 110 | DQ3: 111 | DR3: 112 | DS3: 113 | DT3: 114 | DU3: 115 | DV3: 116 | DW3: 117 | DX3: 118 | DY3: 119 | DZ3: 120 | EA3: 121 | EB3: 122 | EC3: 123 | ED3: 124 | EE3: 125 | EF3: 126 | EG3: 127 | EH3: 128 | EI3: 129 | EJ3: 130 | EK3: 131 | EL3: 132 | EM3: 133 | EN3: 134 | EO3: 135 | EP3: 136 | EQ3: 137 | ER3: 138 | ES3: 139 | ET3: 140 | EU3: 141 | EV3: 142 | EW3: 143 | EX3: 144 | EY3: 145 | EZ3: 146 | FA3: 147 | FB3: 148 | FC3: 149 | FD3: 150 | FE3: 151 | FF3: 152 | FG3: 153 | FH3: 154 | FI3: 155 | FJ3: 156 | FK3: 157 | FL3: 158 | FM3: 159 | FN3: 160 | FO3: 161 | FP3: 162 | FQ3: 163 | FR3: 164 | FS3: 165 | FT3: 166 | FU3: 167 | FV3: 168 | FW3: 169 | FX3: 170 | FY3: 171 | FZ3: 172 | GA3: 173 | GB3: 174 | GC3: 175 | GD3: 176 | GE3: 177 | GF3: 178 | GG3: 179 | GH3: 180 | GI3: 181 | GJ3: 182 | GK3: 183 | GL3: 184 | GM3: 185 | GN3: 186 | GO3: 187 | GP3: 188 | GQ3: 189 | GR3: 190 | GS3: 191 | GT3: 192 | GU3: 193 | GV3: 194 | GW3: 195 | GX3: 196 | GY3: 197 | GZ3: 198 | HA3: 199 | HB3: 200 | HC3: 201 | HD3: 202 | HE3: 203 | HF3: 204 | HG3: 205 | HH3: 206 | HI3: 207 | HJ3: 208 | HK3: 209 | HL3: 210 | HM3: 211 | HN3: 212 | HO3: 213 | HP3: 214 | HQ3: 215 | HR3: 216 | HS3: 217 | HT3: 218 | HU3: 219 | HV3: 220 | HW3: 221 | HX3: 222 | HY3: 223 | HZ3: 224 | IA3: 225 | IB3: 226 | IC3: 227 | ID3: 228 | IE3: 229 | IF3: 230 | IG3: 231 | IH3: 232 | II3: 233 | IJ3: 234 | IK3: 235 | IL3: 236 | IM3: 237 | IN3: 238 | IO3: 239 | IP3: 240 | IQ3: 241 | IR3: 242 | IS3: 243 | IT3: 244 | IU3: 245 | IV3: 246 | IW3: 247 | IX3: 248 | IY3: 249 | IZ3: 250
D4: Construction Periods | E4: Months | F4: =InputC!F8 -> 12
D5: Construction in Periods | E5: Periods | F5: =F4/F6 -> 1 | H5: =SUM(K5:XFD5) -> 1 | I5: Flag | K5: =(K3<=$F$5)*1 -> 1 | L5: =(L3<=$F$5)*1 -> 0 | M5: 0 | N5: 0 | O5: 0 | P5: 0 | Q5: 0 | R5: 0 | S5: 0 | T5: 0 | U5: 0 | V5: 0 | W5: 0 | X5: 0 | Y5: 0 | Z5: 0 | AA5: 0 | AB5: 0 | AC5: 0 | AD5: 0 | AE5: 0 | AF5: 0 | AG5: 0 | AH5: 0 | AI5: 0 | AJ5: 0 | AK5: 0 | AL5: 0 | AM5: 0 | AN5: 0 | AO5: 0 | AP5: 0 | AQ5: 0 | AR5: 0 | AS5: 0 | AT5: 0 | AU5: 0 | AV5: 0 | AW5: 0 | AX5: 0 | AY5: 0 | AZ5: 0 | BA5: 0 | BB5: 0 | BC5: 0 | BD5: 0 | BE5: 0 | BF5: 0 | BG5: 0 | BH5: 0 | BI5: 0 | BJ5: 0 | BK5: 0 | BL5: 0 | BM5: 0 | BN5: 0 | BO5: 0 | BP5: 0 | BQ5: 0 | BR5: 0 | BS5: 0 | BT5: 0 | BU5: 0 | BV5: 0 | BW5: 0 | BX5: =(BX3<=$F$5)*1 -> 0 | BY5: 0 | BZ5: 0 | CA5: 0 | CB5: 0 | CC5: 0 | CD5: 0 | CE5: 0 | CF5: 0 | CG5: 0 | CH5: 0 | CI5: 0 | CJ5: 0 | CK5: 0 | CL5: 0 | CM5: 0 | CN5: 0 | CO5: 0 | CP5: 0 | CQ5: 0 | CR5: 0 | CS5: 0 | CT5: 0 | CU5: 0 | CV5: 0 | CW5: 0 | CX5: 0 | CY5: 0 | CZ5: 0 | DA5: 0 | DB5: 0 | DC5: 0 | DD5: 0 | DE5: 0 | DF5: 0 | DG5: 0 | DH5: 0 | DI5: 0 | DJ5: 0 | DK5: 0 | DL5: 0 | DM5: 0 | DN5: 0 | DO5: 0 | DP5: 0 | DQ5: 0 | DR5: 0 | DS5: 0 | DT5: 0 | DU5: 0 | DV5: 0 | DW5: 0 | DX5: 0 | DY5: 0 | DZ5: 0 | EA5: 0 | EB5: 0 | EC5: 0 | ED5: 0 | EE5: 0 | EF5: 0 | EG5: 0 | EH5: 0 | EI5: 0 | EJ5: =(EJ3<=$F$5)*1 -> 0 | EK5: 0 | EL5: 0 | EM5: 0 | EN5: 0 | EO5: 0 | EP5: 0 | EQ5: 0 | ER5: 0 | ES5: 0 | ET5: 0 | EU5: 0 | EV5: 0 | EW5: 0 | EX5: 0 | EY5: 0 | EZ5: 0 | FA5: 0 | FB5: 0 | FC5: 0 | FD5: 0 | FE5: 0 | FF5: 0 | FG5: 0 | FH5: 0 | FI5: 0 | FJ5: 0 | FK5: 0 | FL5: 0 | FM5: 0 | FN5: 0 | FO5: 0 | FP5: 0 | FQ5: 0 | FR5: 0 | FS5: 0 | FT5: 0 | FU5: 0 | FV5: 0 | FW5: 0 | FX5: 0 | FY5: 0 | FZ5: 0 | GA5: 0 | GB5: 0 | GC5: 0 | GD5: 0 | GE5: 0 | GF5: 0 | GG5: 0 | GH5: 0 | GI5: 0 | GJ5: 0 | GK5: 0 | GL5: 0 | GM5: 0 | GN5: 0 | GO5: 0 | GP5: 0 | GQ5: 0 | GR5: 0 | GS5: 0 | GT5: 0 | GU5: 0 | GV5: =(GV3<=$F$5)*1 -> 0 | GW5: 0 | GX5: 0 | GY5: 0 | GZ5: 0 | HA5: 0 | HB5: 0 | HC5: 0 | HD5: 0 | HE5: 0 | HF5: 0 | HG5: 0 | HH5: 0 | HI5: 0 | HJ5: 0 | HK5: 0 | HL5: 0 | HM5: 0 | HN5: 0 | HO5: 0 | HP5: 0 | HQ5: 0 | HR5: 0 | HS5: 0 | HT5: 0 | HU5: 0 | HV5: 0 | HW5: 0 | HX5: 0 | HY5: 0 | HZ5: 0 | IA5: 0 | IB5: 0 | IC5: 0 | ID5: 0 | IE5: 0 | IF5: 0 | IG5: 0 | IH5: 0 | II5: 0 | IJ5: 0 | IK5: 0 | IL5: 0 | IM5: 0 | IN5: 0 | IO5: 0 | IP5: 0 | IQ5: 0 | IR5: 0 | IS5: 0 | IT5: 0 | IU5: 0 | IV5: 0 | IW5: 0 | IX5: 0 | IY5: 0 | IZ5: 0
D6: Months in period | E6: Months/Per | F6: =InputC!F11 -> 12 | G6: =InputC!F12 -> 12 | I6: Months/Per | K6: =IF(K5,$F$6,$G$6) -> 12 | L6: 12 | M6: 12 | N6: 12 | O6: 12 | P6: 12 | Q6: 12 | R6: 12 | S6: 12 | T6: 12 | U6: 12 | V6: 12 | W6: 12 | X6: 12 | Y6: 12 | Z6: 12 | AA6: 12 | AB6: 12 | AC6: 12 | AD6: 12 | AE6: 12 | AF6: 12 | AG6: 12 | AH6: 12 | AI6: 12 | AJ6: 12 | AK6: 12 | AL6: 12 | AM6: 12 | AN6: 12 | AO6: 12 | AP6: 12 | AQ6: 12 | AR6: 12 | AS6: 12 | AT6: 12 | AU6: 12 | AV6: 12 | AW6: 12 | AX6: 12 | AY6: 12 | AZ6: 12 | BA6: 12 | BB6: 12 | BC6: 12 | BD6: 12 | BE6: 12 | BF6: 12 | BG6: 12 | BH6: 12 | BI6: 12 | BJ6: 12 | BK6: 12 | BL6: 12 | BM6: 12 | BN6: 12 | BO6: 12 | BP6: 12 | BQ6: 12 | BR6: 12 | BS6: 12 | BT6: 12 | BU6: 12 | BV6: 12 | BW6: =IF(BW5,$F$6,$G$6) -> 12 | BX6: 12 | BY6: 12 | BZ6: 12 | CA6: 12 | CB6: 12 | CC6: 12 | CD6: 12 | CE6: 12 | CF6: 12 | CG6: 12 | CH6: 12 | CI6: 12 | CJ6: 12 | CK6: 12 | CL6: 12 | CM6: 12 | CN6: 12 | CO6: 12 | CP6: 12 | CQ6: 12 | CR6: 12 | CS6: 12 | CT6: 12 | CU6: 12 | CV6: 12 | CW6: 12 | CX6: 12 | CY6: 12 | CZ6: 12 | DA6: 12 | DB6: 12 | DC6: 12 | DD6: 12 | DE6: 12 | DF6: 12 | DG6: 12 | DH6: 12 | DI6: 12 | DJ6: 12 | DK6: 12 | DL6: 12 | DM6: 12 | DN6: 12 | DO6: 12 | DP6: 12 | DQ6: 12 | DR6: 12 | DS6: 12 | DT6: 12 | DU6: 12 | DV6: 12 | DW6: 12 | DX6: 12 | DY6: 12 | DZ6: 12 | EA6: 12 | EB6: 12 | EC6: 12 | ED6: 12 | EE6: 12 | EF6: 12 | EG6: 12 | EH6: 12 | EI6: =IF(EI5,$F$6,$G$6) -> 12 | EJ6: 12 | EK6: 12 | EL6: 12 | EM6: 12 | EN6: 12 | EO6: 12 | EP6: 12 | EQ6: 12 | ER6: 12 | ES6: 12 | ET6: 12 | EU6: 12 | EV6: 12 | EW6: 12 | EX6: 12 | EY6: 12 | EZ6: 12 | FA6: 12 | FB6: 12 | FC6: 12 | FD6: 12 | FE6: 12 | FF6: 12 | FG6: 12 | FH6: 12 | FI6: 12 | FJ6: 12 | FK6: 12 | FL6: 12 | FM6: 12 | FN6: 12 | FO6: 12 | FP6: 12 | FQ6: 12 | FR6: 12 | FS6: 12 | FT6: 12 | FU6: 12 | FV6: 12 | FW6: 12 | FX6: 12 | FY6: 12 | FZ6: 12 | GA6: 12 | GB6: 12 | GC6: 12 | GD6: 12 | GE6: 12 | GF6: 12 | GG6: 12 | GH6: 12 | GI6: 12 | GJ6: 12 | GK6: 12 | GL6: 12 | GM6: 12 | GN6: 12 | GO6: 12 | GP6: 12 | GQ6: 12 | GR6: 12 | GS6: 12 | GT6: 12 | GU6: =IF(GU5,$F$6,$G$6) -> 12 | GV6: 12 | GW6: 12 | GX6: 12 | GY6: 12 | GZ6: 12 | HA6: 12 | HB6: 12 | HC6: 12 | HD6: 12 | HE6: 12 | HF6: 12 | HG6: 12 | HH6: 12 | HI6: 12 | HJ6: 12 | HK6: 12 | HL6: 12 | HM6: 12 | HN6: 12 | HO6: 12 | HP6: 12 | HQ6: 12 | HR6: 12 | HS6: 12 | HT6: 12 | HU6: 12 | HV6: 12 | HW6: 12 | HX6: 12 | HY6: 12 | HZ6: 12 | IA6: 12 | IB6: 12 | IC6: 12 | ID6: 12 | IE6: 12 | IF6: 12 | IG6: 12 | IH6: 12 | II6: 12 | IJ6: 12 | IK6: 12 | IL6: 12 | IM6: 12 | IN6: 12 | IO6: 12 | IP6: 12 | IQ6: 12 | IR6: 12 | IS6: 12 | IT6: 12 | IU6: 12 | IV6: 12 | IW6: 12 | IX6: 12 | IY6: 12 | IZ6: 12
D7: Start of period | E7: Data | I7: Date | K7: =J8+1 -> 2026-01-01 | L7: =K8+1 -> 2027-01-01 | M7: 2028-01-01 | N7: 2029-01-01 | O7: 2030-01-01 | P7: 2031-01-01 | Q7: 2032-01-01 | R7: 2033-01-01 | S7: 2034-01-01 | T7: 2035-01-01 | U7: 2036-01-01 | V7: 2037-01-01 | W7: 2038-01-01 | X7: 2039-01-01 | Y7: 2040-01-01 | Z7: 2041-01-01 | AA7: 2042-01-01 | AB7: 2043-01-01 | AC7: 2044-01-01 | AD7: 2045-01-01 | AE7: 2046-01-01 | AF7: 2047-01-01 | AG7: 2048-01-01 | AH7: 2049-01-01 | AI7: 2050-01-01 | AJ7: 2051-01-01 | AK7: 2052-01-01 | AL7: 2053-01-01 | AM7: 2054-01-01 | AN7: 2055-01-01 | AO7: 2056-01-01 | AP7: 2057-01-01 | AQ7: 2058-01-01 | AR7: 2059-01-01 | AS7: 2060-01-01 | AT7: 2061-01-01 | AU7: 2062-01-01 | AV7: 2063-01-01 | AW7: 2064-01-01 | AX7: 2065-01-01 | AY7: 2066-01-01 | AZ7: 2067-01-01 | BA7: 2068-01-01 | BB7: 2069-01-01 | BC7: 2070-01-01 | BD7: 2071-01-01 | BE7: 2072-01-01 | BF7: 2073-01-01 | BG7: 2074-01-01 | BH7: 2075-01-01 | BI7: 2076-01-01 | BJ7: 2077-01-01 | BK7: 2078-01-01 | BL7: 2079-01-01 | BM7: 2080-01-01 | BN7: 2081-01-01 | BO7: 2082-01-01 | BP7: 2083-01-01 | BQ7: 2084-01-01 | BR7: 2085-01-01 | BS7: 2086-01-01 | BT7: 2087-01-01 | BU7: 2088-01-01 | BV7: 2089-01-01 | BW7: 2090-01-01 | BX7: =BW8+1 -> 2091-01-01 | BY7: 2092-01-01 | BZ7: 2093-01-01 | CA7: 2094-01-01 | CB7: 2095-01-01 | CC7: 2096-01-01 | CD7: 2097-01-01 | CE7: 2098-01-01 | CF7: 2099-01-01 | CG7: 2100-01-01 | CH7: 2101-01-01 | CI7: 2102-01-01 | CJ7: 2103-01-01 | CK7: 2104-01-01 | CL7: 2105-01-01 | CM7: 2106-01-01 | CN7: 2107-01-01 | CO7: 2108-01-01 | CP7: 2109-01-01 | CQ7: 2110-01-01 | CR7: 2111-01-01 | CS7: 2112-01-01 | CT7: 2113-01-01 | CU7: 2114-01-01 | CV7: 2115-01-01 | CW7: 2116-01-01 | CX7: 2117-01-01 | CY7: 2118-01-01 | CZ7: 2119-01-01 | DA7: 2120-01-01 | DB7: 2121-01-01 | DC7: 2122-01-01 | DD7: 2123-01-01 | DE7: 2124-01-01 | DF7: 2125-01-01 | DG7: 2126-01-01 | DH7: 2127-01-01 | DI7: 2128-01-01 | DJ7: 2129-01-01 | DK7: 2130-01-01 | DL7: 2131-01-01 | DM7: 2132-01-01 | DN7: 2133-01-01 | DO7: 2134-01-01 | DP7: 2135-01-01 | DQ7: 2136-01-01 | DR7: 2137-01-01 | DS7: 2138-01-01 | DT7: 2139-01-01 | DU7: 2140-01-01 | DV7: 2141-01-01 | DW7: 2142-01-01 | DX7: 2143-01-01 | DY7: 2144-01-01 | DZ7: 2145-01-01 | EA7: 2146-01-01 | EB7: 2147-01-01 | EC7: 2148-01-01 | ED7: 2149-01-01 | EE7: 2150-01-01 | EF7: 2151-01-01 | EG7: 2152-01-01 | EH7: 2153-01-01 | EI7: 2154-01-01 | EJ7: =EI8+1 -> 2155-01-01 | EK7: 2156-01-01 | EL7: 2157-01-01 | EM7: 2158-01-01 | EN7: 2159-01-01 | EO7: 2160-01-01 | EP7: 2161-01-01 | EQ7: 2162-01-01 | ER7: 2163-01-01 | ES7: 2164-01-01 | ET7: 2165-01-01 | EU7: 2166-01-01 | EV7: 2167-01-01 | EW7: 2168-01-01 | EX7: 2169-01-01 | EY7: 2170-01-01 | EZ7: 2171-01-01 | FA7: 2172-01-01 | FB7: 2173-01-01 | FC7: 2174-01-01 | FD7: 2175-01-01 | FE7: 2176-01-01 | FF7: 2177-01-01 | FG7: 2178-01-01 | FH7: 2179-01-01 | FI7: 2180-01-01 | FJ7: 2181-01-01 | FK7: 2182-01-01 | FL7: 2183-01-01 | FM7: 2184-01-01 | FN7: 2185-01-01 | FO7: 2186-01-01 | FP7: 2187-01-01 | FQ7: 2188-01-01 | FR7: 2189-01-01 | FS7: 2190-01-01 | FT7: 2191-01-01 | FU7: 2192-01-01 | FV7: 2193-01-01 | FW7: 2194-01-01 | FX7: 2195-01-01 | FY7: 2196-01-01 | FZ7: 2197-01-01 | GA7: 2198-01-01 | GB7: 2199-01-01 | GC7: 2200-01-01 | GD7: 2201-01-01 | GE7: 2202-01-01 | GF7: 2203-01-01 | GG7: 2204-01-01 | GH7: 2205-01-01 | GI7: 2206-01-01 | GJ7: 2207-01-01 | GK7: 2208-01-01 | GL7: 2209-01-01 | GM7: 2210-01-01 | GN7: 2211-01-01 | GO7: 2212-01-01 | GP7: 2213-01-01 | GQ7: 2214-01-01 | GR7: 2215-01-01 | GS7: 2216-01-01 | GT7: 2217-01-01 | GU7: 2218-01-01 | GV7: =GU8+1 -> 2219-01-01 | GW7: 2220-01-01 | GX7: 2221-01-01 | GY7: 2222-01-01 | GZ7: 2223-01-01 | HA7: 2224-01-01 | HB7: 2225-01-01 | HC7: 2226-01-01 | HD7: 2227-01-01 | HE7: 2228-01-01 | HF7: 2229-01-01 | HG7: 2230-01-01 | HH7: 2231-01-01 | HI7: 2232-01-01 | HJ7: 2233-01-01 | HK7: 2234-01-01 | HL7: 2235-01-01 | HM7: 2236-01-01 | HN7: 2237-01-01 | HO7: 2238-01-01 | HP7: 2239-01-01 | HQ7: 2240-01-01 | HR7: 2241-01-01 | HS7: 2242-01-01 | HT7: 2243-01-01 | HU7: 2244-01-01 | HV7: 2245-01-01 | HW7: 2246-01-01 | HX7: 2247-01-01 | HY7: 2248-01-01 | HZ7: 2249-01-01 | IA7: 2250-01-01 | IB7: 2251-01-01 | IC7: 2252-01-01 | ID7: 2253-01-01 | IE7: 2254-01-01 | IF7: 2255-01-01 | IG7: 2256-01-01 | IH7: 2257-01-01 | II7: 2258-01-01 | IJ7: 2259-01-01 | IK7: 2260-01-01 | IL7: 2261-01-01 | IM7: 2262-01-01 | IN7: 2263-01-01 | IO7: 2264-01-01 | IP7: 2265-01-01 | IQ7: 2266-01-01 | IR7: 2267-01-01 | IS7: 2268-01-01 | IT7: 2269-01-01 | IU7: 2270-01-01 | IV7: 2271-01-01 | IW7: 2272-01-01 | IX7: 2273-01-01 | IY7: 2274-01-01 | IZ7: 2275-01-01
D8: End of period | E8: Date | I8: Date | J8: =InputC!F7-1 -> 2025-12-31 | K8: =EDATE(K7,K6)-1 -> 2026-12-31 | L8: =EDATE(L7,L6)-1 -> 2027-12-31 | M8: 2028-12-31 | N8: 2029-12-31 | O8: 2030-12-31 | P8: 2031-12-31 | Q8: 2032-12-31 | R8: 2033-12-31 | S8: 2034-12-31 | T8: 2035-12-31 | U8: 2036-12-31 | V8: 2037-12-31 | W8: 2038-12-31 | X8: 2039-12-31 | Y8: 2040-12-31 | Z8: 2041-12-31 | AA8: 2042-12-31 | AB8: 2043-12-31 | AC8: 2044-12-31 | AD8: 2045-12-31 | AE8: 2046-12-31 | AF8: 2047-12-31 | AG8: 2048-12-31 | AH8: 2049-12-31 | AI8: 2050-12-31 | AJ8: 2051-12-31 | AK8: 2052-12-31 | AL8: 2053-12-31 | AM8: 2054-12-31 | AN8: 2055-12-31 | AO8: 2056-12-31 | AP8: 2057-12-31 | AQ8: 2058-12-31 | AR8: 2059-12-31 | AS8: 2060-12-31 | AT8: 2061-12-31 | AU8: 2062-12-31 | AV8: 2063-12-31 | AW8: 2064-12-31 | AX8: 2065-12-31 | AY8: 2066-12-31 | AZ8: 2067-12-31 | BA8: 2068-12-31 | BB8: 2069-12-31 | BC8: 2070-12-31 | BD8: 2071-12-31 | BE8: 2072-12-31 | BF8: 2073-12-31 | BG8: 2074-12-31 | BH8: 2075-12-31 | BI8: 2076-12-31 | BJ8: 2077-12-31 | BK8: 2078-12-31 | BL8: 2079-12-31 | BM8: 2080-12-31 | BN8: 2081-12-31 | BO8: 2082-12-31 | BP8: 2083-12-31 | BQ8: 2084-12-31 | BR8: 2085-12-31 | BS8: 2086-12-31 | BT8: 2087-12-31 | BU8: 2088-12-31 | BV8: 2089-12-31 | BW8: 2090-12-31 | BX8: =EDATE(BX7,BX6)-1 -> 2091-12-31 | BY8: 2092-12-31 | BZ8: 2093-12-31 | CA8: 2094-12-31 | CB8: 2095-12-31 | CC8: 2096-12-31 | CD8: 2097-12-31 | CE8: 2098-12-31 | CF8: 2099-12-31 | CG8: 2100-12-31 | CH8: 2101-12-31 | CI8: 2102-12-31 | CJ8: 2103-12-31 | CK8: 2104-12-31 | CL8: 2105-12-31 | CM8: 2106-12-31 | CN8: 2107-12-31 | CO8: 2108-12-31 | CP8: 2109-12-31 | CQ8: 2110-12-31 | CR8: 2111-12-31 | CS8: 2112-12-31 | CT8: 2113-12-31 | CU8: 2114-12-31 | CV8: 2115-12-31 | CW8: 2116-12-31 | CX8: 2117-12-31 | CY8: 2118-12-31 | CZ8: 2119-12-31 | DA8: 2120-12-31 | DB8: 2121-12-31 | DC8: 2122-12-31 | DD8: 2123-12-31 | DE8: 2124-12-31 | DF8: 2125-12-31 | DG8: 2126-12-31 | DH8: 2127-12-31 | DI8: 2128-12-31 | DJ8: 2129-12-31 | DK8: 2130-12-31 | DL8: 2131-12-31 | DM8: 2132-12-31 | DN8: 2133-12-31 | DO8: 2134-12-31 | DP8: 2135-12-31 | DQ8: 2136-12-31 | DR8: 2137-12-31 | DS8: 2138-12-31 | DT8: 2139-12-31 | DU8: 2140-12-31 | DV8: 2141-12-31 | DW8: 2142-12-31 | DX8: 2143-12-31 | DY8: 2144-12-31 | DZ8: 2145-12-31 | EA8: 2146-12-31 | EB8: 2147-12-31 | EC8: 2148-12-31 | ED8: 2149-12-31 | EE8: 2150-12-31 | EF8: 2151-12-31 | EG8: 2152-12-31 | EH8: 2153-12-31 | EI8: 2154-12-31 | EJ8: =EDATE(EJ7,EJ6)-1 -> 2155-12-31 | EK8: 2156-12-31 | EL8: 2157-12-31 | EM8: 2158-12-31 | EN8: 2159-12-31 | EO8: 2160-12-31 | EP8: 2161-12-31 | EQ8: 2162-12-31 | ER8: 2163-12-31 | ES8: 2164-12-31 | ET8: 2165-12-31 | EU8: 2166-12-31 | EV8: 2167-12-31 | EW8: 2168-12-31 | EX8: 2169-12-31 | EY8: 2170-12-31 | EZ8: 2171-12-31 | FA8: 2172-12-31 | FB8: 2173-12-31 | FC8: 2174-12-31 | FD8: 2175-12-31 | FE8: 2176-12-31 | FF8: 2177-12-31 | FG8: 2178-12-31 | FH8: 2179-12-31 | FI8: 2180-12-31 | FJ8: 2181-12-31 | FK8: 2182-12-31 | FL8: 2183-12-31 | FM8: 2184-12-31 | FN8: 2185-12-31 | FO8: 2186-12-31 | FP8: 2187-12-31 | FQ8: 2188-12-31 | FR8: 2189-12-31 | FS8: 2190-12-31 | FT8: 2191-12-31 | FU8: 2192-12-31 | FV8: 2193-12-31 | FW8: 2194-12-31 | FX8: 2195-12-31 | FY8: 2196-12-31 | FZ8: 2197-12-31 | GA8: 2198-12-31 | GB8: 2199-12-31 | GC8: 2200-12-31 | GD8: 2201-12-31 | GE8: 2202-12-31 | GF8: 2203-12-31 | GG8: 2204-12-31 | GH8: 2205-12-31 | GI8: 2206-12-31 | GJ8: 2207-12-31 | GK8: 2208-12-31 | GL8: 2209-12-31 | GM8: 2210-12-31 | GN8: 2211-12-31 | GO8: 2212-12-31 | GP8: 2213-12-31 | GQ8: 2214-12-31 | GR8: 2215-12-31 | GS8: 2216-12-31 | GT8: 2217-12-31 | GU8: 2218-12-31 | GV8: =EDATE(GV7,GV6)-1 -> 2219-12-31 | GW8: 2220-12-31 | GX8: 2221-12-31 | GY8: 2222-12-31 | GZ8: 2223-12-31 | HA8: 2224-12-31 | HB8: 2225-12-31 | HC8: 2226-12-31 | HD8: 2227-12-31 | HE8: 2228-12-31 | HF8: 2229-12-31 | HG8: 2230-12-31 | HH8: 2231-12-31 | HI8: 2232-12-31 | HJ8: 2233-12-31 | HK8: 2234-12-31 | HL8: 2235-12-31 | HM8: 2236-12-31 | HN8: 2237-12-31 | HO8: 2238-12-31 | HP8: 2239-12-31 | HQ8: 2240-12-31 | HR8: 2241-12-31 | HS8: 2242-12-31 | HT8: 2243-12-31 | HU8: 2244-12-31 | HV8: 2245-12-31 | HW8: 2246-12-31 | HX8: 2247-12-31 | HY8: 2248-12-31 | HZ8: 2249-12-31 | IA8: 2250-12-31 | IB8: 2251-12-31 | IC8: 2252-12-31 | ID8: 2253-12-31 | IE8: 2254-12-31 | IF8: 2255-12-31 | IG8: 2256-12-31 | IH8: 2257-12-31 | II8: 2258-12-31 | IJ8: 2259-12-31 | IK8: 2260-12-31 | IL8: 2261-12-31 | IM8: 2262-12-31 | IN8: 2263-12-31 | IO8: 2264-12-31 | IP8: 2265-12-31 | IQ8: 2266-12-31 | IR8: 2267-12-31 | IS8: 2268-12-31 | IT8: 2269-12-31 | IU8: 2270-12-31 | IV8: 2271-12-31 | IW8: 2272-12-31 | IX8: 2273-12-31 | IY8: 2274-12-31 | IZ8: 2275-12-31
D9: Operation period | E9: Flag | F9: =InputC!F10 -> 2027-01-01 | G9: =InputC!F15 -> 2057-01-01 | H9: =SUM(K9:XFD9) -> 30 | I9: Flag | K9: =(AND(K7>=$F$9,K7<$G$9))*1 -> 0 | L9: =(AND(L7>=$F$9,L7<$G$9))*1 -> 1 | M9: 1 | N9: 1 | O9: 1 | P9: 1 | Q9: 1 | R9: 1 | S9: 1 | T9: 1 | U9: 1 | V9: 1 | W9: 1 | X9: 1 | Y9: 1 | Z9: 1 | AA9: 1 | AB9: 1 | AC9: 1 | AD9: 1 | AE9: 1 | AF9: 1 | AG9: 1 | AH9: 1 | AI9: 1 | AJ9: 1 | AK9: 1 | AL9: 1 | AM9: 1 | AN9: 1 | AO9: 1 | AP9: 0 | AQ9: 0 | AR9: 0 | AS9: 0 | AT9: 0 | AU9: 0 | AV9: 0 | AW9: 0 | AX9: 0 | AY9: 0 | AZ9: 0 | BA9: 0 | BB9: 0 | BC9: 0 | BD9: 0 | BE9: 0 | BF9: 0 | BG9: 0 | BH9: 0 | BI9: 0 | BJ9: 0 | BK9: 0 | BL9: 0 | BM9: 0 | BN9: 0 | BO9: 0 | BP9: 0 | BQ9: 0 | BR9: 0 | BS9: 0 | BT9: 0 | BU9: 0 | BV9: 0 | BW9: 0 | BX9: =(AND(BX7>=$F$9,BX7<$G$9))*1 -> 0 | BY9: 0 | BZ9: 0 | CA9: 0 | CB9: 0 | CC9: 0 | CD9: 0 | CE9: 0 | CF9: 0 | CG9: 0 | CH9: 0 | CI9: 0 | CJ9: 0 | CK9: 0 | CL9: 0 | CM9: 0 | CN9: 0 | CO9: 0 | CP9: 0 | CQ9: 0 | CR9: 0 | CS9: 0 | CT9: 0 | CU9: 0 | CV9: 0 | CW9: 0 | CX9: 0 | CY9: 0 | CZ9: 0 | DA9: 0 | DB9: 0 | DC9: 0 | DD9: 0 | DE9: 0 | DF9: 0 | DG9: 0 | DH9: 0 | DI9: 0 | DJ9: 0 | DK9: 0 | DL9: 0 | DM9: 0 | DN9: 0 | DO9: 0 | DP9: 0 | DQ9: 0 | DR9: 0 | DS9: 0 | DT9: 0 | DU9: 0 | DV9: 0 | DW9: 0 | DX9: 0 | DY9: 0 | DZ9: 0 | EA9: 0 | EB9: 0 | EC9: 0 | ED9: 0 | EE9: 0 | EF9: 0 | EG9: 0 | EH9: 0 | EI9: 0 | EJ9: =(AND(EJ7>=$F$9,EJ7<$G$9))*1 -> 0 | EK9: 0 | EL9: 0 | EM9: 0 | EN9: 0 | EO9: 0 | EP9: 0 | EQ9: 0 | ER9: 0 | ES9: 0 | ET9: 0 | EU9: 0 | EV9: 0 | EW9: 0 | EX9: 0 | EY9: 0 | EZ9: 0 | FA9: 0 | FB9: 0 | FC9: 0 | FD9: 0 | FE9: 0 | FF9: 0 | FG9: 0 | FH9: 0 | FI9: 0 | FJ9: 0 | FK9: 0 | FL9: 0 | FM9: 0 | FN9: 0 | FO9: 0 | FP9: 0 | FQ9: 0 | FR9: 0 | FS9: 0 | FT9: 0 | FU9: 0 | FV9: 0 | FW9: 0 | FX9: 0 | FY9: 0 | FZ9: 0 | GA9: 0 | GB9: 0 | GC9: 0 | GD9: 0 | GE9: 0 | GF9: 0 | GG9: 0 | GH9: 0 | GI9: 0 | GJ9: 0 | GK9: 0 | GL9: 0 | GM9: 0 | GN9: 0 | GO9: 0 | GP9: 0 | GQ9: 0 | GR9: 0 | GS9: 0 | GT9: 0 | GU9: 0 | GV9: =(AND(GV7>=$F$9,GV7<$G$9))*1 -> 0 | GW9: 0 | GX9: 0 | GY9: 0 | GZ9: 0 | HA9: 0 | HB9: 0 | HC9: 0 | HD9: 0 | HE9: 0 | HF9: 0 | HG9: 0 | HH9: 0 | HI9: 0 | HJ9: 0 | HK9: 0 | HL9: 0 | HM9: 0 | HN9: 0 | HO9: 0 | HP9: 0 | HQ9: 0 | HR9: 0 | HS9: 0 | HT9: 0 | HU9: 0 | HV9: 0 | HW9: 0 | HX9: 0 | HY9: 0 | HZ9: 0 | IA9: 0 | IB9: 0 | IC9: 0 | ID9: 0 | IE9: 0 | IF9: 0 | IG9: 0 | IH9: 0 | II9: 0 | IJ9: 0 | IK9: 0 | IL9: 0 | IM9: 0 | IN9: 0 | IO9: 0 | IP9: 0 | IQ9: 0 | IR9: 0 | IS9: 0 | IT9: 0 | IU9: 0 | IV9: 0 | IW9: 0 | IX9: 0 | IY9: 0 | IZ9: 0
D10: Operating Life in Periods | I10: Counter | K10: =J10+K9 -> 0 | L10: =K10+L9 -> 1 | M10: 2 | N10: 3 | O10: 4 | P10: 5 | Q10: 6 | R10: 7 | S10: 8 | T10: 9 | U10: 10 | V10: 11 | W10: 12 | X10: 13 | Y10: 14 | Z10: 15 | AA10: 16 | AB10: 17 | AC10: 18 | AD10: 19 | AE10: 20 | AF10: 21 | AG10: 22 | AH10: 23 | AI10: 24 | AJ10: 25 | AK10: 26 | AL10: 27 | AM10: 28 | AN10: 29 | AO10: 30 | AP10: 30 | AQ10: 30 | AR10: 30 | AS10: 30 | AT10: 30 | AU10: 30 | AV10: 30 | AW10: 30 | AX10: 30 | AY10: 30 | AZ10: 30 | BA10: 30 | BB10: 30 | BC10: 30 | BD10: 30 | BE10: 30 | BF10: 30 | BG10: 30 | BH10: 30 | BI10: 30 | BJ10: 30 | BK10: 30 | BL10: 30 | BM10: 30 | BN10: 30 | BO10: 30 | BP10: 30 | BQ10: 30 | BR10: 30 | BS10: 30 | BT10: 30 | BU10: 30 | BV10: 30 | BW10: 30 | BX10: =BW10+BX9 -> 30 | BY10: 30 | BZ10: 30 | CA10: 30 | CB10: 30 | CC10: 30 | CD10: 30 | CE10: 30 | CF10: 30 | CG10: 30 | CH10: 30 | CI10: 30 | CJ10: 30 | CK10: 30 | CL10: 30 | CM10: 30 | CN10: 30 | CO10: 30 | CP10: 30 | CQ10: 30 | CR10: 30 | CS10: 30 | CT10: 30 | CU10: 30 | CV10: 30 | CW10: 30 | CX10: 30 | CY10: 30 | CZ10: 30 | DA10: 30 | DB10: 30 | DC10: 30 | DD10: 30 | DE10: 30 | DF10: 30 | DG10: 30 | DH10: 30 | DI10: 30 | DJ10: 30 | DK10: 30 | DL10: 30 | DM10: 30 | DN10: 30 | DO10: 30 | DP10: 30 | DQ10: 30 | DR10: 30 | DS10: 30 | DT10: 30 | DU10: 30 | DV10: 30 | DW10: 30 | DX10: 30 | DY10: 30 | DZ10: 30 | EA10: 30 | EB10: 30 | EC10: 30 | ED10: 30 | EE10: 30 | EF10: 30 | EG10: 30 | EH10: 30 | EI10: 30 | EJ10: =EI10+EJ9 -> 30 | EK10: 30 | EL10: 30 | EM10: 30 | EN10: 30 | EO10: 30 | EP10: 30 | EQ10: 30 | ER10: 30 | ES10: 30 | ET10: 30 | EU10: 30 | EV10: 30 | EW10: 30 | EX10: 30 | EY10: 30 | EZ10: 30 | FA10: 30 | FB10: 30 | FC10: 30 | FD10: 30 | FE10: 30 | FF10: 30 | FG10: 30 | FH10: 30 | FI10: 30 | FJ10: 30 | FK10: 30 | FL10: 30 | FM10: 30 | FN10: 30 | FO10: 30 | FP10: 30 | FQ10: 30 | FR10: 30 | FS10: 30 | FT10: 30 | FU10: 30 | FV10: 30 | FW10: 30 | FX10: 30 | FY10: 30 | FZ10: 30 | GA10: 30 | GB10: 30 | GC10: 30 | GD10: 30 | GE10: 30 | GF10: 30 | GG10: 30 | GH10: 30 | GI10: 30 | GJ10: 30 | GK10: 30 | GL10: 30 | GM10: 30 | GN10: 30 | GO10: 30 | GP10: 30 | GQ10: 30 | GR10: 30 | GS10: 30 | GT10: 30 | GU10: 30 | GV10: =GU10+GV9 -> 30 | GW10: 30 | GX10: 30 | GY10: 30 | GZ10: 30 | HA10: 30 | HB10: 30 | HC10: 30 | HD10: 30 | HE10: 30 | HF10: 30 | HG10: 30 | HH10: 30 | HI10: 30 | HJ10: 30 | HK10: 30 | HL10: 30 | HM10: 30 | HN10: 30 | HO10: 30 | HP10: 30 | HQ10: 30 | HR10: 30 | HS10: 30 | HT10: 30 | HU10: 30 | HV10: 30 | HW10: 30 | HX10: 30 | HY10: 30 | HZ10: 30 | IA10: 30 | IB10: 30 | IC10: 30 | ID10: 30 | IE10: 30 | IF10: 30 | IG10: 30 | IH10: 30 | II10: 30 | IJ10: 30 | IK10: 30 | IL10: 30 | IM10: 30 | IN10: 30 | IO10: 30 | IP10: 30 | IQ10: 30 | IR10: 30 | IS10: 30 | IT10: 30 | IU10: 30 | IV10: 30 | IW10: 30 | IX10: 30 | IY10: 30 | IZ10: 30
D11: Label
B13: Operations
C15: Capital Expenditures
D16: Total Cost | E16: EUR | F16: =InputC!F19 -> 1000000 | I16: EUR | K16: =$F$16 -> 1000000 | L16: 1000000 | M16: 1000000 | N16: 1000000 | O16: 1000000 | P16: 1000000 | Q16: 1000000 | R16: 1000000 | S16: 1000000 | T16: 1000000 | U16: 1000000 | V16: 1000000 | W16: 1000000 | X16: 1000000 | Y16: 1000000 | Z16: 1000000 | AA16: 1000000 | AB16: 1000000 | AC16: 1000000 | AD16: 1000000 | AE16: 1000000 | AF16: 1000000 | AG16: 1000000 | AH16: 1000000 | AI16: 1000000 | AJ16: 1000000 | AK16: 1000000 | AL16: 1000000 | AM16: 1000000 | AN16: 1000000 | AO16: 1000000 | AP16: 1000000 | AQ16: 1000000 | AR16: 1000000 | AS16: 1000000 | AT16: 1000000 | AU16: 1000000 | AV16: 1000000 | AW16: 1000000 | AX16: 1000000 | AY16: 1000000 | AZ16: 1000000 | BA16: 1000000 | BB16: 1000000 | BC16: 1000000 | BD16: 1000000 | BE16: 1000000 | BF16: 1000000 | BG16: 1000000 | BH16: 1000000 | BI16: 1000000 | BJ16: 1000000 | BK16: 1000000 | BL16: 1000000 | BM16: 1000000 | BN16: 1000000 | BO16: 1000000 | BP16: 1000000 | BQ16: 1000000 | BR16: 1000000 | BS16: 1000000 | BT16: 1000000 | BU16: 1000000 | BV16: 1000000 | BW16: =$F$16 -> 1000000 | BX16: 1000000 | BY16: 1000000 | BZ16: 1000000 | CA16: 1000000 | CB16: 1000000 | CC16: 1000000 | CD16: 1000000 | CE16: 1000000 | CF16: 1000000 | CG16: 1000000 | CH16: 1000000 | CI16: 1000000 | CJ16: 1000000 | CK16: 1000000 | CL16: 1000000 | CM16: 1000000 | CN16: 1000000 | CO16: 1000000 | CP16: 1000000 | CQ16: 1000000 | CR16: 1000000 | CS16: 1000000 | CT16: 1000000 | CU16: 1000000 | CV16: 1000000 | CW16: 1000000 | CX16: 1000000 | CY16: 1000000 | CZ16: 1000000 | DA16: 1000000 | DB16: 1000000 | DC16: 1000000 | DD16: 1000000 | DE16: 1000000 | DF16: 1000000 | DG16: 1000000 | DH16: 1000000 | DI16: 1000000 | DJ16: 1000000 | DK16: 1000000 | DL16: 1000000 | DM16: 1000000 | DN16: 1000000 | DO16: 1000000 | DP16: 1000000 | DQ16: 1000000 | DR16: 1000000 | DS16: 1000000 | DT16: 1000000 | DU16: 1000000 | DV16: 1000000 | DW16: 1000000 | DX16: 1000000 | DY16: 1000000 | DZ16: 1000000 | EA16: 1000000 | EB16: 1000000 | EC16: 1000000 | ED16: 1000000 | EE16: 1000000 | EF16: 1000000 | EG16: 1000000 | EH16: 1000000 | EI16: =$F$16 -> 1000000 | EJ16: 1000000 | EK16: 1000000 | EL16: 1000000 | EM16: 1000000 | EN16: 1000000 | EO16: 1000000 | EP16: 1000000 | EQ16: 1000000 | ER16: 1000000 | ES16: 1000000 | ET16: 1000000 | EU16: 1000000 | EV16: 1000000 | EW16: 1000000 | EX16: 1000000 | EY16: 1000000 | EZ16: 1000000 | FA16: 1000000 | FB16: 1000000 | FC16: 1000000 | FD16: 1000000 | FE16: 1000000 | FF16: 1000000 | FG16: 1000000 | FH16: 1000000 | FI16: 1000000 | FJ16: 1000000 | FK16: 1000000 | FL16: 1000000 | FM16: 1000000 | FN16: 1000000 | FO16: 1000000 | FP16: 1000000 | FQ16: 1000000 | FR16: 1000000 | FS16: 1000000 | FT16: 1000000 | FU16: 1000000 | FV16: 1000000 | FW16: 1000000 | FX16: 1000000 | FY16: 1000000 | FZ16: 1000000 | GA16: 1000000 | GB16: 1000000 | GC16: 1000000 | GD16: 1000000 | GE16: 1000000 | GF16: 1000000 | GG16: 1000000 | GH16: 1000000 | GI16: 1000000 | GJ16: 1000000 | GK16: 1000000 | GL16: 1000000 | GM16: 1000000 | GN16: 1000000 | GO16: 1000000 | GP16: 1000000 | GQ16: 1000000 | GR16: 1000000 | GS16: 1000000 | GT16: 1000000 | GU16: =$F$16 -> 1000000 | GV16: 1000000 | GW16: 1000000 | GX16: 1000000 | GY16: 1000000 | GZ16: 1000000 | HA16: 1000000 | HB16: 1000000 | HC16: 1000000 | HD16: 1000000 | HE16: 1000000 | HF16: 1000000 | HG16: 1000000 | HH16: 1000000 | HI16: 1000000 | HJ16: 1000000 | HK16: 1000000 | HL16: 1000000 | HM16: 1000000 | HN16: 1000000 | HO16: 1000000 | HP16: 1000000 | HQ16: 1000000 | HR16: 1000000 | HS16: 1000000 | HT16: 1000000 | HU16: 1000000 | HV16: 1000000 | HW16: 1000000 | HX16: 1000000 | HY16: 1000000 | HZ16: 1000000 | IA16: 1000000 | IB16: 1000000 | IC16: 1000000 | ID16: 1000000 | IE16: 1000000 | IF16: 1000000 | IG16: 1000000 | IH16: 1000000 | II16: 1000000 | IJ16: 1000000 | IK16: 1000000 | IL16: 1000000 | IM16: 1000000 | IN16: 1000000 | IO16: 1000000 | IP16: 1000000 | IQ16: 1000000 | IR16: 1000000 | IS16: 1000000 | IT16: 1000000 | IU16: 1000000 | IV16: 1000000 | IW16: 1000000 | IX16: 1000000 | IY16: 1000000 | IZ16: 1000000
D17: Percent Spent | E17: Months/Per | F17: =F6/F4 -> 1 | I17: % | K17: =$F$17*K5 -> 1 | L17: =$F$17*L5 -> 0 | M17: 0 | N17: 0 | O17: 0 | P17: 0 | Q17: 0 | R17: 0 | S17: 0 | T17: 0 | U17: 0 | V17: 0 | W17: 0 | X17: 0 | Y17: 0 | Z17: 0 | AA17: 0 | AB17: 0 | AC17: 0 | AD17: 0 | AE17: 0 | AF17: 0 | AG17: 0 | AH17: 0 | AI17: 0 | AJ17: 0 | AK17: 0 | AL17: 0 | AM17: 0 | AN17: 0 | AO17: 0 | AP17: 0 | AQ17: 0 | AR17: 0 | AS17: 0 | AT17: 0 | AU17: 0 | AV17: 0 | AW17: 0 | AX17: 0 | AY17: 0 | AZ17: 0 | BA17: 0 | BB17: 0 | BC17: 0 | BD17: 0 | BE17: 0 | BF17: 0 | BG17: 0 | BH17: 0 | BI17: 0 | BJ17: 0 | BK17: 0 | BL17: 0 | BM17: 0 | BN17: 0 | BO17: 0 | BP17: 0 | BQ17: 0 | BR17: 0 | BS17: 0 | BT17: 0 | BU17: 0 | BV17: 0 | BW17: 0 | BX17: =$F$17*BX5 -> 0 | BY17: 0 | BZ17: 0 | CA17: 0 | CB17: 0 | CC17: 0 | CD17: 0 | CE17: 0 | CF17: 0 | CG17: 0 | CH17: 0 | CI17: 0 | CJ17: 0 | CK17: 0 | CL17: 0 | CM17: 0 | CN17: 0 | CO17: 0 | CP17: 0 | CQ17: 0 | CR17: 0 | CS17: 0 | CT17: 0 | CU17: 0 | CV17: 0 | CW17: 0 | CX17: 0 | CY17: 0 | CZ17: 0 | DA17: 0 | DB17: 0 | DC17: 0 | DD17: 0 | DE17: 0 | DF17: 0 | DG17: 0 | DH17: 0 | DI17: 0 | DJ17: 0 | DK17: 0 | DL17: 0 | DM17: 0 | DN17: 0 | DO17: 0 | DP17: 0 | DQ17: 0 | DR17: 0 | DS17: 0 | DT17: 0 | DU17: 0 | DV17: 0 | DW17: 0 | DX17: 0 | DY17: 0 | DZ17: 0 | EA17: 0 | EB17: 0 | EC17: 0 | ED17: 0 | EE17: 0 | EF17: 0 | EG17: 0 | EH17: 0 | EI17: 0 | EJ17: =$F$17*EJ5 -> 0 | EK17: 0 | EL17: 0 | EM17: 0 | EN17: 0 | EO17: 0 | EP17: 0 | EQ17: 0 | ER17: 0 | ES17: 0 | ET17: 0 | EU17: 0 | EV17: 0 | EW17: 0 | EX17: 0 | EY17: 0 | EZ17: 0 | FA17: 0 | FB17: 0 | FC17: 0 | FD17: 0 | FE17: 0 | FF17: 0 | FG17: 0 | FH17: 0 | FI17: 0 | FJ17: 0 | FK17: 0 | FL17: 0 | FM17: 0 | FN17: 0 | FO17: 0 | FP17: 0 | FQ17: 0 | FR17: 0 | FS17: 0 | FT17: 0 | FU17: 0 | FV17: 0 | FW17: 0 | FX17: 0 | FY17: 0 | FZ17: 0 | GA17: 0 | GB17: 0 | GC17: 0 | GD17: 0 | GE17: 0 | GF17: 0 | GG17: 0 | GH17: 0 | GI17: 0 | GJ17: 0 | GK17: 0 | GL17: 0 | GM17: 0 | GN17: 0 | GO17: 0 | GP17: 0 | GQ17: 0 | GR17: 0 | GS17: 0 | GT17: 0 | GU17: 0 | GV17: =$F$17*GV5 -> 0 | GW17: 0 | GX17: 0 | GY17: 0 | GZ17: 0 | HA17: 0 | HB17: 0 | HC17: 0 | HD17: 0 | HE17: 0 | HF17: 0 | HG17: 0 | HH17: 0 | HI17: 0 | HJ17: 0 | HK17: 0 | HL17: 0 | HM17: 0 | HN17: 0 | HO17: 0 | HP17: 0 | HQ17: 0 | HR17: 0 | HS17: 0 | HT17: 0 | HU17: 0 | HV17: 0 | HW17: 0 | HX17: 0 | HY17: 0 | HZ17: 0 | IA17: 0 | IB17: 0 | IC17: 0 | ID17: 0 | IE17: 0 | IF17: 0 | IG17: 0 | IH17: 0 | II17: 0 | IJ17: 0 | IK17: 0 | IL17: 0 | IM17: 0 | IN17: 0 | IO17: 0 | IP17: 0 | IQ17: 0 | IR17: 0 | IS17: 0 | IT17: 0 | IU17: 0 | IV17: 0 | IW17: 0 | IX17: 0 | IY17: 0 | IZ17: 0
D18: Capital Expenditues | H18: =SUM(K18:XFD18) -> 1000000 | I18: EUR | K18: =K16*K17 -> 1000000 | L18: =L16*L17 -> 0 | M18: 0 | N18: 0 | O18: 0 | P18: 0 | Q18: 0 | R18: 0 | S18: 0 | T18: 0 | U18: 0 | V18: 0 | W18: 0 | X18: 0 | Y18: 0 | Z18: 0 | AA18: 0 | AB18: 0 | AC18: 0 | AD18: 0 | AE18: 0 | AF18: 0 | AG18: 0 | AH18: 0 | AI18: 0 | AJ18: 0 | AK18: 0 | AL18: 0 | AM18: 0 | AN18: 0 | AO18: 0 | AP18: 0 | AQ18: 0 | AR18: 0 | AS18: 0 | AT18: 0 | AU18: 0 | AV18: 0 | AW18: 0 | AX18: 0 | AY18: 0 | AZ18: 0 | BA18: 0 | BB18: 0 | BC18: 0 | BD18: 0 | BE18: 0 | BF18: 0 | BG18: 0 | BH18: 0 | BI18: 0 | BJ18: 0 | BK18: 0 | BL18: 0 | BM18: 0 | BN18: 0 | BO18: 0 | BP18: 0 | BQ18: 0 | BR18: 0 | BS18: 0 | BT18: 0 | BU18: 0 | BV18: 0 | BW18: 0 | BX18: =BX16*BX17 -> 0 | BY18: 0 | BZ18: 0 | CA18: 0 | CB18: 0 | CC18: 0 | CD18: 0 | CE18: 0 | CF18: 0 | CG18: 0 | CH18: 0 | CI18: 0 | CJ18: 0 | CK18: 0 | CL18: 0 | CM18: 0 | CN18: 0 | CO18: 0 | CP18: 0 | CQ18: 0 | CR18: 0 | CS18: 0 | CT18: 0 | CU18: 0 | CV18: 0 | CW18: 0 | CX18: 0 | CY18: 0 | CZ18: 0 | DA18: 0 | DB18: 0 | DC18: 0 | DD18: 0 | DE18: 0 | DF18: 0 | DG18: 0 | DH18: 0 | DI18: 0 | DJ18: 0 | DK18: 0 | DL18: 0 | DM18: 0 | DN18: 0 | DO18: 0 | DP18: 0 | DQ18: 0 | DR18: 0 | DS18: 0 | DT18: 0 | DU18: 0 | DV18: 0 | DW18: 0 | DX18: 0 | DY18: 0 | DZ18: 0 | EA18: 0 | EB18: 0 | EC18: 0 | ED18: 0 | EE18: 0 | EF18: 0 | EG18: 0 | EH18: 0 | EI18: 0 | EJ18: =EJ16*EJ17 -> 0 | EK18: 0 | EL18: 0 | EM18: 0 | EN18: 0 | EO18: 0 | EP18: 0 | EQ18: 0 | ER18: 0 | ES18: 0 | ET18: 0 | EU18: 0 | EV18: 0 | EW18: 0 | EX18: 0 | EY18: 0 | EZ18: 0 | FA18: 0 | FB18: 0 | FC18: 0 | FD18: 0 | FE18: 0 | FF18: 0 | FG18: 0 | FH18: 0 | FI18: 0 | FJ18: 0 | FK18: 0 | FL18: 0 | FM18: 0 | FN18: 0 | FO18: 0 | FP18: 0 | FQ18: 0 | FR18: 0 | FS18: 0 | FT18: 0 | FU18: 0 | FV18: 0 | FW18: 0 | FX18: 0 | FY18: 0 | FZ18: 0 | GA18: 0 | GB18: 0 | GC18: 0 | GD18: 0 | GE18: 0 | GF18: 0 | GG18: 0 | GH18: 0 | GI18: 0 | GJ18: 0 | GK18: 0 | GL18: 0 | GM18: 0 | GN18: 0 | GO18: 0 | GP18: 0 | GQ18: 0 | GR18: 0 | GS18: 0 | GT18: 0 | GU18: 0 | GV18: =GV16*GV17 -> 0 | GW18: 0 | GX18: 0 | GY18: 0 | GZ18: 0 | HA18: 0 | HB18: 0 | HC18: 0 | HD18: 0 | HE18: 0 | HF18: 0 | HG18: 0 | HH18: 0 | HI18: 0 | HJ18: 0 | HK18: 0 | HL18: 0 | HM18: 0 | HN18: 0 | HO18: 0 | HP18: 0 | HQ18: 0 | HR18: 0 | HS18: 0 | HT18: 0 | HU18: 0 | HV18: 0 | HW18: 0 | HX18: 0 | HY18: 0 | HZ18: 0 | IA18: 0 | IB18: 0 | IC18: 0 | ID18: 0 | IE18: 0 | IF18: 0 | IG18: 0 | IH18: 0 | II18: 0 | IJ18: 0 | IK18: 0 | IL18: 0 | IM18: 0 | IN18: 0 | IO18: 0 | IP18: 0 | IQ18: 0 | IR18: 0 | IS18: 0 | IT18: 0 | IU18: 0 | IV18: 0 | IW18: 0 | IX18: 0 | IY18: 0 | IZ18: 0
C20: EBITDA
D21: Base EBITDA | E21: EUR/yr | F21: =InputC!F20 -> 100000 | G21: =F21*G6/months -> 100000 | I21: EUR/period | K21: =$G$21*K9 -> 0 | L21: =$G$21*L9 -> 100000 | M21: 100000 | N21: 100000 | O21: 100000 | P21: 100000 | Q21: 100000 | R21: 100000 | S21: 100000 | T21: 100000 | U21: 100000 | V21: 100000 | W21: 100000 | X21: 100000 | Y21: 100000 | Z21: 100000 | AA21: 100000 | AB21: 100000 | AC21: 100000 | AD21: 100000 | AE21: 100000 | AF21: 100000 | AG21: 100000 | AH21: 100000 | AI21: 100000 | AJ21: 100000 | AK21: 100000 | AL21: 100000 | AM21: 100000 | AN21: 100000 | AO21: 100000 | AP21: 0 | AQ21: 0 | AR21: 0 | AS21: 0 | AT21: 0 | AU21: 0 | AV21: 0 | AW21: 0 | AX21: 0 | AY21: 0 | AZ21: 0 | BA21: 0 | BB21: 0 | BC21: 0 | BD21: 0 | BE21: 0 | BF21: 0 | BG21: 0 | BH21: 0 | BI21: 0 | BJ21: 0 | BK21: 0 | BL21: 0 | BM21: 0 | BN21: 0 | BO21: 0 | BP21: 0 | BQ21: 0 | BR21: 0 | BS21: 0 | BT21: 0 | BU21: 0 | BV21: 0 | BW21: 0 | BX21: =$G$21*BX9 -> 0 | BY21: 0 | BZ21: 0 | CA21: 0 | CB21: 0 | CC21: 0 | CD21: 0 | CE21: 0 | CF21: 0 | CG21: 0 | CH21: 0 | CI21: 0 | CJ21: 0 | CK21: 0 | CL21: 0 | CM21: 0 | CN21: 0 | CO21: 0 | CP21: 0 | CQ21: 0 | CR21: 0 | CS21: 0 | CT21: 0 | CU21: 0 | CV21: 0 | CW21: 0 | CX21: 0 | CY21: 0 | CZ21: 0 | DA21: 0 | DB21: 0 | DC21: 0 | DD21: 0 | DE21: 0 | DF21: 0 | DG21: 0 | DH21: 0 | DI21: 0 | DJ21: 0 | DK21: 0 | DL21: 0 | DM21: 0 | DN21: 0 | DO21: 0 | DP21: 0 | DQ21: 0 | DR21: 0 | DS21: 0 | DT21: 0 | DU21: 0 | DV21: 0 | DW21: 0 | DX21: 0 | DY21: 0 | DZ21: 0 | EA21: 0 | EB21: 0 | EC21: 0 | ED21: 0 | EE21: 0 | EF21: 0 | EG21: 0 | EH21: 0 | EI21: 0 | EJ21: =$G$21*EJ9 -> 0 | EK21: 0 | EL21: 0 | EM21: 0 | EN21: 0 | EO21: 0 | EP21: 0 | EQ21: 0 | ER21: 0 | ES21: 0 | ET21: 0 | EU21: 0 | EV21: 0 | EW21: 0 | EX21: 0 | EY21: 0 | EZ21: 0 | FA21: 0 | FB21: 0 | FC21: 0 | FD21: 0 | FE21: 0 | FF21: 0 | FG21: 0 | FH21: 0 | FI21: 0 | FJ21: 0 | FK21: 0 | FL21: 0 | FM21: 0 | FN21: 0 | FO21: 0 | FP21: 0 | FQ21: 0 | FR21: 0 | FS21: 0 | FT21: 0 | FU21: 0 | FV21: 0 | FW21: 0 | FX21: 0 | FY21: 0 | FZ21: 0 | GA21: 0 | GB21: 0 | GC21: 0 | GD21: 0 | GE21: 0 | GF21: 0 | GG21: 0 | GH21: 0 | GI21: 0 | GJ21: 0 | GK21: 0 | GL21: 0 | GM21: 0 | GN21: 0 | GO21: 0 | GP21: 0 | GQ21: 0 | GR21: 0 | GS21: 0 | GT21: 0 | GU21: 0 | GV21: =$G$21*GV9 -> 0 | GW21: 0 | GX21: 0 | GY21: 0 | GZ21: 0 | HA21: 0 | HB21: 0 | HC21: 0 | HD21: 0 | HE21: 0 | HF21: 0 | HG21: 0 | HH21: 0 | HI21: 0 | HJ21: 0 | HK21: 0 | HL21: 0 | HM21: 0 | HN21: 0 | HO21: 0 | HP21: 0 | HQ21: 0 | HR21: 0 | HS21: 0 | HT21: 0 | HU21: 0 | HV21: 0 | HW21: 0 | HX21: 0 | HY21: 0 | HZ21: 0 | IA21: 0 | IB21: 0 | IC21: 0 | ID21: 0 | IE21: 0 | IF21: 0 | IG21: 0 | IH21: 0 | II21: 0 | IJ21: 0 | IK21: 0 | IL21: 0 | IM21: 0 | IN21: 0 | IO21: 0 | IP21: 0 | IQ21: 0 | IR21: 0 | IS21: 0 | IT21: 0 | IU21: 0 | IV21: 0 | IW21: 0 | IX21: 0 | IY21: 0 | IZ21: 0
D22: Growth Rate | E22: % p.a. | F22: =InputC!F21 -> 0 | G22: =G6 -> 12 | I22: % p.p. | K22: =(1+$F$22)^($G$22/months)-1 -> 0 | L22: =(1+$F$22)^($G$22/months)-1 -> 0 | M22: 0 | N22: 0 | O22: 0 | P22: 0 | Q22: 0 | R22: 0 | S22: 0 | T22: 0 | U22: 0 | V22: 0 | W22: 0 | X22: 0 | Y22: 0 | Z22: 0 | AA22: 0 | AB22: 0 | AC22: 0 | AD22: 0 | AE22: 0 | AF22: 0 | AG22: 0 | AH22: 0 | AI22: 0 | AJ22: 0 | AK22: 0 | AL22: 0 | AM22: 0 | AN22: 0 | AO22: 0 | AP22: 0 | AQ22: 0 | AR22: 0 | AS22: 0 | AT22: 0 | AU22: 0 | AV22: 0 | AW22: 0 | AX22: 0 | AY22: 0 | AZ22: 0 | BA22: 0 | BB22: 0 | BC22: 0 | BD22: 0 | BE22: 0 | BF22: 0 | BG22: 0 | BH22: 0 | BI22: 0 | BJ22: 0 | BK22: 0 | BL22: 0 | BM22: 0 | BN22: 0 | BO22: 0 | BP22: 0 | BQ22: 0 | BR22: 0 | BS22: 0 | BT22: 0 | BU22: 0 | BV22: 0 | BW22: =(1+$F$22)^($G$22/months)-1 -> 0 | BX22: 0 | BY22: 0 | BZ22: 0 | CA22: 0 | CB22: 0 | CC22: 0 | CD22: 0 | CE22: 0 | CF22: 0 | CG22: 0 | CH22: 0 | CI22: 0 | CJ22: 0 | CK22: 0 | CL22: 0 | CM22: 0 | CN22: 0 | CO22: 0 | CP22: 0 | CQ22: 0 | CR22: 0 | CS22: 0 | CT22: 0 | CU22: 0 | CV22: 0 | CW22: 0 | CX22: 0 | CY22: 0 | CZ22: 0 | DA22: 0 | DB22: 0 | DC22: 0 | DD22: 0 | DE22: 0 | DF22: 0 | DG22: 0 | DH22: 0 | DI22: 0 | DJ22: 0 | DK22: 0 | DL22: 0 | DM22: 0 | DN22: 0 | DO22: 0 | DP22: 0 | DQ22: 0 | DR22: 0 | DS22: 0 | DT22: 0 | DU22: 0 | DV22: 0 | DW22: 0 | DX22: 0 | DY22: 0 | DZ22: 0 | EA22: 0 | EB22: 0 | EC22: 0 | ED22: 0 | EE22: 0 | EF22: 0 | EG22: 0 | EH22: 0 | EI22: =(1+$F$22)^($G$22/months)-1 -> 0 | EJ22: 0 | EK22: 0 | EL22: 0 | EM22: 0 | EN22: 0 | EO22: 0 | EP22: 0 | EQ22: 0 | ER22: 0 | ES22: 0 | ET22: 0 | EU22: 0 | EV22: 0 | EW22: 0 | EX22: 0 | EY22: 0 | EZ22: 0 | FA22: 0 | FB22: 0 | FC22: 0 | FD22: 0 | FE22: 0 | FF22: 0 | FG22: 0 | FH22: 0 | FI22: 0 | FJ22: 0 | FK22: 0 | FL22: 0 | FM22: 0 | FN22: 0 | FO22: 0 | FP22: 0 | FQ22: 0 | FR22: 0 | FS22: 0 | FT22: 0 | FU22: 0 | FV22: 0 | FW22: 0 | FX22: 0 | FY22: 0 | FZ22: 0 | GA22: 0 | GB22: 0 | GC22: 0 | GD22: 0 | GE22: 0 | GF22: 0 | GG22: 0 | GH22: 0 | GI22: 0 | GJ22: 0 | GK22: 0 | GL22: 0 | GM22: 0 | GN22: 0 | GO22: 0 | GP22: 0 | GQ22: 0 | GR22: 0 | GS22: 0 | GT22: 0 | GU22: =(1+$F$22)^($G$22/months)-1 -> 0 | GV22: 0 | GW22: 0 | GX22: 0 | GY22: 0 | GZ22: 0 | HA22: 0 | HB22: 0 | HC22: 0 | HD22: 0 | HE22: 0 | HF22: 0 | HG22: 0 | HH22: 0 | HI22: 0 | HJ22: 0 | HK22: 0 | HL22: 0 | HM22: 0 | HN22: 0 | HO22: 0 | HP22: 0 | HQ22: 0 | HR22: 0 | HS22: 0 | HT22: 0 | HU22: 0 | HV22: 0 | HW22: 0 | HX22: 0 | HY22: 0 | HZ22: 0 | IA22: 0 | IB22: 0 | IC22: 0 | ID22: 0 | IE22: 0 | IF22: 0 | IG22: 0 | IH22: 0 | II22: 0 | IJ22: 0 | IK22: 0 | IL22: 0 | IM22: 0 | IN22: 0 | IO22: 0 | IP22: 0 | IQ22: 0 | IR22: 0 | IS22: 0 | IT22: 0 | IU22: 0 | IV22: 0 | IW22: 0 | IX22: 0 | IY22: 0 | IZ22: 0
D23: Inflation Index | I23: Index | J23: =One -> 1 | K23: =J23*(1+K22*K9) -> 1 | L23: =K23*(1+L22*L9) -> 1 | M23: 1 | N23: 1 | O23: 1 | P23: 1 | Q23: 1 | R23: 1 | S23: 1 | T23: 1 | U23: 1 | V23: 1 | W23: 1 | X23: 1 | Y23: 1 | Z23: 1 | AA23: 1 | AB23: 1 | AC23: 1 | AD23: 1 | AE23: 1 | AF23: 1 | AG23: 1 | AH23: 1 | AI23: 1 | AJ23: 1 | AK23: 1 | AL23: 1 | AM23: 1 | AN23: 1 | AO23: 1 | AP23: 1 | AQ23: 1 | AR23: 1 | AS23: 1 | AT23: 1 | AU23: 1 | AV23: 1 | AW23: 1 | AX23: 1 | AY23: 1 | AZ23: 1 | BA23: 1 | BB23: 1 | BC23: 1 | BD23: 1 | BE23: 1 | BF23: 1 | BG23: 1 | BH23: 1 | BI23: 1 | BJ23: 1 | BK23: 1 | BL23: 1 | BM23: 1 | BN23: 1 | BO23: 1 | BP23: 1 | BQ23: 1 | BR23: 1 | BS23: 1 | BT23: 1 | BU23: 1 | BV23: 1 | BW23: 1 | BX23: =BW23*(1+BX22*BX9) -> 1 | BY23: 1 | BZ23: 1 | CA23: 1 | CB23: 1 | CC23: 1 | CD23: 1 | CE23: 1 | CF23: 1 | CG23: 1 | CH23: 1 | CI23: 1 | CJ23: 1 | CK23: 1 | CL23: 1 | CM23: 1 | CN23: 1 | CO23: 1 | CP23: 1 | CQ23: 1 | CR23: 1 | CS23: 1 | CT23: 1 | CU23: 1 | CV23: 1 | CW23: 1 | CX23: 1 | CY23: 1 | CZ23: 1 | DA23: 1 | DB23: 1 | DC23: 1 | DD23: 1 | DE23: 1 | DF23: 1 | DG23: 1 | DH23: 1 | DI23: 1 | DJ23: 1 | DK23: 1 | DL23: 1 | DM23: 1 | DN23: 1 | DO23: 1 | DP23: 1 | DQ23: 1 | DR23: 1 | DS23: 1 | DT23: 1 | DU23: 1 | DV23: 1 | DW23: 1 | DX23: 1 | DY23: 1 | DZ23: 1 | EA23: 1 | EB23: 1 | EC23: 1 | ED23: 1 | EE23: 1 | EF23: 1 | EG23: 1 | EH23: 1 | EI23: 1 | EJ23: =EI23*(1+EJ22*EJ9) -> 1 | EK23: 1 | EL23: 1 | EM23: 1 | EN23: 1 | EO23: 1 | EP23: 1 | EQ23: 1 | ER23: 1 | ES23: 1 | ET23: 1 | EU23: 1 | EV23: 1 | EW23: 1 | EX23: 1 | EY23: 1 | EZ23: 1 | FA23: 1 | FB23: 1 | FC23: 1 | FD23: 1 | FE23: 1 | FF23: 1 | FG23: 1 | FH23: 1 | FI23: 1 | FJ23: 1 | FK23: 1 | FL23: 1 | FM23: 1 | FN23: 1 | FO23: 1 | FP23: 1 | FQ23: 1 | FR23: 1 | FS23: 1 | FT23: 1 | FU23: 1 | FV23: 1 | FW23: 1 | FX23: 1 | FY23: 1 | FZ23: 1 | GA23: 1 | GB23: 1 | GC23: 1 | GD23: 1 | GE23: 1 | GF23: 1 | GG23: 1 | GH23: 1 | GI23: 1 | GJ23: 1 | GK23: 1 | GL23: 1 | GM23: 1 | GN23: 1 | GO23: 1 | GP23: 1 | GQ23: 1 | GR23: 1 | GS23: 1 | GT23: 1 | GU23: 1 | GV23: =GU23*(1+GV22*GV9) -> 1 | GW23: 1 | GX23: 1 | GY23: 1 | GZ23: 1 | HA23: 1 | HB23: 1 | HC23: 1 | HD23: 1 | HE23: 1 | HF23: 1 | HG23: 1 | HH23: 1 | HI23: 1 | HJ23: 1 | HK23: 1 | HL23: 1 | HM23: 1 | HN23: 1 | HO23: 1 | HP23: 1 | HQ23: 1 | HR23: 1 | HS23: 1 | HT23: 1 | HU23: 1 | HV23: 1 | HW23: 1 | HX23: 1 | HY23: 1 | HZ23: 1 | IA23: 1 | IB23: 1 | IC23: 1 | ID23: 1 | IE23: 1 | IF23: 1 | IG23: 1 | IH23: 1 | II23: 1 | IJ23: 1 | IK23: 1 | IL23: 1 | IM23: 1 | IN23: 1 | IO23: 1 | IP23: 1 | IQ23: 1 | IR23: 1 | IS23: 1 | IT23: 1 | IU23: 1 | IV23: 1 | IW23: 1 | IX23: 1 | IY23: 1 | IZ23: 1
D24: Volatility Parameter | E24: % p.a.
D25: Mean Reversion Parameter | E25: % p.a.
D26: Volatility Index | F26: =InputC!$F$23 -> 0 | G26: =InputC!$F$24 -> 0.1 | I26: Index | J26: ='Time Series'!H5 -> 1 | K26: =LOOKUP(K10,'Time Series'!3:3,'Time Series'!5:5) -> 0 | L26: =LOOKUP(L10,'Time Series'!3:3,'Time Series'!5:5) -> 1 | M26: =LOOKUP(M10,'Time Series'!3:3,'Time Series'!5:5) -> 1 | N26: =LOOKUP(N10,'Time Series'!3:3,'Time Series'!5:5) -> 1 | O26: =LOOKUP(O10,'Time Series'!3:3,'Time Series'!5:5) -> 1 | P26: =LOOKUP(P10,'Time Series'!3:3,'Time Series'!5:5) -> 1 | Q26: =LOOKUP(Q10,'Time Series'!3:3,'Time Series'!5:5) -> 1 | R26: =LOOKUP(R10,'Time Series'!3:3,'Time Series'!5:5) -> 1 | S26: =LOOKUP(S10,'Time Series'!3:3,'Time Series'!5:5) -> 1 | T26: =LOOKUP(T10,'Time Series'!3:3,'Time Series'!5:5) -> 1 | U26: =LOOKUP(U10,'Time Series'!3:3,'Time Series'!5:5) -> 1 | V26: =LOOKUP(V10,'Time Series'!3:3,'Time Series'!5:5) -> 1 | W26: =LOOKUP(W10,'Time Series'!3:3,'Time Series'!5:5) -> 1 | X26: =LOOKUP(X10,'Time Series'!3:3,'Time Series'!5:5) -> 1 | Y26: =LOOKUP(Y10,'Time Series'!3:3,'Time Series'!5:5) -> 1 | Z26: =LOOKUP(Z10,'Time Series'!3:3,'Time Series'!5:5) -> 1 | AA26: =LOOKUP(AA10,'Time Series'!3:3,'Time Series'!5:5) -> 1 | AB26: =LOOKUP(AB10,'Time Series'!3:3,'Time Series'!5:5) -> 1 | AC26: =LOOKUP(AC10,'Time Series'!3:3,'Time Series'!5:5) -> 1 | AD26: =LOOKUP(AD10,'Time Series'!3:3,'Time Series'!5:5) -> 1 | AE26: =LOOKUP(AE10,'Time Series'!3:3,'Time Series'!5:5) -> 1 | AF26: =LOOKUP(AF10,'Time Series'!3:3,'Time Series'!5:5) -> 1 | AG26: =LOOKUP(AG10,'Time Series'!3:3,'Time Series'!5:5) -> 1 | AH26: =LOOKUP(AH10,'Time Series'!3:3,'Time Series'!5:5) -> 1 | AI26: =LOOKUP(AI10,'Time Series'!3:3,'Time Series'!5:5) -> 1 | AJ26: =LOOKUP(AJ10,'Time Series'!3:3,'Time Series'!5:5) -> 1 | AK26: =LOOKUP(AK10,'Time Series'!3:3,'Time Series'!5:5) -> 1 | AL26: =LOOKUP(AL10,'Time Series'!3:3,'Time Series'!5:5) -> 1 | AM26: =LOOKUP(AM10,'Time Series'!3:3,'Time Series'!5:5) -> 1 | AN26: =LOOKUP(AN10,'Time Series'!3:3,'Time Series'!5:5) -> 1 | AO26: =LOOKUP(AO10,'Time Series'!3:3,'Time Series'!5:5) -> 1 | AP26: =LOOKUP(AP10,'Time Series'!3:3,'Time Series'!5:5) -> 1 | AQ26: =LOOKUP(AQ10,'Time Series'!3:3,'Time Series'!5:5) -> 1 | AR26: =LOOKUP(AR10,'Time Series'!3:3,'Time Series'!5:5) -> 1 | AS26: =LOOKUP(AS10,'Time Series'!3:3,'Time Series'!5:5) -> 1 | AT26: =LOOKUP(AT10,'Time Series'!3:3,'Time Series'!5:5) -> 1 | AU26: =LOOKUP(AU10,'Time Series'!3:3,'Time Series'!5:5) -> 1 | AV26: =LOOKUP(AV10,'Time Series'!3:3,'Time Series'!5:5) -> 1 | AW26: =LOOKUP(AW10,'Time Series'!3:3,'Time Series'!5:5) -> 1 | AX26: =LOOKUP(AX10,'Time Series'!3:3,'Time Series'!5:5) -> 1 | AY26: =LOOKUP(AY10,'Time Series'!3:3,'Time Series'!5:5) -> 1 | AZ26: =LOOKUP(AZ10,'Time Series'!3:3,'Time Series'!5:5) -> 1 | BA26: =LOOKUP(BA10,'Time Series'!3:3,'Time Series'!5:5) -> 1 | BB26: =LOOKUP(BB10,'Time Series'!3:3,'Time Series'!5:5) -> 1 | BC26: =LOOKUP(BC10,'Time Series'!3:3,'Time Series'!5:5) -> 1 | BD26: =LOOKUP(BD10,'Time Series'!3:3,'Time Series'!5:5) -> 1 | BE26: =LOOKUP(BE10,'Time Series'!3:3,'Time Series'!5:5) -> 1 | BF26: =LOOKUP(BF10,'Time Series'!3:3,'Time Series'!5:5) -> 1 | BG26: =LOOKUP(BG10,'Time Series'!3:3,'Time Series'!5:5) -> 1 | BH26: =LOOKUP(BH10,'Time Series'!3:3,'Time Series'!5:5) -> 1 | BI26: =LOOKUP(BI10,'Time Series'!3:3,'Time Series'!5:5) -> 1 | BJ26: =LOOKUP(BJ10,'Time Series'!3:3,'Time Series'!5:5) -> 1 | BK26: =LOOKUP(BK10,'Time Series'!3:3,'Time Series'!5:5) -> 1 | BL26: =LOOKUP(BL10,'Time Series'!3:3,'Time Series'!5:5) -> 1 | BM26: =LOOKUP(BM10,'Time Series'!3:3,'Time Series'!5:5) -> 1 | BN26: =LOOKUP(BN10,'Time Series'!3:3,'Time Series'!5:5) -> 1 | BO26: =LOOKUP(BO10,'Time Series'!3:3,'Time Series'!5:5) -> 1 | BP26: =LOOKUP(BP10,'Time Series'!3:3,'Time Series'!5:5) -> 1 | BQ26: =LOOKUP(BQ10,'Time Series'!3:3,'Time Series'!5:5) -> 1 | BR26: =LOOKUP(BR10,'Time Series'!3:3,'Time Series'!5:5) -> 1 | BS26: =LOOKUP(BS10,'Time Series'!3:3,'Time Series'!5:5) -> 1 | BT26: =LOOKUP(BT10,'Time Series'!3:3,'Time Series'!5:5) -> 1 | BU26: =LOOKUP(BU10,'Time Series'!3:3,'Time Series'!5:5) -> 1 | BV26: =LOOKUP(BV10,'Time Series'!3:3,'Time Series'!5:5) -> 1 | BW26: =LOOKUP(BW10,'Time Series'!3:3,'Time Series'!5:5) -> 1 | BX26: =LOOKUP(BX10,'Time Series'!3:3,'Time Series'!5:5) -> 1 | BY26: =LOOKUP(BY10,'Time Series'!3:3,'Time Series'!5:5) -> 1 | BZ26: =LOOKUP(BZ10,'Time Series'!3:3,'Time Series'!5:5) -> 1 | CA26: =LOOKUP(CA10,'Time Series'!3:3,'Time Series'!5:5) -> 1 | CB26: =LOOKUP(CB10,'Time Series'!3:3,'Time Series'!5:5) -> 1 | CC26: =LOOKUP(CC10,'Time Series'!3:3,'Time Series'!5:5) -> 1 | CD26: =LOOKUP(CD10,'Time Series'!3:3,'Time Series'!5:5) -> 1 | CE26: =LOOKUP(CE10,'Time Series'!3:3,'Time Series'!5:5) -> 1 | CF26: =LOOKUP(CF10,'Time Series'!3:3,'Time Series'!5:5) -> 1 | CG26: =LOOKUP(CG10,'Time Series'!3:3,'Time Series'!5:5) -> 1 | CH26: =LOOKUP(CH10,'Time Series'!3:3,'Time Series'!5:5) -> 1 | CI26: =LOOKUP(CI10,'Time Series'!3:3,'Time Series'!5:5) -> 1 | CJ26: =LOOKUP(CJ10,'Time Series'!3:3,'Time Series'!5:5) -> 1 | CK26: =LOOKUP(CK10,'Time Series'!3:3,'Time Series'!5:5) -> 1 | CL26: =LOOKUP(CL10,'Time Series'!3:3,'Time Series'!5:5) -> 1 | CM26: =LOOKUP(CM10,'Time Series'!3:3,'Time Series'!5:5) -> 1 | CN26: =LOOKUP(CN10,'Time Series'!3:3,'Time Series'!5:5) -> 1 | CO26: =LOOKUP(CO10,'Time Series'!3:3,'Time Series'!5:5) -> 1 | CP26: =LOOKUP(CP10,'Time Series'!3:3,'Time Series'!5:5) -> 1 | CQ26: =LOOKUP(CQ10,'Time Series'!3:3,'Time Series'!5:5) -> 1 | CR26: =LOOKUP(CR10,'Time Series'!3:3,'Time Series'!5:5) -> 1 | CS26: =LOOKUP(CS10,'Time Series'!3:3,'Time Series'!5:5) -> 1 | CT26: =LOOKUP(CT10,'Time Series'!3:3,'Time Series'!5:5) -> 1 | CU26: =LOOKUP(CU10,'Time Series'!3:3,'Time Series'!5:5) -> 1 | CV26: =LOOKUP(CV10,'Time Series'!3:3,'Time Series'!5:5) -> 1 | CW26: =LOOKUP(CW10,'Time Series'!3:3,'Time Series'!5:5) -> 1 | CX26: =LOOKUP(CX10,'Time Series'!3:3,'Time Series'!5:5) -> 1 | CY26: =LOOKUP(CY10,'Time Series'!3:3,'Time Series'!5:5) -> 1 | CZ26: =LOOKUP(CZ10,'Time Series'!3:3,'Time Series'!5:5) -> 1 | DA26: =LOOKUP(DA10,'Time Series'!3:3,'Time Series'!5:5) -> 1 | DB26: =LOOKUP(DB10,'Time Series'!3:3,'Time Series'!5:5) -> 1 | DC26: =LOOKUP(DC10,'Time Series'!3:3,'Time Series'!5:5) -> 1 | DD26: =LOOKUP(DD10,'Time Series'!3:3,'Time Series'!5:5) -> 1 | DE26: =LOOKUP(DE10,'Time Series'!3:3,'Time Series'!5:5) -> 1 | DF26: =LOOKUP(DF10,'Time Series'!3:3,'Time Series'!5:5) -> 1 | DG26: =LOOKUP(DG10,'Time Series'!3:3,'Time Series'!5:5) -> 1 | DH26: =LOOKUP(DH10,'Time Series'!3:3,'Time Series'!5:5) -> 1 | DI26: =LOOKUP(DI10,'Time Series'!3:3,'Time Series'!5:5) -> 1 | DJ26: =LOOKUP(DJ10,'Time Series'!3:3,'Time Series'!5:5) -> 1 | DK26: =LOOKUP(DK10,'Time Series'!3:3,'Time Series'!5:5) -> 1 | DL26: =LOOKUP(DL10,'Time Series'!3:3,'Time Series'!5:5) -> 1 | DM26: =LOOKUP(DM10,'Time Series'!3:3,'Time Series'!5:5) -> 1 | DN26: =LOOKUP(DN10,'Time Series'!3:3,'Time Series'!5:5) -> 1 | DO26: =LOOKUP(DO10,'Time Series'!3:3,'Time Series'!5:5) -> 1 | DP26: =LOOKUP(DP10,'Time Series'!3:3,'Time Series'!5:5) -> 1 | DQ26: =LOOKUP(DQ10,'Time Series'!3:3,'Time Series'!5:5) -> 1 | DR26: =LOOKUP(DR10,'Time Series'!3:3,'Time Series'!5:5) -> 1 | DS26: =LOOKUP(DS10,'Time Series'!3:3,'Time Series'!5:5) -> 1 | DT26: =LOOKUP(DT10,'Time Series'!3:3,'Time Series'!5:5) -> 1 | DU26: =LOOKUP(DU10,'Time Series'!3:3,'Time Series'!5:5) -> 1 | DV26: =LOOKUP(DV10,'Time Series'!3:3,'Time Series'!5:5) -> 1 | DW26: =LOOKUP(DW10,'Time Series'!3:3,'Time Series'!5:5) -> 1 | DX26: =LOOKUP(DX10,'Time Series'!3:3,'Time Series'!5:5) -> 1 | DY26: =LOOKUP(DY10,'Time Series'!3:3,'Time Series'!5:5) -> 1 | DZ26: =LOOKUP(DZ10,'Time Series'!3:3,'Time Series'!5:5) -> 1 | EA26: =LOOKUP(EA10,'Time Series'!3:3,'Time Series'!5:5) -> 1 | EB26: =LOOKUP(EB10,'Time Series'!3:3,'Time Series'!5:5) -> 1 | EC26: =LOOKUP(EC10,'Time Series'!3:3,'Time Series'!5:5) -> 1 | ED26: =LOOKUP(ED10,'Time Series'!3:3,'Time Series'!5:5) -> 1 | EE26: =LOOKUP(EE10,'Time Series'!3:3,'Time Series'!5:5) -> 1 | EF26: =LOOKUP(EF10,'Time Series'!3:3,'Time Series'!5:5) -> 1 | EG26: =LOOKUP(EG10,'Time Series'!3:3,'Time Series'!5:5) -> 1 | EH26: =LOOKUP(EH10,'Time Series'!3:3,'Time Series'!5:5) -> 1 | EI26: =LOOKUP(EI10,'Time Series'!3:3,'Time Series'!5:5) -> 1 | EJ26: =LOOKUP(EJ10,'Time Series'!3:3,'Time Series'!5:5) -> 1 | EK26: =LOOKUP(EK10,'Time Series'!3:3,'Time Series'!5:5) -> 1 | EL26: =LOOKUP(EL10,'Time Series'!3:3,'Time Series'!5:5) -> 1 | EM26: =LOOKUP(EM10,'Time Series'!3:3,'Time Series'!5:5) -> 1 | EN26: =LOOKUP(EN10,'Time Series'!3:3,'Time Series'!5:5) -> 1 | EO26: =LOOKUP(EO10,'Time Series'!3:3,'Time Series'!5:5) -> 1 | EP26: =LOOKUP(EP10,'Time Series'!3:3,'Time Series'!5:5) -> 1 | EQ26: =LOOKUP(EQ10,'Time Series'!3:3,'Time Series'!5:5) -> 1 | ER26: =LOOKUP(ER10,'Time Series'!3:3,'Time Series'!5:5) -> 1 | ES26: =LOOKUP(ES10,'Time Series'!3:3,'Time Series'!5:5) -> 1 | ET26: =LOOKUP(ET10,'Time Series'!3:3,'Time Series'!5:5) -> 1 | EU26: =LOOKUP(EU10,'Time Series'!3:3,'Time Series'!5:5) -> 1 | EV26: =LOOKUP(EV10,'Time Series'!3:3,'Time Series'!5:5) -> 1 | EW26: =LOOKUP(EW10,'Time Series'!3:3,'Time Series'!5:5) -> 1 | EX26: =LOOKUP(EX10,'Time Series'!3:3,'Time Series'!5:5) -> 1 | EY26: =LOOKUP(EY10,'Time Series'!3:3,'Time Series'!5:5) -> 1 | EZ26: =LOOKUP(EZ10,'Time Series'!3:3,'Time Series'!5:5) -> 1 | FA26: =LOOKUP(FA10,'Time Series'!3:3,'Time Series'!5:5) -> 1 | FB26: =LOOKUP(FB10,'Time Series'!3:3,'Time Series'!5:5) -> 1 | FC26: =LOOKUP(FC10,'Time Series'!3:3,'Time Series'!5:5) -> 1 | FD26: =LOOKUP(FD10,'Time Series'!3:3,'Time Series'!5:5) -> 1 | FE26: =LOOKUP(FE10,'Time Series'!3:3,'Time Series'!5:5) -> 1 | FF26: =LOOKUP(FF10,'Time Series'!3:3,'Time Series'!5:5) -> 1 | FG26: =LOOKUP(FG10,'Time Series'!3:3,'Time Series'!5:5) -> 1 | FH26: =LOOKUP(FH10,'Time Series'!3:3,'Time Series'!5:5) -> 1 | FI26: =LOOKUP(FI10,'Time Series'!3:3,'Time Series'!5:5) -> 1 | FJ26: =LOOKUP(FJ10,'Time Series'!3:3,'Time Series'!5:5) -> 1 | FK26: =LOOKUP(FK10,'Time Series'!3:3,'Time Series'!5:5) -> 1 | FL26: =LOOKUP(FL10,'Time Series'!3:3,'Time Series'!5:5) -> 1 | FM26: =LOOKUP(FM10,'Time Series'!3:3,'Time Series'!5:5) -> 1 | FN26: =LOOKUP(FN10,'Time Series'!3:3,'Time Series'!5:5) -> 1 | FO26: =LOOKUP(FO10,'Time Series'!3:3,'Time Series'!5:5) -> 1 | FP26: =LOOKUP(FP10,'Time Series'!3:3,'Time Series'!5:5) -> 1 | FQ26: =LOOKUP(FQ10,'Time Series'!3:3,'Time Series'!5:5) -> 1 | FR26: =LOOKUP(FR10,'Time Series'!3:3,'Time Series'!5:5) -> 1 | FS26: =LOOKUP(FS10,'Time Series'!3:3,'Time Series'!5:5) -> 1 | FT26: =LOOKUP(FT10,'Time Series'!3:3,'Time Series'!5:5) -> 1 | FU26: =LOOKUP(FU10,'Time Series'!3:3,'Time Series'!5:5) -> 1 | FV26: =LOOKUP(FV10,'Time Series'!3:3,'Time Series'!5:5) -> 1 | FW26: =LOOKUP(FW10,'Time Series'!3:3,'Time Series'!5:5) -> 1 | FX26: =LOOKUP(FX10,'Time Series'!3:3,'Time Series'!5:5) -> 1 | FY26: =LOOKUP(FY10,'Time Series'!3:3,'Time Series'!5:5) -> 1 | FZ26: =LOOKUP(FZ10,'Time Series'!3:3,'Time Series'!5:5) -> 1 | GA26: =LOOKUP(GA10,'Time Series'!3:3,'Time Series'!5:5) -> 1 | GB26: =LOOKUP(GB10,'Time Series'!3:3,'Time Series'!5:5) -> 1 | GC26: =LOOKUP(GC10,'Time Series'!3:3,'Time Series'!5:5) -> 1 | GD26: =LOOKUP(GD10,'Time Series'!3:3,'Time Series'!5:5) -> 1 | GE26: =LOOKUP(GE10,'Time Series'!3:3,'Time Series'!5:5) -> 1 | GF26: =LOOKUP(GF10,'Time Series'!3:3,'Time Series'!5:5) -> 1 | GG26: =LOOKUP(GG10,'Time Series'!3:3,'Time Series'!5:5) -> 1 | GH26: =LOOKUP(GH10,'Time Series'!3:3,'Time Series'!5:5) -> 1 | GI26: =LOOKUP(GI10,'Time Series'!3:3,'Time Series'!5:5) -> 1 | GJ26: =LOOKUP(GJ10,'Time Series'!3:3,'Time Series'!5:5) -> 1 | GK26: =LOOKUP(GK10,'Time Series'!3:3,'Time Series'!5:5) -> 1 | GL26: =LOOKUP(GL10,'Time Series'!3:3,'Time Series'!5:5) -> 1 | GM26: =LOOKUP(GM10,'Time Series'!3:3,'Time Series'!5:5) -> 1 | GN26: =LOOKUP(GN10,'Time Series'!3:3,'Time Series'!5:5) -> 1 | GO26: =LOOKUP(GO10,'Time Series'!3:3,'Time Series'!5:5) -> 1 | GP26: =LOOKUP(GP10,'Time Series'!3:3,'Time Series'!5:5) -> 1 | GQ26: =LOOKUP(GQ10,'Time Series'!3:3,'Time Series'!5:5) -> 1 | GR26: =LOOKUP(GR10,'Time Series'!3:3,'Time Series'!5:5) -> 1 | GS26: =LOOKUP(GS10,'Time Series'!3:3,'Time Series'!5:5) -> 1 | GT26: =LOOKUP(GT10,'Time Series'!3:3,'Time Series'!5:5) -> 1 | GU26: =LOOKUP(GU10,'Time Series'!3:3,'Time Series'!5:5) -> 1 | GV26: =LOOKUP(GV10,'Time Series'!3:3,'Time Series'!5:5) -> 1 | GW26: =LOOKUP(GW10,'Time Series'!3:3,'Time Series'!5:5) -> 1 | GX26: =LOOKUP(GX10,'Time Series'!3:3,'Time Series'!5:5) -> 1 | GY26: =LOOKUP(GY10,'Time Series'!3:3,'Time Series'!5:5) -> 1 | GZ26: =LOOKUP(GZ10,'Time Series'!3:3,'Time Series'!5:5) -> 1 | HA26: =LOOKUP(HA10,'Time Series'!3:3,'Time Series'!5:5) -> 1 | HB26: =LOOKUP(HB10,'Time Series'!3:3,'Time Series'!5:5) -> 1 | HC26: =LOOKUP(HC10,'Time Series'!3:3,'Time Series'!5:5) -> 1 | HD26: =LOOKUP(HD10,'Time Series'!3:3,'Time Series'!5:5) -> 1 | HE26: =LOOKUP(HE10,'Time Series'!3:3,'Time Series'!5:5) -> 1 | HF26: =LOOKUP(HF10,'Time Series'!3:3,'Time Series'!5:5) -> 1 | HG26: =LOOKUP(HG10,'Time Series'!3:3,'Time Series'!5:5) -> 1 | HH26: =LOOKUP(HH10,'Time Series'!3:3,'Time Series'!5:5) -> 1 | HI26: =LOOKUP(HI10,'Time Series'!3:3,'Time Series'!5:5) -> 1 | HJ26: =LOOKUP(HJ10,'Time Series'!3:3,'Time Series'!5:5) -> 1 | HK26: =LOOKUP(HK10,'Time Series'!3:3,'Time Series'!5:5) -> 1 | HL26: =LOOKUP(HL10,'Time Series'!3:3,'Time Series'!5:5) -> 1 | HM26: =LOOKUP(HM10,'Time Series'!3:3,'Time Series'!5:5) -> 1 | HN26: =LOOKUP(HN10,'Time Series'!3:3,'Time Series'!5:5) -> 1 | HO26: =LOOKUP(HO10,'Time Series'!3:3,'Time Series'!5:5) -> 1 | HP26: =LOOKUP(HP10,'Time Series'!3:3,'Time Series'!5:5) -> 1 | HQ26: =LOOKUP(HQ10,'Time Series'!3:3,'Time Series'!5:5) -> 1 | HR26: =LOOKUP(HR10,'Time Series'!3:3,'Time Series'!5:5) -> 1 | HS26: =LOOKUP(HS10,'Time Series'!3:3,'Time Series'!5:5) -> 1 | HT26: =LOOKUP(HT10,'Time Series'!3:3,'Time Series'!5:5) -> 1 | HU26: =LOOKUP(HU10,'Time Series'!3:3,'Time Series'!5:5) -> 1 | HV26: =LOOKUP(HV10,'Time Series'!3:3,'Time Series'!5:5) -> 1 | HW26: =LOOKUP(HW10,'Time Series'!3:3,'Time Series'!5:5) -> 1 | HX26: =LOOKUP(HX10,'Time Series'!3:3,'Time Series'!5:5) -> 1 | HY26: =LOOKUP(HY10,'Time Series'!3:3,'Time Series'!5:5) -> 1 | HZ26: =LOOKUP(HZ10,'Time Series'!3:3,'Time Series'!5:5) -> 1 | IA26: =LOOKUP(IA10,'Time Series'!3:3,'Time Series'!5:5) -> 1 | IB26: =LOOKUP(IB10,'Time Series'!3:3,'Time Series'!5:5) -> 1 | IC26: =LOOKUP(IC10,'Time Series'!3:3,'Time Series'!5:5) -> 1 | ID26: =LOOKUP(ID10,'Time Series'!3:3,'Time Series'!5:5) -> 1 | IE26: =LOOKUP(IE10,'Time Series'!3:3,'Time Series'!5:5) -> 1 | IF26: =LOOKUP(IF10,'Time Series'!3:3,'Time Series'!5:5) -> 1 | IG26: =LOOKUP(IG10,'Time Series'!3:3,'Time Series'!5:5) -> 1 | IH26: =LOOKUP(IH10,'Time Series'!3:3,'Time Series'!5:5) -> 1 | II26: =LOOKUP(II10,'Time Series'!3:3,'Time Series'!5:5) -> 1 | IJ26: =LOOKUP(IJ10,'Time Series'!3:3,'Time Series'!5:5) -> 1 | IK26: =LOOKUP(IK10,'Time Series'!3:3,'Time Series'!5:5) -> 1 | IL26: =LOOKUP(IL10,'Time Series'!3:3,'Time Series'!5:5) -> 1 | IM26: =LOOKUP(IM10,'Time Series'!3:3,'Time Series'!5:5) -> 1 | IN26: =LOOKUP(IN10,'Time Series'!3:3,'Time Series'!5:5) -> 1 | IO26: =LOOKUP(IO10,'Time Series'!3:3,'Time Series'!5:5) -> 1 | IP26: =LOOKUP(IP10,'Time Series'!3:3,'Time Series'!5:5) -> 1 | IQ26: =LOOKUP(IQ10,'Time Series'!3:3,'Time Series'!5:5) -> 1 | IR26: =LOOKUP(IR10,'Time Series'!3:3,'Time Series'!5:5) -> 1 | IS26: =LOOKUP(IS10,'Time Series'!3:3,'Time Series'!5:5) -> 1 | IT26: =LOOKUP(IT10,'Time Series'!3:3,'Time Series'!5:5) -> 1 | IU26: =LOOKUP(IU10,'Time Series'!3:3,'Time Series'!5:5) -> 1 | IV26: =LOOKUP(IV10,'Time Series'!3:3,'Time Series'!5:5) -> 1 | IW26: =LOOKUP(IW10,'Time Series'!3:3,'Time Series'!5:5) -> 1 | IX26: =LOOKUP(IX10,'Time Series'!3:3,'Time Series'!5:5) -> 1 | IY26: =LOOKUP(IY10,'Time Series'!3:3,'Time Series'!5:5) -> 1 | IZ26: =LOOKUP(IZ10,'Time Series'!3:3,'Time Series'!5:5) -> 1
D27: EBITDA with Inflation | H27: =SUM(K27:XFD27) -> 3000000 | I27: EUR | K27: =K23*K21*K26 -> 0 | L27: =L23*L21*L26 -> 100000 | M27: 100000 | N27: 100000 | O27: 100000 | P27: 100000 | Q27: 100000 | R27: 100000 | S27: 100000 | T27: 100000 | U27: 100000 | V27: 100000 | W27: 100000 | X27: 100000 | Y27: 100000 | Z27: 100000 | AA27: 100000 | AB27: 100000 | AC27: 100000 | AD27: 100000 | AE27: 100000 | AF27: 100000 | AG27: 100000 | AH27: 100000 | AI27: 100000 | AJ27: 100000 | AK27: 100000 | AL27: 100000 | AM27: 100000 | AN27: 100000 | AO27: 100000 | AP27: 0 | AQ27: 0 | AR27: 0 | AS27: 0 | AT27: 0 | AU27: 0 | AV27: 0 | AW27: 0 | AX27: 0 | AY27: 0 | AZ27: 0 | BA27: 0 | BB27: 0 | BC27: 0 | BD27: 0 | BE27: 0 | BF27: 0 | BG27: 0 | BH27: 0 | BI27: 0 | BJ27: 0 | BK27: 0 | BL27: 0 | BM27: 0 | BN27: 0 | BO27: 0 | BP27: 0 | BQ27: 0 | BR27: 0 | BS27: 0 | BT27: 0 | BU27: 0 | BV27: 0 | BW27: 0 | BX27: =BX23*BX21*BX26 -> 0 | BY27: 0 | BZ27: 0 | CA27: 0 | CB27: 0 | CC27: 0 | CD27: 0 | CE27: 0 | CF27: 0 | CG27: 0 | CH27: 0 | CI27: 0 | CJ27: 0 | CK27: 0 | CL27: 0 | CM27: 0 | CN27: 0 | CO27: 0 | CP27: 0 | CQ27: 0 | CR27: 0 | CS27: 0 | CT27: 0 | CU27: 0 | CV27: 0 | CW27: 0 | CX27: 0 | CY27: 0 | CZ27: 0 | DA27: 0 | DB27: 0 | DC27: 0 | DD27: 0 | DE27: 0 | DF27: 0 | DG27: 0 | DH27: 0 | DI27: 0 | DJ27: 0 | DK27: 0 | DL27: 0 | DM27: 0 | DN27: 0 | DO27: 0 | DP27: 0 | DQ27: 0 | DR27: 0 | DS27: 0 | DT27: 0 | DU27: 0 | DV27: 0 | DW27: 0 | DX27: 0 | DY27: 0 | DZ27: 0 | EA27: 0 | EB27: 0 | EC27: 0 | ED27: 0 | EE27: 0 | EF27: 0 | EG27: 0 | EH27: 0 | EI27: 0 | EJ27: =EJ23*EJ21*EJ26 -> 0 | EK27: 0 | EL27: 0 | EM27: 0 | EN27: 0 | EO27: 0 | EP27: 0 | EQ27: 0 | ER27: 0 | ES27: 0 | ET27: 0 | EU27: 0 | EV27: 0 | EW27: 0 | EX27: 0 | EY27: 0 | EZ27: 0 | FA27: 0 | FB27: 0 | FC27: 0 | FD27: 0 | FE27: 0 | FF27: 0 | FG27: 0 | FH27: 0 | FI27: 0 | FJ27: 0 | FK27: 0 | FL27: 0 | FM27: 0 | FN27: 0 | FO27: 0 | FP27: 0 | FQ27: 0 | FR27: 0 | FS27: 0 | FT27: 0 | FU27: 0 | FV27: 0 | FW27: 0 | FX27: 0 | FY27: 0 | FZ27: 0 | GA27: 0 | GB27: 0 | GC27: 0 | GD27: 0 | GE27: 0 | GF27: 0 | GG27: 0 | GH27: 0 | GI27: 0 | GJ27: 0 | GK27: 0 | GL27: 0 | GM27: 0 | GN27: 0 | GO27: 0 | GP27: 0 | GQ27: 0 | GR27: 0 | GS27: 0 | GT27: 0 | GU27: 0 | GV27: =GV23*GV21*GV26 -> 0 | GW27: 0 | GX27: 0 | GY27: 0 | GZ27: 0 | HA27: 0 | HB27: 0 | HC27: 0 | HD27: 0 | HE27: 0 | HF27: 0 | HG27: 0 | HH27: 0 | HI27: 0 | HJ27: 0 | HK27: 0 | HL27: 0 | HM27: 0 | HN27: 0 | HO27: 0 | HP27: 0 | HQ27: 0 | HR27: 0 | HS27: 0 | HT27: 0 | HU27: 0 | HV27: 0 | HW27: 0 | HX27: 0 | HY27: 0 | HZ27: 0 | IA27: 0 | IB27: 0 | IC27: 0 | ID27: 0 | IE27: 0 | IF27: 0 | IG27: 0 | IH27: 0 | II27: 0 | IJ27: 0 | IK27: 0 | IL27: 0 | IM27: 0 | IN27: 0 | IO27: 0 | IP27: 0 | IQ27: 0 | IR27: 0 | IS27: 0 | IT27: 0 | IU27: 0 | IV27: 0 | IW27: 0 | IX27: 0 | IY27: 0 | IZ27: 0
D29: Pre tax free cashflow | I29: EUR | K29: =K27-K18 -> -1000000 | L29: 100000 | M29: 100000 | N29: 100000 | O29: 100000 | P29: 100000 | Q29: 100000 | R29: 100000 | S29: 100000 | T29: 100000 | U29: 100000 | V29: 100000 | W29: 100000 | X29: 100000 | Y29: 100000 | Z29: 100000 | AA29: 100000 | AB29: 100000 | AC29: 100000 | AD29: 100000 | AE29: 100000 | AF29: 100000 | AG29: 100000 | AH29: 100000 | AI29: 100000 | AJ29: 100000 | AK29: 100000 | AL29: 100000 | AM29: 100000 | AN29: 100000 | AO29: 100000 | AP29: 0 | AQ29: 0 | AR29: 0 | AS29: 0 | AT29: 0 | AU29: 0 | AV29: 0 | AW29: 0 | AX29: 0 | AY29: 0 | AZ29: 0 | BA29: 0 | BB29: 0 | BC29: 0 | BD29: 0 | BE29: 0 | BF29: 0 | BG29: 0 | BH29: 0 | BI29: 0 | BJ29: 0 | BK29: 0 | BL29: 0 | BM29: 0 | BN29: 0 | BO29: 0 | BP29: 0 | BQ29: 0 | BR29: 0 | BS29: 0 | BT29: 0 | BU29: 0 | BV29: 0 | BW29: =BW27-BW18 -> 0 | BX29: 0 | BY29: 0 | BZ29: 0 | CA29: 0 | CB29: 0 | CC29: 0 | CD29: 0 | CE29: 0 | CF29: 0 | CG29: 0 | CH29: 0 | CI29: 0 | CJ29: 0 | CK29: 0 | CL29: 0 | CM29: 0 | CN29: 0 | CO29: 0 | CP29: 0 | CQ29: 0 | CR29: 0 | CS29: 0 | CT29: 0 | CU29: 0 | CV29: 0 | CW29: 0 | CX29: 0 | CY29: 0 | CZ29: 0 | DA29: 0 | DB29: 0 | DC29: 0 | DD29: 0 | DE29: 0 | DF29: 0 | DG29: 0 | DH29: 0 | DI29: 0 | DJ29: 0 | DK29: 0 | DL29: 0 | DM29: 0 | DN29: 0 | DO29: 0 | DP29: 0 | DQ29: 0 | DR29: 0 | DS29: 0 | DT29: 0 | DU29: 0 | DV29: 0 | DW29: 0 | DX29: 0 | DY29: 0 | DZ29: 0 | EA29: 0 | EB29: 0 | EC29: 0 | ED29: 0 | EE29: 0 | EF29: 0 | EG29: 0 | EH29: 0 | EI29: =EI27-EI18 -> 0 | EJ29: 0 | EK29: 0 | EL29: 0 | EM29: 0 | EN29: 0 | EO29: 0 | EP29: 0 | EQ29: 0 | ER29: 0 | ES29: 0 | ET29: 0 | EU29: 0 | EV29: 0 | EW29: 0 | EX29: 0 | EY29: 0 | EZ29: 0 | FA29: 0 | FB29: 0 | FC29: 0 | FD29: 0 | FE29: 0 | FF29: 0 | FG29: 0 | FH29: 0 | FI29: 0 | FJ29: 0 | FK29: 0 | FL29: 0 | FM29: 0 | FN29: 0 | FO29: 0 | FP29: 0 | FQ29: 0 | FR29: 0 | FS29: 0 | FT29: 0 | FU29: 0 | FV29: 0 | FW29: 0 | FX29: 0 | FY29: 0 | FZ29: 0 | GA29: 0 | GB29: 0 | GC29: 0 | GD29: 0 | GE29: 0 | GF29: 0 | GG29: 0 | GH29: 0 | GI29: 0 | GJ29: 0 | GK29: 0 | GL29: 0 | GM29: 0 | GN29: 0 | GO29: 0 | GP29: 0 | GQ29: 0 | GR29: 0 | GS29: 0 | GT29: 0 | GU29: =GU27-GU18 -> 0 | GV29: 0 | GW29: 0 | GX29: 0 | GY29: 0 | GZ29: 0 | HA29: 0 | HB29: 0 | HC29: 0 | HD29: 0 | HE29: 0 | HF29: 0 | HG29: 0 | HH29: 0 | HI29: 0 | HJ29: 0 | HK29: 0 | HL29: 0 | HM29: 0 | HN29: 0 | HO29: 0 | HP29: 0 | HQ29: 0 | HR29: 0 | HS29: 0 | HT29: 0 | HU29: 0 | HV29: 0 | HW29: 0 | HX29: 0 | HY29: 0 | HZ29: 0 | IA29: 0 | IB29: 0 | IC29: 0 | ID29: 0 | IE29: 0 | IF29: 0 | IG29: 0 | IH29: 0 | II29: 0 | IJ29: 0 | IK29: 0 | IL29: 0 | IM29: 0 | IN29: 0 | IO29: 0 | IP29: 0 | IQ29: 0 | IR29: 0 | IS29: 0 | IT29: 0 | IU29: 0 | IV29: 0 | IW29: 0 | IX29: 0 | IY29: 0 | IZ29: 0
D30: Pre tax IRR | E30: % | F30: =IRR(K29:IZ29,0.0001) -> 0.09307339772 | G30: =(1+F30)^(months/G6)-1 -> 0.09307339772 | I30: %
D31: Pre tax XIRR | E31: % | F31: =IFERROR(XIRR(K29:IZ29,K8:IZ8),FALSE) -> 0.09300350845 | I31: %
B33: Debt Sizing
C35: Total Funding Requirements
D36: Capital Expenditures | H36: =SUM(K36:XFD36) -> 1000000 | I36: EUR | K36: =K18 -> 1000000 | L36: 0 | M36: 0 | N36: 0 | O36: 0 | P36: 0 | Q36: 0 | R36: 0 | S36: 0 | T36: 0 | U36: 0 | V36: 0 | W36: 0 | X36: 0 | Y36: 0 | Z36: 0 | AA36: 0 | AB36: 0 | AC36: 0 | AD36: 0 | AE36: 0 | AF36: 0 | AG36: 0 | AH36: 0 | AI36: 0 | AJ36: 0 | AK36: 0 | AL36: 0 | AM36: 0 | AN36: 0 | AO36: 0 | AP36: 0 | AQ36: 0 | AR36: 0 | AS36: 0 | AT36: 0 | AU36: 0 | AV36: 0 | AW36: 0 | AX36: 0 | AY36: 0 | AZ36: 0 | BA36: 0 | BB36: 0 | BC36: 0 | BD36: 0 | BE36: 0 | BF36: 0 | BG36: 0 | BH36: 0 | BI36: 0 | BJ36: 0 | BK36: 0 | BL36: 0 | BM36: 0 | BN36: 0 | BO36: 0 | BP36: 0 | BQ36: 0 | BR36: 0 | BS36: 0 | BT36: 0 | BU36: 0 | BV36: 0 | BW36: =BW18 -> 0 | BX36: 0 | BY36: 0 | BZ36: 0 | CA36: 0 | CB36: 0 | CC36: 0 | CD36: 0 | CE36: 0 | CF36: 0 | CG36: 0 | CH36: 0 | CI36: 0 | CJ36: 0 | CK36: 0 | CL36: 0 | CM36: 0 | CN36: 0 | CO36: 0 | CP36: 0 | CQ36: 0 | CR36: 0 | CS36: 0 | CT36: 0 | CU36: 0 | CV36: 0 | CW36: 0 | CX36: 0 | CY36: 0 | CZ36: 0 | DA36: 0 | DB36: 0 | DC36: 0 | DD36: 0 | DE36: 0 | DF36: 0 | DG36: 0 | DH36: 0 | DI36: 0 | DJ36: 0 | DK36: 0 | DL36: 0 | DM36: 0 | DN36: 0 | DO36: 0 | DP36: 0 | DQ36: 0 | DR36: 0 | DS36: 0 | DT36: 0 | DU36: 0 | DV36: 0 | DW36: 0 | DX36: 0 | DY36: 0 | DZ36: 0 | EA36: 0 | EB36: 0 | EC36: 0 | ED36: 0 | EE36: 0 | EF36: 0 | EG36: 0 | EH36: 0 | EI36: =EI18 -> 0 | EJ36: 0 | EK36: 0 | EL36: 0 | EM36: 0 | EN36: 0 | EO36: 0 | EP36: 0 | EQ36: 0 | ER36: 0 | ES36: 0 | ET36: 0 | EU36: 0 | EV36: 0 | EW36: 0 | EX36: 0 | EY36: 0 | EZ36: 0 | FA36: 0 | FB36: 0 | FC36: 0 | FD36: 0 | FE36: 0 | FF36: 0 | FG36: 0 | FH36: 0 | FI36: 0 | FJ36: 0 | FK36: 0 | FL36: 0 | FM36: 0 | FN36: 0 | FO36: 0 | FP36: 0 | FQ36: 0 | FR36: 0 | FS36: 0 | FT36: 0 | FU36: 0 | FV36: 0 | FW36: 0 | FX36: 0 | FY36: 0 | FZ36: 0 | GA36: 0 | GB36: 0 | GC36: 0 | GD36: 0 | GE36: 0 | GF36: 0 | GG36: 0 | GH36: 0 | GI36: 0 | GJ36: 0 | GK36: 0 | GL36: 0 | GM36: 0 | GN36: 0 | GO36: 0 | GP36: 0 | GQ36: 0 | GR36: 0 | GS36: 0 | GT36: 0 | GU36: =GU18 -> 0 | GV36: 0 | GW36: 0 | GX36: 0 | GY36: 0 | GZ36: 0 | HA36: 0 | HB36: 0 | HC36: 0 | HD36: 0 | HE36: 0 | HF36: 0 | HG36: 0 | HH36: 0 | HI36: 0 | HJ36: 0 | HK36: 0 | HL36: 0 | HM36: 0 | HN36: 0 | HO36: 0 | HP36: 0 | HQ36: 0 | HR36: 0 | HS36: 0 | HT36: 0 | HU36: 0 | HV36: 0 | HW36: 0 | HX36: 0 | HY36: 0 | HZ36: 0 | IA36: 0 | IB36: 0 | IC36: 0 | ID36: 0 | IE36: 0 | IF36: 0 | IG36: 0 | IH36: 0 | II36: 0 | IJ36: 0 | IK36: 0 | IL36: 0 | IM36: 0 | IN36: 0 | IO36: 0 | IP36: 0 | IQ36: 0 | IR36: 0 | IS36: 0 | IT36: 0 | IU36: 0 | IV36: 0 | IW36: 0 | IX36: 0 | IY36: 0 | IZ36: 0
D37: IDC | H37: =SUM(K37:XFD37) -> 0 | I37: EUR
D38: Up-Front Fees | H38: =SUM(K38:XFD38) -> 0 | I38: EUR
D39: Commitment Fees | H39: =SUM(K39:XFD39) -> 0 | I39: EUR
D40: Total Requirements | H40: =SUM(K40:XFD40) -> 1000000 | I40: EUR | K40: =SUM(K36:K39) -> 1000000 | L40: =SUM(L36:L39) -> 0 | M40: 0 | N40: 0 | O40: 0 | P40: 0 | Q40: 0 | R40: 0 | S40: 0 | T40: 0 | U40: 0 | V40: 0 | W40: 0 | X40: 0 | Y40: 0 | Z40: 0 | AA40: 0 | AB40: 0 | AC40: 0 | AD40: 0 | AE40: 0 | AF40: 0 | AG40: 0 | AH40: 0 | AI40: 0 | AJ40: 0 | AK40: 0 | AL40: 0 | AM40: 0 | AN40: 0 | AO40: 0 | AP40: 0 | AQ40: 0 | AR40: 0 | AS40: 0 | AT40: 0 | AU40: 0 | AV40: 0 | AW40: 0 | AX40: 0 | AY40: 0 | AZ40: 0 | BA40: 0 | BB40: 0 | BC40: 0 | BD40: 0 | BE40: 0 | BF40: 0 | BG40: 0 | BH40: 0 | BI40: 0 | BJ40: 0 | BK40: 0 | BL40: 0 | BM40: 0 | BN40: 0 | BO40: 0 | BP40: 0 | BQ40: 0 | BR40: 0 | BS40: 0 | BT40: 0 | BU40: 0 | BV40: 0 | BW40: 0 | BX40: =SUM(BX36:BX39) -> 0 | BY40: 0 | BZ40: 0 | CA40: 0 | CB40: 0 | CC40: 0 | CD40: 0 | CE40: 0 | CF40: 0 | CG40: 0 | CH40: 0 | CI40: 0 | CJ40: 0 | CK40: 0 | CL40: 0 | CM40: 0 | CN40: 0 | CO40: 0 | CP40: 0 | CQ40: 0 | CR40: 0 | CS40: 0 | CT40: 0 | CU40: 0 | CV40: 0 | CW40: 0 | CX40: 0 | CY40: 0 | CZ40: 0 | DA40: 0 | DB40: 0 | DC40: 0 | DD40: 0 | DE40: 0 | DF40: 0 | DG40: 0 | DH40: 0 | DI40: 0 | DJ40: 0 | DK40: 0 | DL40: 0 | DM40: 0 | DN40: 0 | DO40: 0 | DP40: 0 | DQ40: 0 | DR40: 0 | DS40: 0 | DT40: 0 | DU40: 0 | DV40: 0 | DW40: 0 | DX40: 0 | DY40: 0 | DZ40: 0 | EA40: 0 | EB40: 0 | EC40: 0 | ED40: 0 | EE40: 0 | EF40: 0 | EG40: 0 | EH40: 0 | EI40: 0 | EJ40: =SUM(EJ36:EJ39) -> 0 | EK40: 0 | EL40: 0 | EM40: 0 | EN40: 0 | EO40: 0 | EP40: 0 | EQ40: 0 | ER40: 0 | ES40: 0 | ET40: 0 | EU40: 0 | EV40: 0 | EW40: 0 | EX40: 0 | EY40: 0 | EZ40: 0 | FA40: 0 | FB40: 0 | FC40: 0 | FD40: 0 | FE40: 0 | FF40: 0 | FG40: 0 | FH40: 0 | FI40: 0 | FJ40: 0 | FK40: 0 | FL40: 0 | FM40: 0 | FN40: 0 | FO40: 0 | FP40: 0 | FQ40: 0 | FR40: 0 | FS40: 0 | FT40: 0 | FU40: 0 | FV40: 0 | FW40: 0 | FX40: 0 | FY40: 0 | FZ40: 0 | GA40: 0 | GB40: 0 | GC40: 0 | GD40: 0 | GE40: 0 | GF40: 0 | GG40: 0 | GH40: 0 | GI40: 0 | GJ40: 0 | GK40: 0 | GL40: 0 | GM40: 0 | GN40: 0 | GO40: 0 | GP40: 0 | GQ40: 0 | GR40: 0 | GS40: 0 | GT40: 0 | GU40: 0 | GV40: =SUM(GV36:GV39) -> 0 | GW40: 0 | GX40: 0 | GY40: 0 | GZ40: 0 | HA40: 0 | HB40: 0 | HC40: 0 | HD40: 0 | HE40: 0 | HF40: 0 | HG40: 0 | HH40: 0 | HI40: 0 | HJ40: 0 | HK40: 0 | HL40: 0 | HM40: 0 | HN40: 0 | HO40: 0 | HP40: 0 | HQ40: 0 | HR40: 0 | HS40: 0 | HT40: 0 | HU40: 0 | HV40: 0 | HW40: 0 | HX40: 0 | HY40: 0 | HZ40: 0 | IA40: 0 | IB40: 0 | IC40: 0 | ID40: 0 | IE40: 0 | IF40: 0 | IG40: 0 | IH40: 0 | II40: 0 | IJ40: 0 | IK40: 0 | IL40: 0 | IM40: 0 | IN40: 0 | IO40: 0 | IP40: 0 | IQ40: 0 | IR40: 0 | IS40: 0 | IT40: 0 | IU40: 0 | IV40: 0 | IW40: 0 | IX40: 0 | IY40: 0 | IZ40: 0
C42: Total Funding Sources
D43: Debt | E43: % | F43: =InputC!F31 -> 0.8 | H43: =SUM(K43:XFD43) -> 800000 | I43: EUR | K43: =$F$43*K40 -> 800000 | L43: =$F$43*L40 -> 0 | M43: 0 | N43: 0 | O43: 0 | P43: 0 | Q43: 0 | R43: 0 | S43: 0 | T43: 0 | U43: 0 | V43: 0 | W43: 0 | X43: 0 | Y43: 0 | Z43: 0 | AA43: 0 | AB43: 0 | AC43: 0 | AD43: 0 | AE43: 0 | AF43: 0 | AG43: 0 | AH43: 0 | AI43: 0 | AJ43: 0 | AK43: 0 | AL43: 0 | AM43: 0 | AN43: 0 | AO43: 0 | AP43: 0 | AQ43: 0 | AR43: 0 | AS43: 0 | AT43: 0 | AU43: 0 | AV43: 0 | AW43: 0 | AX43: 0 | AY43: 0 | AZ43: 0 | BA43: 0 | BB43: 0 | BC43: 0 | BD43: 0 | BE43: 0 | BF43: 0 | BG43: 0 | BH43: 0 | BI43: 0 | BJ43: 0 | BK43: 0 | BL43: 0 | BM43: 0 | BN43: 0 | BO43: 0 | BP43: 0 | BQ43: 0 | BR43: 0 | BS43: 0 | BT43: 0 | BU43: 0 | BV43: 0 | BW43: 0 | BX43: =$F$43*BX40 -> 0 | BY43: 0 | BZ43: 0 | CA43: 0 | CB43: 0 | CC43: 0 | CD43: 0 | CE43: 0 | CF43: 0 | CG43: 0 | CH43: 0 | CI43: 0 | CJ43: 0 | CK43: 0 | CL43: 0 | CM43: 0 | CN43: 0 | CO43: 0 | CP43: 0 | CQ43: 0 | CR43: 0 | CS43: 0 | CT43: 0 | CU43: 0 | CV43: 0 | CW43: 0 | CX43: 0 | CY43: 0 | CZ43: 0 | DA43: 0 | DB43: 0 | DC43: 0 | DD43: 0 | DE43: 0 | DF43: 0 | DG43: 0 | DH43: 0 | DI43: 0 | DJ43: 0 | DK43: 0 | DL43: 0 | DM43: 0 | DN43: 0 | DO43: 0 | DP43: 0 | DQ43: 0 | DR43: 0 | DS43: 0 | DT43: 0 | DU43: 0 | DV43: 0 | DW43: 0 | DX43: 0 | DY43: 0 | DZ43: 0 | EA43: 0 | EB43: 0 | EC43: 0 | ED43: 0 | EE43: 0 | EF43: 0 | EG43: 0 | EH43: 0 | EI43: 0 | EJ43: =$F$43*EJ40 -> 0 | EK43: 0 | EL43: 0 | EM43: 0 | EN43: 0 | EO43: 0 | EP43: 0 | EQ43: 0 | ER43: 0 | ES43: 0 | ET43: 0 | EU43: 0 | EV43: 0 | EW43: 0 | EX43: 0 | EY43: 0 | EZ43: 0 | FA43: 0 | FB43: 0 | FC43: 0 | FD43: 0 | FE43: 0 | FF43: 0 | FG43: 0 | FH43: 0 | FI43: 0 | FJ43: 0 | FK43: 0 | FL43: 0 | FM43: 0 | FN43: 0 | FO43: 0 | FP43: 0 | FQ43: 0 | FR43: 0 | FS43: 0 | FT43: 0 | FU43: 0 | FV43: 0 | FW43: 0 | FX43: 0 | FY43: 0 | FZ43: 0 | GA43: 0 | GB43: 0 | GC43: 0 | GD43: 0 | GE43: 0 | GF43: 0 | GG43: 0 | GH43: 0 | GI43: 0 | GJ43: 0 | GK43: 0 | GL43: 0 | GM43: 0 | GN43: 0 | GO43: 0 | GP43: 0 | GQ43: 0 | GR43: 0 | GS43: 0 | GT43: 0 | GU43: 0 | GV43: =$F$43*GV40 -> 0 | GW43: 0 | GX43: 0 | GY43: 0 | GZ43: 0 | HA43: 0 | HB43: 0 | HC43: 0 | HD43: 0 | HE43: 0 | HF43: 0 | HG43: 0 | HH43: 0 | HI43: 0 | HJ43: 0 | HK43: 0 | HL43: 0 | HM43: 0 | HN43: 0 | HO43: 0 | HP43: 0 | HQ43: 0 | HR43: 0 | HS43: 0 | HT43: 0 | HU43: 0 | HV43: 0 | HW43: 0 | HX43: 0 | HY43: 0 | HZ43: 0 | IA43: 0 | IB43: =$F$43*IB40 -> 0 | IC43: 0 | ID43: 0 | IE43: 0 | IF43: 0 | IG43: 0 | IH43: 0 | II43: 0 | IJ43: 0 | IK43: 0 | IL43: 0 | IM43: 0 | IN43: 0 | IO43: 0 | IP43: 0 | IQ43: 0 | IR43: 0 | IS43: 0 | IT43: 0 | IU43: 0 | IV43: 0 | IW43: 0 | IX43: 0 | IY43: 0 | IZ43: 0
D44: Equity | H44: =SUM(K44:XFD44) -> 200000 | I44: EUR | K44: =K40-K43 -> 200000 | L44: =L40-L43 -> 0 | M44: 0 | N44: 0 | O44: 0 | P44: 0 | Q44: 0 | R44: 0 | S44: 0 | T44: 0 | U44: 0 | V44: 0 | W44: 0 | X44: 0 | Y44: 0 | Z44: 0 | AA44: 0 | AB44: 0 | AC44: 0 | AD44: 0 | AE44: 0 | AF44: 0 | AG44: 0 | AH44: 0 | AI44: 0 | AJ44: 0 | AK44: 0 | AL44: 0 | AM44: 0 | AN44: 0 | AO44: 0 | AP44: 0 | AQ44: 0 | AR44: 0 | AS44: 0 | AT44: 0 | AU44: 0 | AV44: 0 | AW44: 0 | AX44: 0 | AY44: 0 | AZ44: 0 | BA44: 0 | BB44: 0 | BC44: 0 | BD44: 0 | BE44: 0 | BF44: 0 | BG44: 0 | BH44: 0 | BI44: 0 | BJ44: 0 | BK44: 0 | BL44: 0 | BM44: 0 | BN44: 0 | BO44: 0 | BP44: 0 | BQ44: 0 | BR44: 0 | BS44: 0 | BT44: 0 | BU44: 0 | BV44: 0 | BW44: 0 | BX44: =BX40-BX43 -> 0 | BY44: 0 | BZ44: 0 | CA44: 0 | CB44: 0 | CC44: 0 | CD44: 0 | CE44: 0 | CF44: 0 | CG44: 0 | CH44: 0 | CI44: 0 | CJ44: 0 | CK44: 0 | CL44: 0 | CM44: 0 | CN44: 0 | CO44: 0 | CP44: 0 | CQ44: 0 | CR44: 0 | CS44: 0 | CT44: 0 | CU44: 0 | CV44: 0 | CW44: 0 | CX44: 0 | CY44: 0 | CZ44: 0 | DA44: 0 | DB44: 0 | DC44: 0 | DD44: 0 | DE44: 0 | DF44: 0 | DG44: 0 | DH44: 0 | DI44: 0 | DJ44: 0 | DK44: 0 | DL44: 0 | DM44: 0 | DN44: 0 | DO44: 0 | DP44: 0 | DQ44: 0 | DR44: 0 | DS44: 0 | DT44: 0 | DU44: 0 | DV44: 0 | DW44: 0 | DX44: 0 | DY44: 0 | DZ44: 0 | EA44: 0 | EB44: 0 | EC44: 0 | ED44: 0 | EE44: 0 | EF44: 0 | EG44: 0 | EH44: 0 | EI44: 0 | EJ44: =EJ40-EJ43 -> 0 | EK44: 0 | EL44: 0 | EM44: 0 | EN44: 0 | EO44: 0 | EP44: 0 | EQ44: 0 | ER44: 0 | ES44: 0 | ET44: 0 | EU44: 0 | EV44: 0 | EW44: 0 | EX44: 0 | EY44: 0 | EZ44: 0 | FA44: 0 | FB44: 0 | FC44: 0 | FD44: 0 | FE44: 0 | FF44: 0 | FG44: 0 | FH44: 0 | FI44: 0 | FJ44: 0 | FK44: 0 | FL44: 0 | FM44: 0 | FN44: 0 | FO44: 0 | FP44: 0 | FQ44: 0 | FR44: 0 | FS44: 0 | FT44: 0 | FU44: 0 | FV44: 0 | FW44: 0 | FX44: 0 | FY44: 0 | FZ44: 0 | GA44: 0 | GB44: 0 | GC44: 0 | GD44: 0 | GE44: 0 | GF44: 0 | GG44: 0 | GH44: 0 | GI44: 0 | GJ44: 0 | GK44: 0 | GL44: 0 | GM44: 0 | GN44: 0 | GO44: 0 | GP44: 0 | GQ44: 0 | GR44: 0 | GS44: 0 | GT44: 0 | GU44: 0 | GV44: =GV40-GV43 -> 0 | GW44: 0 | GX44: 0 | GY44: 0 | GZ44: 0 | HA44: 0 | HB44: 0 | HC44: 0 | HD44: 0 | HE44: 0 | HF44: 0 | HG44: 0 | HH44: 0 | HI44: 0 | HJ44: 0 | HK44: 0 | HL44: 0 | HM44: 0 | HN44: 0 | HO44: 0 | HP44: 0 | HQ44: 0 | HR44: 0 | HS44: 0 | HT44: 0 | HU44: 0 | HV44: 0 | HW44: 0 | HX44: 0 | HY44: 0 | HZ44: 0 | IA44: 0 | IB44: 0 | IC44: 0 | ID44: 0 | IE44: 0 | IF44: 0 | IG44: 0 | IH44: 0 | II44: 0 | IJ44: 0 | IK44: 0 | IL44: 0 | IM44: 0 | IN44: 0 | IO44: 0 | IP44: 0 | IQ44: 0 | IR44: 0 | IS44: 0 | IT44: 0 | IU44: 0 | IV44: 0 | IW44: 0 | IX44: 0 | IY44: 0 | IZ44: 0
D45: Total Sources | H45: =SUM(K45:XFD45) -> 1000000 | I45: EUR | K45: =SUM(K43:K44) -> 1000000 | L45: =SUM(L43:L44) -> 0 | M45: 0 | N45: 0 | O45: 0 | P45: 0 | Q45: 0 | R45: 0 | S45: 0 | T45: 0 | U45: 0 | V45: 0 | W45: 0 | X45: 0 | Y45: 0 | Z45: 0 | AA45: 0 | AB45: 0 | AC45: 0 | AD45: 0 | AE45: 0 | AF45: 0 | AG45: 0 | AH45: 0 | AI45: 0 | AJ45: 0 | AK45: 0 | AL45: 0 | AM45: 0 | AN45: 0 | AO45: 0 | AP45: 0 | AQ45: 0 | AR45: 0 | AS45: 0 | AT45: 0 | AU45: 0 | AV45: 0 | AW45: 0 | AX45: 0 | AY45: 0 | AZ45: 0 | BA45: 0 | BB45: 0 | BC45: 0 | BD45: 0 | BE45: 0 | BF45: 0 | BG45: 0 | BH45: 0 | BI45: 0 | BJ45: 0 | BK45: 0 | BL45: 0 | BM45: 0 | BN45: 0 | BO45: 0 | BP45: 0 | BQ45: 0 | BR45: 0 | BS45: 0 | BT45: 0 | BU45: 0 | BV45: 0 | BW45: 0 | BX45: =SUM(BX43:BX44) -> 0 | BY45: 0 | BZ45: 0 | CA45: 0 | CB45: 0 | CC45: 0 | CD45: 0 | CE45: 0 | CF45: 0 | CG45: 0 | CH45: 0 | CI45: 0 | CJ45: 0 | CK45: 0 | CL45: 0 | CM45: 0 | CN45: 0 | CO45: 0 | CP45: 0 | CQ45: 0 | CR45: 0 | CS45: 0 | CT45: 0 | CU45: 0 | CV45: 0 | CW45: 0 | CX45: 0 | CY45: 0 | CZ45: 0 | DA45: 0 | DB45: 0 | DC45: 0 | DD45: 0 | DE45: 0 | DF45: 0 | DG45: 0 | DH45: 0 | DI45: 0 | DJ45: 0 | DK45: 0 | DL45: 0 | DM45: 0 | DN45: 0 | DO45: 0 | DP45: 0 | DQ45: 0 | DR45: 0 | DS45: 0 | DT45: 0 | DU45: 0 | DV45: 0 | DW45: 0 | DX45: 0 | DY45: 0 | DZ45: 0 | EA45: 0 | EB45: 0 | EC45: 0 | ED45: 0 | EE45: 0 | EF45: 0 | EG45: 0 | EH45: 0 | EI45: 0 | EJ45: =SUM(EJ43:EJ44) -> 0 | EK45: 0 | EL45: 0 | EM45: 0 | EN45: 0 | EO45: 0 | EP45: 0 | EQ45: 0 | ER45: 0 | ES45: 0 | ET45: 0 | EU45: 0 | EV45: 0 | EW45: 0 | EX45: 0 | EY45: 0 | EZ45: 0 | FA45: 0 | FB45: 0 | FC45: 0 | FD45: 0 | FE45: 0 | FF45: 0 | FG45: 0 | FH45: 0 | FI45: 0 | FJ45: 0 | FK45: 0 | FL45: 0 | FM45: 0 | FN45: 0 | FO45: 0 | FP45: 0 | FQ45: 0 | FR45: 0 | FS45: 0 | FT45: 0 | FU45: 0 | FV45: 0 | FW45: 0 | FX45: 0 | FY45: 0 | FZ45: 0 | GA45: 0 | GB45: 0 | GC45: 0 | GD45: 0 | GE45: 0 | GF45: 0 | GG45: 0 | GH45: 0 | GI45: 0 | GJ45: 0 | GK45: 0 | GL45: 0 | GM45: 0 | GN45: 0 | GO45: 0 | GP45: 0 | GQ45: 0 | GR45: 0 | GS45: 0 | GT45: 0 | GU45: 0 | GV45: =SUM(GV43:GV44) -> 0 | GW45: 0 | GX45: 0 | GY45: 0 | GZ45: 0 | HA45: 0 | HB45: 0 | HC45: 0 | HD45: 0 | HE45: 0 | HF45: 0 | HG45: 0 | HH45: 0 | HI45: 0 | HJ45: 0 | HK45: 0 | HL45: 0 | HM45: 0 | HN45: 0 | HO45: 0 | HP45: 0 | HQ45: 0 | HR45: 0 | HS45: 0 | HT45: 0 | HU45: 0 | HV45: 0 | HW45: 0 | HX45: 0 | HY45: 0 | HZ45: 0 | IA45: 0 | IB45: 0 | IC45: 0 | ID45: 0 | IE45: 0 | IF45: 0 | IG45: 0 | IH45: 0 | II45: 0 | IJ45: 0 | IK45: 0 | IL45: 0 | IM45: 0 | IN45: 0 | IO45: 0 | IP45: 0 | IQ45: 0 | IR45: 0 | IS45: 0 | IT45: 0 | IU45: 0 | IV45: 0 | IW45: 0 | IX45: 0 | IY45: 0 | IZ45: 0
B47: Debt Repayment
C49: Debt Flags
D50: Life Counter - Periods | I50: Period | K50: =J50+K9 -> 0 | L50: 1 | M50: 2 | N50: 3 | O50: 4 | P50: 5 | Q50: 6 | R50: 7 | S50: 8 | T50: 9 | U50: 10 | V50: 11 | W50: 12 | X50: 13 | Y50: 14 | Z50: 15 | AA50: 16 | AB50: 17 | AC50: 18 | AD50: 19 | AE50: 20 | AF50: 21 | AG50: 22 | AH50: 23 | AI50: 24 | AJ50: 25 | AK50: 26 | AL50: 27 | AM50: 28 | AN50: 29 | AO50: 30 | AP50: 30 | AQ50: 30 | AR50: 30 | AS50: 30 | AT50: 30 | AU50: 30 | AV50: 30 | AW50: 30 | AX50: 30 | AY50: 30 | AZ50: 30 | BA50: 30 | BB50: 30 | BC50: 30 | BD50: 30 | BE50: 30 | BF50: 30 | BG50: 30 | BH50: 30 | BI50: 30 | BJ50: 30 | BK50: 30 | BL50: 30 | BM50: 30 | BN50: 30 | BO50: 30 | BP50: 30 | BQ50: 30 | BR50: 30 | BS50: 30 | BT50: 30 | BU50: 30 | BV50: 30 | BW50: =BV50+BW9 -> 30 | BX50: 30 | BY50: 30 | BZ50: 30 | CA50: 30 | CB50: 30 | CC50: 30 | CD50: 30 | CE50: 30 | CF50: 30 | CG50: 30 | CH50: 30 | CI50: 30 | CJ50: 30 | CK50: 30 | CL50: 30 | CM50: 30 | CN50: 30 | CO50: 30 | CP50: 30 | CQ50: 30 | CR50: 30 | CS50: 30 | CT50: 30 | CU50: 30 | CV50: 30 | CW50: 30 | CX50: 30 | CY50: 30 | CZ50: 30 | DA50: 30 | DB50: 30 | DC50: 30 | DD50: 30 | DE50: 30 | DF50: 30 | DG50: 30 | DH50: 30 | DI50: 30 | DJ50: 30 | DK50: 30 | DL50: 30 | DM50: 30 | DN50: 30 | DO50: 30 | DP50: 30 | DQ50: 30 | DR50: 30 | DS50: 30 | DT50: 30 | DU50: 30 | DV50: 30 | DW50: 30 | DX50: 30 | DY50: 30 | DZ50: 30 | EA50: 30 | EB50: 30 | EC50: 30 | ED50: 30 | EE50: 30 | EF50: 30 | EG50: 30 | EH50: 30 | EI50: =EH50+EI9 -> 30 | EJ50: 30 | EK50: 30 | EL50: 30 | EM50: 30 | EN50: 30 | EO50: 30 | EP50: 30 | EQ50: 30 | ER50: 30 | ES50: 30 | ET50: 30 | EU50: 30 | EV50: 30 | EW50: 30 | EX50: 30 | EY50: 30 | EZ50: 30 | FA50: 30 | FB50: 30 | FC50: 30 | FD50: 30 | FE50: 30 | FF50: 30 | FG50: 30 | FH50: 30 | FI50: 30 | FJ50: 30 | FK50: 30 | FL50: 30 | FM50: 30 | FN50: 30 | FO50: 30 | FP50: 30 | FQ50: 30 | FR50: 30 | FS50: 30 | FT50: 30 | FU50: 30 | FV50: 30 | FW50: 30 | FX50: 30 | FY50: 30 | FZ50: 30 | GA50: 30 | GB50: 30 | GC50: 30 | GD50: 30 | GE50: 30 | GF50: 30 | GG50: 30 | GH50: 30 | GI50: 30 | GJ50: 30 | GK50: 30 | GL50: 30 | GM50: 30 | GN50: 30 | GO50: 30 | GP50: 30 | GQ50: 30 | GR50: 30 | GS50: 30 | GT50: 30 | GU50: =GT50+GU9 -> 30 | GV50: 30 | GW50: 30 | GX50: 30 | GY50: 30 | GZ50: 30 | HA50: 30 | HB50: 30 | HC50: 30 | HD50: 30 | HE50: 30 | HF50: 30 | HG50: 30 | HH50: 30 | HI50: 30 | HJ50: 30 | HK50: 30 | HL50: 30 | HM50: 30 | HN50: 30 | HO50: 30 | HP50: 30 | HQ50: 30 | HR50: 30 | HS50: 30 | HT50: 30 | HU50: 30 | HV50: 30 | HW50: 30 | HX50: 30 | HY50: 30 | HZ50: 30 | IA50: 30 | IB50: 30 | IC50: 30 | ID50: 30 | IE50: 30 | IF50: 30 | IG50: 30 | IH50: 30 | II50: 30 | IJ50: 30 | IK50: 30 | IL50: 30 | IM50: 30 | IN50: 30 | IO50: 30 | IP50: 30 | IQ50: 30 | IR50: 30 | IS50: 30 | IT50: 30 | IU50: 30 | IV50: 30 | IW50: 30 | IX50: 30 | IY50: 30 | IZ50: 30
D51: Life Counter - Periods | E51: Monts/Per | F51: =G6 -> 12 | G51: =months/F51 -> 1 | I51: Year | K51: =ROUNDUP(K50/$G$51,0) -> 0 | L51: =ROUNDUP(L50/$G$51,0) -> 1 | M51: 2 | N51: 3 | O51: 4 | P51: 5 | Q51: 6 | R51: 7 | S51: 8 | T51: 9 | U51: 10 | V51: 11 | W51: 12 | X51: 13 | Y51: 14 | Z51: 15 | AA51: 16 | AB51: 17 | AC51: 18 | AD51: 19 | AE51: 20 | AF51: 21 | AG51: 22 | AH51: 23 | AI51: 24 | AJ51: 25 | AK51: 26 | AL51: 27 | AM51: 28 | AN51: 29 | AO51: 30 | AP51: 30 | AQ51: 30 | AR51: 30 | AS51: 30 | AT51: 30 | AU51: 30 | AV51: 30 | AW51: 30 | AX51: 30 | AY51: 30 | AZ51: 30 | BA51: 30 | BB51: 30 | BC51: 30 | BD51: 30 | BE51: 30 | BF51: 30 | BG51: 30 | BH51: 30 | BI51: 30 | BJ51: 30 | BK51: 30 | BL51: 30 | BM51: 30 | BN51: 30 | BO51: 30 | BP51: 30 | BQ51: 30 | BR51: 30 | BS51: 30 | BT51: 30 | BU51: 30 | BV51: 30 | BW51: 30 | BX51: =ROUNDUP(BX50/$G$51,0) -> 30 | BY51: 30 | BZ51: 30 | CA51: 30 | CB51: 30 | CC51: 30 | CD51: 30 | CE51: 30 | CF51: 30 | CG51: 30 | CH51: 30 | CI51: 30 | CJ51: 30 | CK51: 30 | CL51: 30 | CM51: 30 | CN51: 30 | CO51: 30 | CP51: 30 | CQ51: 30 | CR51: 30 | CS51: 30 | CT51: 30 | CU51: 30 | CV51: 30 | CW51: 30 | CX51: 30 | CY51: 30 | CZ51: 30 | DA51: 30 | DB51: 30 | DC51: 30 | DD51: 30 | DE51: 30 | DF51: 30 | DG51: 30 | DH51: 30 | DI51: 30 | DJ51: 30 | DK51: 30 | DL51: 30 | DM51: 30 | DN51: 30 | DO51: 30 | DP51: 30 | DQ51: 30 | DR51: 30 | DS51: 30 | DT51: 30 | DU51: 30 | DV51: 30 | DW51: 30 | DX51: 30 | DY51: 30 | DZ51: 30 | EA51: 30 | EB51: 30 | EC51: 30 | ED51: 30 | EE51: 30 | EF51: 30 | EG51: 30 | EH51: 30 | EI51: 30 | EJ51: =ROUNDUP(EJ50/$G$51,0) -> 30 | EK51: 30 | EL51: 30 | EM51: 30 | EN51: 30 | EO51: 30 | EP51: 30 | EQ51: 30 | ER51: 30 | ES51: 30 | ET51: 30 | EU51: 30 | EV51: 30 | EW51: 30 | EX51: 30 | EY51: 30 | EZ51: 30 | FA51: 30 | FB51: 30 | FC51: 30 | FD51: 30 | FE51: 30 | FF51: 30 | FG51: 30 | FH51: 30 | FI51: 30 | FJ51: 30 | FK51: 30 | FL51: 30 | FM51: 30 | FN51: 30 | FO51: 30 | FP51: 30 | FQ51: 30 | FR51: 30 | FS51: 30 | FT51: 30 | FU51: 30 | FV51: 30 | FW51: 30 | FX51: 30 | FY51: 30 | FZ51: 30 | GA51: 30 | GB51: 30 | GC51: 30 | GD51: 30 | GE51: 30 | GF51: 30 | GG51: 30 | GH51: 30 | GI51: 30 | GJ51: 30 | GK51: 30 | GL51: 30 | GM51: 30 | GN51: 30 | GO51: 30 | GP51: 30 | GQ51: 30 | GR51: 30 | GS51: 30 | GT51: 30 | GU51: 30 | GV51: =ROUNDUP(GV50/$G$51,0) -> 30 | GW51: 30 | GX51: 30 | GY51: 30 | GZ51: 30 | HA51: 30 | HB51: 30 | HC51: 30 | HD51: 30 | HE51: 30 | HF51: 30 | HG51: 30 | HH51: 30 | HI51: 30 | HJ51: 30 | HK51: 30 | HL51: 30 | HM51: 30 | HN51: 30 | HO51: 30 | HP51: 30 | HQ51: 30 | HR51: 30 | HS51: 30 | HT51: 30 | HU51: 30 | HV51: 30 | HW51: 30 | HX51: 30 | HY51: 30 | HZ51: 30 | IA51: 30 | IB51: =ROUNDUP(IB50/$G$51,0) -> 30 | IC51: 30 | ID51: 30 | IE51: 30 | IF51: 30 | IG51: 30 | IH51: 30 | II51: 30 | IJ51: 30 | IK51: 30 | IL51: 30 | IM51: 30 | IN51: 30 | IO51: 30 | IP51: 30 | IQ51: 30 | IR51: 30 | IS51: 30 | IT51: 30 | IU51: 30 | IV51: 30 | IW51: 30 | IX51: 30 | IY51: 30 | IZ51: 30
D52: Debt Repayment Periods | E52: Years | F52: =InputC!F34 -> 20 | G52: =F52*G51 -> 20 | H52: =SUM(K52:XFD52) -> 20 | I52: Flag | K52: =AND(K50,K50<=$G$52)*1 -> 0 | L52: =AND(L50,L50<=$G$52)*1 -> 1 | M52: 1 | N52: 1 | O52: 1 | P52: 1 | Q52: 1 | R52: 1 | S52: 1 | T52: 1 | U52: 1 | V52: 1 | W52: 1 | X52: 1 | Y52: 1 | Z52: 1 | AA52: 1 | AB52: 1 | AC52: 1 | AD52: 1 | AE52: 1 | AF52: 0 | AG52: 0 | AH52: 0 | AI52: 0 | AJ52: 0 | AK52: 0 | AL52: 0 | AM52: 0 | AN52: 0 | AO52: 0 | AP52: 0 | AQ52: 0 | AR52: 0 | AS52: 0 | AT52: 0 | AU52: 0 | AV52: 0 | AW52: 0 | AX52: 0 | AY52: 0 | AZ52: 0 | BA52: 0 | BB52: 0 | BC52: 0 | BD52: 0 | BE52: 0 | BF52: 0 | BG52: 0 | BH52: 0 | BI52: 0 | BJ52: 0 | BK52: 0 | BL52: 0 | BM52: 0 | BN52: 0 | BO52: 0 | BP52: 0 | BQ52: 0 | BR52: 0 | BS52: 0 | BT52: 0 | BU52: 0 | BV52: 0 | BW52: 0 | BX52: =AND(BX50,BX50<=$G$52)*1 -> 0 | BY52: 0 | BZ52: 0 | CA52: 0 | CB52: 0 | CC52: 0 | CD52: 0 | CE52: 0 | CF52: 0 | CG52: 0 | CH52: 0 | CI52: 0 | CJ52: 0 | CK52: 0 | CL52: 0 | CM52: 0 | CN52: 0 | CO52: 0 | CP52: 0 | CQ52: 0 | CR52: 0 | CS52: 0 | CT52: 0 | CU52: 0 | CV52: 0 | CW52: 0 | CX52: 0 | CY52: 0 | CZ52: 0 | DA52: 0 | DB52: 0 | DC52: 0 | DD52: 0 | DE52: 0 | DF52: 0 | DG52: 0 | DH52: 0 | DI52: 0 | DJ52: 0 | DK52: 0 | DL52: 0 | DM52: 0 | DN52: 0 | DO52: 0 | DP52: 0 | DQ52: 0 | DR52: 0 | DS52: 0 | DT52: 0 | DU52: 0 | DV52: 0 | DW52: 0 | DX52: 0 | DY52: 0 | DZ52: 0 | EA52: 0 | EB52: 0 | EC52: 0 | ED52: 0 | EE52: 0 | EF52: 0 | EG52: 0 | EH52: 0 | EI52: 0 | EJ52: =AND(EJ50,EJ50<=$G$52)*1 -> 0 | EK52: 0 | EL52: 0 | EM52: 0 | EN52: 0 | EO52: 0 | EP52: 0 | EQ52: 0 | ER52: 0 | ES52: 0 | ET52: 0 | EU52: 0 | EV52: 0 | EW52: 0 | EX52: 0 | EY52: 0 | EZ52: 0 | FA52: 0 | FB52: 0 | FC52: 0 | FD52: 0 | FE52: 0 | FF52: 0 | FG52: 0 | FH52: 0 | FI52: 0 | FJ52: 0 | FK52: 0 | FL52: 0 | FM52: 0 | FN52: 0 | FO52: 0 | FP52: 0 | FQ52: 0 | FR52: 0 | FS52: 0 | FT52: 0 | FU52: 0 | FV52: 0 | FW52: 0 | FX52: 0 | FY52: 0 | FZ52: 0 | GA52: 0 | GB52: 0 | GC52: 0 | GD52: 0 | GE52: 0 | GF52: 0 | GG52: 0 | GH52: 0 | GI52: 0 | GJ52: 0 | GK52: 0 | GL52: 0 | GM52: 0 | GN52: 0 | GO52: 0 | GP52: 0 | GQ52: 0 | GR52: 0 | GS52: 0 | GT52: 0 | GU52: 0 | GV52: =AND(GV50,GV50<=$G$52)*1 -> 0 | GW52: 0 | GX52: 0 | GY52: 0 | GZ52: 0 | HA52: 0 | HB52: 0 | HC52: 0 | HD52: 0 | HE52: 0 | HF52: 0 | HG52: 0 | HH52: 0 | HI52: 0 | HJ52: 0 | HK52: 0 | HL52: 0 | HM52: 0 | HN52: 0 | HO52: 0 | HP52: 0 | HQ52: 0 | HR52: 0 | HS52: 0 | HT52: 0 | HU52: 0 | HV52: 0 | HW52: 0 | HX52: 0 | HY52: 0 | HZ52: 0 | IA52: 0 | IB52: =AND(IB50,IB50<=$G$52)*1 -> 0 | IC52: 0 | ID52: 0 | IE52: 0 | IF52: 0 | IG52: 0 | IH52: 0 | II52: 0 | IJ52: 0 | IK52: 0 | IL52: 0 | IM52: 0 | IN52: 0 | IO52: 0 | IP52: 0 | IQ52: 0 | IR52: 0 | IS52: 0 | IT52: 0 | IU52: 0 | IV52: 0 | IW52: 0 | IX52: 0 | IY52: 0 | IZ52: 0
C54: Debt Repayment
D55: Periodic Interest Rate | E55: % p.a | F55: =InputC!F36+InputC!F37 -> 0.045 | G55: =F55/G51 -> 0.045 | I55: % p.p. | K55: =$F$55/months*K6 -> 0.045 | L55: 0.045 | M55: 0.045 | N55: 0.045 | O55: 0.045 | P55: 0.045 | Q55: 0.045 | R55: 0.045 | S55: 0.045 | T55: 0.045 | U55: 0.045 | V55: 0.045 | W55: 0.045 | X55: 0.045 | Y55: 0.045 | Z55: 0.045 | AA55: 0.045 | AB55: 0.045 | AC55: 0.045 | AD55: 0.045 | AE55: 0.045 | AF55: 0.045 | AG55: 0.045 | AH55: 0.045 | AI55: 0.045 | AJ55: 0.045 | AK55: 0.045 | AL55: 0.045 | AM55: 0.045 | AN55: 0.045 | AO55: 0.045 | AP55: 0.045 | AQ55: 0.045 | AR55: 0.045 | AS55: 0.045 | AT55: 0.045 | AU55: 0.045 | AV55: 0.045 | AW55: 0.045 | AX55: 0.045 | AY55: 0.045 | AZ55: 0.045 | BA55: 0.045 | BB55: 0.045 | BC55: 0.045 | BD55: 0.045 | BE55: 0.045 | BF55: 0.045 | BG55: 0.045 | BH55: 0.045 | BI55: 0.045 | BJ55: 0.045 | BK55: 0.045 | BL55: 0.045 | BM55: 0.045 | BN55: 0.045 | BO55: 0.045 | BP55: 0.045 | BQ55: 0.045 | BR55: 0.045 | BS55: 0.045 | BT55: 0.045 | BU55: 0.045 | BV55: 0.045 | BW55: =$F$55/months*BW6 -> 0.045 | BX55: 0.045 | BY55: 0.045 | BZ55: 0.045 | CA55: 0.045 | CB55: 0.045 | CC55: 0.045 | CD55: 0.045 | CE55: 0.045 | CF55: 0.045 | CG55: 0.045 | CH55: 0.045 | CI55: 0.045 | CJ55: 0.045 | CK55: 0.045 | CL55: 0.045 | CM55: 0.045 | CN55: 0.045 | CO55: 0.045 | CP55: 0.045 | CQ55: 0.045 | CR55: 0.045 | CS55: 0.045 | CT55: 0.045 | CU55: 0.045 | CV55: 0.045 | CW55: 0.045 | CX55: 0.045 | CY55: 0.045 | CZ55: 0.045 | DA55: 0.045 | DB55: 0.045 | DC55: 0.045 | DD55: 0.045 | DE55: 0.045 | DF55: 0.045 | DG55: 0.045 | DH55: 0.045 | DI55: 0.045 | DJ55: 0.045 | DK55: 0.045 | DL55: 0.045 | DM55: 0.045 | DN55: 0.045 | DO55: 0.045 | DP55: 0.045 | DQ55: 0.045 | DR55: 0.045 | DS55: 0.045 | DT55: 0.045 | DU55: 0.045 | DV55: 0.045 | DW55: 0.045 | DX55: 0.045 | DY55: 0.045 | DZ55: 0.045 | EA55: 0.045 | EB55: 0.045 | EC55: 0.045 | ED55: 0.045 | EE55: 0.045 | EF55: 0.045 | EG55: 0.045 | EH55: 0.045 | EI55: =$F$55/months*EI6 -> 0.045 | EJ55: 0.045 | EK55: 0.045 | EL55: 0.045 | EM55: 0.045 | EN55: 0.045 | EO55: 0.045 | EP55: 0.045 | EQ55: 0.045 | ER55: 0.045 | ES55: 0.045 | ET55: 0.045 | EU55: 0.045 | EV55: 0.045 | EW55: 0.045 | EX55: 0.045 | EY55: 0.045 | EZ55: 0.045 | FA55: 0.045 | FB55: 0.045 | FC55: 0.045 | FD55: 0.045 | FE55: 0.045 | FF55: 0.045 | FG55: 0.045 | FH55: 0.045 | FI55: 0.045 | FJ55: 0.045 | FK55: 0.045 | FL55: 0.045 | FM55: 0.045 | FN55: 0.045 | FO55: 0.045 | FP55: 0.045 | FQ55: 0.045 | FR55: 0.045 | FS55: 0.045 | FT55: 0.045 | FU55: 0.045 | FV55: 0.045 | FW55: 0.045 | FX55: 0.045 | FY55: 0.045 | FZ55: 0.045 | GA55: 0.045 | GB55: 0.045 | GC55: 0.045 | GD55: 0.045 | GE55: 0.045 | GF55: 0.045 | GG55: 0.045 | GH55: 0.045 | GI55: 0.045 | GJ55: 0.045 | GK55: 0.045 | GL55: 0.045 | GM55: 0.045 | GN55: 0.045 | GO55: 0.045 | GP55: 0.045 | GQ55: 0.045 | GR55: 0.045 | GS55: 0.045 | GT55: 0.045 | GU55: =$F$55/months*GU6 -> 0.045 | GV55: 0.045 | GW55: 0.045 | GX55: 0.045 | GY55: 0.045 | GZ55: 0.045 | HA55: 0.045 | HB55: 0.045 | HC55: 0.045 | HD55: 0.045 | HE55: 0.045 | HF55: 0.045 | HG55: 0.045 | HH55: 0.045 | HI55: 0.045 | HJ55: 0.045 | HK55: 0.045 | HL55: 0.045 | HM55: 0.045 | HN55: 0.045 | HO55: 0.045 | HP55: 0.045 | HQ55: 0.045 | HR55: 0.045 | HS55: 0.045 | HT55: 0.045 | HU55: 0.045 | HV55: 0.045 | HW55: 0.045 | HX55: 0.045 | HY55: 0.045 | HZ55: 0.045 | IA55: 0.045 | IB55: 0.045 | IC55: 0.045 | ID55: 0.045 | IE55: 0.045 | IF55: 0.045 | IG55: 0.045 | IH55: 0.045 | II55: 0.045 | IJ55: 0.045 | IK55: 0.045 | IL55: 0.045 | IM55: 0.045 | IN55: 0.045 | IO55: 0.045 | IP55: 0.045 | IQ55: 0.045 | IR55: 0.045 | IS55: 0.045 | IT55: 0.045 | IU55: 0.045 | IV55: 0.045 | IW55: 0.045 | IX55: 0.045 | IY55: 0.045 | IZ55: 0.045
D56: Level Debt Service with PMT | E56: EUR | G56: =PMT(G55,G52,-H43) -> 61500.91546 | I56: EUR | K56: =$G$56*K52 -> 0 | L56: =$G$56*L52 -> 61500.91546 | M56: 61500.91546 | N56: 61500.91546 | O56: 61500.91546 | P56: 61500.91546 | Q56: 61500.91546 | R56: 61500.91546 | S56: 61500.91546 | T56: 61500.91546 | U56: 61500.91546 | V56: 61500.91546 | W56: 61500.91546 | X56: 61500.91546 | Y56: 61500.91546 | Z56: 61500.91546 | AA56: 61500.91546 | AB56: 61500.91546 | AC56: 61500.91546 | AD56: 61500.91546 | AE56: 61500.91546 | AF56: 0 | AG56: 0 | AH56: 0 | AI56: 0 | AJ56: 0 | AK56: 0 | AL56: 0 | AM56: 0 | AN56: 0 | AO56: 0 | AP56: 0 | AQ56: 0 | AR56: 0 | AS56: 0 | AT56: 0 | AU56: 0 | AV56: 0 | AW56: 0 | AX56: 0 | AY56: 0 | AZ56: 0 | BA56: 0 | BB56: 0 | BC56: 0 | BD56: 0 | BE56: 0 | BF56: 0 | BG56: 0 | BH56: 0 | BI56: 0 | BJ56: 0 | BK56: 0 | BL56: 0 | BM56: 0 | BN56: 0 | BO56: 0 | BP56: 0 | BQ56: 0 | BR56: 0 | BS56: 0 | BT56: 0 | BU56: 0 | BV56: 0 | BW56: 0 | BX56: =$G$56*BX52 -> 0 | BY56: 0 | BZ56: 0 | CA56: 0 | CB56: 0 | CC56: 0 | CD56: 0 | CE56: 0 | CF56: 0 | CG56: 0 | CH56: 0 | CI56: 0 | CJ56: 0 | CK56: 0 | CL56: 0 | CM56: 0 | CN56: 0 | CO56: 0 | CP56: 0 | CQ56: 0 | CR56: 0 | CS56: 0 | CT56: 0 | CU56: 0 | CV56: 0 | CW56: 0 | CX56: 0 | CY56: 0 | CZ56: 0 | DA56: 0 | DB56: 0 | DC56: 0 | DD56: 0 | DE56: 0 | DF56: 0 | DG56: 0 | DH56: 0 | DI56: 0 | DJ56: 0 | DK56: 0 | DL56: 0 | DM56: 0 | DN56: 0 | DO56: 0 | DP56: 0 | DQ56: 0 | DR56: 0 | DS56: 0 | DT56: 0 | DU56: 0 | DV56: 0 | DW56: 0 | DX56: 0 | DY56: 0 | DZ56: 0 | EA56: 0 | EB56: 0 | EC56: 0 | ED56: 0 | EE56: 0 | EF56: 0 | EG56: 0 | EH56: 0 | EI56: 0 | EJ56: =$G$56*EJ52 -> 0 | EK56: 0 | EL56: 0 | EM56: 0 | EN56: 0 | EO56: 0 | EP56: 0 | EQ56: 0 | ER56: 0 | ES56: 0 | ET56: 0 | EU56: 0 | EV56: 0 | EW56: 0 | EX56: 0 | EY56: 0 | EZ56: 0 | FA56: 0 | FB56: 0 | FC56: 0 | FD56: 0 | FE56: 0 | FF56: 0 | FG56: 0 | FH56: 0 | FI56: 0 | FJ56: 0 | FK56: 0 | FL56: 0 | FM56: 0 | FN56: 0 | FO56: 0 | FP56: 0 | FQ56: 0 | FR56: 0 | FS56: 0 | FT56: 0 | FU56: 0 | FV56: 0 | FW56: 0 | FX56: 0 | FY56: 0 | FZ56: 0 | GA56: 0 | GB56: 0 | GC56: 0 | GD56: 0 | GE56: 0 | GF56: 0 | GG56: 0 | GH56: 0 | GI56: 0 | GJ56: 0 | GK56: 0 | GL56: 0 | GM56: 0 | GN56: 0 | GO56: 0 | GP56: 0 | GQ56: 0 | GR56: 0 | GS56: 0 | GT56: 0 | GU56: 0 | GV56: =$G$56*GV52 -> 0 | GW56: 0 | GX56: 0 | GY56: 0 | GZ56: 0 | HA56: 0 | HB56: 0 | HC56: 0 | HD56: 0 | HE56: 0 | HF56: 0 | HG56: 0 | HH56: 0 | HI56: 0 | HJ56: 0 | HK56: 0 | HL56: 0 | HM56: 0 | HN56: 0 | HO56: 0 | HP56: 0 | HQ56: 0 | HR56: 0 | HS56: 0 | HT56: 0 | HU56: 0 | HV56: 0 | HW56: 0 | HX56: 0 | HY56: 0 | HZ56: 0 | IA56: 0 | IB56: =$G$56*IB52 -> 0 | IC56: 0 | ID56: 0 | IE56: 0 | IF56: 0 | IG56: 0 | IH56: 0 | II56: 0 | IJ56: 0 | IK56: 0 | IL56: 0 | IM56: 0 | IN56: 0 | IO56: 0 | IP56: 0 | IQ56: 0 | IR56: 0 | IS56: 0 | IT56: 0 | IU56: 0 | IV56: 0 | IW56: 0 | IX56: 0 | IY56: 0 | IZ56: 0
C58: Scheduled Debt
D59: Opening Balance | I59: EUR | K59: =J62 -> 0 | L59: =K62 -> 800000 | M59: 774499.0845 | N59: 747850.6279 | O59: 720002.9907 | P59: 690902.2098 | Q59: 660491.8938 | R59: 628713.1135 | S59: 595504.2882 | T59: 560801.0657 | U59: 524536.1982 | V59: 486639.4117 | W59: 447037.2697 | X59: 405653.0314 | Y59: 362406.5024 | Z59: 317213.8795 | AA59: 269987.5886 | AB59: 220636.1147 | AC59: 169063.8244 | AD59: 115170.781 | AE59: 58852.55068 | AF59: 0 | AG59: 0 | AH59: 0 | AI59: 0 | AJ59: 0 | AK59: 0 | AL59: 0 | AM59: 0 | AN59: 0 | AO59: 0 | AP59: 0 | AQ59: 0 | AR59: 0 | AS59: 0 | AT59: 0 | AU59: 0 | AV59: 0 | AW59: 0 | AX59: 0 | AY59: 0 | AZ59: 0 | BA59: 0 | BB59: 0 | BC59: 0 | BD59: 0 | BE59: 0 | BF59: 0 | BG59: 0 | BH59: 0 | BI59: 0 | BJ59: 0 | BK59: 0 | BL59: 0 | BM59: 0 | BN59: 0 | BO59: 0 | BP59: 0 | BQ59: 0 | BR59: 0 | BS59: 0 | BT59: 0 | BU59: 0 | BV59: 0 | BW59: 0 | BX59: =BW62 -> 0 | BY59: 0 | BZ59: 0 | CA59: 0 | CB59: 0 | CC59: 0 | CD59: 0 | CE59: 0 | CF59: 0 | CG59: 0 | CH59: 0 | CI59: 0 | CJ59: 0 | CK59: 0 | CL59: 0 | CM59: 0 | CN59: 0 | CO59: 0 | CP59: 0 | CQ59: 0 | CR59: 0 | CS59: 0 | CT59: 0 | CU59: 0 | CV59: 0 | CW59: 0 | CX59: 0 | CY59: 0 | CZ59: 0 | DA59: 0 | DB59: 0 | DC59: 0 | DD59: 0 | DE59: 0 | DF59: 0 | DG59: 0 | DH59: 0 | DI59: 0 | DJ59: 0 | DK59: 0 | DL59: 0 | DM59: 0 | DN59: 0 | DO59: 0 | DP59: 0 | DQ59: 0 | DR59: 0 | DS59: 0 | DT59: 0 | DU59: 0 | DV59: 0 | DW59: 0 | DX59: 0 | DY59: 0 | DZ59: 0 | EA59: 0 | EB59: 0 | EC59: 0 | ED59: 0 | EE59: 0 | EF59: 0 | EG59: 0 | EH59: 0 | EI59: 0 | EJ59: =EI62 -> 0 | EK59: 0 | EL59: 0 | EM59: 0 | EN59: 0 | EO59: 0 | EP59: 0 | EQ59: 0 | ER59: 0 | ES59: 0 | ET59: 0 | EU59: 0 | EV59: 0 | EW59: 0 | EX59: 0 | EY59: 0 | EZ59: 0 | FA59: 0 | FB59: 0 | FC59: 0 | FD59: 0 | FE59: 0 | FF59: 0 | FG59: 0 | FH59: 0 | FI59: 0 | FJ59: 0 | FK59: 0 | FL59: 0 | FM59: 0 | FN59: 0 | FO59: 0 | FP59: 0 | FQ59: 0 | FR59: 0 | FS59: 0 | FT59: 0 | FU59: 0 | FV59: 0 | FW59: 0 | FX59: 0 | FY59: 0 | FZ59: 0 | GA59: 0 | GB59: 0 | GC59: 0 | GD59: 0 | GE59: 0 | GF59: 0 | GG59: 0 | GH59: 0 | GI59: 0 | GJ59: 0 | GK59: 0 | GL59: 0 | GM59: 0 | GN59: 0 | GO59: 0 | GP59: 0 | GQ59: 0 | GR59: 0 | GS59: 0 | GT59: 0 | GU59: 0 | GV59: =GU62 -> 0 | GW59: 0 | GX59: 0 | GY59: 0 | GZ59: 0 | HA59: 0 | HB59: 0 | HC59: 0 | HD59: 0 | HE59: 0 | HF59: 0 | HG59: 0 | HH59: 0 | HI59: 0 | HJ59: 0 | HK59: 0 | HL59: 0 | HM59: 0 | HN59: 0 | HO59: 0 | HP59: 0 | HQ59: 0 | HR59: 0 | HS59: 0 | HT59: 0 | HU59: 0 | HV59: 0 | HW59: 0 | HX59: 0 | HY59: 0 | HZ59: 0 | IA59: 0 | IB59: 0 | IC59: 0 | ID59: 0 | IE59: 0 | IF59: 0 | IG59: 0 | IH59: 0 | II59: 0 | IJ59: 0 | IK59: 0 | IL59: 0 | IM59: 0 | IN59: 0 | IO59: 0 | IP59: 0 | IQ59: 0 | IR59: 0 | IS59: 0 | IT59: 0 | IU59: 0 | IV59: 0 | IW59: 0 | IX59: 0 | IY59: 0 | IZ59: 0
D60: Add Debt Issued | H60: =SUM(K60:XFD60) -> 800000 | I60: EUR | K60: =K43 -> 800000 | L60: =L43 -> 0 | M60: 0 | N60: 0 | O60: 0 | P60: 0 | Q60: 0 | R60: 0 | S60: 0 | T60: 0 | U60: 0 | V60: 0 | W60: 0 | X60: 0 | Y60: 0 | Z60: 0 | AA60: 0 | AB60: 0 | AC60: 0 | AD60: 0 | AE60: 0 | AF60: 0 | AG60: 0 | AH60: 0 | AI60: 0 | AJ60: 0 | AK60: 0 | AL60: 0 | AM60: 0 | AN60: 0 | AO60: 0 | AP60: 0 | AQ60: 0 | AR60: 0 | AS60: 0 | AT60: 0 | AU60: 0 | AV60: 0 | AW60: 0 | AX60: 0 | AY60: 0 | AZ60: 0 | BA60: 0 | BB60: 0 | BC60: 0 | BD60: 0 | BE60: 0 | BF60: 0 | BG60: 0 | BH60: 0 | BI60: 0 | BJ60: 0 | BK60: 0 | BL60: 0 | BM60: 0 | BN60: 0 | BO60: 0 | BP60: 0 | BQ60: 0 | BR60: 0 | BS60: 0 | BT60: 0 | BU60: 0 | BV60: 0 | BW60: 0 | BX60: =BX43 -> 0 | BY60: 0 | BZ60: 0 | CA60: 0 | CB60: 0 | CC60: 0 | CD60: 0 | CE60: 0 | CF60: 0 | CG60: 0 | CH60: 0 | CI60: 0 | CJ60: 0 | CK60: 0 | CL60: 0 | CM60: 0 | CN60: 0 | CO60: 0 | CP60: 0 | CQ60: 0 | CR60: 0 | CS60: 0 | CT60: 0 | CU60: 0 | CV60: 0 | CW60: 0 | CX60: 0 | CY60: 0 | CZ60: 0 | DA60: 0 | DB60: 0 | DC60: 0 | DD60: 0 | DE60: 0 | DF60: 0 | DG60: 0 | DH60: 0 | DI60: 0 | DJ60: 0 | DK60: 0 | DL60: 0 | DM60: 0 | DN60: 0 | DO60: 0 | DP60: 0 | DQ60: 0 | DR60: 0 | DS60: 0 | DT60: 0 | DU60: 0 | DV60: 0 | DW60: 0 | DX60: 0 | DY60: 0 | DZ60: 0 | EA60: 0 | EB60: 0 | EC60: 0 | ED60: 0 | EE60: 0 | EF60: 0 | EG60: 0 | EH60: 0 | EI60: 0 | EJ60: =EJ43 -> 0 | EK60: 0 | EL60: 0 | EM60: 0 | EN60: 0 | EO60: 0 | EP60: 0 | EQ60: 0 | ER60: 0 | ES60: 0 | ET60: 0 | EU60: 0 | EV60: 0 | EW60: 0 | EX60: 0 | EY60: 0 | EZ60: 0 | FA60: 0 | FB60: 0 | FC60: 0 | FD60: 0 | FE60: 0 | FF60: 0 | FG60: 0 | FH60: 0 | FI60: 0 | FJ60: 0 | FK60: 0 | FL60: 0 | FM60: 0 | FN60: 0 | FO60: 0 | FP60: 0 | FQ60: 0 | FR60: 0 | FS60: 0 | FT60: 0 | FU60: 0 | FV60: 0 | FW60: 0 | FX60: 0 | FY60: 0 | FZ60: 0 | GA60: 0 | GB60: 0 | GC60: 0 | GD60: 0 | GE60: 0 | GF60: 0 | GG60: 0 | GH60: 0 | GI60: 0 | GJ60: 0 | GK60: 0 | GL60: 0 | GM60: 0 | GN60: 0 | GO60: 0 | GP60: 0 | GQ60: 0 | GR60: 0 | GS60: 0 | GT60: 0 | GU60: 0 | GV60: =GV43 -> 0 | GW60: 0 | GX60: 0 | GY60: 0 | GZ60: 0 | HA60: 0 | HB60: 0 | HC60: 0 | HD60: 0 | HE60: 0 | HF60: 0 | HG60: 0 | HH60: 0 | HI60: 0 | HJ60: 0 | HK60: 0 | HL60: 0 | HM60: 0 | HN60: 0 | HO60: 0 | HP60: 0 | HQ60: 0 | HR60: 0 | HS60: 0 | HT60: 0 | HU60: 0 | HV60: 0 | HW60: 0 | HX60: 0 | HY60: 0 | HZ60: 0 | IA60: 0 | IB60: 0 | IC60: 0 | ID60: 0 | IE60: 0 | IF60: 0 | IG60: 0 | IH60: 0 | II60: 0 | IJ60: 0 | IK60: 0 | IL60: 0 | IM60: 0 | IN60: 0 | IO60: 0 | IP60: 0 | IQ60: 0 | IR60: 0 | IS60: 0 | IT60: 0 | IU60: 0 | IV60: 0 | IW60: 0 | IX60: 0 | IY60: 0 | IZ60: 0
D61: Less: Debt Repaid | H61: =SUM(K61:XFD61) -> 800000 | I61: EUR | K61: =(K56-K64)*K52 -> 0 | L61: =(L56-L64)*L52 -> 25500.91546 | M61: 26648.45665 | N61: 27847.6372 | O61: 29100.78088 | P61: 30410.31602 | Q61: 31778.78024 | R61: 33208.82535 | S61: 34703.22249 | T61: 36264.8675 | U61: 37896.78654 | V61: 39602.14193 | W61: 41384.23832 | X61: 43246.52905 | Y61: 45192.62285 | Z61: 47226.29088 | AA61: 49351.47397 | AB61: 51572.2903 | AC61: 53893.04336 | AD61: 56318.23031 | AE61: 58852.55068 | AF61: 0 | AG61: 0 | AH61: 0 | AI61: 0 | AJ61: 0 | AK61: 0 | AL61: 0 | AM61: 0 | AN61: 0 | AO61: 0 | AP61: 0 | AQ61: 0 | AR61: 0 | AS61: 0 | AT61: 0 | AU61: 0 | AV61: 0 | AW61: 0 | AX61: 0 | AY61: 0 | AZ61: 0 | BA61: 0 | BB61: 0 | BC61: 0 | BD61: 0 | BE61: 0 | BF61: 0 | BG61: 0 | BH61: 0 | BI61: 0 | BJ61: 0 | BK61: 0 | BL61: 0 | BM61: 0 | BN61: 0 | BO61: 0 | BP61: 0 | BQ61: 0 | BR61: 0 | BS61: 0 | BT61: 0 | BU61: 0 | BV61: 0 | BW61: 0 | BX61: =(BX56-BX64)*BX52 -> 0 | BY61: 0 | BZ61: 0 | CA61: 0 | CB61: 0 | CC61: 0 | CD61: 0 | CE61: 0 | CF61: 0 | CG61: 0 | CH61: 0 | CI61: 0 | CJ61: 0 | CK61: 0 | CL61: 0 | CM61: 0 | CN61: 0 | CO61: 0 | CP61: 0 | CQ61: 0 | CR61: 0 | CS61: 0 | CT61: 0 | CU61: 0 | CV61: 0 | CW61: 0 | CX61: 0 | CY61: 0 | CZ61: 0 | DA61: 0 | DB61: 0 | DC61: 0 | DD61: 0 | DE61: 0 | DF61: 0 | DG61: 0 | DH61: 0 | DI61: 0 | DJ61: 0 | DK61: 0 | DL61: 0 | DM61: 0 | DN61: 0 | DO61: 0 | DP61: 0 | DQ61: 0 | DR61: 0 | DS61: 0 | DT61: 0 | DU61: 0 | DV61: 0 | DW61: 0 | DX61: 0 | DY61: 0 | DZ61: 0 | EA61: 0 | EB61: 0 | EC61: 0 | ED61: 0 | EE61: 0 | EF61: 0 | EG61: 0 | EH61: 0 | EI61: 0 | EJ61: =(EJ56-EJ64)*EJ52 -> 0 | EK61: 0 | EL61: 0 | EM61: 0 | EN61: 0 | EO61: 0 | EP61: 0 | EQ61: 0 | ER61: 0 | ES61: 0 | ET61: 0 | EU61: 0 | EV61: 0 | EW61: 0 | EX61: 0 | EY61: 0 | EZ61: 0 | FA61: 0 | FB61: 0 | FC61: 0 | FD61: 0 | FE61: 0 | FF61: 0 | FG61: 0 | FH61: 0 | FI61: 0 | FJ61: 0 | FK61: 0 | FL61: 0 | FM61: 0 | FN61: 0 | FO61: 0 | FP61: 0 | FQ61: 0 | FR61: 0 | FS61: 0 | FT61: 0 | FU61: 0 | FV61: 0 | FW61: 0 | FX61: 0 | FY61: 0 | FZ61: 0 | GA61: 0 | GB61: 0 | GC61: 0 | GD61: 0 | GE61: 0 | GF61: 0 | GG61: 0 | GH61: 0 | GI61: 0 | GJ61: 0 | GK61: 0 | GL61: 0 | GM61: 0 | GN61: 0 | GO61: 0 | GP61: 0 | GQ61: 0 | GR61: 0 | GS61: 0 | GT61: 0 | GU61: 0 | GV61: =(GV56-GV64)*GV52 -> 0 | GW61: 0 | GX61: 0 | GY61: 0 | GZ61: 0 | HA61: 0 | HB61: 0 | HC61: 0 | HD61: 0 | HE61: 0 | HF61: 0 | HG61: 0 | HH61: 0 | HI61: 0 | HJ61: 0 | HK61: 0 | HL61: 0 | HM61: 0 | HN61: 0 | HO61: 0 | HP61: 0 | HQ61: 0 | HR61: 0 | HS61: 0 | HT61: 0 | HU61: 0 | HV61: 0 | HW61: 0 | HX61: 0 | HY61: 0 | HZ61: 0 | IA61: 0 | IB61: 0 | IC61: 0 | ID61: 0 | IE61: 0 | IF61: 0 | IG61: 0 | IH61: 0 | II61: 0 | IJ61: 0 | IK61: 0 | IL61: 0 | IM61: 0 | IN61: 0 | IO61: 0 | IP61: 0 | IQ61: 0 | IR61: 0 | IS61: 0 | IT61: 0 | IU61: 0 | IV61: 0 | IW61: 0 | IX61: 0 | IY61: 0 | IZ61: 0
D62: Closing Balance | I62: EUR | K62: =K59+K60-K61 -> 800000 | L62: =L59+L60-L61 -> 774499.0845 | M62: 747850.6279 | N62: 720002.9907 | O62: 690902.2098 | P62: 660491.8938 | Q62: 628713.1135 | R62: 595504.2882 | S62: 560801.0657 | T62: 524536.1982 | U62: 486639.4117 | V62: 447037.2697 | W62: 405653.0314 | X62: 362406.5024 | Y62: 317213.8795 | Z62: 269987.5886 | AA62: 220636.1147 | AB62: 169063.8244 | AC62: 115170.781 | AD62: 58852.55068 | AE62: 0 | AF62: 0 | AG62: 0 | AH62: 0 | AI62: 0 | AJ62: 0 | AK62: 0 | AL62: 0 | AM62: 0 | AN62: 0 | AO62: 0 | AP62: 0 | AQ62: 0 | AR62: 0 | AS62: 0 | AT62: 0 | AU62: 0 | AV62: 0 | AW62: 0 | AX62: 0 | AY62: 0 | AZ62: 0 | BA62: 0 | BB62: 0 | BC62: 0 | BD62: 0 | BE62: 0 | BF62: 0 | BG62: 0 | BH62: 0 | BI62: 0 | BJ62: 0 | BK62: 0 | BL62: 0 | BM62: 0 | BN62: 0 | BO62: 0 | BP62: 0 | BQ62: 0 | BR62: 0 | BS62: 0 | BT62: 0 | BU62: 0 | BV62: 0 | BW62: 0 | BX62: =BX59+BX60-BX61 -> 0 | BY62: 0 | BZ62: 0 | CA62: 0 | CB62: 0 | CC62: 0 | CD62: 0 | CE62: 0 | CF62: 0 | CG62: 0 | CH62: 0 | CI62: 0 | CJ62: 0 | CK62: 0 | CL62: 0 | CM62: 0 | CN62: 0 | CO62: 0 | CP62: 0 | CQ62: 0 | CR62: 0 | CS62: 0 | CT62: 0 | CU62: 0 | CV62: 0 | CW62: 0 | CX62: 0 | CY62: 0 | CZ62: 0 | DA62: 0 | DB62: 0 | DC62: 0 | DD62: 0 | DE62: 0 | DF62: 0 | DG62: 0 | DH62: 0 | DI62: 0 | DJ62: 0 | DK62: 0 | DL62: 0 | DM62: 0 | DN62: 0 | DO62: 0 | DP62: 0 | DQ62: 0 | DR62: 0 | DS62: 0 | DT62: 0 | DU62: 0 | DV62: 0 | DW62: 0 | DX62: 0 | DY62: 0 | DZ62: 0 | EA62: 0 | EB62: 0 | EC62: 0 | ED62: 0 | EE62: 0 | EF62: 0 | EG62: 0 | EH62: 0 | EI62: 0 | EJ62: =EJ59+EJ60-EJ61 -> 0 | EK62: 0 | EL62: 0 | EM62: 0 | EN62: 0 | EO62: 0 | EP62: 0 | EQ62: 0 | ER62: 0 | ES62: 0 | ET62: 0 | EU62: 0 | EV62: 0 | EW62: 0 | EX62: 0 | EY62: 0 | EZ62: 0 | FA62: 0 | FB62: 0 | FC62: 0 | FD62: 0 | FE62: 0 | FF62: 0 | FG62: 0 | FH62: 0 | FI62: 0 | FJ62: 0 | FK62: 0 | FL62: 0 | FM62: 0 | FN62: 0 | FO62: 0 | FP62: 0 | FQ62: 0 | FR62: 0 | FS62: 0 | FT62: 0 | FU62: 0 | FV62: 0 | FW62: 0 | FX62: 0 | FY62: 0 | FZ62: 0 | GA62: 0 | GB62: 0 | GC62: 0 | GD62: 0 | GE62: 0 | GF62: 0 | GG62: 0 | GH62: 0 | GI62: 0 | GJ62: 0 | GK62: 0 | GL62: 0 | GM62: 0 | GN62: 0 | GO62: 0 | GP62: 0 | GQ62: 0 | GR62: 0 | GS62: 0 | GT62: 0 | GU62: 0 | GV62: =GV59+GV60-GV61 -> 0 | GW62: 0 | GX62: 0 | GY62: 0 | GZ62: 0 | HA62: 0 | HB62: 0 | HC62: 0 | HD62: 0 | HE62: 0 | HF62: 0 | HG62: 0 | HH62: 0 | HI62: 0 | HJ62: 0 | HK62: 0 | HL62: 0 | HM62: 0 | HN62: 0 | HO62: 0 | HP62: 0 | HQ62: 0 | HR62: 0 | HS62: 0 | HT62: 0 | HU62: 0 | HV62: 0 | HW62: 0 | HX62: 0 | HY62: 0 | HZ62: 0 | IA62: 0 | IB62: 0 | IC62: 0 | ID62: 0 | IE62: 0 | IF62: 0 | IG62: 0 | IH62: 0 | II62: 0 | IJ62: 0 | IK62: 0 | IL62: 0 | IM62: 0 | IN62: 0 | IO62: 0 | IP62: 0 | IQ62: 0 | IR62: 0 | IS62: 0 | IT62: 0 | IU62: 0 | IV62: 0 | IW62: 0 | IX62: 0 | IY62: 0 | IZ62: 0
D63: Periodic Interest Rate | I63: % | K63: =K55 -> 0.045 | L63: =L55 -> 0.045 | M63: 0.045 | N63: 0.045 | O63: 0.045 | P63: 0.045 | Q63: 0.045 | R63: 0.045 | S63: 0.045 | T63: 0.045 | U63: 0.045 | V63: 0.045 | W63: 0.045 | X63: 0.045 | Y63: 0.045 | Z63: 0.045 | AA63: 0.045 | AB63: 0.045 | AC63: 0.045 | AD63: 0.045 | AE63: 0.045 | AF63: 0.045 | AG63: 0.045 | AH63: 0.045 | AI63: 0.045 | AJ63: 0.045 | AK63: 0.045 | AL63: 0.045 | AM63: 0.045 | AN63: 0.045 | AO63: 0.045 | AP63: 0.045 | AQ63: 0.045 | AR63: 0.045 | AS63: 0.045 | AT63: 0.045 | AU63: 0.045 | AV63: 0.045 | AW63: 0.045 | AX63: 0.045 | AY63: 0.045 | AZ63: 0.045 | BA63: 0.045 | BB63: 0.045 | BC63: 0.045 | BD63: 0.045 | BE63: 0.045 | BF63: 0.045 | BG63: 0.045 | BH63: 0.045 | BI63: 0.045 | BJ63: 0.045 | BK63: 0.045 | BL63: 0.045 | BM63: 0.045 | BN63: 0.045 | BO63: 0.045 | BP63: 0.045 | BQ63: 0.045 | BR63: 0.045 | BS63: 0.045 | BT63: 0.045 | BU63: 0.045 | BV63: 0.045 | BW63: 0.045 | BX63: =BX55 -> 0.045 | BY63: 0.045 | BZ63: 0.045 | CA63: 0.045 | CB63: 0.045 | CC63: 0.045 | CD63: 0.045 | CE63: 0.045 | CF63: 0.045 | CG63: 0.045 | CH63: 0.045 | CI63: 0.045 | CJ63: 0.045 | CK63: 0.045 | CL63: 0.045 | CM63: 0.045 | CN63: 0.045 | CO63: 0.045 | CP63: 0.045 | CQ63: 0.045 | CR63: 0.045 | CS63: 0.045 | CT63: 0.045 | CU63: 0.045 | CV63: 0.045 | CW63: 0.045 | CX63: 0.045 | CY63: 0.045 | CZ63: 0.045 | DA63: 0.045 | DB63: 0.045 | DC63: 0.045 | DD63: 0.045 | DE63: 0.045 | DF63: 0.045 | DG63: 0.045 | DH63: 0.045 | DI63: 0.045 | DJ63: 0.045 | DK63: 0.045 | DL63: 0.045 | DM63: 0.045 | DN63: 0.045 | DO63: 0.045 | DP63: 0.045 | DQ63: 0.045 | DR63: 0.045 | DS63: 0.045 | DT63: 0.045 | DU63: 0.045 | DV63: 0.045 | DW63: 0.045 | DX63: 0.045 | DY63: 0.045 | DZ63: 0.045 | EA63: 0.045 | EB63: 0.045 | EC63: 0.045 | ED63: 0.045 | EE63: 0.045 | EF63: 0.045 | EG63: 0.045 | EH63: 0.045 | EI63: 0.045 | EJ63: =EJ55 -> 0.045 | EK63: 0.045 | EL63: 0.045 | EM63: 0.045 | EN63: 0.045 | EO63: 0.045 | EP63: 0.045 | EQ63: 0.045 | ER63: 0.045 | ES63: 0.045 | ET63: 0.045 | EU63: 0.045 | EV63: 0.045 | EW63: 0.045 | EX63: 0.045 | EY63: 0.045 | EZ63: 0.045 | FA63: 0.045 | FB63: 0.045 | FC63: 0.045 | FD63: 0.045 | FE63: 0.045 | FF63: 0.045 | FG63: 0.045 | FH63: 0.045 | FI63: 0.045 | FJ63: 0.045 | FK63: 0.045 | FL63: 0.045 | FM63: 0.045 | FN63: 0.045 | FO63: 0.045 | FP63: 0.045 | FQ63: 0.045 | FR63: 0.045 | FS63: 0.045 | FT63: 0.045 | FU63: 0.045 | FV63: 0.045 | FW63: 0.045 | FX63: 0.045 | FY63: 0.045 | FZ63: 0.045 | GA63: 0.045 | GB63: 0.045 | GC63: 0.045 | GD63: 0.045 | GE63: 0.045 | GF63: 0.045 | GG63: 0.045 | GH63: 0.045 | GI63: 0.045 | GJ63: 0.045 | GK63: 0.045 | GL63: 0.045 | GM63: 0.045 | GN63: 0.045 | GO63: 0.045 | GP63: 0.045 | GQ63: 0.045 | GR63: 0.045 | GS63: 0.045 | GT63: 0.045 | GU63: 0.045 | GV63: =GV55 -> 0.045 | GW63: 0.045 | GX63: 0.045 | GY63: 0.045 | GZ63: 0.045 | HA63: 0.045 | HB63: 0.045 | HC63: 0.045 | HD63: 0.045 | HE63: 0.045 | HF63: 0.045 | HG63: 0.045 | HH63: 0.045 | HI63: 0.045 | HJ63: 0.045 | HK63: 0.045 | HL63: 0.045 | HM63: 0.045 | HN63: 0.045 | HO63: 0.045 | HP63: 0.045 | HQ63: 0.045 | HR63: 0.045 | HS63: 0.045 | HT63: 0.045 | HU63: 0.045 | HV63: 0.045 | HW63: 0.045 | HX63: 0.045 | HY63: 0.045 | HZ63: 0.045 | IA63: 0.045 | IB63: 0.045 | IC63: 0.045 | ID63: 0.045 | IE63: 0.045 | IF63: 0.045 | IG63: 0.045 | IH63: 0.045 | II63: 0.045 | IJ63: 0.045 | IK63: 0.045 | IL63: 0.045 | IM63: 0.045 | IN63: 0.045 | IO63: 0.045 | IP63: 0.045 | IQ63: 0.045 | IR63: 0.045 | IS63: 0.045 | IT63: 0.045 | IU63: 0.045 | IV63: 0.045 | IW63: 0.045 | IX63: 0.045 | IY63: 0.045 | IZ63: 0.045
D64: Interest Cost | I64: EUR | K64: =K63*K59 -> 0 | L64: =L63*L59 -> 36000 | M64: 34852.4588 | N64: 33653.27825 | O64: 32400.13458 | P64: 31090.59944 | Q64: 29722.13522 | R64: 28292.09011 | S64: 26797.69297 | T64: 25236.04796 | U64: 23604.12892 | V64: 21898.77352 | W64: 20116.67714 | X64: 18254.38641 | Y64: 16308.29261 | Z64: 14274.62458 | AA64: 12149.44149 | AB64: 9928.62516 | AC64: 7607.872096 | AD64: 5182.685145 | AE64: 2648.364781 | AF64: 0 | AG64: 0 | AH64: 0 | AI64: 0 | AJ64: 0 | AK64: 0 | AL64: 0 | AM64: 0 | AN64: 0 | AO64: 0 | AP64: 0 | AQ64: 0 | AR64: 0 | AS64: 0 | AT64: 0 | AU64: 0 | AV64: 0 | AW64: 0 | AX64: 0 | AY64: 0 | AZ64: 0 | BA64: 0 | BB64: 0 | BC64: 0 | BD64: 0 | BE64: 0 | BF64: 0 | BG64: 0 | BH64: 0 | BI64: 0 | BJ64: 0 | BK64: 0 | BL64: 0 | BM64: 0 | BN64: 0 | BO64: 0 | BP64: 0 | BQ64: 0 | BR64: 0 | BS64: 0 | BT64: 0 | BU64: 0 | BV64: 0 | BW64: 0 | BX64: =BX63*BX59 -> 0 | BY64: 0 | BZ64: 0 | CA64: 0 | CB64: 0 | CC64: 0 | CD64: 0 | CE64: 0 | CF64: 0 | CG64: 0 | CH64: 0 | CI64: 0 | CJ64: 0 | CK64: 0 | CL64: 0 | CM64: 0 | CN64: 0 | CO64: 0 | CP64: 0 | CQ64: 0 | CR64: 0 | CS64: 0 | CT64: 0 | CU64: 0 | CV64: 0 | CW64: 0 | CX64: 0 | CY64: 0 | CZ64: 0 | DA64: 0 | DB64: 0 | DC64: 0 | DD64: 0 | DE64: 0 | DF64: 0 | DG64: 0 | DH64: 0 | DI64: 0 | DJ64: 0 | DK64: 0 | DL64: 0 | DM64: 0 | DN64: 0 | DO64: 0 | DP64: 0 | DQ64: 0 | DR64: 0 | DS64: 0 | DT64: 0 | DU64: 0 | DV64: 0 | DW64: 0 | DX64: 0 | DY64: 0 | DZ64: 0 | EA64: 0 | EB64: 0 | EC64: 0 | ED64: 0 | EE64: 0 | EF64: 0 | EG64: 0 | EH64: 0 | EI64: 0 | EJ64: =EJ63*EJ59 -> 0 | EK64: 0 | EL64: 0 | EM64: 0 | EN64: 0 | EO64: 0 | EP64: 0 | EQ64: 0 | ER64: 0 | ES64: 0 | ET64: 0 | EU64: 0 | EV64: 0 | EW64: 0 | EX64: 0 | EY64: 0 | EZ64: 0 | FA64: 0 | FB64: 0 | FC64: 0 | FD64: 0 | FE64: 0 | FF64: 0 | FG64: 0 | FH64: 0 | FI64: 0 | FJ64: 0 | FK64: 0 | FL64: 0 | FM64: 0 | FN64: 0 | FO64: 0 | FP64: 0 | FQ64: 0 | FR64: 0 | FS64: 0 | FT64: 0 | FU64: 0 | FV64: 0 | FW64: 0 | FX64: 0 | FY64: 0 | FZ64: 0 | GA64: 0 | GB64: 0 | GC64: 0 | GD64: 0 | GE64: 0 | GF64: 0 | GG64: 0 | GH64: 0 | GI64: 0 | GJ64: 0 | GK64: 0 | GL64: 0 | GM64: 0 | GN64: 0 | GO64: 0 | GP64: 0 | GQ64: 0 | GR64: 0 | GS64: 0 | GT64: 0 | GU64: 0 | GV64: =GV63*GV59 -> 0 | GW64: 0 | GX64: 0 | GY64: 0 | GZ64: 0 | HA64: 0 | HB64: 0 | HC64: 0 | HD64: 0 | HE64: 0 | HF64: 0 | HG64: 0 | HH64: 0 | HI64: 0 | HJ64: 0 | HK64: 0 | HL64: 0 | HM64: 0 | HN64: 0 | HO64: 0 | HP64: 0 | HQ64: 0 | HR64: 0 | HS64: 0 | HT64: 0 | HU64: 0 | HV64: 0 | HW64: 0 | HX64: 0 | HY64: 0 | HZ64: 0 | IA64: 0 | IB64: 0 | IC64: 0 | ID64: 0 | IE64: 0 | IF64: 0 | IG64: 0 | IH64: 0 | II64: 0 | IJ64: 0 | IK64: 0 | IL64: 0 | IM64: 0 | IN64: 0 | IO64: 0 | IP64: 0 | IQ64: 0 | IR64: 0 | IS64: 0 | IT64: 0 | IU64: 0 | IV64: 0 | IW64: 0 | IX64: 0 | IY64: 0 | IZ64: 0
D66: Test of Closing Balance | E66: Periods | F66: =G52 -> 20 | G66: =LOOKUP(F66,52:52,62:62) -> 0
D68: Debt Service =Interest + Repayment | I68: EUR | K68: =IF(K52,K64+K61) -> FALSE | L68: =IF(L52,L64+L61) -> 61500.91546 | M68: 61500.91546 | N68: 61500.91546 | O68: 61500.91546 | P68: 61500.91546 | Q68: 61500.91546 | R68: 61500.91546 | S68: 61500.91546 | T68: 61500.91546 | U68: 61500.91546 | V68: 61500.91546 | W68: 61500.91546 | X68: 61500.91546 | Y68: 61500.91546 | Z68: 61500.91546 | AA68: 61500.91546 | AB68: 61500.91546 | AC68: 61500.91546 | AD68: 61500.91546 | AE68: 61500.91546 | AF68: FALSE | AG68: FALSE | AH68: FALSE | AI68: FALSE | AJ68: FALSE | AK68: FALSE | AL68: FALSE | AM68: FALSE | AN68: FALSE | AO68: FALSE | AP68: FALSE | AQ68: FALSE | AR68: FALSE | AS68: FALSE | AT68: FALSE | AU68: FALSE | AV68: FALSE | AW68: FALSE | AX68: FALSE | AY68: FALSE | AZ68: FALSE | BA68: FALSE | BB68: FALSE | BC68: FALSE | BD68: FALSE | BE68: FALSE | BF68: FALSE | BG68: FALSE | BH68: FALSE | BI68: FALSE | BJ68: FALSE | BK68: FALSE | BL68: FALSE | BM68: FALSE | BN68: FALSE | BO68: FALSE | BP68: FALSE | BQ68: FALSE | BR68: FALSE | BS68: FALSE | BT68: FALSE | BU68: FALSE | BV68: FALSE | BW68: FALSE | BX68: =IF(BX52,BX64+BX61) -> FALSE | BY68: FALSE | BZ68: FALSE | CA68: FALSE | CB68: FALSE | CC68: FALSE | CD68: FALSE | CE68: FALSE | CF68: FALSE | CG68: FALSE | CH68: FALSE | CI68: FALSE | CJ68: FALSE | CK68: FALSE | CL68: FALSE | CM68: FALSE | CN68: FALSE | CO68: FALSE | CP68: FALSE | CQ68: FALSE | CR68: FALSE | CS68: FALSE | CT68: FALSE | CU68: FALSE | CV68: FALSE | CW68: FALSE | CX68: FALSE | CY68: FALSE | CZ68: FALSE | DA68: FALSE | DB68: FALSE | DC68: FALSE | DD68: FALSE | DE68: FALSE | DF68: FALSE | DG68: FALSE | DH68: FALSE | DI68: FALSE | DJ68: FALSE | DK68: FALSE | DL68: FALSE | DM68: FALSE | DN68: FALSE | DO68: FALSE | DP68: FALSE | DQ68: FALSE | DR68: FALSE | DS68: FALSE | DT68: FALSE | DU68: FALSE | DV68: FALSE | DW68: FALSE | DX68: FALSE | DY68: FALSE | DZ68: FALSE | EA68: FALSE | EB68: FALSE | EC68: FALSE | ED68: FALSE | EE68: FALSE | EF68: FALSE | EG68: FALSE | EH68: FALSE | EI68: FALSE | EJ68: =IF(EJ52,EJ64+EJ61) -> FALSE | EK68: FALSE | EL68: FALSE | EM68: FALSE | EN68: FALSE | EO68: FALSE | EP68: FALSE | EQ68: FALSE | ER68: FALSE | ES68: FALSE | ET68: FALSE | EU68: FALSE | EV68: FALSE | EW68: FALSE | EX68: FALSE | EY68: FALSE | EZ68: FALSE | FA68: FALSE | FB68: FALSE | FC68: FALSE | FD68: FALSE | FE68: FALSE | FF68: FALSE | FG68: FALSE | FH68: FALSE | FI68: FALSE | FJ68: FALSE | FK68: FALSE | FL68: FALSE | FM68: FALSE | FN68: FALSE | FO68: FALSE | FP68: FALSE | FQ68: FALSE | FR68: FALSE | FS68: FALSE | FT68: FALSE | FU68: FALSE | FV68: FALSE | FW68: FALSE | FX68: FALSE | FY68: FALSE | FZ68: FALSE | GA68: FALSE | GB68: FALSE | GC68: FALSE | GD68: FALSE | GE68: FALSE | GF68: FALSE | GG68: FALSE | GH68: FALSE | GI68: FALSE | GJ68: FALSE | GK68: FALSE | GL68: FALSE | GM68: FALSE | GN68: FALSE | GO68: FALSE | GP68: FALSE | GQ68: FALSE | GR68: FALSE | GS68: FALSE | GT68: FALSE | GU68: FALSE | GV68: =IF(GV52,GV64+GV61) -> FALSE | GW68: FALSE | GX68: FALSE | GY68: FALSE | GZ68: FALSE | HA68: FALSE | HB68: FALSE | HC68: FALSE | HD68: FALSE | HE68: FALSE | HF68: FALSE | HG68: FALSE | HH68: FALSE | HI68: FALSE | HJ68: FALSE | HK68: FALSE | HL68: FALSE | HM68: FALSE | HN68: FALSE | HO68: FALSE | HP68: FALSE | HQ68: FALSE | HR68: FALSE | HS68: FALSE | HT68: FALSE | HU68: FALSE | HV68: FALSE | HW68: FALSE | HX68: FALSE | HY68: FALSE | HZ68: FALSE | IA68: FALSE | IB68: FALSE | IC68: FALSE | ID68: FALSE | IE68: FALSE | IF68: FALSE | IG68: FALSE | IH68: FALSE | II68: FALSE | IJ68: FALSE | IK68: FALSE | IL68: FALSE | IM68: FALSE | IN68: FALSE | IO68: FALSE | IP68: FALSE | IQ68: FALSE | IR68: FALSE | IS68: FALSE | IT68: FALSE | IU68: FALSE | IV68: FALSE | IW68: FALSE | IX68: FALSE | IY68: FALSE | IZ68: FALSE
D69: PV of Debt Service =Debt | F69: =NPV(G55,K68:IZ68) -> 800000 | I69: EUR
C71: Defaulted Debt
D72: Opening Balance | I72: EUR | K72: =J75 -> 0 | L72: =K75 -> 0 | M72: 0 | N72: 0 | O72: 0 | P72: 0 | Q72: 0 | R72: 0 | S72: 0 | T72: 0 | U72: 0 | V72: 0 | W72: 0 | X72: 0 | Y72: 0 | Z72: 0 | AA72: 0 | AB72: 0 | AC72: 0 | AD72: 0 | AE72: 0 | AF72: 0 | AG72: 0 | AH72: 0 | AI72: 0 | AJ72: 0 | AK72: 0 | AL72: 0 | AM72: 0 | AN72: 0 | AO72: 0 | AP72: 0 | AQ72: 0 | AR72: 0 | AS72: 0 | AT72: 0 | AU72: 0 | AV72: 0 | AW72: 0 | AX72: 0 | AY72: 0 | AZ72: 0 | BA72: 0 | BB72: 0 | BC72: 0 | BD72: 0 | BE72: 0 | BF72: 0 | BG72: 0 | BH72: 0 | BI72: 0 | BJ72: 0 | BK72: 0 | BL72: 0 | BM72: 0 | BN72: 0 | BO72: 0 | BP72: 0 | BQ72: 0 | BR72: 0 | BS72: 0 | BT72: 0 | BU72: 0 | BV72: 0 | BW72: 0 | BX72: =BW75 -> 0 | BY72: 0 | BZ72: 0 | CA72: 0 | CB72: 0 | CC72: 0 | CD72: 0 | CE72: 0 | CF72: 0 | CG72: 0 | CH72: 0 | CI72: 0 | CJ72: 0 | CK72: 0 | CL72: 0 | CM72: 0 | CN72: 0 | CO72: 0 | CP72: 0 | CQ72: 0 | CR72: 0 | CS72: 0 | CT72: 0 | CU72: 0 | CV72: 0 | CW72: 0 | CX72: 0 | CY72: 0 | CZ72: 0 | DA72: 0 | DB72: 0 | DC72: 0 | DD72: 0 | DE72: 0 | DF72: 0 | DG72: 0 | DH72: 0 | DI72: 0 | DJ72: 0 | DK72: 0 | DL72: 0 | DM72: 0 | DN72: 0 | DO72: 0 | DP72: 0 | DQ72: 0 | DR72: 0 | DS72: 0 | DT72: 0 | DU72: 0 | DV72: 0 | DW72: 0 | DX72: 0 | DY72: 0 | DZ72: 0 | EA72: 0 | EB72: 0 | EC72: 0 | ED72: 0 | EE72: 0 | EF72: 0 | EG72: 0 | EH72: 0 | EI72: 0 | EJ72: =EI75 -> 0 | EK72: 0 | EL72: 0 | EM72: 0 | EN72: 0 | EO72: 0 | EP72: 0 | EQ72: 0 | ER72: 0 | ES72: 0 | ET72: 0 | EU72: 0 | EV72: 0 | EW72: 0 | EX72: 0 | EY72: 0 | EZ72: 0 | FA72: 0 | FB72: 0 | FC72: 0 | FD72: 0 | FE72: 0 | FF72: 0 | FG72: 0 | FH72: 0 | FI72: 0 | FJ72: 0 | FK72: 0 | FL72: 0 | FM72: 0 | FN72: 0 | FO72: 0 | FP72: 0 | FQ72: 0 | FR72: 0 | FS72: 0 | FT72: 0 | FU72: 0 | FV72: 0 | FW72: 0 | FX72: 0 | FY72: 0 | FZ72: 0 | GA72: 0 | GB72: 0 | GC72: 0 | GD72: 0 | GE72: 0 | GF72: 0 | GG72: 0 | GH72: 0 | GI72: 0 | GJ72: 0 | GK72: 0 | GL72: 0 | GM72: 0 | GN72: 0 | GO72: 0 | GP72: 0 | GQ72: 0 | GR72: 0 | GS72: 0 | GT72: 0 | GU72: 0 | GV72: =GU75 -> 0 | GW72: 0 | GX72: 0 | GY72: 0 | GZ72: 0 | HA72: 0 | HB72: 0 | HC72: 0 | HD72: 0 | HE72: 0 | HF72: 0 | HG72: 0 | HH72: 0 | HI72: 0 | HJ72: 0 | HK72: 0 | HL72: 0 | HM72: 0 | HN72: 0 | HO72: 0 | HP72: 0 | HQ72: 0 | HR72: 0 | HS72: 0 | HT72: 0 | HU72: 0 | HV72: 0 | HW72: 0 | HX72: 0 | HY72: 0 | HZ72: 0 | IA72: 0 | IB72: 0 | IC72: 0 | ID72: 0 | IE72: 0 | IF72: 0 | IG72: 0 | IH72: 0 | II72: 0 | IJ72: 0 | IK72: 0 | IL72: 0 | IM72: 0 | IN72: 0 | IO72: 0 | IP72: 0 | IQ72: 0 | IR72: 0 | IS72: 0 | IT72: 0 | IU72: 0 | IV72: 0 | IW72: 0 | IX72: 0 | IY72: 0 | IZ72: 0
D73: Add: Defaulted Debt | I73: EUR | K73: =K86 -> 0 | L73: =L86 -> 0 | M73: 0 | N73: 0 | O73: 0 | P73: 0 | Q73: 0 | R73: 0 | S73: 0 | T73: 0 | U73: 0 | V73: 0 | W73: 0 | X73: 0 | Y73: 0 | Z73: 0 | AA73: 0 | AB73: 0 | AC73: 0 | AD73: 0 | AE73: 0 | AF73: 0 | AG73: 0 | AH73: 0 | AI73: 0 | AJ73: 0 | AK73: 0 | AL73: 0 | AM73: 0 | AN73: 0 | AO73: 0 | AP73: 0 | AQ73: 0 | AR73: 0 | AS73: 0 | AT73: 0 | AU73: 0 | AV73: 0 | AW73: 0 | AX73: 0 | AY73: 0 | AZ73: 0 | BA73: 0 | BB73: 0 | BC73: 0 | BD73: 0 | BE73: 0 | BF73: 0 | BG73: 0 | BH73: 0 | BI73: 0 | BJ73: 0 | BK73: 0 | BL73: 0 | BM73: 0 | BN73: 0 | BO73: 0 | BP73: 0 | BQ73: 0 | BR73: 0 | BS73: 0 | BT73: 0 | BU73: 0 | BV73: 0 | BW73: 0 | BX73: =BX86 -> 0 | BY73: 0 | BZ73: 0 | CA73: 0 | CB73: 0 | CC73: 0 | CD73: 0 | CE73: 0 | CF73: 0 | CG73: 0 | CH73: 0 | CI73: 0 | CJ73: 0 | CK73: 0 | CL73: 0 | CM73: 0 | CN73: 0 | CO73: 0 | CP73: 0 | CQ73: 0 | CR73: 0 | CS73: 0 | CT73: 0 | CU73: 0 | CV73: 0 | CW73: 0 | CX73: 0 | CY73: 0 | CZ73: 0 | DA73: 0 | DB73: 0 | DC73: 0 | DD73: 0 | DE73: 0 | DF73: 0 | DG73: 0 | DH73: 0 | DI73: 0 | DJ73: 0 | DK73: 0 | DL73: 0 | DM73: 0 | DN73: 0 | DO73: 0 | DP73: 0 | DQ73: 0 | DR73: 0 | DS73: 0 | DT73: 0 | DU73: 0 | DV73: 0 | DW73: 0 | DX73: 0 | DY73: 0 | DZ73: 0 | EA73: 0 | EB73: 0 | EC73: 0 | ED73: 0 | EE73: 0 | EF73: 0 | EG73: 0 | EH73: 0 | EI73: 0 | EJ73: =EJ86 -> 0 | EK73: 0 | EL73: 0 | EM73: 0 | EN73: 0 | EO73: 0 | EP73: 0 | EQ73: 0 | ER73: 0 | ES73: 0 | ET73: 0 | EU73: 0 | EV73: 0 | EW73: 0 | EX73: 0 | EY73: 0 | EZ73: 0 | FA73: 0 | FB73: 0 | FC73: 0 | FD73: 0 | FE73: 0 | FF73: 0 | FG73: 0 | FH73: 0 | FI73: 0 | FJ73: 0 | FK73: 0 | FL73: 0 | FM73: 0 | FN73: 0 | FO73: 0 | FP73: 0 | FQ73: 0 | FR73: 0 | FS73: 0 | FT73: 0 | FU73: 0 | FV73: 0 | FW73: 0 | FX73: 0 | FY73: 0 | FZ73: 0 | GA73: 0 | GB73: 0 | GC73: 0 | GD73: 0 | GE73: 0 | GF73: 0 | GG73: 0 | GH73: 0 | GI73: 0 | GJ73: 0 | GK73: 0 | GL73: 0 | GM73: 0 | GN73: 0 | GO73: 0 | GP73: 0 | GQ73: 0 | GR73: 0 | GS73: 0 | GT73: 0 | GU73: 0 | GV73: =GV86 -> 0 | GW73: 0 | GX73: 0 | GY73: 0 | GZ73: 0 | HA73: 0 | HB73: 0 | HC73: 0 | HD73: 0 | HE73: 0 | HF73: 0 | HG73: 0 | HH73: 0 | HI73: 0 | HJ73: 0 | HK73: 0 | HL73: 0 | HM73: 0 | HN73: 0 | HO73: 0 | HP73: 0 | HQ73: 0 | HR73: 0 | HS73: 0 | HT73: 0 | HU73: 0 | HV73: 0 | HW73: 0 | HX73: 0 | HY73: 0 | HZ73: 0 | IA73: 0 | IB73: 0 | IC73: 0 | ID73: 0 | IE73: 0 | IF73: 0 | IG73: 0 | IH73: 0 | II73: 0 | IJ73: 0 | IK73: 0 | IL73: 0 | IM73: 0 | IN73: 0 | IO73: 0 | IP73: 0 | IQ73: 0 | IR73: 0 | IS73: 0 | IT73: 0 | IU73: 0 | IV73: 0 | IW73: 0 | IX73: 0 | IY73: 0 | IZ73: 0
D74: Less: Repayment of Default | I74: EUR | K74: =K87 -> 0 | L74: =L87 -> 0 | M74: 0 | N74: 0 | O74: 0 | P74: 0 | Q74: 0 | R74: 0 | S74: 0 | T74: 0 | U74: 0 | V74: 0 | W74: 0 | X74: 0 | Y74: 0 | Z74: 0 | AA74: 0 | AB74: 0 | AC74: 0 | AD74: 0 | AE74: 0 | AF74: 0 | AG74: 0 | AH74: 0 | AI74: 0 | AJ74: 0 | AK74: 0 | AL74: 0 | AM74: 0 | AN74: 0 | AO74: 0 | AP74: 0 | AQ74: 0 | AR74: 0 | AS74: 0 | AT74: 0 | AU74: 0 | AV74: 0 | AW74: 0 | AX74: 0 | AY74: 0 | AZ74: 0 | BA74: 0 | BB74: 0 | BC74: 0 | BD74: 0 | BE74: 0 | BF74: 0 | BG74: 0 | BH74: 0 | BI74: 0 | BJ74: 0 | BK74: 0 | BL74: 0 | BM74: 0 | BN74: 0 | BO74: 0 | BP74: 0 | BQ74: 0 | BR74: 0 | BS74: 0 | BT74: 0 | BU74: 0 | BV74: 0 | BW74: 0 | BX74: =BX87 -> 0 | BY74: 0 | BZ74: 0 | CA74: 0 | CB74: 0 | CC74: 0 | CD74: 0 | CE74: 0 | CF74: 0 | CG74: 0 | CH74: 0 | CI74: 0 | CJ74: 0 | CK74: 0 | CL74: 0 | CM74: 0 | CN74: 0 | CO74: 0 | CP74: 0 | CQ74: 0 | CR74: 0 | CS74: 0 | CT74: 0 | CU74: 0 | CV74: 0 | CW74: 0 | CX74: 0 | CY74: 0 | CZ74: 0 | DA74: 0 | DB74: 0 | DC74: 0 | DD74: 0 | DE74: 0 | DF74: 0 | DG74: 0 | DH74: 0 | DI74: 0 | DJ74: 0 | DK74: 0 | DL74: 0 | DM74: 0 | DN74: 0 | DO74: 0 | DP74: 0 | DQ74: 0 | DR74: 0 | DS74: 0 | DT74: 0 | DU74: 0 | DV74: 0 | DW74: 0 | DX74: 0 | DY74: 0 | DZ74: 0 | EA74: 0 | EB74: 0 | EC74: 0 | ED74: 0 | EE74: 0 | EF74: 0 | EG74: 0 | EH74: 0 | EI74: 0 | EJ74: =EJ87 -> 0 | EK74: 0 | EL74: 0 | EM74: 0 | EN74: 0 | EO74: 0 | EP74: 0 | EQ74: 0 | ER74: 0 | ES74: 0 | ET74: 0 | EU74: 0 | EV74: 0 | EW74: 0 | EX74: 0 | EY74: 0 | EZ74: 0 | FA74: 0 | FB74: 0 | FC74: 0 | FD74: 0 | FE74: 0 | FF74: 0 | FG74: 0 | FH74: 0 | FI74: 0 | FJ74: 0 | FK74: 0 | FL74: 0 | FM74: 0 | FN74: 0 | FO74: 0 | FP74: 0 | FQ74: 0 | FR74: 0 | FS74: 0 | FT74: 0 | FU74: 0 | FV74: 0 | FW74: 0 | FX74: 0 | FY74: 0 | FZ74: 0 | GA74: 0 | GB74: 0 | GC74: 0 | GD74: 0 | GE74: 0 | GF74: 0 | GG74: 0 | GH74: 0 | GI74: 0 | GJ74: 0 | GK74: 0 | GL74: 0 | GM74: 0 | GN74: 0 | GO74: 0 | GP74: 0 | GQ74: 0 | GR74: 0 | GS74: 0 | GT74: 0 | GU74: 0 | GV74: =GV87 -> 0 | GW74: 0 | GX74: 0 | GY74: 0 | GZ74: 0 | HA74: 0 | HB74: 0 | HC74: 0 | HD74: 0 | HE74: 0 | HF74: 0 | HG74: 0 | HH74: 0 | HI74: 0 | HJ74: 0 | HK74: 0 | HL74: 0 | HM74: 0 | HN74: 0 | HO74: 0 | HP74: 0 | HQ74: 0 | HR74: 0 | HS74: 0 | HT74: 0 | HU74: 0 | HV74: 0 | HW74: 0 | HX74: 0 | HY74: 0 | HZ74: 0 | IA74: 0 | IB74: 0 | IC74: 0 | ID74: 0 | IE74: 0 | IF74: 0 | IG74: 0 | IH74: 0 | II74: 0 | IJ74: 0 | IK74: 0 | IL74: 0 | IM74: 0 | IN74: 0 | IO74: 0 | IP74: 0 | IQ74: 0 | IR74: 0 | IS74: 0 | IT74: 0 | IU74: 0 | IV74: 0 | IW74: 0 | IX74: 0 | IY74: 0 | IZ74: 0
D75: Closing Balance | I75: EUR | K75: =(K72+K73-K74)*K9 -> 0 | L75: =(L72+L73-L74)*L9 -> 0 | M75: 0 | N75: 0 | O75: 0 | P75: 0 | Q75: 0 | R75: 0 | S75: 0 | T75: 0 | U75: 0 | V75: 0 | W75: 0 | X75: 0 | Y75: 0 | Z75: 0 | AA75: 0 | AB75: 0 | AC75: 0 | AD75: 0 | AE75: 0 | AF75: 0 | AG75: 0 | AH75: 0 | AI75: 0 | AJ75: 0 | AK75: 0 | AL75: 0 | AM75: 0 | AN75: 0 | AO75: 0 | AP75: 0 | AQ75: 0 | AR75: 0 | AS75: 0 | AT75: 0 | AU75: 0 | AV75: 0 | AW75: 0 | AX75: 0 | AY75: 0 | AZ75: 0 | BA75: 0 | BB75: 0 | BC75: 0 | BD75: 0 | BE75: 0 | BF75: 0 | BG75: 0 | BH75: 0 | BI75: 0 | BJ75: 0 | BK75: 0 | BL75: 0 | BM75: 0 | BN75: 0 | BO75: 0 | BP75: 0 | BQ75: 0 | BR75: 0 | BS75: 0 | BT75: 0 | BU75: 0 | BV75: 0 | BW75: 0 | BX75: =(BX72+BX73-BX74)*BX9 -> 0 | BY75: 0 | BZ75: 0 | CA75: 0 | CB75: 0 | CC75: 0 | CD75: 0 | CE75: 0 | CF75: 0 | CG75: 0 | CH75: 0 | CI75: 0 | CJ75: 0 | CK75: 0 | CL75: 0 | CM75: 0 | CN75: 0 | CO75: 0 | CP75: 0 | CQ75: 0 | CR75: 0 | CS75: 0 | CT75: 0 | CU75: 0 | CV75: 0 | CW75: 0 | CX75: 0 | CY75: 0 | CZ75: 0 | DA75: 0 | DB75: 0 | DC75: 0 | DD75: 0 | DE75: 0 | DF75: 0 | DG75: 0 | DH75: 0 | DI75: 0 | DJ75: 0 | DK75: 0 | DL75: 0 | DM75: 0 | DN75: 0 | DO75: 0 | DP75: 0 | DQ75: 0 | DR75: 0 | DS75: 0 | DT75: 0 | DU75: 0 | DV75: 0 | DW75: 0 | DX75: 0 | DY75: 0 | DZ75: 0 | EA75: 0 | EB75: 0 | EC75: 0 | ED75: 0 | EE75: 0 | EF75: 0 | EG75: 0 | EH75: 0 | EI75: 0 | EJ75: =(EJ72+EJ73-EJ74)*EJ9 -> 0 | EK75: 0 | EL75: 0 | EM75: 0 | EN75: 0 | EO75: 0 | EP75: 0 | EQ75: 0 | ER75: 0 | ES75: 0 | ET75: 0 | EU75: 0 | EV75: 0 | EW75: 0 | EX75: 0 | EY75: 0 | EZ75: 0 | FA75: 0 | FB75: 0 | FC75: 0 | FD75: 0 | FE75: 0 | FF75: 0 | FG75: 0 | FH75: 0 | FI75: 0 | FJ75: 0 | FK75: 0 | FL75: 0 | FM75: 0 | FN75: 0 | FO75: 0 | FP75: 0 | FQ75: 0 | FR75: 0 | FS75: 0 | FT75: 0 | FU75: 0 | FV75: 0 | FW75: 0 | FX75: 0 | FY75: 0 | FZ75: 0 | GA75: 0 | GB75: 0 | GC75: 0 | GD75: 0 | GE75: 0 | GF75: 0 | GG75: 0 | GH75: 0 | GI75: 0 | GJ75: 0 | GK75: 0 | GL75: 0 | GM75: 0 | GN75: 0 | GO75: 0 | GP75: 0 | GQ75: 0 | GR75: 0 | GS75: 0 | GT75: 0 | GU75: 0 | GV75: =(GV72+GV73-GV74)*GV9 -> 0 | GW75: 0 | GX75: 0 | GY75: 0 | GZ75: 0 | HA75: 0 | HB75: 0 | HC75: 0 | HD75: 0 | HE75: 0 | HF75: 0 | HG75: 0 | HH75: 0 | HI75: 0 | HJ75: 0 | HK75: 0 | HL75: 0 | HM75: 0 | HN75: 0 | HO75: 0 | HP75: 0 | HQ75: 0 | HR75: 0 | HS75: 0 | HT75: 0 | HU75: 0 | HV75: 0 | HW75: 0 | HX75: 0 | HY75: 0 | HZ75: 0 | IA75: 0 | IB75: 0 | IC75: 0 | ID75: 0 | IE75: 0 | IF75: 0 | IG75: 0 | IH75: 0 | II75: 0 | IJ75: 0 | IK75: 0 | IL75: 0 | IM75: 0 | IN75: 0 | IO75: 0 | IP75: 0 | IQ75: 0 | IR75: 0 | IS75: 0 | IT75: 0 | IU75: 0 | IV75: 0 | IW75: 0 | IX75: 0 | IY75: 0 | IZ75: 0
D76: Interest on Default | I76: EUR | K76: =K72*K63 -> 0 | L76: =L72*L63 -> 0 | M76: 0 | N76: 0 | O76: 0 | P76: 0 | Q76: 0 | R76: 0 | S76: 0 | T76: 0 | U76: 0 | V76: 0 | W76: 0 | X76: 0 | Y76: 0 | Z76: 0 | AA76: 0 | AB76: 0 | AC76: 0 | AD76: 0 | AE76: 0 | AF76: 0 | AG76: 0 | AH76: 0 | AI76: 0 | AJ76: 0 | AK76: 0 | AL76: 0 | AM76: 0 | AN76: 0 | AO76: 0 | AP76: 0 | AQ76: 0 | AR76: 0 | AS76: 0 | AT76: 0 | AU76: 0 | AV76: 0 | AW76: 0 | AX76: 0 | AY76: 0 | AZ76: 0 | BA76: 0 | BB76: 0 | BC76: 0 | BD76: 0 | BE76: 0 | BF76: 0 | BG76: 0 | BH76: 0 | BI76: 0 | BJ76: 0 | BK76: 0 | BL76: 0 | BM76: 0 | BN76: 0 | BO76: 0 | BP76: 0 | BQ76: 0 | BR76: 0 | BS76: 0 | BT76: 0 | BU76: 0 | BV76: 0 | BW76: 0 | BX76: =BX72*BX63 -> 0 | BY76: 0 | BZ76: 0 | CA76: 0 | CB76: 0 | CC76: 0 | CD76: 0 | CE76: 0 | CF76: 0 | CG76: 0 | CH76: 0 | CI76: 0 | CJ76: 0 | CK76: 0 | CL76: 0 | CM76: 0 | CN76: 0 | CO76: 0 | CP76: 0 | CQ76: 0 | CR76: 0 | CS76: 0 | CT76: 0 | CU76: 0 | CV76: 0 | CW76: 0 | CX76: 0 | CY76: 0 | CZ76: 0 | DA76: 0 | DB76: 0 | DC76: 0 | DD76: 0 | DE76: 0 | DF76: 0 | DG76: 0 | DH76: 0 | DI76: 0 | DJ76: 0 | DK76: 0 | DL76: 0 | DM76: 0 | DN76: 0 | DO76: 0 | DP76: 0 | DQ76: 0 | DR76: 0 | DS76: 0 | DT76: 0 | DU76: 0 | DV76: 0 | DW76: 0 | DX76: 0 | DY76: 0 | DZ76: 0 | EA76: 0 | EB76: 0 | EC76: 0 | ED76: 0 | EE76: 0 | EF76: 0 | EG76: 0 | EH76: 0 | EI76: 0 | EJ76: =EJ72*EJ63 -> 0 | EK76: 0 | EL76: 0 | EM76: 0 | EN76: 0 | EO76: 0 | EP76: 0 | EQ76: 0 | ER76: 0 | ES76: 0 | ET76: 0 | EU76: 0 | EV76: 0 | EW76: 0 | EX76: 0 | EY76: 0 | EZ76: 0 | FA76: 0 | FB76: 0 | FC76: 0 | FD76: 0 | FE76: 0 | FF76: 0 | FG76: 0 | FH76: 0 | FI76: 0 | FJ76: 0 | FK76: 0 | FL76: 0 | FM76: 0 | FN76: 0 | FO76: 0 | FP76: 0 | FQ76: 0 | FR76: 0 | FS76: 0 | FT76: 0 | FU76: 0 | FV76: 0 | FW76: 0 | FX76: 0 | FY76: 0 | FZ76: 0 | GA76: 0 | GB76: 0 | GC76: 0 | GD76: 0 | GE76: 0 | GF76: 0 | GG76: 0 | GH76: 0 | GI76: 0 | GJ76: 0 | GK76: 0 | GL76: 0 | GM76: 0 | GN76: 0 | GO76: 0 | GP76: 0 | GQ76: 0 | GR76: 0 | GS76: 0 | GT76: 0 | GU76: 0 | GV76: =GV72*GV63 -> 0 | GW76: 0 | GX76: 0 | GY76: 0 | GZ76: 0 | HA76: 0 | HB76: 0 | HC76: 0 | HD76: 0 | HE76: 0 | HF76: 0 | HG76: 0 | HH76: 0 | HI76: 0 | HJ76: 0 | HK76: 0 | HL76: 0 | HM76: 0 | HN76: 0 | HO76: 0 | HP76: 0 | HQ76: 0 | HR76: 0 | HS76: 0 | HT76: 0 | HU76: 0 | HV76: 0 | HW76: 0 | HX76: 0 | HY76: 0 | HZ76: 0 | IA76: 0 | IB76: 0 | IC76: 0 | ID76: 0 | IE76: 0 | IF76: 0 | IG76: 0 | IH76: 0 | II76: 0 | IJ76: 0 | IK76: 0 | IL76: 0 | IM76: 0 | IN76: 0 | IO76: 0 | IP76: 0 | IQ76: 0 | IR76: 0 | IS76: 0 | IT76: 0 | IU76: 0 | IV76: 0 | IW76: 0 | IX76: 0 | IY76: 0 | IZ76: 0
D78: Default at Maturity | F78: =_xlfn.XLOOKUP(H9,10:10,75:75,0,-1) -> 0 | I78: EUR
B80: Cash Waterfall
D82: EBITDA | I82: EUR | K82: =K27 -> 0 | L82: 100000 | M82: 100000 | N82: 100000 | O82: 100000 | P82: 100000 | Q82: 100000 | R82: 100000 | S82: 100000 | T82: 100000 | U82: 100000 | V82: 100000 | W82: 100000 | X82: 100000 | Y82: 100000 | Z82: 100000 | AA82: 100000 | AB82: 100000 | AC82: 100000 | AD82: 100000 | AE82: 100000 | AF82: 100000 | AG82: 100000 | AH82: 100000 | AI82: 100000 | AJ82: 100000 | AK82: 100000 | AL82: 100000 | AM82: 100000 | AN82: 100000 | AO82: 100000 | AP82: 0 | AQ82: 0 | AR82: 0 | AS82: 0 | AT82: 0 | AU82: 0 | AV82: 0 | AW82: 0 | AX82: 0 | AY82: 0 | AZ82: 0 | BA82: 0 | BB82: 0 | BC82: 0 | BD82: 0 | BE82: 0 | BF82: 0 | BG82: 0 | BH82: 0 | BI82: 0 | BJ82: 0 | BK82: 0 | BL82: 0 | BM82: 0 | BN82: 0 | BO82: 0 | BP82: 0 | BQ82: 0 | BR82: 0 | BS82: 0 | BT82: 0 | BU82: 0 | BV82: 0 | BW82: =BW27 -> 0 | BX82: 0 | BY82: 0 | BZ82: 0 | CA82: 0 | CB82: 0 | CC82: 0 | CD82: 0 | CE82: 0 | CF82: 0 | CG82: 0 | CH82: 0 | CI82: 0 | CJ82: 0 | CK82: 0 | CL82: 0 | CM82: 0 | CN82: 0 | CO82: 0 | CP82: 0 | CQ82: 0 | CR82: 0 | CS82: 0 | CT82: 0 | CU82: 0 | CV82: 0 | CW82: 0 | CX82: 0 | CY82: 0 | CZ82: 0 | DA82: 0 | DB82: 0 | DC82: 0 | DD82: 0 | DE82: 0 | DF82: 0 | DG82: 0 | DH82: 0 | DI82: 0 | DJ82: 0 | DK82: 0 | DL82: 0 | DM82: 0 | DN82: 0 | DO82: 0 | DP82: 0 | DQ82: 0 | DR82: 0 | DS82: 0 | DT82: 0 | DU82: 0 | DV82: 0 | DW82: 0 | DX82: 0 | DY82: 0 | DZ82: 0 | EA82: 0 | EB82: 0 | EC82: 0 | ED82: 0 | EE82: 0 | EF82: 0 | EG82: 0 | EH82: 0 | EI82: =EI27 -> 0 | EJ82: 0 | EK82: 0 | EL82: 0 | EM82: 0 | EN82: 0 | EO82: 0 | EP82: 0 | EQ82: 0 | ER82: 0 | ES82: 0 | ET82: 0 | EU82: 0 | EV82: 0 | EW82: 0 | EX82: 0 | EY82: 0 | EZ82: 0 | FA82: 0 | FB82: 0 | FC82: 0 | FD82: 0 | FE82: 0 | FF82: 0 | FG82: 0 | FH82: 0 | FI82: 0 | FJ82: 0 | FK82: 0 | FL82: 0 | FM82: 0 | FN82: 0 | FO82: 0 | FP82: 0 | FQ82: 0 | FR82: 0 | FS82: 0 | FT82: 0 | FU82: 0 | FV82: 0 | FW82: 0 | FX82: 0 | FY82: 0 | FZ82: 0 | GA82: 0 | GB82: 0 | GC82: 0 | GD82: 0 | GE82: 0 | GF82: 0 | GG82: 0 | GH82: 0 | GI82: 0 | GJ82: 0 | GK82: 0 | GL82: 0 | GM82: 0 | GN82: 0 | GO82: 0 | GP82: 0 | GQ82: 0 | GR82: 0 | GS82: 0 | GT82: 0 | GU82: =GU27 -> 0 | GV82: 0 | GW82: 0 | GX82: 0 | GY82: 0 | GZ82: 0 | HA82: 0 | HB82: 0 | HC82: 0 | HD82: 0 | HE82: 0 | HF82: 0 | HG82: 0 | HH82: 0 | HI82: 0 | HJ82: 0 | HK82: 0 | HL82: 0 | HM82: 0 | HN82: 0 | HO82: 0 | HP82: 0 | HQ82: 0 | HR82: 0 | HS82: 0 | HT82: 0 | HU82: 0 | HV82: 0 | HW82: 0 | HX82: 0 | HY82: 0 | HZ82: 0 | IA82: 0 | IB82: 0 | IC82: 0 | ID82: 0 | IE82: 0 | IF82: 0 | IG82: 0 | IH82: 0 | II82: 0 | IJ82: 0 | IK82: 0 | IL82: 0 | IM82: 0 | IN82: 0 | IO82: 0 | IP82: 0 | IQ82: 0 | IR82: 0 | IS82: 0 | IT82: 0 | IU82: 0 | IV82: 0 | IW82: 0 | IX82: 0 | IY82: 0 | IZ82: 0
D83: Less: Debt Service | I83: EUR | K83: =(K68)*1 -> 0 | L83: 61500.91546 | M83: 61500.91546 | N83: 61500.91546 | O83: 61500.91546 | P83: 61500.91546 | Q83: 61500.91546 | R83: 61500.91546 | S83: 61500.91546 | T83: 61500.91546 | U83: 61500.91546 | V83: 61500.91546 | W83: 61500.91546 | X83: 61500.91546 | Y83: 61500.91546 | Z83: 61500.91546 | AA83: 61500.91546 | AB83: 61500.91546 | AC83: 61500.91546 | AD83: 61500.91546 | AE83: 61500.91546 | AF83: 0 | AG83: 0 | AH83: 0 | AI83: 0 | AJ83: 0 | AK83: 0 | AL83: 0 | AM83: 0 | AN83: 0 | AO83: 0 | AP83: 0 | AQ83: 0 | AR83: 0 | AS83: 0 | AT83: 0 | AU83: 0 | AV83: 0 | AW83: 0 | AX83: 0 | AY83: 0 | AZ83: 0 | BA83: 0 | BB83: 0 | BC83: 0 | BD83: 0 | BE83: 0 | BF83: 0 | BG83: 0 | BH83: 0 | BI83: 0 | BJ83: 0 | BK83: 0 | BL83: 0 | BM83: 0 | BN83: 0 | BO83: 0 | BP83: 0 | BQ83: 0 | BR83: 0 | BS83: 0 | BT83: 0 | BU83: 0 | BV83: 0 | BW83: =(BW68)*1 -> 0 | BX83: 0 | BY83: 0 | BZ83: 0 | CA83: 0 | CB83: 0 | CC83: 0 | CD83: 0 | CE83: 0 | CF83: 0 | CG83: 0 | CH83: 0 | CI83: 0 | CJ83: 0 | CK83: 0 | CL83: 0 | CM83: 0 | CN83: 0 | CO83: 0 | CP83: 0 | CQ83: 0 | CR83: 0 | CS83: 0 | CT83: 0 | CU83: 0 | CV83: 0 | CW83: 0 | CX83: 0 | CY83: 0 | CZ83: 0 | DA83: 0 | DB83: 0 | DC83: 0 | DD83: 0 | DE83: 0 | DF83: 0 | DG83: 0 | DH83: 0 | DI83: 0 | DJ83: 0 | DK83: 0 | DL83: 0 | DM83: 0 | DN83: 0 | DO83: 0 | DP83: 0 | DQ83: 0 | DR83: 0 | DS83: 0 | DT83: 0 | DU83: 0 | DV83: 0 | DW83: 0 | DX83: 0 | DY83: 0 | DZ83: 0 | EA83: 0 | EB83: 0 | EC83: 0 | ED83: 0 | EE83: 0 | EF83: 0 | EG83: 0 | EH83: 0 | EI83: =(EI68)*1 -> 0 | EJ83: 0 | EK83: 0 | EL83: 0 | EM83: 0 | EN83: 0 | EO83: 0 | EP83: 0 | EQ83: 0 | ER83: 0 | ES83: 0 | ET83: 0 | EU83: 0 | EV83: 0 | EW83: 0 | EX83: 0 | EY83: 0 | EZ83: 0 | FA83: 0 | FB83: 0 | FC83: 0 | FD83: 0 | FE83: 0 | FF83: 0 | FG83: 0 | FH83: 0 | FI83: 0 | FJ83: 0 | FK83: 0 | FL83: 0 | FM83: 0 | FN83: 0 | FO83: 0 | FP83: 0 | FQ83: 0 | FR83: 0 | FS83: 0 | FT83: 0 | FU83: 0 | FV83: 0 | FW83: 0 | FX83: 0 | FY83: 0 | FZ83: 0 | GA83: 0 | GB83: 0 | GC83: 0 | GD83: 0 | GE83: 0 | GF83: 0 | GG83: 0 | GH83: 0 | GI83: 0 | GJ83: 0 | GK83: 0 | GL83: 0 | GM83: 0 | GN83: 0 | GO83: 0 | GP83: 0 | GQ83: 0 | GR83: 0 | GS83: 0 | GT83: 0 | GU83: =(GU68)*1 -> 0 | GV83: 0 | GW83: 0 | GX83: 0 | GY83: 0 | GZ83: 0 | HA83: 0 | HB83: 0 | HC83: 0 | HD83: 0 | HE83: 0 | HF83: 0 | HG83: 0 | HH83: 0 | HI83: 0 | HJ83: 0 | HK83: 0 | HL83: 0 | HM83: 0 | HN83: 0 | HO83: 0 | HP83: 0 | HQ83: 0 | HR83: 0 | HS83: 0 | HT83: 0 | HU83: 0 | HV83: 0 | HW83: 0 | HX83: 0 | HY83: 0 | HZ83: 0 | IA83: 0 | IB83: 0 | IC83: 0 | ID83: 0 | IE83: 0 | IF83: 0 | IG83: 0 | IH83: 0 | II83: 0 | IJ83: 0 | IK83: 0 | IL83: 0 | IM83: 0 | IN83: 0 | IO83: 0 | IP83: 0 | IQ83: 0 | IR83: 0 | IS83: 0 | IT83: 0 | IU83: 0 | IV83: 0 | IW83: 0 | IX83: 0 | IY83: 0 | IZ83: 0
D84: Less: Interest on Default | I84: EUR | K84: =K76 -> 0 | L84: 0 | M84: 0 | N84: 0 | O84: 0 | P84: 0 | Q84: 0 | R84: 0 | S84: 0 | T84: 0 | U84: 0 | V84: 0 | W84: 0 | X84: 0 | Y84: 0 | Z84: 0 | AA84: 0 | AB84: 0 | AC84: 0 | AD84: 0 | AE84: 0 | AF84: 0 | AG84: 0 | AH84: 0 | AI84: 0 | AJ84: 0 | AK84: 0 | AL84: 0 | AM84: 0 | AN84: 0 | AO84: 0 | AP84: 0 | AQ84: 0 | AR84: 0 | AS84: 0 | AT84: 0 | AU84: 0 | AV84: 0 | AW84: 0 | AX84: 0 | AY84: 0 | AZ84: 0 | BA84: 0 | BB84: 0 | BC84: 0 | BD84: 0 | BE84: 0 | BF84: 0 | BG84: 0 | BH84: 0 | BI84: 0 | BJ84: 0 | BK84: 0 | BL84: 0 | BM84: 0 | BN84: 0 | BO84: 0 | BP84: 0 | BQ84: 0 | BR84: 0 | BS84: 0 | BT84: 0 | BU84: 0 | BV84: 0 | BW84: =BW76 -> 0 | BX84: 0 | BY84: 0 | BZ84: 0 | CA84: 0 | CB84: 0 | CC84: 0 | CD84: 0 | CE84: 0 | CF84: 0 | CG84: 0 | CH84: 0 | CI84: 0 | CJ84: 0 | CK84: 0 | CL84: 0 | CM84: 0 | CN84: 0 | CO84: 0 | CP84: 0 | CQ84: 0 | CR84: 0 | CS84: 0 | CT84: 0 | CU84: 0 | CV84: 0 | CW84: 0 | CX84: 0 | CY84: 0 | CZ84: 0 | DA84: 0 | DB84: 0 | DC84: 0 | DD84: 0 | DE84: 0 | DF84: 0 | DG84: 0 | DH84: 0 | DI84: 0 | DJ84: 0 | DK84: 0 | DL84: 0 | DM84: 0 | DN84: 0 | DO84: 0 | DP84: 0 | DQ84: 0 | DR84: 0 | DS84: 0 | DT84: 0 | DU84: 0 | DV84: 0 | DW84: 0 | DX84: 0 | DY84: 0 | DZ84: 0 | EA84: 0 | EB84: 0 | EC84: 0 | ED84: 0 | EE84: 0 | EF84: 0 | EG84: 0 | EH84: 0 | EI84: =EI76 -> 0 | EJ84: 0 | EK84: 0 | EL84: 0 | EM84: 0 | EN84: 0 | EO84: 0 | EP84: 0 | EQ84: 0 | ER84: 0 | ES84: 0 | ET84: 0 | EU84: 0 | EV84: 0 | EW84: 0 | EX84: 0 | EY84: 0 | EZ84: 0 | FA84: 0 | FB84: 0 | FC84: 0 | FD84: 0 | FE84: 0 | FF84: 0 | FG84: 0 | FH84: 0 | FI84: 0 | FJ84: 0 | FK84: 0 | FL84: 0 | FM84: 0 | FN84: 0 | FO84: 0 | FP84: 0 | FQ84: 0 | FR84: 0 | FS84: 0 | FT84: 0 | FU84: 0 | FV84: 0 | FW84: 0 | FX84: 0 | FY84: 0 | FZ84: 0 | GA84: 0 | GB84: 0 | GC84: 0 | GD84: 0 | GE84: 0 | GF84: 0 | GG84: 0 | GH84: 0 | GI84: 0 | GJ84: 0 | GK84: 0 | GL84: 0 | GM84: 0 | GN84: 0 | GO84: 0 | GP84: 0 | GQ84: 0 | GR84: 0 | GS84: 0 | GT84: 0 | GU84: =GU76 -> 0 | GV84: 0 | GW84: 0 | GX84: 0 | GY84: 0 | GZ84: 0 | HA84: 0 | HB84: 0 | HC84: 0 | HD84: 0 | HE84: 0 | HF84: 0 | HG84: 0 | HH84: 0 | HI84: 0 | HJ84: 0 | HK84: 0 | HL84: 0 | HM84: 0 | HN84: 0 | HO84: 0 | HP84: 0 | HQ84: 0 | HR84: 0 | HS84: 0 | HT84: 0 | HU84: 0 | HV84: 0 | HW84: 0 | HX84: 0 | HY84: 0 | HZ84: 0 | IA84: 0 | IB84: 0 | IC84: 0 | ID84: 0 | IE84: 0 | IF84: 0 | IG84: 0 | IH84: 0 | II84: 0 | IJ84: 0 | IK84: 0 | IL84: 0 | IM84: 0 | IN84: 0 | IO84: 0 | IP84: 0 | IQ84: 0 | IR84: 0 | IS84: 0 | IT84: 0 | IU84: 0 | IV84: 0 | IW84: 0 | IX84: 0 | IY84: 0 | IZ84: 0
D85: Cash Flow After Debt Service | I85: EUR | K85: =K82-K83-K84 -> 0 | L85: =L82-L83-L84 -> 38499.08454 | M85: 38499.08454 | N85: 38499.08454 | O85: 38499.08454 | P85: 38499.08454 | Q85: 38499.08454 | R85: 38499.08454 | S85: 38499.08454 | T85: 38499.08454 | U85: 38499.08454 | V85: 38499.08454 | W85: 38499.08454 | X85: 38499.08454 | Y85: 38499.08454 | Z85: 38499.08454 | AA85: 38499.08454 | AB85: 38499.08454 | AC85: 38499.08454 | AD85: 38499.08454 | AE85: 38499.08454 | AF85: 100000 | AG85: 100000 | AH85: 100000 | AI85: 100000 | AJ85: 100000 | AK85: 100000 | AL85: 100000 | AM85: 100000 | AN85: 100000 | AO85: 100000 | AP85: 0 | AQ85: 0 | AR85: 0 | AS85: 0 | AT85: 0 | AU85: 0 | AV85: 0 | AW85: 0 | AX85: 0 | AY85: 0 | AZ85: 0 | BA85: 0 | BB85: 0 | BC85: 0 | BD85: 0 | BE85: 0 | BF85: 0 | BG85: 0 | BH85: 0 | BI85: 0 | BJ85: 0 | BK85: 0 | BL85: 0 | BM85: 0 | BN85: 0 | BO85: 0 | BP85: 0 | BQ85: 0 | BR85: 0 | BS85: 0 | BT85: 0 | BU85: 0 | BV85: 0 | BW85: 0 | BX85: =BX82-BX83-BX84 -> 0 | BY85: 0 | BZ85: 0 | CA85: 0 | CB85: 0 | CC85: 0 | CD85: 0 | CE85: 0 | CF85: 0 | CG85: 0 | CH85: 0 | CI85: 0 | CJ85: 0 | CK85: 0 | CL85: 0 | CM85: 0 | CN85: 0 | CO85: 0 | CP85: 0 | CQ85: 0 | CR85: 0 | CS85: 0 | CT85: 0 | CU85: 0 | CV85: 0 | CW85: 0 | CX85: 0 | CY85: 0 | CZ85: 0 | DA85: 0 | DB85: 0 | DC85: 0 | DD85: 0 | DE85: 0 | DF85: 0 | DG85: 0 | DH85: 0 | DI85: 0 | DJ85: 0 | DK85: 0 | DL85: 0 | DM85: 0 | DN85: 0 | DO85: 0 | DP85: 0 | DQ85: 0 | DR85: 0 | DS85: 0 | DT85: 0 | DU85: 0 | DV85: 0 | DW85: 0 | DX85: 0 | DY85: 0 | DZ85: 0 | EA85: 0 | EB85: 0 | EC85: 0 | ED85: 0 | EE85: 0 | EF85: 0 | EG85: 0 | EH85: 0 | EI85: 0 | EJ85: =EJ82-EJ83-EJ84 -> 0 | EK85: 0 | EL85: 0 | EM85: 0 | EN85: 0 | EO85: 0 | EP85: 0 | EQ85: 0 | ER85: 0 | ES85: 0 | ET85: 0 | EU85: 0 | EV85: 0 | EW85: 0 | EX85: 0 | EY85: 0 | EZ85: 0 | FA85: 0 | FB85: 0 | FC85: 0 | FD85: 0 | FE85: 0 | FF85: 0 | FG85: 0 | FH85: 0 | FI85: 0 | FJ85: 0 | FK85: 0 | FL85: 0 | FM85: 0 | FN85: 0 | FO85: 0 | FP85: 0 | FQ85: 0 | FR85: 0 | FS85: 0 | FT85: 0 | FU85: 0 | FV85: 0 | FW85: 0 | FX85: 0 | FY85: 0 | FZ85: 0 | GA85: 0 | GB85: 0 | GC85: 0 | GD85: 0 | GE85: 0 | GF85: 0 | GG85: 0 | GH85: 0 | GI85: 0 | GJ85: 0 | GK85: 0 | GL85: 0 | GM85: 0 | GN85: 0 | GO85: 0 | GP85: 0 | GQ85: 0 | GR85: 0 | GS85: 0 | GT85: 0 | GU85: 0 | GV85: =GV82-GV83-GV84 -> 0 | GW85: 0 | GX85: 0 | GY85: 0 | GZ85: 0 | HA85: 0 | HB85: 0 | HC85: 0 | HD85: 0 | HE85: 0 | HF85: 0 | HG85: 0 | HH85: 0 | HI85: 0 | HJ85: 0 | HK85: 0 | HL85: 0 | HM85: 0 | HN85: 0 | HO85: 0 | HP85: 0 | HQ85: 0 | HR85: 0 | HS85: 0 | HT85: 0 | HU85: 0 | HV85: 0 | HW85: 0 | HX85: 0 | HY85: 0 | HZ85: 0 | IA85: 0 | IB85: 0 | IC85: 0 | ID85: 0 | IE85: 0 | IF85: 0 | IG85: 0 | IH85: 0 | II85: 0 | IJ85: 0 | IK85: 0 | IL85: 0 | IM85: 0 | IN85: 0 | IO85: 0 | IP85: 0 | IQ85: 0 | IR85: 0 | IS85: 0 | IT85: 0 | IU85: 0 | IV85: 0 | IW85: 0 | IX85: 0 | IY85: 0 | IZ85: 0
D86: Add: Default | I86: EUR | K86: =MAX(-K85,0) -> 0 | L86: =MAX(-L85,0) -> 0 | M86: 0 | N86: 0 | O86: 0 | P86: 0 | Q86: 0 | R86: 0 | S86: 0 | T86: 0 | U86: 0 | V86: 0 | W86: 0 | X86: 0 | Y86: 0 | Z86: 0 | AA86: 0 | AB86: 0 | AC86: 0 | AD86: 0 | AE86: 0 | AF86: 0 | AG86: 0 | AH86: 0 | AI86: 0 | AJ86: 0 | AK86: 0 | AL86: 0 | AM86: 0 | AN86: 0 | AO86: 0 | AP86: 0 | AQ86: 0 | AR86: 0 | AS86: 0 | AT86: 0 | AU86: 0 | AV86: 0 | AW86: 0 | AX86: 0 | AY86: 0 | AZ86: 0 | BA86: 0 | BB86: 0 | BC86: 0 | BD86: 0 | BE86: 0 | BF86: 0 | BG86: 0 | BH86: 0 | BI86: 0 | BJ86: 0 | BK86: 0 | BL86: 0 | BM86: 0 | BN86: 0 | BO86: 0 | BP86: 0 | BQ86: 0 | BR86: 0 | BS86: 0 | BT86: 0 | BU86: 0 | BV86: 0 | BW86: 0 | BX86: =MAX(-BX85,0) -> 0 | BY86: 0 | BZ86: 0 | CA86: 0 | CB86: 0 | CC86: 0 | CD86: 0 | CE86: 0 | CF86: 0 | CG86: 0 | CH86: 0 | CI86: 0 | CJ86: 0 | CK86: 0 | CL86: 0 | CM86: 0 | CN86: 0 | CO86: 0 | CP86: 0 | CQ86: 0 | CR86: 0 | CS86: 0 | CT86: 0 | CU86: 0 | CV86: 0 | CW86: 0 | CX86: 0 | CY86: 0 | CZ86: 0 | DA86: 0 | DB86: 0 | DC86: 0 | DD86: 0 | DE86: 0 | DF86: 0 | DG86: 0 | DH86: 0 | DI86: 0 | DJ86: 0 | DK86: 0 | DL86: 0 | DM86: 0 | DN86: 0 | DO86: 0 | DP86: 0 | DQ86: 0 | DR86: 0 | DS86: 0 | DT86: 0 | DU86: 0 | DV86: 0 | DW86: 0 | DX86: 0 | DY86: 0 | DZ86: 0 | EA86: 0 | EB86: 0 | EC86: 0 | ED86: 0 | EE86: 0 | EF86: 0 | EG86: 0 | EH86: 0 | EI86: 0 | EJ86: =MAX(-EJ85,0) -> 0 | EK86: 0 | EL86: 0 | EM86: 0 | EN86: 0 | EO86: 0 | EP86: 0 | EQ86: 0 | ER86: 0 | ES86: 0 | ET86: 0 | EU86: 0 | EV86: 0 | EW86: 0 | EX86: 0 | EY86: 0 | EZ86: 0 | FA86: 0 | FB86: 0 | FC86: 0 | FD86: 0 | FE86: 0 | FF86: 0 | FG86: 0 | FH86: 0 | FI86: 0 | FJ86: 0 | FK86: 0 | FL86: 0 | FM86: 0 | FN86: 0 | FO86: 0 | FP86: 0 | FQ86: 0 | FR86: 0 | FS86: 0 | FT86: 0 | FU86: 0 | FV86: 0 | FW86: 0 | FX86: 0 | FY86: 0 | FZ86: 0 | GA86: 0 | GB86: 0 | GC86: 0 | GD86: 0 | GE86: 0 | GF86: 0 | GG86: 0 | GH86: 0 | GI86: 0 | GJ86: 0 | GK86: 0 | GL86: 0 | GM86: 0 | GN86: 0 | GO86: 0 | GP86: 0 | GQ86: 0 | GR86: 0 | GS86: 0 | GT86: 0 | GU86: 0 | GV86: =MAX(-GV85,0) -> 0 | GW86: 0 | GX86: 0 | GY86: 0 | GZ86: 0 | HA86: 0 | HB86: 0 | HC86: 0 | HD86: 0 | HE86: 0 | HF86: 0 | HG86: 0 | HH86: 0 | HI86: 0 | HJ86: 0 | HK86: 0 | HL86: 0 | HM86: 0 | HN86: 0 | HO86: 0 | HP86: 0 | HQ86: 0 | HR86: 0 | HS86: 0 | HT86: 0 | HU86: 0 | HV86: 0 | HW86: 0 | HX86: 0 | HY86: 0 | HZ86: 0 | IA86: 0 | IB86: 0 | IC86: 0 | ID86: 0 | IE86: 0 | IF86: 0 | IG86: 0 | IH86: 0 | II86: 0 | IJ86: 0 | IK86: 0 | IL86: 0 | IM86: 0 | IN86: 0 | IO86: 0 | IP86: 0 | IQ86: 0 | IR86: 0 | IS86: 0 | IT86: 0 | IU86: 0 | IV86: 0 | IW86: 0 | IX86: 0 | IY86: 0 | IZ86: 0
D87: Less: Repayment of Default | I87: EUR | K87: =MIN(MAX(K85,0),K72) -> 0 | L87: 0 | M87: 0 | N87: 0 | O87: 0 | P87: 0 | Q87: 0 | R87: 0 | S87: 0 | T87: 0 | U87: 0 | V87: 0 | W87: 0 | X87: 0 | Y87: 0 | Z87: 0 | AA87: 0 | AB87: 0 | AC87: 0 | AD87: 0 | AE87: 0 | AF87: 0 | AG87: 0 | AH87: 0 | AI87: 0 | AJ87: 0 | AK87: 0 | AL87: 0 | AM87: 0 | AN87: 0 | AO87: 0 | AP87: 0 | AQ87: 0 | AR87: 0 | AS87: 0 | AT87: 0 | AU87: 0 | AV87: 0 | AW87: 0 | AX87: 0 | AY87: 0 | AZ87: 0 | BA87: 0 | BB87: 0 | BC87: 0 | BD87: 0 | BE87: 0 | BF87: 0 | BG87: 0 | BH87: 0 | BI87: 0 | BJ87: 0 | BK87: 0 | BL87: 0 | BM87: 0 | BN87: 0 | BO87: 0 | BP87: 0 | BQ87: 0 | BR87: 0 | BS87: 0 | BT87: 0 | BU87: 0 | BV87: 0 | BW87: =MIN(MAX(BW85,0),BW72) -> 0 | BX87: 0 | BY87: 0 | BZ87: 0 | CA87: 0 | CB87: 0 | CC87: 0 | CD87: 0 | CE87: 0 | CF87: 0 | CG87: 0 | CH87: 0 | CI87: 0 | CJ87: 0 | CK87: 0 | CL87: 0 | CM87: 0 | CN87: 0 | CO87: 0 | CP87: 0 | CQ87: 0 | CR87: 0 | CS87: 0 | CT87: 0 | CU87: 0 | CV87: 0 | CW87: 0 | CX87: 0 | CY87: 0 | CZ87: 0 | DA87: 0 | DB87: 0 | DC87: 0 | DD87: 0 | DE87: 0 | DF87: 0 | DG87: 0 | DH87: 0 | DI87: 0 | DJ87: 0 | DK87: 0 | DL87: 0 | DM87: 0 | DN87: 0 | DO87: 0 | DP87: 0 | DQ87: 0 | DR87: 0 | DS87: 0 | DT87: 0 | DU87: 0 | DV87: 0 | DW87: 0 | DX87: 0 | DY87: 0 | DZ87: 0 | EA87: 0 | EB87: 0 | EC87: 0 | ED87: 0 | EE87: 0 | EF87: 0 | EG87: 0 | EH87: 0 | EI87: =MIN(MAX(EI85,0),EI72) -> 0 | EJ87: 0 | EK87: 0 | EL87: 0 | EM87: 0 | EN87: 0 | EO87: 0 | EP87: 0 | EQ87: 0 | ER87: 0 | ES87: 0 | ET87: 0 | EU87: 0 | EV87: 0 | EW87: 0 | EX87: 0 | EY87: 0 | EZ87: 0 | FA87: 0 | FB87: 0 | FC87: 0 | FD87: 0 | FE87: 0 | FF87: 0 | FG87: 0 | FH87: 0 | FI87: 0 | FJ87: 0 | FK87: 0 | FL87: 0 | FM87: 0 | FN87: 0 | FO87: 0 | FP87: 0 | FQ87: 0 | FR87: 0 | FS87: 0 | FT87: 0 | FU87: 0 | FV87: 0 | FW87: 0 | FX87: 0 | FY87: 0 | FZ87: 0 | GA87: 0 | GB87: 0 | GC87: 0 | GD87: 0 | GE87: 0 | GF87: 0 | GG87: 0 | GH87: 0 | GI87: 0 | GJ87: 0 | GK87: 0 | GL87: 0 | GM87: 0 | GN87: 0 | GO87: 0 | GP87: 0 | GQ87: 0 | GR87: 0 | GS87: 0 | GT87: 0 | GU87: =MIN(MAX(GU85,0),GU72) -> 0 | GV87: 0 | GW87: 0 | GX87: 0 | GY87: 0 | GZ87: 0 | HA87: 0 | HB87: 0 | HC87: 0 | HD87: 0 | HE87: 0 | HF87: 0 | HG87: 0 | HH87: 0 | HI87: 0 | HJ87: 0 | HK87: 0 | HL87: 0 | HM87: 0 | HN87: 0 | HO87: 0 | HP87: 0 | HQ87: 0 | HR87: 0 | HS87: 0 | HT87: 0 | HU87: 0 | HV87: 0 | HW87: 0 | HX87: 0 | HY87: 0 | HZ87: 0 | IA87: 0 | IB87: 0 | IC87: 0 | ID87: 0 | IE87: 0 | IF87: 0 | IG87: 0 | IH87: 0 | II87: 0 | IJ87: 0 | IK87: 0 | IL87: 0 | IM87: 0 | IN87: 0 | IO87: 0 | IP87: 0 | IQ87: 0 | IR87: 0 | IS87: 0 | IT87: 0 | IU87: 0 | IV87: 0 | IW87: 0 | IX87: 0 | IY87: 0 | IZ87: 0
D88: Dividends | I88: EUR | K88: =K85+K86-K87 -> 0 | L88: =L85+L86-L87 -> 38499.08454 | M88: 38499.08454 | N88: 38499.08454 | O88: 38499.08454 | P88: 38499.08454 | Q88: 38499.08454 | R88: 38499.08454 | S88: 38499.08454 | T88: 38499.08454 | U88: 38499.08454 | V88: 38499.08454 | W88: 38499.08454 | X88: 38499.08454 | Y88: 38499.08454 | Z88: 38499.08454 | AA88: 38499.08454 | AB88: 38499.08454 | AC88: 38499.08454 | AD88: 38499.08454 | AE88: 38499.08454 | AF88: 100000 | AG88: 100000 | AH88: 100000 | AI88: 100000 | AJ88: 100000 | AK88: 100000 | AL88: 100000 | AM88: 100000 | AN88: 100000 | AO88: 100000 | AP88: 0 | AQ88: 0 | AR88: 0 | AS88: 0 | AT88: 0 | AU88: 0 | AV88: 0 | AW88: 0 | AX88: 0 | AY88: 0 | AZ88: 0 | BA88: 0 | BB88: 0 | BC88: 0 | BD88: 0 | BE88: 0 | BF88: 0 | BG88: 0 | BH88: 0 | BI88: 0 | BJ88: 0 | BK88: 0 | BL88: 0 | BM88: 0 | BN88: 0 | BO88: 0 | BP88: 0 | BQ88: 0 | BR88: 0 | BS88: 0 | BT88: 0 | BU88: 0 | BV88: 0 | BW88: 0 | BX88: =BX85+BX86-BX87 -> 0 | BY88: 0 | BZ88: 0 | CA88: 0 | CB88: 0 | CC88: 0 | CD88: 0 | CE88: 0 | CF88: 0 | CG88: 0 | CH88: 0 | CI88: 0 | CJ88: 0 | CK88: 0 | CL88: 0 | CM88: 0 | CN88: 0 | CO88: 0 | CP88: 0 | CQ88: 0 | CR88: 0 | CS88: 0 | CT88: 0 | CU88: 0 | CV88: 0 | CW88: 0 | CX88: 0 | CY88: 0 | CZ88: 0 | DA88: 0 | DB88: 0 | DC88: 0 | DD88: 0 | DE88: 0 | DF88: 0 | DG88: 0 | DH88: 0 | DI88: 0 | DJ88: 0 | DK88: 0 | DL88: 0 | DM88: 0 | DN88: 0 | DO88: 0 | DP88: 0 | DQ88: 0 | DR88: 0 | DS88: 0 | DT88: 0 | DU88: 0 | DV88: 0 | DW88: 0 | DX88: 0 | DY88: 0 | DZ88: 0 | EA88: 0 | EB88: 0 | EC88: 0 | ED88: 0 | EE88: 0 | EF88: 0 | EG88: 0 | EH88: 0 | EI88: 0 | EJ88: =EJ85+EJ86-EJ87 -> 0 | EK88: 0 | EL88: 0 | EM88: 0 | EN88: 0 | EO88: 0 | EP88: 0 | EQ88: 0 | ER88: 0 | ES88: 0 | ET88: 0 | EU88: 0 | EV88: 0 | EW88: 0 | EX88: 0 | EY88: 0 | EZ88: 0 | FA88: 0 | FB88: 0 | FC88: 0 | FD88: 0 | FE88: 0 | FF88: 0 | FG88: 0 | FH88: 0 | FI88: 0 | FJ88: 0 | FK88: 0 | FL88: 0 | FM88: 0 | FN88: 0 | FO88: 0 | FP88: 0 | FQ88: 0 | FR88: 0 | FS88: 0 | FT88: 0 | FU88: 0 | FV88: 0 | FW88: 0 | FX88: 0 | FY88: 0 | FZ88: 0 | GA88: 0 | GB88: 0 | GC88: 0 | GD88: 0 | GE88: 0 | GF88: 0 | GG88: 0 | GH88: 0 | GI88: 0 | GJ88: 0 | GK88: 0 | GL88: 0 | GM88: 0 | GN88: 0 | GO88: 0 | GP88: 0 | GQ88: 0 | GR88: 0 | GS88: 0 | GT88: 0 | GU88: 0 | GV88: =GV85+GV86-GV87 -> 0 | GW88: 0 | GX88: 0 | GY88: 0 | GZ88: 0 | HA88: 0 | HB88: 0 | HC88: 0 | HD88: 0 | HE88: 0 | HF88: 0 | HG88: 0 | HH88: 0 | HI88: 0 | HJ88: 0 | HK88: 0 | HL88: 0 | HM88: 0 | HN88: 0 | HO88: 0 | HP88: 0 | HQ88: 0 | HR88: 0 | HS88: 0 | HT88: 0 | HU88: 0 | HV88: 0 | HW88: 0 | HX88: 0 | HY88: 0 | HZ88: 0 | IA88: 0 | IB88: 0 | IC88: 0 | ID88: 0 | IE88: 0 | IF88: 0 | IG88: 0 | IH88: 0 | II88: 0 | IJ88: 0 | IK88: 0 | IL88: 0 | IM88: 0 | IN88: 0 | IO88: 0 | IP88: 0 | IQ88: 0 | IR88: 0 | IS88: 0 | IT88: 0 | IU88: 0 | IV88: 0 | IW88: 0 | IX88: 0 | IY88: 0 | IZ88: 0
B90: Ratios
D92: Equity Cash Flow | H92: =SUM(K92:XFD92) -> 0 | I92: EUR
D93: Equity IRR | E93: % | I93: %
D95: Debt Cash Flow | E95: % | I95: EUR
D97: CFADS =EBITDA | I97: EUR
D98: Debt Service | I98: EUR
D99: Discount Rate | E99: %
D100: DSCR =CFADS/Debt Service | E100: x | I100: x
D101: Break-Even Percent Reduction DSCR | E101: %
D103: PV of CFADS over Life | E103: EUR
D104: PV of Debt Service =Debt | E104: EUR
D105: PLCR=PV of CFADS/PV of Debt Service | E105: x
D106: Break-Even Percent Reduction PLCR | E106: %
D108: CFADS for Loan Life | I108: EUR
D109: PV of CFADS over Loan Life | I109: EUR
D110: PV of Debt Service =Debt | I110: EUR
D111: LLCR =PV of CFADS LL/Loan Amount | E111: x
D112: Break-Even Percent Reduction LLCR | E112: %
B114: Graphts
K115: =IF(K9,K8,NA()) ->  | L115: 2027-12-31 | M115: 2028-12-31 | N115: 2029-12-31 | O115: 2030-12-31 | P115: 2031-12-31 | Q115: 2032-12-31 | R115: 2033-12-31 | S115: 2034-12-31 | T115: 2035-12-31 | U115: 2036-12-31 | V115: 2037-12-31 | W115: 2038-12-31 | X115: 2039-12-31 | Y115: 2040-12-31 | Z115: 2041-12-31 | AA115: 2042-12-31 | AB115: 2043-12-31 | AC115: 2044-12-31 | AD115: 2045-12-31 | AE115: 2046-12-31 | AF115: 2047-12-31 | AG115: 2048-12-31 | AH115: 2049-12-31 | AI115: 2050-12-31 | AJ115: 2051-12-31 | AK115: 2052-12-31 | AL115: 2053-12-31 | AM115: 2054-12-31 | AN115: 2055-12-31 | AO115: 2056-12-31 | BW115: =IF(BW9,BW8,NA()) ->  | EI115: =IF(EI9,EI8,NA()) ->  | GU115: =IF(GU9,GU8,NA()) -> 
D116: CFADS | K116: =K97 -> 0 | L116: =L97 -> 0 | M116: 0 | N116: 0 | O116: 0 | P116: 0 | Q116: 0 | R116: 0 | S116: 0 | T116: 0 | U116: 0 | V116: 0 | W116: 0 | X116: 0 | Y116: 0 | Z116: 0 | AA116: 0 | AB116: 0 | AC116: 0 | AD116: 0 | AE116: 0 | AF116: 0 | AG116: 0 | AH116: 0 | AI116: 0 | AJ116: 0 | AK116: 0 | AL116: 0 | AM116: 0 | AN116: 0 | AO116: 0 | AP116: 0 | AQ116: 0 | AR116: 0 | AS116: 0 | AT116: 0 | AU116: 0 | AV116: 0 | AW116: 0 | AX116: 0 | AY116: 0 | AZ116: 0 | BA116: 0 | BB116: 0 | BC116: 0 | BD116: 0 | BE116: 0 | BF116: 0 | BG116: 0 | BH116: 0 | BI116: 0 | BJ116: 0 | BK116: 0 | BL116: 0 | BM116: 0 | BN116: 0 | BO116: 0 | BP116: 0 | BQ116: 0 | BR116: 0 | BS116: 0 | BT116: 0 | BU116: 0 | BV116: 0 | BW116: 0 | BX116: =BX97 -> 0 | BY116: 0 | BZ116: 0 | CA116: 0 | CB116: 0 | CC116: 0 | CD116: 0 | CE116: 0 | CF116: 0 | CG116: 0 | CH116: 0 | CI116: 0 | CJ116: 0 | CK116: 0 | CL116: 0 | CM116: 0 | CN116: 0 | CO116: 0 | CP116: 0 | CQ116: 0 | CR116: 0 | CS116: 0 | CT116: 0 | CU116: 0 | CV116: 0 | CW116: 0 | CX116: 0 | CY116: 0 | CZ116: 0 | DA116: 0 | DB116: 0 | DC116: 0 | DD116: 0 | DE116: 0 | DF116: 0 | DG116: 0 | DH116: 0 | DI116: 0 | DJ116: 0 | DK116: 0 | DL116: 0 | DM116: 0 | DN116: 0 | DO116: 0 | DP116: 0 | DQ116: 0 | DR116: 0 | DS116: 0 | DT116: 0 | DU116: 0 | DV116: 0 | DW116: 0 | DX116: 0 | DY116: 0 | DZ116: 0 | EA116: 0 | EB116: 0 | EC116: 0 | ED116: 0 | EE116: 0 | EF116: 0 | EG116: 0 | EH116: 0 | EI116: 0 | EJ116: =EJ97 -> 0 | EK116: 0 | EL116: 0 | EM116: 0 | EN116: 0 | EO116: 0 | EP116: 0 | EQ116: 0 | ER116: 0 | ES116: 0 | ET116: 0 | EU116: 0 | EV116: 0 | EW116: 0 | EX116: 0 | EY116: 0 | EZ116: 0 | FA116: 0 | FB116: 0 | FC116: 0 | FD116: 0 | FE116: 0 | FF116: 0 | FG116: 0 | FH116: 0 | FI116: 0 | FJ116: 0 | FK116: 0 | FL116: 0 | FM116: 0 | FN116: 0 | FO116: 0 | FP116: 0 | FQ116: 0 | FR116: 0 | FS116: 0 | FT116: 0 | FU116: 0 | FV116: 0 | FW116: 0 | FX116: 0 | FY116: 0 | FZ116: 0 | GA116: 0 | GB116: 0 | GC116: 0 | GD116: 0 | GE116: 0 | GF116: 0 | GG116: 0 | GH116: 0 | GI116: 0 | GJ116: 0 | GK116: 0 | GL116: 0 | GM116: 0 | GN116: 0 | GO116: 0 | GP116: 0 | GQ116: 0 | GR116: 0 | GS116: 0 | GT116: 0 | GU116: 0 | GV116: =GV97 -> 0 | GW116: 0 | GX116: 0 | GY116: 0 | GZ116: 0 | HA116: 0 | HB116: 0 | HC116: 0 | HD116: 0 | HE116: 0 | HF116: 0 | HG116: 0 | HH116: 0 | HI116: 0 | HJ116: 0 | HK116: 0 | HL116: 0 | HM116: 0 | HN116: 0 | HO116: 0 | HP116: 0 | HQ116: 0 | HR116: 0 | HS116: 0 | HT116: 0 | HU116: 0 | HV116: 0 | HW116: 0 | HX116: 0 | HY116: 0 | HZ116: 0 | IA116: 0 | IB116: 0 | IC116: 0 | ID116: 0 | IE116: 0 | IF116: 0 | IG116: 0 | IH116: 0 | II116: 0 | IJ116: 0 | IK116: 0 | IL116: 0 | IM116: 0 | IN116: 0 | IO116: 0 | IP116: 0 | IQ116: 0 | IR116: 0 | IS116: 0 | IT116: 0 | IU116: 0 | IV116: 0 | IW116: 0 | IX116: 0 | IY116: 0 | IZ116: 0
D117: Debt Service | K117: =K98 -> 0 | L117: =L98 -> 0 | M117: 0 | N117: 0 | O117: 0 | P117: 0 | Q117: 0 | R117: 0 | S117: 0 | T117: 0 | U117: 0 | V117: 0 | W117: 0 | X117: 0 | Y117: 0 | Z117: 0 | AA117: 0 | AB117: 0 | AC117: 0 | AD117: 0 | AE117: 0 | AF117: 0 | AG117: 0 | AH117: 0 | AI117: 0 | AJ117: 0 | AK117: 0 | AL117: 0 | AM117: 0 | AN117: 0 | AO117: 0 | AP117: 0 | AQ117: 0 | AR117: 0 | AS117: 0 | AT117: 0 | AU117: 0 | AV117: 0 | AW117: 0 | AX117: 0 | AY117: 0 | AZ117: 0 | BA117: 0 | BB117: 0 | BC117: 0 | BD117: 0 | BE117: 0 | BF117: 0 | BG117: 0 | BH117: 0 | BI117: 0 | BJ117: 0 | BK117: 0 | BL117: 0 | BM117: 0 | BN117: 0 | BO117: 0 | BP117: 0 | BQ117: 0 | BR117: 0 | BS117: 0 | BT117: 0 | BU117: 0 | BV117: 0 | BW117: 0 | BX117: =BX98 -> 0 | BY117: 0 | BZ117: 0 | CA117: 0 | CB117: 0 | CC117: 0 | CD117: 0 | CE117: 0 | CF117: 0 | CG117: 0 | CH117: 0 | CI117: 0 | CJ117: 0 | CK117: 0 | CL117: 0 | CM117: 0 | CN117: 0 | CO117: 0 | CP117: 0 | CQ117: 0 | CR117: 0 | CS117: 0 | CT117: 0 | CU117: 0 | CV117: 0 | CW117: 0 | CX117: 0 | CY117: 0 | CZ117: 0 | DA117: 0 | DB117: 0 | DC117: 0 | DD117: 0 | DE117: 0 | DF117: 0 | DG117: 0 | DH117: 0 | DI117: 0 | DJ117: 0 | DK117: 0 | DL117: 0 | DM117: 0 | DN117: 0 | DO117: 0 | DP117: 0 | DQ117: 0 | DR117: 0 | DS117: 0 | DT117: 0 | DU117: 0 | DV117: 0 | DW117: 0 | DX117: 0 | DY117: 0 | DZ117: 0 | EA117: 0 | EB117: 0 | EC117: 0 | ED117: 0 | EE117: 0 | EF117: 0 | EG117: 0 | EH117: 0 | EI117: 0 | EJ117: =EJ98 -> 0 | EK117: 0 | EL117: 0 | EM117: 0 | EN117: 0 | EO117: 0 | EP117: 0 | EQ117: 0 | ER117: 0 | ES117: 0 | ET117: 0 | EU117: 0 | EV117: 0 | EW117: 0 | EX117: 0 | EY117: 0 | EZ117: 0 | FA117: 0 | FB117: 0 | FC117: 0 | FD117: 0 | FE117: 0 | FF117: 0 | FG117: 0 | FH117: 0 | FI117: 0 | FJ117: 0 | FK117: 0 | FL117: 0 | FM117: 0 | FN117: 0 | FO117: 0 | FP117: 0 | FQ117: 0 | FR117: 0 | FS117: 0 | FT117: 0 | FU117: 0 | FV117: 0 | FW117: 0 | FX117: 0 | FY117: 0 | FZ117: 0 | GA117: 0 | GB117: 0 | GC117: 0 | GD117: 0 | GE117: 0 | GF117: 0 | GG117: 0 | GH117: 0 | GI117: 0 | GJ117: 0 | GK117: 0 | GL117: 0 | GM117: 0 | GN117: 0 | GO117: 0 | GP117: 0 | GQ117: 0 | GR117: 0 | GS117: 0 | GT117: 0 | GU117: 0 | GV117: =GV98 -> 0 | GW117: 0 | GX117: 0 | GY117: 0 | GZ117: 0 | HA117: 0 | HB117: 0 | HC117: 0 | HD117: 0 | HE117: 0 | HF117: 0 | HG117: 0 | HH117: 0 | HI117: 0 | HJ117: 0 | HK117: 0 | HL117: 0 | HM117: 0 | HN117: 0 | HO117: 0 | HP117: 0 | HQ117: 0 | HR117: 0 | HS117: 0 | HT117: 0 | HU117: 0 | HV117: 0 | HW117: 0 | HX117: 0 | HY117: 0 | HZ117: 0 | IA117: 0 | IB117: 0 | IC117: 0 | ID117: 0 | IE117: 0 | IF117: 0 | IG117: 0 | IH117: 0 | II117: 0 | IJ117: 0 | IK117: 0 | IL117: 0 | IM117: 0 | IN117: 0 | IO117: 0 | IP117: 0 | IQ117: 0 | IR117: 0 | IS117: 0 | IT117: 0 | IU117: 0 | IV117: 0 | IW117: 0 | IX117: 0 | IY117: 0 | IZ117: 0
D119: =InputC!F5 -> Base Case - Annual | E119: : EBITDA | F119: =InputC!F20 -> 100000 | G119: DSCR | H119: =F100 -> 0 | I119: LLCR | J119: =F111 -> 0 | K119: PLCR | L119: =F105 -> 0
K121: =K115 ->  | L121: =L115 -> 2027-12-31 | M121: 2028-12-31 | N121: 2029-12-31 | O121: 2030-12-31 | P121: 2031-12-31 | Q121: 2032-12-31 | R121: 2033-12-31 | S121: 2034-12-31 | T121: 2035-12-31 | U121: 2036-12-31 | V121: 2037-12-31 | W121: 2038-12-31 | X121: 2039-12-31 | Y121: 2040-12-31 | Z121: 2041-12-31 | AA121: 2042-12-31 | AB121: 2043-12-31 | AC121: 2044-12-31 | AD121: 2045-12-31 | AE121: 2046-12-31 | AF121: 2047-12-31 | AG121: 2048-12-31 | AH121: 2049-12-31 | AI121: 2050-12-31 | AJ121: 2051-12-31 | AK121: 2052-12-31 | AL121: 2053-12-31 | AM121: 2054-12-31 | AN121: 2055-12-31 | AO121: 2056-12-31 | BX121: =BX115 ->  | EJ121: =EJ115 ->  | GV121: =GV115 -> 
D122: Accumulated Default | K122: =K75 -> 0 | L122: =L75 -> 0 | M122: 0 | N122: 0 | O122: 0 | P122: 0 | Q122: 0 | R122: 0 | S122: 0 | T122: 0 | U122: 0 | V122: 0 | W122: 0 | X122: 0 | Y122: 0 | Z122: 0 | AA122: 0 | AB122: 0 | AC122: 0 | AD122: 0 | AE122: 0 | AF122: 0 | AG122: 0 | AH122: 0 | AI122: 0 | AJ122: 0 | AK122: 0 | AL122: 0 | AM122: 0 | AN122: 0 | AO122: 0 | AP122: 0 | AQ122: 0 | AR122: 0 | AS122: 0 | AT122: 0 | AU122: 0 | AV122: 0 | AW122: 0 | AX122: 0 | AY122: 0 | AZ122: 0 | BA122: 0 | BB122: 0 | BC122: 0 | BD122: 0 | BE122: 0 | BF122: 0 | BG122: 0 | BH122: 0 | BI122: 0 | BJ122: 0 | BK122: 0 | BL122: 0 | BM122: 0 | BN122: 0 | BO122: 0 | BP122: 0 | BQ122: 0 | BR122: 0 | BS122: 0 | BT122: 0 | BU122: 0 | BV122: 0 | BW122: 0 | BX122: =BX75 -> 0 | BY122: 0 | BZ122: 0 | CA122: 0 | CB122: 0 | CC122: 0 | CD122: 0 | CE122: 0 | CF122: 0 | CG122: 0 | CH122: 0 | CI122: 0 | CJ122: 0 | CK122: 0 | CL122: 0 | CM122: 0 | CN122: 0 | CO122: 0 | CP122: 0 | CQ122: 0 | CR122: 0 | CS122: 0 | CT122: 0 | CU122: 0 | CV122: 0 | CW122: 0 | CX122: 0 | CY122: 0 | CZ122: 0 | DA122: 0 | DB122: 0 | DC122: 0 | DD122: 0 | DE122: 0 | DF122: 0 | DG122: 0 | DH122: 0 | DI122: 0 | DJ122: 0 | DK122: 0 | DL122: 0 | DM122: 0 | DN122: 0 | DO122: 0 | DP122: 0 | DQ122: 0 | DR122: 0 | DS122: 0 | DT122: 0 | DU122: 0 | DV122: 0 | DW122: 0 | DX122: 0 | DY122: 0 | DZ122: 0 | EA122: 0 | EB122: 0 | EC122: 0 | ED122: 0 | EE122: 0 | EF122: 0 | EG122: 0 | EH122: 0 | EI122: 0 | EJ122: =EJ75 -> 0 | EK122: 0 | EL122: 0 | EM122: 0 | EN122: 0 | EO122: 0 | EP122: 0 | EQ122: 0 | ER122: 0 | ES122: 0 | ET122: 0 | EU122: 0 | EV122: 0 | EW122: 0 | EX122: 0 | EY122: 0 | EZ122: 0 | FA122: 0 | FB122: 0 | FC122: 0 | FD122: 0 | FE122: 0 | FF122: 0 | FG122: 0 | FH122: 0 | FI122: 0 | FJ122: 0 | FK122: 0 | FL122: 0 | FM122: 0 | FN122: 0 | FO122: 0 | FP122: 0 | FQ122: 0 | FR122: 0 | FS122: 0 | FT122: 0 | FU122: 0 | FV122: 0 | FW122: 0 | FX122: 0 | FY122: 0 | FZ122: 0 | GA122: 0 | GB122: 0 | GC122: 0 | GD122: 0 | GE122: 0 | GF122: 0 | GG122: 0 | GH122: 0 | GI122: 0 | GJ122: 0 | GK122: 0 | GL122: 0 | GM122: 0 | GN122: 0 | GO122: 0 | GP122: 0 | GQ122: 0 | GR122: 0 | GS122: 0 | GT122: 0 | GU122: 0 | GV122: =GV75 -> 0 | GW122: 0 | GX122: 0 | GY122: 0 | GZ122: 0 | HA122: 0 | HB122: 0 | HC122: 0 | HD122: 0 | HE122: 0 | HF122: 0 | HG122: 0 | HH122: 0 | HI122: 0 | HJ122: 0 | HK122: 0 | HL122: 0 | HM122: 0 | HN122: 0 | HO122: 0 | HP122: 0 | HQ122: 0 | HR122: 0 | HS122: 0 | HT122: 0 | HU122: 0 | HV122: 0 | HW122: 0 | HX122: 0 | HY122: 0 | HZ122: 0 | IA122: 0 | IB122: 0 | IC122: 0 | ID122: 0 | IE122: 0 | IF122: 0 | IG122: 0 | IH122: 0 | II122: 0 | IJ122: 0 | IK122: 0 | IL122: 0 | IM122: 0 | IN122: 0 | IO122: 0 | IP122: 0 | IQ122: 0 | IR122: 0 | IS122: 0 | IT122: 0 | IU122: 0 | IV122: 0 | IW122: 0 | IX122: 0 | IY122: 0 | IZ122: 0
D124: Case
B127: Investment Account
C129: Cash Before COD
D130: Opening Balance | I130: EUR | K130: =J133 -> 0 | L130: =K133 -> 1000000 | M130: 1000000 | N130: 1000000 | O130: 1000000 | P130: 1000000 | Q130: 1000000 | R130: 1000000 | S130: 1000000 | T130: 1000000 | U130: 1000000 | V130: 1000000 | W130: 1000000 | X130: 1000000 | Y130: 1000000 | Z130: 1000000 | AA130: 1000000 | AB130: 1000000 | AC130: 1000000 | AD130: 1000000 | AE130: 1000000 | AF130: 1000000 | AG130: 1000000 | AH130: 1000000 | AI130: 1000000 | AJ130: 1000000 | AK130: 1000000 | AL130: 1000000 | AM130: 1000000 | AN130: 1000000 | AO130: 1000000 | AP130: 1000000 | AQ130: 1000000 | AR130: 1000000 | AS130: 1000000 | AT130: 1000000 | AU130: 1000000 | AV130: 1000000 | AW130: 1000000 | AX130: 1000000 | AY130: 1000000 | AZ130: 1000000 | BA130: 1000000 | BB130: 1000000 | BC130: 1000000 | BD130: 1000000 | BE130: 1000000 | BF130: 1000000 | BG130: 1000000 | BH130: 1000000 | BI130: 1000000 | BJ130: 1000000 | BK130: 1000000 | BL130: 1000000 | BM130: 1000000 | BN130: 1000000 | BO130: 1000000 | BP130: 1000000 | BQ130: 1000000 | BR130: 1000000 | BS130: 1000000 | BT130: 1000000 | BU130: 1000000 | BV130: 1000000 | BW130: 1000000 | BX130: =BW133 -> 1000000 | BY130: 1000000 | BZ130: 1000000 | CA130: 1000000 | CB130: 1000000 | CC130: 1000000 | CD130: 1000000 | CE130: 1000000 | CF130: 1000000 | CG130: 1000000 | CH130: 1000000 | CI130: 1000000 | CJ130: 1000000 | CK130: 1000000 | CL130: 1000000 | CM130: 1000000 | CN130: 1000000 | CO130: 1000000 | CP130: 1000000 | CQ130: 1000000 | CR130: 1000000 | CS130: 1000000 | CT130: 1000000 | CU130: 1000000 | CV130: 1000000 | CW130: 1000000 | CX130: 1000000 | CY130: 1000000 | CZ130: 1000000 | DA130: 1000000 | DB130: 1000000 | DC130: 1000000 | DD130: 1000000 | DE130: 1000000 | DF130: 1000000 | DG130: 1000000 | DH130: 1000000 | DI130: 1000000 | DJ130: 1000000 | DK130: 1000000 | DL130: 1000000 | DM130: 1000000 | DN130: 1000000 | DO130: 1000000 | DP130: 1000000 | DQ130: 1000000 | DR130: 1000000 | DS130: 1000000 | DT130: 1000000 | DU130: 1000000 | DV130: 1000000 | DW130: 1000000 | DX130: 1000000 | DY130: 1000000 | DZ130: 1000000 | EA130: 1000000 | EB130: 1000000 | EC130: 1000000 | ED130: 1000000 | EE130: 1000000 | EF130: 1000000 | EG130: 1000000 | EH130: 1000000 | EI130: 1000000 | EJ130: =EI133 -> 1000000 | EK130: 1000000 | EL130: 1000000 | EM130: 1000000 | EN130: 1000000 | EO130: 1000000 | EP130: 1000000 | EQ130: 1000000 | ER130: 1000000 | ES130: 1000000 | ET130: 1000000 | EU130: 1000000 | EV130: 1000000 | EW130: 1000000 | EX130: 1000000 | EY130: 1000000 | EZ130: 1000000 | FA130: 1000000 | FB130: 1000000 | FC130: 1000000 | FD130: 1000000 | FE130: 1000000 | FF130: 1000000 | FG130: 1000000 | FH130: 1000000 | FI130: 1000000 | FJ130: 1000000 | FK130: 1000000 | FL130: 1000000 | FM130: 1000000 | FN130: 1000000 | FO130: 1000000 | FP130: 1000000 | FQ130: 1000000 | FR130: 1000000 | FS130: 1000000 | FT130: 1000000 | FU130: 1000000 | FV130: 1000000 | FW130: 1000000 | FX130: 1000000 | FY130: 1000000 | FZ130: 1000000 | GA130: 1000000 | GB130: 1000000 | GC130: 1000000 | GD130: 1000000 | GE130: 1000000 | GF130: 1000000 | GG130: 1000000 | GH130: 1000000 | GI130: 1000000 | GJ130: 1000000 | GK130: 1000000 | GL130: 1000000 | GM130: 1000000 | GN130: 1000000 | GO130: 1000000 | GP130: 1000000 | GQ130: 1000000 | GR130: 1000000 | GS130: 1000000 | GT130: 1000000 | GU130: 1000000 | GV130: =GU133 -> 1000000 | GW130: 1000000 | GX130: 1000000 | GY130: 1000000 | GZ130: 1000000 | HA130: 1000000 | HB130: 1000000 | HC130: 1000000 | HD130: 1000000 | HE130: 1000000 | HF130: 1000000 | HG130: 1000000 | HH130: 1000000 | HI130: 1000000 | HJ130: 1000000 | HK130: 1000000 | HL130: 1000000 | HM130: 1000000 | HN130: 1000000 | HO130: 1000000 | HP130: 1000000 | HQ130: 1000000 | HR130: 1000000 | HS130: 1000000 | HT130: 1000000 | HU130: 1000000 | HV130: 1000000 | HW130: 1000000 | HX130: 1000000 | HY130: 1000000 | HZ130: 1000000 | IA130: 1000000 | IB130: 1000000 | IC130: 1000000 | ID130: 1000000 | IE130: 1000000 | IF130: 1000000 | IG130: 1000000 | IH130: 1000000 | II130: 1000000 | IJ130: 1000000 | IK130: 1000000 | IL130: 1000000 | IM130: 1000000 | IN130: 1000000 | IO130: 1000000 | IP130: 1000000 | IQ130: 1000000 | IR130: 1000000 | IS130: 1000000 | IT130: 1000000 | IU130: 1000000 | IV130: 1000000 | IW130: 1000000 | IX130: 1000000 | IY130: 1000000 | IZ130: 1000000
D131: Financing Cost | F131: =F30 -> 0.09307339772 | I131: EUR | K131: =K130*$F$131*K5 -> 0 | L131: 0 | M131: 0 | N131: 0 | O131: 0 | P131: 0 | Q131: 0 | R131: 0 | S131: 0 | T131: 0 | U131: 0 | V131: 0 | W131: 0 | X131: 0 | Y131: 0 | Z131: 0 | AA131: 0 | AB131: 0 | AC131: 0 | AD131: 0 | AE131: 0 | AF131: 0 | AG131: 0 | AH131: 0 | AI131: 0 | AJ131: 0 | AK131: 0 | AL131: 0 | AM131: 0 | AN131: 0 | AO131: 0 | AP131: 0 | AQ131: 0 | AR131: 0 | AS131: 0 | AT131: 0 | AU131: 0 | AV131: 0 | AW131: 0 | AX131: 0 | AY131: 0 | AZ131: 0 | BA131: 0 | BB131: 0 | BC131: 0 | BD131: 0 | BE131: 0 | BF131: 0 | BG131: 0 | BH131: 0 | BI131: 0 | BJ131: 0 | BK131: 0 | BL131: 0 | BM131: 0 | BN131: 0 | BO131: 0 | BP131: 0 | BQ131: 0 | BR131: 0 | BS131: 0 | BT131: 0 | BU131: 0 | BV131: 0 | BW131: =BW130*$F$131*BW5 -> 0 | BX131: 0 | BY131: 0 | BZ131: 0 | CA131: 0 | CB131: 0 | CC131: 0 | CD131: 0 | CE131: 0 | CF131: 0 | CG131: 0 | CH131: 0 | CI131: 0 | CJ131: 0 | CK131: 0 | CL131: 0 | CM131: 0 | CN131: 0 | CO131: 0 | CP131: 0 | CQ131: 0 | CR131: 0 | CS131: 0 | CT131: 0 | CU131: 0 | CV131: 0 | CW131: 0 | CX131: 0 | CY131: 0 | CZ131: 0 | DA131: 0 | DB131: 0 | DC131: 0 | DD131: 0 | DE131: 0 | DF131: 0 | DG131: 0 | DH131: 0 | DI131: 0 | DJ131: 0 | DK131: 0 | DL131: 0 | DM131: 0 | DN131: 0 | DO131: 0 | DP131: 0 | DQ131: 0 | DR131: 0 | DS131: 0 | DT131: 0 | DU131: 0 | DV131: 0 | DW131: 0 | DX131: 0 | DY131: 0 | DZ131: 0 | EA131: 0 | EB131: 0 | EC131: 0 | ED131: 0 | EE131: 0 | EF131: 0 | EG131: 0 | EH131: 0 | EI131: =EI130*$F$131*EI5 -> 0 | EJ131: 0 | EK131: 0 | EL131: 0 | EM131: 0 | EN131: 0 | EO131: 0 | EP131: 0 | EQ131: 0 | ER131: 0 | ES131: 0 | ET131: 0 | EU131: 0 | EV131: 0 | EW131: 0 | EX131: 0 | EY131: 0 | EZ131: 0 | FA131: 0 | FB131: 0 | FC131: 0 | FD131: 0 | FE131: 0 | FF131: 0 | FG131: 0 | FH131: 0 | FI131: 0 | FJ131: 0 | FK131: 0 | FL131: 0 | FM131: 0 | FN131: 0 | FO131: 0 | FP131: 0 | FQ131: 0 | FR131: 0 | FS131: 0 | FT131: 0 | FU131: 0 | FV131: 0 | FW131: 0 | FX131: 0 | FY131: 0 | FZ131: 0 | GA131: 0 | GB131: 0 | GC131: 0 | GD131: 0 | GE131: 0 | GF131: 0 | GG131: 0 | GH131: 0 | GI131: 0 | GJ131: 0 | GK131: 0 | GL131: 0 | GM131: 0 | GN131: 0 | GO131: 0 | GP131: 0 | GQ131: 0 | GR131: 0 | GS131: 0 | GT131: 0 | GU131: =GU130*$F$131*GU5 -> 0 | GV131: 0 | GW131: 0 | GX131: 0 | GY131: 0 | GZ131: 0 | HA131: 0 | HB131: 0 | HC131: 0 | HD131: 0 | HE131: 0 | HF131: 0 | HG131: 0 | HH131: 0 | HI131: 0 | HJ131: 0 | HK131: 0 | HL131: 0 | HM131: 0 | HN131: 0 | HO131: 0 | HP131: 0 | HQ131: 0 | HR131: 0 | HS131: 0 | HT131: 0 | HU131: 0 | HV131: 0 | HW131: 0 | HX131: 0 | HY131: 0 | HZ131: 0 | IA131: 0 | IB131: 0 | IC131: 0 | ID131: 0 | IE131: 0 | IF131: 0 | IG131: 0 | IH131: 0 | II131: 0 | IJ131: 0 | IK131: 0 | IL131: 0 | IM131: 0 | IN131: 0 | IO131: 0 | IP131: 0 | IQ131: 0 | IR131: 0 | IS131: 0 | IT131: 0 | IU131: 0 | IV131: 0 | IW131: 0 | IX131: 0 | IY131: 0 | IZ131: 0
D132: Payments | I132: EUR | K132: =K18 -> 1000000 | L132: 0 | M132: 0 | N132: 0 | O132: 0 | P132: 0 | Q132: 0 | R132: 0 | S132: 0 | T132: 0 | U132: 0 | V132: 0 | W132: 0 | X132: 0 | Y132: 0 | Z132: 0 | AA132: 0 | AB132: 0 | AC132: 0 | AD132: 0 | AE132: 0 | AF132: 0 | AG132: 0 | AH132: 0 | AI132: 0 | AJ132: 0 | AK132: 0 | AL132: 0 | AM132: 0 | AN132: 0 | AO132: 0 | AP132: 0 | AQ132: 0 | AR132: 0 | AS132: 0 | AT132: 0 | AU132: 0 | AV132: 0 | AW132: 0 | AX132: 0 | AY132: 0 | AZ132: 0 | BA132: 0 | BB132: 0 | BC132: 0 | BD132: 0 | BE132: 0 | BF132: 0 | BG132: 0 | BH132: 0 | BI132: 0 | BJ132: 0 | BK132: 0 | BL132: 0 | BM132: 0 | BN132: 0 | BO132: 0 | BP132: 0 | BQ132: 0 | BR132: 0 | BS132: 0 | BT132: 0 | BU132: 0 | BV132: 0 | BW132: =BW18 -> 0 | BX132: 0 | BY132: 0 | BZ132: 0 | CA132: 0 | CB132: 0 | CC132: 0 | CD132: 0 | CE132: 0 | CF132: 0 | CG132: 0 | CH132: 0 | CI132: 0 | CJ132: 0 | CK132: 0 | CL132: 0 | CM132: 0 | CN132: 0 | CO132: 0 | CP132: 0 | CQ132: 0 | CR132: 0 | CS132: 0 | CT132: 0 | CU132: 0 | CV132: 0 | CW132: 0 | CX132: 0 | CY132: 0 | CZ132: 0 | DA132: 0 | DB132: 0 | DC132: 0 | DD132: 0 | DE132: 0 | DF132: 0 | DG132: 0 | DH132: 0 | DI132: 0 | DJ132: 0 | DK132: 0 | DL132: 0 | DM132: 0 | DN132: 0 | DO132: 0 | DP132: 0 | DQ132: 0 | DR132: 0 | DS132: 0 | DT132: 0 | DU132: 0 | DV132: 0 | DW132: 0 | DX132: 0 | DY132: 0 | DZ132: 0 | EA132: 0 | EB132: 0 | EC132: 0 | ED132: 0 | EE132: 0 | EF132: 0 | EG132: 0 | EH132: 0 | EI132: =EI18 -> 0 | EJ132: 0 | EK132: 0 | EL132: 0 | EM132: 0 | EN132: 0 | EO132: 0 | EP132: 0 | EQ132: 0 | ER132: 0 | ES132: 0 | ET132: 0 | EU132: 0 | EV132: 0 | EW132: 0 | EX132: 0 | EY132: 0 | EZ132: 0 | FA132: 0 | FB132: 0 | FC132: 0 | FD132: 0 | FE132: 0 | FF132: 0 | FG132: 0 | FH132: 0 | FI132: 0 | FJ132: 0 | FK132: 0 | FL132: 0 | FM132: 0 | FN132: 0 | FO132: 0 | FP132: 0 | FQ132: 0 | FR132: 0 | FS132: 0 | FT132: 0 | FU132: 0 | FV132: 0 | FW132: 0 | FX132: 0 | FY132: 0 | FZ132: 0 | GA132: 0 | GB132: 0 | GC132: 0 | GD132: 0 | GE132: 0 | GF132: 0 | GG132: 0 | GH132: 0 | GI132: 0 | GJ132: 0 | GK132: 0 | GL132: 0 | GM132: 0 | GN132: 0 | GO132: 0 | GP132: 0 | GQ132: 0 | GR132: 0 | GS132: 0 | GT132: 0 | GU132: =GU18 -> 0 | GV132: 0 | GW132: 0 | GX132: 0 | GY132: 0 | GZ132: 0 | HA132: 0 | HB132: 0 | HC132: 0 | HD132: 0 | HE132: 0 | HF132: 0 | HG132: 0 | HH132: 0 | HI132: 0 | HJ132: 0 | HK132: 0 | HL132: 0 | HM132: 0 | HN132: 0 | HO132: 0 | HP132: 0 | HQ132: 0 | HR132: 0 | HS132: 0 | HT132: 0 | HU132: 0 | HV132: 0 | HW132: 0 | HX132: 0 | HY132: 0 | HZ132: 0 | IA132: 0 | IB132: 0 | IC132: 0 | ID132: 0 | IE132: 0 | IF132: 0 | IG132: 0 | IH132: 0 | II132: 0 | IJ132: 0 | IK132: 0 | IL132: 0 | IM132: 0 | IN132: 0 | IO132: 0 | IP132: 0 | IQ132: 0 | IR132: 0 | IS132: 0 | IT132: 0 | IU132: 0 | IV132: 0 | IW132: 0 | IX132: 0 | IY132: 0 | IZ132: 0
D133: Closing Balance | I133: EUR | K133: =SUM(K130:K132) -> 1000000 | L133: =SUM(L130:L132) -> 1000000 | M133: 1000000 | N133: 1000000 | O133: 1000000 | P133: 1000000 | Q133: 1000000 | R133: 1000000 | S133: 1000000 | T133: 1000000 | U133: 1000000 | V133: 1000000 | W133: 1000000 | X133: 1000000 | Y133: 1000000 | Z133: 1000000 | AA133: 1000000 | AB133: 1000000 | AC133: 1000000 | AD133: 1000000 | AE133: 1000000 | AF133: 1000000 | AG133: 1000000 | AH133: 1000000 | AI133: 1000000 | AJ133: 1000000 | AK133: 1000000 | AL133: 1000000 | AM133: 1000000 | AN133: 1000000 | AO133: 1000000 | AP133: 1000000 | AQ133: 1000000 | AR133: 1000000 | AS133: 1000000 | AT133: 1000000 | AU133: 1000000 | AV133: 1000000 | AW133: 1000000 | AX133: 1000000 | AY133: 1000000 | AZ133: 1000000 | BA133: 1000000 | BB133: 1000000 | BC133: 1000000 | BD133: 1000000 | BE133: 1000000 | BF133: 1000000 | BG133: 1000000 | BH133: 1000000 | BI133: 1000000 | BJ133: 1000000 | BK133: 1000000 | BL133: 1000000 | BM133: 1000000 | BN133: 1000000 | BO133: 1000000 | BP133: 1000000 | BQ133: 1000000 | BR133: 1000000 | BS133: 1000000 | BT133: 1000000 | BU133: 1000000 | BV133: 1000000 | BW133: 1000000 | BX133: =SUM(BX130:BX132) -> 1000000 | BY133: 1000000 | BZ133: 1000000 | CA133: 1000000 | CB133: 1000000 | CC133: 1000000 | CD133: 1000000 | CE133: 1000000 | CF133: 1000000 | CG133: 1000000 | CH133: 1000000 | CI133: 1000000 | CJ133: 1000000 | CK133: 1000000 | CL133: 1000000 | CM133: 1000000 | CN133: 1000000 | CO133: 1000000 | CP133: 1000000 | CQ133: 1000000 | CR133: 1000000 | CS133: 1000000 | CT133: 1000000 | CU133: 1000000 | CV133: 1000000 | CW133: 1000000 | CX133: 1000000 | CY133: 1000000 | CZ133: 1000000 | DA133: 1000000 | DB133: 1000000 | DC133: 1000000 | DD133: 1000000 | DE133: 1000000 | DF133: 1000000 | DG133: 1000000 | DH133: 1000000 | DI133: 1000000 | DJ133: 1000000 | DK133: 1000000 | DL133: 1000000 | DM133: 1000000 | DN133: 1000000 | DO133: 1000000 | DP133: 1000000 | DQ133: 1000000 | DR133: 1000000 | DS133: 1000000 | DT133: 1000000 | DU133: 1000000 | DV133: 1000000 | DW133: 1000000 | DX133: 1000000 | DY133: 1000000 | DZ133: 1000000 | EA133: 1000000 | EB133: 1000000 | EC133: 1000000 | ED133: 1000000 | EE133: 1000000 | EF133: 1000000 | EG133: 1000000 | EH133: 1000000 | EI133: 1000000 | EJ133: =SUM(EJ130:EJ132) -> 1000000 | EK133: 1000000 | EL133: 1000000 | EM133: 1000000 | EN133: 1000000 | EO133: 1000000 | EP133: 1000000 | EQ133: 1000000 | ER133: 1000000 | ES133: 1000000 | ET133: 1000000 | EU133: 1000000 | EV133: 1000000 | EW133: 1000000 | EX133: 1000000 | EY133: 1000000 | EZ133: 1000000 | FA133: 1000000 | FB133: 1000000 | FC133: 1000000 | FD133: 1000000 | FE133: 1000000 | FF133: 1000000 | FG133: 1000000 | FH133: 1000000 | FI133: 1000000 | FJ133: 1000000 | FK133: 1000000 | FL133: 1000000 | FM133: 1000000 | FN133: 1000000 | FO133: 1000000 | FP133: 1000000 | FQ133: 1000000 | FR133: 1000000 | FS133: 1000000 | FT133: 1000000 | FU133: 1000000 | FV133: 1000000 | FW133: 1000000 | FX133: 1000000 | FY133: 1000000 | FZ133: 1000000 | GA133: 1000000 | GB133: 1000000 | GC133: 1000000 | GD133: 1000000 | GE133: 1000000 | GF133: 1000000 | GG133: 1000000 | GH133: 1000000 | GI133: 1000000 | GJ133: 1000000 | GK133: 1000000 | GL133: 1000000 | GM133: 1000000 | GN133: 1000000 | GO133: 1000000 | GP133: 1000000 | GQ133: 1000000 | GR133: 1000000 | GS133: 1000000 | GT133: 1000000 | GU133: 1000000 | GV133: =SUM(GV130:GV132) -> 1000000 | GW133: 1000000 | GX133: 1000000 | GY133: 1000000 | GZ133: 1000000 | HA133: 1000000 | HB133: 1000000 | HC133: 1000000 | HD133: 1000000 | HE133: 1000000 | HF133: 1000000 | HG133: 1000000 | HH133: 1000000 | HI133: 1000000 | HJ133: 1000000 | HK133: 1000000 | HL133: 1000000 | HM133: 1000000 | HN133: 1000000 | HO133: 1000000 | HP133: 1000000 | HQ133: 1000000 | HR133: 1000000 | HS133: 1000000 | HT133: 1000000 | HU133: 1000000 | HV133: 1000000 | HW133: 1000000 | HX133: 1000000 | HY133: 1000000 | HZ133: 1000000 | IA133: 1000000 | IB133: 1000000 | IC133: 1000000 | ID133: 1000000 | IE133: 1000000 | IF133: 1000000 | IG133: 1000000 | IH133: 1000000 | II133: 1000000 | IJ133: 1000000 | IK133: 1000000 | IL133: 1000000 | IM133: 1000000 | IN133: 1000000 | IO133: 1000000 | IP133: 1000000 | IQ133: 1000000 | IR133: 1000000 | IS133: 1000000 | IT133: 1000000 | IU133: 1000000 | IV133: 1000000 | IW133: 1000000 | IX133: 1000000 | IY133: 1000000 | IZ133: 1000000
D135: Cash in Final Construction Period | E135: Period | F135: =H5 -> 1 | G135: =LOOKUP(F135,3:3,133:133) -> 1000000
C137: Cash After COD
D138: Opening Balance | E138: EUR | I138: EUR | K138: =J141 -> 0 | L138: 0 | M138: 100000 | N138: 209307.3398 | O138: 328788.2851 | P138: 459389.7279 | Q138: 602146.6907 | R138: 758190.5292 | S138: 928757.8978 | T138: 1115200.551 | U138: 1318996.055 | V138: 1541759.5 | W138: 1785256.295 | X138: 2051416.164 | Y138: 2342348.437 | Z138: 2660358.764 | AA138: 3007967.394 | AB138: 3387929.139 | AC138: 3803255.215 | AD138: 4257237.101 | AE138: 4753472.623 | AF138: 5295894.471 | AG138: 5888801.363 | AH138: 6536892.114 | AI138: 7245302.874 | AJ138: 8019647.83 | AK138: 8866063.702 | AL138: 9791258.375 | AM138: 10802564.06 | AN138: 11907995.4 | AO138: 13116312.99 | AP138: 14437092.81 | AQ138: 14437092.81 | AR138: 14437092.81 | AS138: 14437092.81 | AT138: 14437092.81 | AU138: 14437092.81 | AV138: 14437092.81 | AW138: 14437092.81 | AX138: 14437092.81 | AY138: 14437092.81 | AZ138: 14437092.81 | BA138: 14437092.81 | BB138: 14437092.81 | BC138: 14437092.81 | BD138: 14437092.81 | BE138: 14437092.81 | BF138: 14437092.81 | BG138: 14437092.81 | BH138: 14437092.81 | BI138: 14437092.81 | BJ138: 14437092.81 | BK138: 14437092.81 | BL138: 14437092.81 | BM138: 14437092.81 | BN138: 14437092.81 | BO138: 14437092.81 | BP138: 14437092.81 | BQ138: 14437092.81 | BR138: 14437092.81 | BS138: 14437092.81 | BT138: 14437092.81 | BU138: 14437092.81 | BV138: 14437092.81 | BW138: =BV141 -> 14437092.81 | BX138: 14437092.81 | BY138: 14437092.81 | BZ138: 14437092.81 | CA138: 14437092.81 | CB138: 14437092.81 | CC138: 14437092.81 | CD138: 14437092.81 | CE138: 14437092.81 | CF138: 14437092.81 | CG138: 14437092.81 | CH138: 14437092.81 | CI138: 14437092.81 | CJ138: 14437092.81 | CK138: 14437092.81 | CL138: 14437092.81 | CM138: 14437092.81 | CN138: 14437092.81 | CO138: 14437092.81 | CP138: 14437092.81 | CQ138: 14437092.81 | CR138: 14437092.81 | CS138: 14437092.81 | CT138: 14437092.81 | CU138: 14437092.81 | CV138: 14437092.81 | CW138: 14437092.81 | CX138: 14437092.81 | CY138: 14437092.81 | CZ138: 14437092.81 | DA138: 14437092.81 | DB138: 14437092.81 | DC138: 14437092.81 | DD138: 14437092.81 | DE138: 14437092.81 | DF138: 14437092.81 | DG138: 14437092.81 | DH138: 14437092.81 | DI138: 14437092.81 | DJ138: 14437092.81 | DK138: 14437092.81 | DL138: 14437092.81 | DM138: 14437092.81 | DN138: 14437092.81 | DO138: 14437092.81 | DP138: 14437092.81 | DQ138: 14437092.81 | DR138: 14437092.81 | DS138: 14437092.81 | DT138: 14437092.81 | DU138: 14437092.81 | DV138: 14437092.81 | DW138: 14437092.81 | DX138: 14437092.81 | DY138: 14437092.81 | DZ138: 14437092.81 | EA138: 14437092.81 | EB138: 14437092.81 | EC138: 14437092.81 | ED138: 14437092.81 | EE138: 14437092.81 | EF138: 14437092.81 | EG138: 14437092.81 | EH138: 14437092.81 | EI138: =EH141 -> 14437092.81 | EJ138: 14437092.81 | EK138: 14437092.81 | EL138: 14437092.81 | EM138: 14437092.81 | EN138: 14437092.81 | EO138: 14437092.81 | EP138: 14437092.81 | EQ138: 14437092.81 | ER138: 14437092.81 | ES138: 14437092.81 | ET138: 14437092.81 | EU138: 14437092.81 | EV138: 14437092.81 | EW138: 14437092.81 | EX138: 14437092.81 | EY138: 14437092.81 | EZ138: 14437092.81 | FA138: 14437092.81 | FB138: 14437092.81 | FC138: 14437092.81 | FD138: 14437092.81 | FE138: 14437092.81 | FF138: 14437092.81 | FG138: 14437092.81 | FH138: 14437092.81 | FI138: 14437092.81 | FJ138: 14437092.81 | FK138: 14437092.81 | FL138: 14437092.81 | FM138: 14437092.81 | FN138: 14437092.81 | FO138: 14437092.81 | FP138: 14437092.81 | FQ138: 14437092.81 | FR138: 14437092.81 | FS138: 14437092.81 | FT138: 14437092.81 | FU138: 14437092.81 | FV138: 14437092.81 | FW138: 14437092.81 | FX138: 14437092.81 | FY138: 14437092.81 | FZ138: 14437092.81 | GA138: 14437092.81 | GB138: 14437092.81 | GC138: 14437092.81 | GD138: 14437092.81 | GE138: 14437092.81 | GF138: 14437092.81 | GG138: 14437092.81 | GH138: 14437092.81 | GI138: 14437092.81 | GJ138: 14437092.81 | GK138: 14437092.81 | GL138: 14437092.81 | GM138: 14437092.81 | GN138: 14437092.81 | GO138: 14437092.81 | GP138: 14437092.81 | GQ138: 14437092.81 | GR138: 14437092.81 | GS138: 14437092.81 | GT138: 14437092.81 | GU138: =GT141 -> 14437092.81 | GV138: 14437092.81 | GW138: 14437092.81 | GX138: 14437092.81 | GY138: 14437092.81 | GZ138: 14437092.81 | HA138: 14437092.81 | HB138: 14437092.81 | HC138: 14437092.81 | HD138: 14437092.81 | HE138: 14437092.81 | HF138: 14437092.81 | HG138: 14437092.81 | HH138: 14437092.81 | HI138: 14437092.81 | HJ138: 14437092.81 | HK138: 14437092.81 | HL138: 14437092.81 | HM138: 14437092.81 | HN138: 14437092.81 | HO138: 14437092.81 | HP138: 14437092.81 | HQ138: 14437092.81 | HR138: 14437092.81 | HS138: 14437092.81 | HT138: 14437092.81 | HU138: 14437092.81 | HV138: 14437092.81 | HW138: 14437092.81 | HX138: 14437092.81 | HY138: 14437092.81 | HZ138: 14437092.81 | IA138: 14437092.81 | IB138: 14437092.81 | IC138: 14437092.81 | ID138: 14437092.81 | IE138: 14437092.81 | IF138: 14437092.81 | IG138: 14437092.81 | IH138: 14437092.81 | II138: 14437092.81 | IJ138: 14437092.81 | IK138: 14437092.81 | IL138: 14437092.81 | IM138: 14437092.81 | IN138: 14437092.81 | IO138: 14437092.81 | IP138: 14437092.81 | IQ138: 14437092.81 | IR138: 14437092.81 | IS138: 14437092.81 | IT138: 14437092.81 | IU138: 14437092.81 | IV138: 14437092.81 | IW138: 14437092.81 | IX138: 14437092.81 | IY138: 14437092.81 | IZ138: 14437092.81
D139: Reinvestment income | E139: EUR | F139: =F30 -> 0.09307339772 | I139: EUR | K139: =K138*$F$139*K9 -> 0 | L139: 0 | M139: 9307.339772 | N139: 19480.94528 | O139: 30601.44282 | P139: 42756.96285 | Q139: 56043.83843 | R139: 70567.36867 | S139: 86442.65321 | T139: 103795.5044 | U139: 122763.4445 | V139: 143496.7951 | W139: 166159.8692 | X139: 190932.2725 | Y139: 218010.3276 | Z139: 247608.6293 | AA139: 279961.7456 | AB139: 315326.0762 | AC139: 353981.8853 | AD139: 396235.5219 | AE139: 442421.8479 | AF139: 492906.8923 | AG139: 548090.7513 | AH139: 608410.7596 | AI139: 674344.956 | AJ139: 746415.872 | AK139: 825194.6731 | AL139: 911305.6849 | AM139: 1005431.341 | AN139: 1108317.592 | AO139: 1220779.816 | AP139: 0 | AQ139: 0 | AR139: 0 | AS139: 0 | AT139: 0 | AU139: 0 | AV139: 0 | AW139: 0 | AX139: 0 | AY139: 0 | AZ139: 0 | BA139: 0 | BB139: 0 | BC139: 0 | BD139: 0 | BE139: 0 | BF139: 0 | BG139: 0 | BH139: 0 | BI139: 0 | BJ139: 0 | BK139: 0 | BL139: 0 | BM139: 0 | BN139: 0 | BO139: 0 | BP139: 0 | BQ139: 0 | BR139: 0 | BS139: 0 | BT139: 0 | BU139: 0 | BV139: 0 | BW139: =BW138*$F$139*BW9 -> 0 | BX139: 0 | BY139: 0 | BZ139: 0 | CA139: 0 | CB139: 0 | CC139: 0 | CD139: 0 | CE139: 0 | CF139: 0 | CG139: 0 | CH139: 0 | CI139: 0 | CJ139: 0 | CK139: 0 | CL139: 0 | CM139: 0 | CN139: 0 | CO139: 0 | CP139: 0 | CQ139: 0 | CR139: 0 | CS139: 0 | CT139: 0 | CU139: 0 | CV139: 0 | CW139: 0 | CX139: 0 | CY139: 0 | CZ139: 0 | DA139: 0 | DB139: 0 | DC139: 0 | DD139: 0 | DE139: 0 | DF139: 0 | DG139: 0 | DH139: 0 | DI139: 0 | DJ139: 0 | DK139: 0 | DL139: 0 | DM139: 0 | DN139: 0 | DO139: 0 | DP139: 0 | DQ139: 0 | DR139: 0 | DS139: 0 | DT139: 0 | DU139: 0 | DV139: 0 | DW139: 0 | DX139: 0 | DY139: 0 | DZ139: 0 | EA139: 0 | EB139: 0 | EC139: 0 | ED139: 0 | EE139: 0 | EF139: 0 | EG139: 0 | EH139: 0 | EI139: =EI138*$F$139*EI9 -> 0 | EJ139: 0 | EK139: 0 | EL139: 0 | EM139: 0 | EN139: 0 | EO139: 0 | EP139: 0 | EQ139: 0 | ER139: 0 | ES139: 0 | ET139: 0 | EU139: 0 | EV139: 0 | EW139: 0 | EX139: 0 | EY139: 0 | EZ139: 0 | FA139: 0 | FB139: 0 | FC139: 0 | FD139: 0 | FE139: 0 | FF139: 0 | FG139: 0 | FH139: 0 | FI139: 0 | FJ139: 0 | FK139: 0 | FL139: 0 | FM139: 0 | FN139: 0 | FO139: 0 | FP139: 0 | FQ139: 0 | FR139: 0 | FS139: 0 | FT139: 0 | FU139: 0 | FV139: 0 | FW139: 0 | FX139: 0 | FY139: 0 | FZ139: 0 | GA139: 0 | GB139: 0 | GC139: 0 | GD139: 0 | GE139: 0 | GF139: 0 | GG139: 0 | GH139: 0 | GI139: 0 | GJ139: 0 | GK139: 0 | GL139: 0 | GM139: 0 | GN139: 0 | GO139: 0 | GP139: 0 | GQ139: 0 | GR139: 0 | GS139: 0 | GT139: 0 | GU139: =GU138*$F$139*GU9 -> 0 | GV139: 0 | GW139: 0 | GX139: 0 | GY139: 0 | GZ139: 0 | HA139: 0 | HB139: 0 | HC139: 0 | HD139: 0 | HE139: 0 | HF139: 0 | HG139: 0 | HH139: 0 | HI139: 0 | HJ139: 0 | HK139: 0 | HL139: 0 | HM139: 0 | HN139: 0 | HO139: 0 | HP139: 0 | HQ139: 0 | HR139: 0 | HS139: 0 | HT139: 0 | HU139: 0 | HV139: 0 | HW139: 0 | HX139: 0 | HY139: 0 | HZ139: 0 | IA139: 0 | IB139: 0 | IC139: 0 | ID139: 0 | IE139: 0 | IF139: 0 | IG139: 0 | IH139: 0 | II139: 0 | IJ139: 0 | IK139: 0 | IL139: 0 | IM139: 0 | IN139: 0 | IO139: 0 | IP139: 0 | IQ139: 0 | IR139: 0 | IS139: 0 | IT139: 0 | IU139: 0 | IV139: 0 | IW139: 0 | IX139: 0 | IY139: 0 | IZ139: 0
D140: Dividends | E140: EUR | I140: EUR | K140: =K27 -> 0 | L140: 100000 | M140: 100000 | N140: 100000 | O140: 100000 | P140: 100000 | Q140: 100000 | R140: 100000 | S140: 100000 | T140: 100000 | U140: 100000 | V140: 100000 | W140: 100000 | X140: 100000 | Y140: 100000 | Z140: 100000 | AA140: 100000 | AB140: 100000 | AC140: 100000 | AD140: 100000 | AE140: 100000 | AF140: 100000 | AG140: 100000 | AH140: 100000 | AI140: 100000 | AJ140: 100000 | AK140: 100000 | AL140: 100000 | AM140: 100000 | AN140: 100000 | AO140: 100000 | AP140: 0 | AQ140: 0 | AR140: 0 | AS140: 0 | AT140: 0 | AU140: 0 | AV140: 0 | AW140: 0 | AX140: 0 | AY140: 0 | AZ140: 0 | BA140: 0 | BB140: 0 | BC140: 0 | BD140: 0 | BE140: 0 | BF140: 0 | BG140: 0 | BH140: 0 | BI140: 0 | BJ140: 0 | BK140: 0 | BL140: 0 | BM140: 0 | BN140: 0 | BO140: 0 | BP140: 0 | BQ140: 0 | BR140: 0 | BS140: 0 | BT140: 0 | BU140: 0 | BV140: 0 | BW140: =BW27 -> 0 | BX140: 0 | BY140: 0 | BZ140: 0 | CA140: 0 | CB140: 0 | CC140: 0 | CD140: 0 | CE140: 0 | CF140: 0 | CG140: 0 | CH140: 0 | CI140: 0 | CJ140: 0 | CK140: 0 | CL140: 0 | CM140: 0 | CN140: 0 | CO140: 0 | CP140: 0 | CQ140: 0 | CR140: 0 | CS140: 0 | CT140: 0 | CU140: 0 | CV140: 0 | CW140: 0 | CX140: 0 | CY140: 0 | CZ140: 0 | DA140: 0 | DB140: 0 | DC140: 0 | DD140: 0 | DE140: 0 | DF140: 0 | DG140: 0 | DH140: 0 | DI140: 0 | DJ140: 0 | DK140: 0 | DL140: 0 | DM140: 0 | DN140: 0 | DO140: 0 | DP140: 0 | DQ140: 0 | DR140: 0 | DS140: 0 | DT140: 0 | DU140: 0 | DV140: 0 | DW140: 0 | DX140: 0 | DY140: 0 | DZ140: 0 | EA140: 0 | EB140: 0 | EC140: 0 | ED140: 0 | EE140: 0 | EF140: 0 | EG140: 0 | EH140: 0 | EI140: =EI27 -> 0 | EJ140: 0 | EK140: 0 | EL140: 0 | EM140: 0 | EN140: 0 | EO140: 0 | EP140: 0 | EQ140: 0 | ER140: 0 | ES140: 0 | ET140: 0 | EU140: 0 | EV140: 0 | EW140: 0 | EX140: 0 | EY140: 0 | EZ140: 0 | FA140: 0 | FB140: 0 | FC140: 0 | FD140: 0 | FE140: 0 | FF140: 0 | FG140: 0 | FH140: 0 | FI140: 0 | FJ140: 0 | FK140: 0 | FL140: 0 | FM140: 0 | FN140: 0 | FO140: 0 | FP140: 0 | FQ140: 0 | FR140: 0 | FS140: 0 | FT140: 0 | FU140: 0 | FV140: 0 | FW140: 0 | FX140: 0 | FY140: 0 | FZ140: 0 | GA140: 0 | GB140: 0 | GC140: 0 | GD140: 0 | GE140: 0 | GF140: 0 | GG140: 0 | GH140: 0 | GI140: 0 | GJ140: 0 | GK140: 0 | GL140: 0 | GM140: 0 | GN140: 0 | GO140: 0 | GP140: 0 | GQ140: 0 | GR140: 0 | GS140: 0 | GT140: 0 | GU140: =GU27 -> 0 | GV140: 0 | GW140: 0 | GX140: 0 | GY140: 0 | GZ140: 0 | HA140: 0 | HB140: 0 | HC140: 0 | HD140: 0 | HE140: 0 | HF140: 0 | HG140: 0 | HH140: 0 | HI140: 0 | HJ140: 0 | HK140: 0 | HL140: 0 | HM140: 0 | HN140: 0 | HO140: 0 | HP140: 0 | HQ140: 0 | HR140: 0 | HS140: 0 | HT140: 0 | HU140: 0 | HV140: 0 | HW140: 0 | HX140: 0 | HY140: 0 | HZ140: 0 | IA140: 0 | IB140: 0 | IC140: 0 | ID140: 0 | IE140: 0 | IF140: 0 | IG140: 0 | IH140: 0 | II140: 0 | IJ140: 0 | IK140: 0 | IL140: 0 | IM140: 0 | IN140: 0 | IO140: 0 | IP140: 0 | IQ140: 0 | IR140: 0 | IS140: 0 | IT140: 0 | IU140: 0 | IV140: 0 | IW140: 0 | IX140: 0 | IY140: 0 | IZ140: 0
D141: Closing Balance | E141: EUR | I141: EUR | K141: =SUM(K138:K140) -> 0 | L141: 100000 | M141: 209307.3398 | N141: 328788.2851 | O141: 459389.7279 | P141: 602146.6907 | Q141: 758190.5292 | R141: 928757.8978 | S141: 1115200.551 | T141: 1318996.055 | U141: 1541759.5 | V141: 1785256.295 | W141: 2051416.164 | X141: 2342348.437 | Y141: 2660358.764 | Z141: 3007967.394 | AA141: 3387929.139 | AB141: 3803255.215 | AC141: 4257237.101 | AD141: 4753472.623 | AE141: 5295894.471 | AF141: 5888801.363 | AG141: 6536892.114 | AH141: 7245302.874 | AI141: 8019647.83 | AJ141: 8866063.702 | AK141: 9791258.375 | AL141: 10802564.06 | AM141: 11907995.4 | AN141: 13116312.99 | AO141: 14437092.81 | AP141: 14437092.81 | AQ141: 14437092.81 | AR141: 14437092.81 | AS141: 14437092.81 | AT141: 14437092.81 | AU141: 14437092.81 | AV141: 14437092.81 | AW141: 14437092.81 | AX141: 14437092.81 | AY141: 14437092.81 | AZ141: 14437092.81 | BA141: 14437092.81 | BB141: 14437092.81 | BC141: 14437092.81 | BD141: 14437092.81 | BE141: 14437092.81 | BF141: 14437092.81 | BG141: 14437092.81 | BH141: 14437092.81 | BI141: 14437092.81 | BJ141: 14437092.81 | BK141: 14437092.81 | BL141: 14437092.81 | BM141: 14437092.81 | BN141: 14437092.81 | BO141: 14437092.81 | BP141: 14437092.81 | BQ141: 14437092.81 | BR141: 14437092.81 | BS141: 14437092.81 | BT141: 14437092.81 | BU141: 14437092.81 | BV141: 14437092.81 | BW141: =SUM(BW138:BW140) -> 14437092.81 | BX141: 14437092.81 | BY141: 14437092.81 | BZ141: 14437092.81 | CA141: 14437092.81 | CB141: 14437092.81 | CC141: 14437092.81 | CD141: 14437092.81 | CE141: 14437092.81 | CF141: 14437092.81 | CG141: 14437092.81 | CH141: 14437092.81 | CI141: 14437092.81 | CJ141: 14437092.81 | CK141: 14437092.81 | CL141: 14437092.81 | CM141: 14437092.81 | CN141: 14437092.81 | CO141: 14437092.81 | CP141: 14437092.81 | CQ141: 14437092.81 | CR141: 14437092.81 | CS141: 14437092.81 | CT141: 14437092.81 | CU141: 14437092.81 | CV141: 14437092.81 | CW141: 14437092.81 | CX141: 14437092.81 | CY141: 14437092.81 | CZ141: 14437092.81 | DA141: 14437092.81 | DB141: 14437092.81 | DC141: 14437092.81 | DD141: 14437092.81 | DE141: 14437092.81 | DF141: 14437092.81 | DG141: 14437092.81 | DH141: 14437092.81 | DI141: 14437092.81 | DJ141: 14437092.81 | DK141: 14437092.81 | DL141: 14437092.81 | DM141: 14437092.81 | DN141: 14437092.81 | DO141: 14437092.81 | DP141: 14437092.81 | DQ141: 14437092.81 | DR141: 14437092.81 | DS141: 14437092.81 | DT141: 14437092.81 | DU141: 14437092.81 | DV141: 14437092.81 | DW141: 14437092.81 | DX141: 14437092.81 | DY141: 14437092.81 | DZ141: 14437092.81 | EA141: 14437092.81 | EB141: 14437092.81 | EC141: 14437092.81 | ED141: 14437092.81 | EE141: 14437092.81 | EF141: 14437092.81 | EG141: 14437092.81 | EH141: 14437092.81 | EI141: =SUM(EI138:EI140) -> 14437092.81 | EJ141: 14437092.81 | EK141: 14437092.81 | EL141: 14437092.81 | EM141: 14437092.81 | EN141: 14437092.81 | EO141: 14437092.81 | EP141: 14437092.81 | EQ141: 14437092.81 | ER141: 14437092.81 | ES141: 14437092.81 | ET141: 14437092.81 | EU141: 14437092.81 | EV141: 14437092.81 | EW141: 14437092.81 | EX141: 14437092.81 | EY141: 14437092.81 | EZ141: 14437092.81 | FA141: 14437092.81 | FB141: 14437092.81 | FC141: 14437092.81 | FD141: 14437092.81 | FE141: 14437092.81 | FF141: 14437092.81 | FG141: 14437092.81 | FH141: 14437092.81 | FI141: 14437092.81 | FJ141: 14437092.81 | FK141: 14437092.81 | FL141: 14437092.81 | FM141: 14437092.81 | FN141: 14437092.81 | FO141: 14437092.81 | FP141: 14437092.81 | FQ141: 14437092.81 | FR141: 14437092.81 | FS141: 14437092.81 | FT141: 14437092.81 | FU141: 14437092.81 | FV141: 14437092.81 | FW141: 14437092.81 | FX141: 14437092.81 | FY141: 14437092.81 | FZ141: 14437092.81 | GA141: 14437092.81 | GB141: 14437092.81 | GC141: 14437092.81 | GD141: 14437092.81 | GE141: 14437092.81 | GF141: 14437092.81 | GG141: 14437092.81 | GH141: 14437092.81 | GI141: 14437092.81 | GJ141: 14437092.81 | GK141: 14437092.81 | GL141: 14437092.81 | GM141: 14437092.81 | GN141: 14437092.81 | GO141: 14437092.81 | GP141: 14437092.81 | GQ141: 14437092.81 | GR141: 14437092.81 | GS141: 14437092.81 | GT141: 14437092.81 | GU141: =SUM(GU138:GU140) -> 14437092.81 | GV141: 14437092.81 | GW141: 14437092.81 | GX141: 14437092.81 | GY141: 14437092.81 | GZ141: 14437092.81 | HA141: 14437092.81 | HB141: 14437092.81 | HC141: 14437092.81 | HD141: 14437092.81 | HE141: 14437092.81 | HF141: 14437092.81 | HG141: 14437092.81 | HH141: 14437092.81 | HI141: 14437092.81 | HJ141: 14437092.81 | HK141: 14437092.81 | HL141: 14437092.81 | HM141: 14437092.81 | HN141: 14437092.81 | HO141: 14437092.81 | HP141: 14437092.81 | HQ141: 14437092.81 | HR141: 14437092.81 | HS141: 14437092.81 | HT141: 14437092.81 | HU141: 14437092.81 | HV141: 14437092.81 | HW141: 14437092.81 | HX141: 14437092.81 | HY141: 14437092.81 | HZ141: 14437092.81 | IA141: 14437092.81 | IB141: 14437092.81 | IC141: 14437092.81 | ID141: 14437092.81 | IE141: 14437092.81 | IF141: 14437092.81 | IG141: 14437092.81 | IH141: 14437092.81 | II141: 14437092.81 | IJ141: 14437092.81 | IK141: 14437092.81 | IL141: 14437092.81 | IM141: 14437092.81 | IN141: 14437092.81 | IO141: 14437092.81 | IP141: 14437092.81 | IQ141: 14437092.81 | IR141: 14437092.81 | IS141: 14437092.81 | IT141: 14437092.81 | IU141: 14437092.81 | IV141: 14437092.81 | IW141: 14437092.81 | IX141: 14437092.81 | IY141: 14437092.81 | IZ141: 14437092.81
D143: Cash accumulated in final period | E143: EUR | F143: =H9+H5 -> 31 | G143: =LOOKUP(F143,3:3,141:141) -> 14437092.81
D144: Investment | E144: EUR | G144: =G135 -> 1000000
D145: Ratio of accumulated cash / initial cash | E145: EUR | G145: =G143/G144 -> 14.43709281
D146: Number of periods | E146: Period | G146: =H9 -> 30
D147: Compound Periodic Growth Rate (CAGR) | E147: % p.p. | G147: =G145^(1/(G146))-1 -> 0.09307339772
D148: Compound Annual Growth Rate (CAGR) | E148: % p.a. | G148: =(1+G147)^(months/G6)-1 -> 0.09307339772
C150: MIRR | E150: % p.a. | G150: =MIRR(K29:IZ29,F139,F139) -> 0.09307339772
C152: Risk Premium Method
D153: Future Cash Flow with for Discounting | E153: EUR | K153: =IF(K9,K27) -> FALSE | L153: 100000 | M153: 100000 | N153: 100000 | O153: 100000 | P153: 100000 | Q153: 100000 | R153: 100000 | S153: 100000 | T153: 100000 | U153: 100000 | V153: 100000 | W153: 100000 | X153: 100000 | Y153: 100000 | Z153: 100000 | AA153: 100000 | AB153: 100000 | AC153: 100000 | AD153: 100000 | AE153: 100000 | AF153: 100000 | AG153: 100000 | AH153: 100000 | AI153: 100000 | AJ153: 100000 | AK153: 100000 | AL153: 100000 | AM153: 100000 | AN153: 100000 | AO153: 100000 | AP153: FALSE | AQ153: FALSE | AR153: FALSE | AS153: FALSE | AT153: FALSE | AU153: FALSE | AV153: FALSE | AW153: FALSE | AX153: FALSE | AY153: FALSE | AZ153: FALSE | BA153: FALSE | BB153: FALSE | BC153: FALSE | BD153: FALSE | BE153: FALSE | BF153: FALSE | BG153: FALSE | BH153: FALSE | BI153: FALSE | BJ153: FALSE | BK153: FALSE | BL153: FALSE | BM153: FALSE | BN153: FALSE | BO153: FALSE | BP153: FALSE | BQ153: FALSE | BR153: FALSE | BS153: FALSE | BT153: FALSE | BU153: FALSE | BV153: FALSE | BW153: =IF(BW9,BW27) -> FALSE | BX153: FALSE | BY153: FALSE | BZ153: FALSE | CA153: FALSE | CB153: FALSE | CC153: FALSE | CD153: FALSE | CE153: FALSE | CF153: FALSE | CG153: FALSE | CH153: FALSE | CI153: FALSE | CJ153: FALSE | CK153: FALSE | CL153: FALSE | CM153: FALSE | CN153: FALSE | CO153: FALSE | CP153: FALSE | CQ153: FALSE | CR153: FALSE | CS153: FALSE | CT153: FALSE | CU153: FALSE | CV153: FALSE | CW153: FALSE | CX153: FALSE | CY153: FALSE | CZ153: FALSE | DA153: FALSE | DB153: FALSE | DC153: FALSE | DD153: FALSE | DE153: FALSE | DF153: FALSE | DG153: FALSE | DH153: FALSE | DI153: FALSE | DJ153: FALSE | DK153: FALSE | DL153: FALSE | DM153: FALSE | DN153: FALSE | DO153: FALSE | DP153: FALSE | DQ153: FALSE | DR153: FALSE | DS153: FALSE | DT153: FALSE | DU153: FALSE | DV153: FALSE | DW153: FALSE | DX153: FALSE | DY153: FALSE | DZ153: FALSE | EA153: FALSE | EB153: FALSE | EC153: FALSE | ED153: FALSE | EE153: FALSE | EF153: FALSE | EG153: FALSE | EH153: FALSE | EI153: =IF(EI9,EI27) -> FALSE | EJ153: FALSE | EK153: FALSE | EL153: FALSE | EM153: FALSE | EN153: FALSE | EO153: FALSE | EP153: FALSE | EQ153: FALSE | ER153: FALSE | ES153: FALSE | ET153: FALSE | EU153: FALSE | EV153: FALSE | EW153: FALSE | EX153: FALSE | EY153: FALSE | EZ153: FALSE | FA153: FALSE | FB153: FALSE | FC153: FALSE | FD153: FALSE | FE153: FALSE | FF153: FALSE | FG153: FALSE | FH153: FALSE | FI153: FALSE | FJ153: FALSE | FK153: FALSE | FL153: FALSE | FM153: FALSE | FN153: FALSE | FO153: FALSE | FP153: FALSE | FQ153: FALSE | FR153: FALSE | FS153: FALSE | FT153: FALSE | FU153: FALSE | FV153: FALSE | FW153: FALSE | FX153: FALSE | FY153: FALSE | FZ153: FALSE | GA153: FALSE | GB153: FALSE | GC153: FALSE | GD153: FALSE | GE153: FALSE | GF153: FALSE | GG153: FALSE | GH153: FALSE | GI153: FALSE | GJ153: FALSE | GK153: FALSE | GL153: FALSE | GM153: FALSE | GN153: FALSE | GO153: FALSE | GP153: FALSE | GQ153: FALSE | GR153: FALSE | GS153: FALSE | GT153: FALSE | GU153: =IF(GU9,GU27) -> FALSE | GV153: FALSE | GW153: FALSE | GX153: FALSE | GY153: FALSE | GZ153: FALSE | HA153: FALSE | HB153: FALSE | HC153: FALSE | HD153: FALSE | HE153: FALSE | HF153: FALSE | HG153: FALSE | HH153: FALSE | HI153: FALSE | HJ153: FALSE | HK153: FALSE | HL153: FALSE | HM153: FALSE | HN153: FALSE | HO153: FALSE | HP153: FALSE | HQ153: FALSE | HR153: FALSE | HS153: FALSE | HT153: FALSE | HU153: FALSE | HV153: FALSE | HW153: FALSE | HX153: FALSE | HY153: FALSE | HZ153: FALSE | IA153: FALSE | IB153: FALSE | IC153: FALSE | ID153: FALSE | IE153: FALSE | IF153: FALSE | IG153: FALSE | IH153: FALSE | II153: FALSE | IJ153: FALSE | IK153: FALSE | IL153: FALSE | IM153: FALSE | IN153: FALSE | IO153: FALSE | IP153: FALSE | IQ153: FALSE | IR153: FALSE | IS153: FALSE | IT153: FALSE | IU153: FALSE | IV153: FALSE | IW153: FALSE | IX153: FALSE | IY153: FALSE | IZ153: FALSE
D154: Rf Discount Rate | E154: % | F154: =InputC!F27 -> 0.035 | G154: =(1+F154)^(G6/months)-1 -> 0.035
D155: NPV of cashflow at the risk free rate | E155: EUR | F155: =G154 -> 0.035 | G155: =K29:IZ29=NPV(F155,G10) -> FALSE | H155: FALSE | I155: FALSE | J155: FALSE | K155: FALSE | L155: FALSE | M155: FALSE | N155: FALSE | O155: FALSE | P155: FALSE | Q155: FALSE | R155: FALSE | S155: FALSE | T155: FALSE | U155: FALSE | V155: FALSE | W155: FALSE | X155: FALSE | Y155: FALSE | Z155: FALSE | AA155: FALSE | AB155: FALSE | AC155: FALSE | AD155: FALSE | AE155: FALSE | AF155: FALSE | AG155: FALSE | AH155: FALSE | AI155: FALSE | AJ155: FALSE | AK155: FALSE | AL155: TRUE | AM155: TRUE | AN155: TRUE | AO155: TRUE | AP155: TRUE | AQ155: TRUE | AR155: TRUE | AS155: TRUE | AT155: TRUE | AU155: TRUE | AV155: TRUE | AW155: TRUE | AX155: TRUE | AY155: TRUE | AZ155: TRUE | BA155: TRUE | BB155: TRUE | BC155: TRUE | BD155: TRUE | BE155: TRUE | BF155: TRUE | BG155: TRUE | BH155: TRUE | BI155: TRUE | BJ155: TRUE | BK155: TRUE | BL155: TRUE | BM155: TRUE | BN155: TRUE | BO155: TRUE | BP155: TRUE | BQ155: TRUE | BR155: TRUE | BS155: TRUE | BT155: TRUE | BU155: TRUE | BV155: TRUE | BW155: TRUE | BX155: TRUE | BY155: TRUE | BZ155: TRUE | CA155: TRUE | CB155: TRUE | CC155: TRUE | CD155: TRUE | CE155: TRUE | CF155: TRUE | CG155: TRUE | CH155: TRUE | CI155: TRUE | CJ155: TRUE | CK155: TRUE | CL155: TRUE | CM155: TRUE | CN155: TRUE | CO155: TRUE | CP155: TRUE | CQ155: TRUE | CR155: TRUE | CS155: TRUE | CT155: TRUE | CU155: TRUE | CV155: TRUE | CW155: TRUE | CX155: TRUE | CY155: TRUE | CZ155: TRUE | DA155: TRUE | DB155: TRUE | DC155: TRUE | DD155: TRUE | DE155: TRUE | DF155: TRUE | DG155: TRUE | DH155: TRUE | DI155: TRUE | DJ155: TRUE | DK155: TRUE | DL155: TRUE | DM155: TRUE | DN155: TRUE | DO155: TRUE | DP155: TRUE | DQ155: TRUE | DR155: TRUE | DS155: TRUE | DT155: TRUE | DU155: TRUE | DV155: TRUE | DW155: TRUE | DX155: TRUE | DY155: TRUE | DZ155: TRUE | EA155: TRUE | EB155: TRUE | EC155: TRUE | ED155: TRUE | EE155: TRUE | EF155: TRUE | EG155: TRUE | EH155: TRUE | EI155: TRUE | EJ155: TRUE | EK155: TRUE | EL155: TRUE | EM155: TRUE | EN155: TRUE | EO155: TRUE | EP155: TRUE | EQ155: TRUE | ER155: TRUE | ES155: TRUE | ET155: TRUE | EU155: TRUE | EV155: TRUE | EW155: TRUE | EX155: TRUE | EY155: TRUE | EZ155: TRUE | FA155: TRUE | FB155: TRUE | FC155: TRUE | FD155: TRUE | FE155: TRUE | FF155: TRUE | FG155: TRUE | FH155: TRUE | FI155: TRUE | FJ155: TRUE | FK155: TRUE | FL155: TRUE | FM155: TRUE | FN155: TRUE | FO155: TRUE | FP155: TRUE | FQ155: TRUE | FR155: TRUE | FS155: TRUE | FT155: TRUE | FU155: TRUE | FV155: TRUE | FW155: TRUE | FX155: TRUE | FY155: TRUE | FZ155: TRUE | GA155: TRUE | GB155: TRUE | GC155: TRUE | GD155: TRUE | GE155: TRUE | GF155: TRUE | GG155: TRUE | GH155: TRUE | GI155: TRUE | GJ155: TRUE | GK155: TRUE | GL155: TRUE | GM155: TRUE | GN155: TRUE | GO155: TRUE | GP155: TRUE | GQ155: TRUE | GR155: TRUE | GS155: TRUE | GT155: TRUE | GU155: TRUE | GV155: TRUE | GW155: TRUE | GX155: TRUE | GY155: TRUE | GZ155: TRUE | HA155: TRUE | HB155: TRUE | HC155: TRUE | HD155: TRUE | HE155: TRUE | HF155: TRUE | HG155: TRUE | HH155: TRUE | HI155: TRUE | HJ155: TRUE | HK155: TRUE | HL155: TRUE | HM155: TRUE | HN155: TRUE | HO155: TRUE | HP155: TRUE | HQ155: TRUE | HR155: TRUE | HS155: TRUE | HT155: TRUE | HU155: TRUE | HV155: TRUE | HW155: TRUE | HX155: TRUE | HY155: TRUE | HZ155: TRUE | IA155: TRUE | IB155: TRUE | IC155: TRUE | ID155: TRUE | IE155: TRUE | IF155: TRUE | IG155: TRUE | IH155: TRUE | II155: TRUE | IJ155: TRUE | IK155: TRUE | IL155: TRUE | IM155: TRUE | IN155: TRUE | IO155: TRUE | IP155: TRUE | IQ155: TRUE | IR155: TRUE | IS155: TRUE | IT155: TRUE | IU155: TRUE | IV155: TRUE
D156: Initial Investment | E156: EUR | G156: =NPV(F155,K27:IZ27) -> 1777009.218
D157: Premium earned above riskfree rate | E157: Ratio | G157: =G156/G135-1 -> 0.7770092185
D158: Periods for Annualisation | E158: Periods | G158: =H9 -> 30
D159: Annualised premium earned | E159: % p.p. | G159: =PMT(F155,F143,-G157) -> 0.04147084663
D160: Total Return - Rp + Rf | E160: % p.p. | G160: =G159+F155 -> 0.07647084663
D161: Annual Return | E161: % p.a. | G161: =(1+G160)^(months/G6)-1 -> 0.07647084663

Sheet Sensitivity
B3: Data Tables
E5: Scenario Input | G5: 1
H6: =LOOKUP(H7,InputC!4:4,InputC!5:5) -> Base Case - Annual | I6: =LOOKUP(I7,InputC!4:4,InputC!5:5) -> Longer-Construction | J6: =LOOKUP(J7,InputC!4:4,InputC!5:5) -> Shorter-Life | K6: =LOOKUP(K7,InputC!4:4,InputC!5:5) -> Higher Capital Expenditure | L6: =LOOKUP(L7,InputC!4:4,InputC!5:5) -> Lower Base EBITDA | M6: =LOOKUP(M7,InputC!4:4,InputC!5:5) -> Lower Growth Rate
H7: 1 | I7: 3 | J7: 4 | K7: 5 | L7: 6 | M7: 7
F8: Project IRR | G8: ='Financial Model'!F31 -> 0.09300350845
F9: EBITDA | G9: =total_ebitda -> 3000000
F10: DSCR | G10: ='Financial Model'!F100 -> 0
F11: LLCR | G11: ='Financial Model'!F111 -> 0
F12: PLCR | G12: ='Financial Model'!F105 -> 0
F37: Growth | G37: =I37/1000 -> 0.02 | I37: 20
O38: IRR Table - Life Sensitivity
F40: IRR Table | P40: EBITDA Sensitivity
G41: ='Financial Model'!F31 -> 0.09300350845 | H41: 50000 | I41: 70000 | J41: 100000 | K41: 125000 | L41: 150000 | O41: 50000 | P41: 70000 | Q41: 100000 | R41: 125000 | S41: 150000
G42: 15 | N42: 15 | O42: -0.02430078834 | P42: 0.01621136963 | Q42: 0.06607053578 | R42: 0.1021167934 | S42: 0.1351683676
F43: Life | G43: 30 | M43: Life | N43: 30 | O43: 0.03870281279 | P43: 0.06708253324 | Q43: 0.1039256513 | R43: 0.1320381463 | S43: 0.1589386523
G44: 50 | N44: 50 | O44: 0.05466993153 | P44: 0.07791992128 | Q44: 0.1100213349 | R44: 0.1357906401 | S44: 0.1612333477
G45: 100 | N45: 100 | O45: 0.06005807221 | P45: 0.08055883348 | Q45: 0.1109092295 | R45: 0.1361445844 | S45: 0.1613738
O47: Risk Premium Table - Life Sensitivity
P49: EBITDA Sensitivity
F50: Rf + Rp Table | G50: ='Financial Model'!G161 -> 0.07647084663 | H50: 50000 | I50: 70000 | J50: 100000 | K50: 125000 | L50: 150000 | O50: 50000 | P50: 70000 | Q50: 100000 | R50: 125000 | S50: 150000
G51: 15 | N51: 15 | O51: 0.001861966189 | P51: 0.02168068492 | Q51: 0.05140876302 | R51: 0.07618216143 | S51: 0.1009555598
G52: 30 | M52: Life | N52: 30 | O52: 0.03577232039 | P52: 0.05743020845 | Q52: 0.08991704054 | R52: 0.1169894006 | S52: 0.1440617607
F53: Life | G53: 50 | N53: 50 | O53: 0.05095366387 | P53: 0.07426375507 | Q53: 0.1092288919 | R53: 0.1383665059 | S53: 0.1675041199
G54: 100 | N54: 100 | O54: 0.06326104981 | P54: 0.08901299561 | Q54: 0.1276409143 | R54: 0.1598308466 | S54: 0.1920207788
O56: Total EBITDA - Life Sensitvity
O58: 50000 | P58: 70000 | Q58: 100000 | R58: 125000 | S58: 150000
N59: 15 | O59: 881964.2627 | P59: 1234749.968 | Q59: 1763928.525 | R59: 2204910.657 | S59: 2204910.657
M60: Life | N60: 30 | O60: 2068972.039 | P60: 2896560.855 | Q60: 4137944.079 | R60: 5172430.099 | S60: 5172430.099
N61: 50 | O61: 4313549.474 | P61: 6038969.264 | Q61: 8627098.948 | R61: 10783873.69 | S61: 10783873.69
N62: 100 | O62: 15923847.6 | P62: 22293386.64 | Q62: 31847695.2 | R62: 39809619 | S62: 39809619
O65: IRR - Construction Period Sensitivity
P67: Life of Project
O68: 15 | P68: 30 | Q68: 50 | R68: 75 | S68: 100
N69: 12 | O69: 0.06607053578 | P69: 0.1039256513 | Q69: 0.1100213349 | R69: 0.1108367383 | S69: 0.1109092295
M70: Constr Months | N70: 24 | O70: 0.06149146259 | P70: 0.09843768477 | Q70: 0.1048074424 | R70: 0.1057346165 | S70: 0.1058264911
N71: 36 | O71: 0.0575224787 | P71: 0.09357128441 | Q71: 0.1001778066 | R71: 0.1012141407 | S71: 0.101327163
N72: 48 | O72: 0.05403715074 | P72: 0.08920706809 | Q72: 0.09601843059 | R72: 0.09716100097 | S72: 0.09729675651
O75: Risk Preium + Rf - Construction Sensitivity
P76: Life of Project
O77: 15 | P77: 30 | Q77: 50 | R77: 75 | S77: 100
N78: 12 | O78: 0.05140876302 | P78: 0.08991704054 | Q78: 0.1092288919 | R78: 0.1210887644 | S78: 0.1276409143
M79: Constr Months | N79: 24 | O79: 0.04475043434 | P79: 0.08053499461 | Q79: 0.09922177973 | R79: 0.11068515 | S79: 0.1169415915
N80: 36 | O80: 0.03930388664 | P80: 0.07250607573 | Q80: 0.09049393167 | R80: 0.1015456871 | S80: 0.107520934
N81: 48 | O81: 0.03478849661 | P81: 0.06557593851 | Q81: 0.08282363612 | R81: 0.09345577679 | S81: 0.09916270859

Sheet Time Series
B2: Time Period
C3: Period | G3: 0 | H3: 1 | I3: 2 | J3: 3 | K3: 4 | L3: 5 | M3: 6 | N3: 7 | O3: 8 | P3: 9 | Q3: 10 | R3: 11 | S3: 12 | T3: 13 | U3: 14 | V3: 15 | W3: 16 | X3: 17 | Y3: 18 | Z3: 19 | AA3: 20 | AB3: 21 | AC3: 22 | AD3: 23 | AE3: 24 | AF3: 25 | AG3: 26 | AH3: 27 | AI3: 28 | AJ3: 29 | AK3: 30
C4: Volatility | E4: =InputC!F23 -> 0 | F4: =E5 -> 0.1 | G4: EBITDA | H4: ='Financial Model'!F21 -> 100000 | I4: =H4 -> 100000 | J4: =I4 -> 100000 | K4: 100000 | L4: 100000 | M4: 100000 | N4: 100000 | O4: 100000 | P4: 100000 | Q4: 100000 | R4: 100000 | S4: 100000 | T4: 100000 | U4: 100000 | V4: 100000 | W4: 100000 | X4: 100000 | Y4: 100000 | Z4: 100000 | AA4: 100000 | AB4: 100000 | AC4: 100000 | AD4: 100000 | AE4: 100000 | AF4: 100000 | AG4: 100000 | AH4: 100000 | AI4: 100000 | AJ4: 100000 | AK4: 100000
C5: Mean Reversion | E5: =InputC!F24 -> 0.1 | H5: 1 | I5: =H5*(I4/H4) -> 1 | J5: =I5*(J4/I4) -> 1 | K5: 1 | L5: 1 | M5: 1 | N5: 1 | O5: 1 | P5: 1 | Q5: 1 | R5: 1 | S5: 1 | T5: 1 | U5: 1 | V5: 1 | W5: 1 | X5: 1 | Y5: 1 | Z5: 1 | AA5: 1 | AB5: 1 | AC5: 1 | AD5: 1 | AE5: 1 | AF5: 1 | AG5: 1 | AH5: 1 | AI5: 1 | AJ5: 1 | AK5: 1
P8: Default Count | R8: =COUNTIF(J25:J1048576,">0") -> 0
P9: Total Loss | R9: =SUM(J25:J1048576) -> 0
P10: Average Loss | R10: =R9/E17 -> 0
P11: Loss Percent | R11: =R10/'Financial Model'!H43 -> 0
B17: Simulatons | E17: 200
B20: Simulation
F21: DSCR | G21: LLCR | H21: PLCR | I21: Project IRR | J21: Default
D22: Current | F22: =DSCR -> 0 | G22: =LLCR -> 0 | H22: =PLCR -> 0 | I22: =PIRR -> 0.09300350845 | J22: =Default_Amount -> 0
D23: Average

Sheet Simple Rp
B2: Examples
F5: =_xlfn.SEQUENCE(,2,0) -> 0 | G5: 1
E6: Cap Exp | F6: 1000
E7: EBITDA | F7: 0 | G7: 1100
E8: FCF | F8: =F7-F6 -> -1000 | G8: =G7-G6 -> 1100
E9: IRR | F9: =IRR(F8:G8) -> 0.1
E10: RF | F10: 0.05
E11: RP | F11: =(1+F9)/(1+F10)-1 -> 0.04761904762
E14: Gross NPV at Rf | F14: =NPV(F10,G7) -> 1047.619048
E15: NPV at Rf | F15: =NPV(F10,F8:G8) -> 45.35147392
E16: Outlay | F16: =F6 -> 1000
E17: Rp | F17: =F14/F16-1 -> 0.04761904762
F20: =_xlfn.SEQUENCE(,3,0) -> 0 | G20: 1 | H20: 2
E21: Cap Exp | F21: 1000
E22: EBITDA | F22: 0 | G22: 576.1904762 | H22: =G22 -> 576.1904762
E23: FCF | F23: =F22-F21 -> -1000 | G23: =G22-G21 -> 576.1904762 | H23: 576.1904762
E25: NPV at Target | F25: =NPV(F9,F23:H23) -> 0
E26: IRR | F26: =IRR(F23:H23) -> 0.1
E28: Gross at Rf | F28: =NPV(F10,F22:H22) -> 1020.356744
E29: NPV at Rf | F29: =NPV(F10,F23:H23) -> 67.97579198
E30: Outlay | F30: =F21 -> 1000
E31: Total Rp | F31: =F29/F30 -> 0.06797579198
E32: Level Rp | F32: =PMT(F10,H20,-F31) -> 0.03655771252

Sheet Volatility
K2: Monthly | L2: Monthly | P2: Annual | Q2: Annual | U2: 5-yr | V2: 5-yr | AG2: Monthly | AH2: Monthly | AL2: Annual | AM2: Annual | AQ2: 5-yr | AR2: 5-yr | BC2: Monthly | BD2: Monthly | BI2: Annual | BJ2: Annual | BN2: 5-Year | BO2: 5-Year
K3: =_xlfn.STDEV.S(K9:K637) -> 0.1238404826 | L3: =_xlfn.STDEV.S(L9:L637) -> 0.1001657428 | P3: =_xlfn.STDEV.S(P10:P60) -> 0.3047138882 | Q3: =_xlfn.STDEV.S(Q10:Q60) -> 0.276273976 | U3: =_xlfn.STDEV.S(U10:U60) -> 0.5257889865 | V3: =_xlfn.STDEV.S(V10:V60) -> 0.5019675415 | AG3: =_xlfn.STDEV.S(AG9:AG637) -> 0.1205384155 | AH3: =_xlfn.STDEV.S(AH9:AH637) -> 0.1230616511 | AL3: =_xlfn.STDEV.S(AL9:AL637) -> 0.4654873883 | AM3: =_xlfn.STDEV.S(AM9:AM637) -> 0.3627256937 | AQ3: =_xlfn.STDEV.S(AQ9:AQ16) -> 2.333338399 | AR3: =_xlfn.STDEV.S(AR9:AR16) -> 0.7446674978 | BC3: =_xlfn.STDEV.S(BC9:BC637) -> 0.1997902217 | BD3: =_xlfn.STDEV.S(BD9:BD637) -> 0.192599903 | BI3: =_xlfn.STDEV.S(BI9:BI48) -> 0.8202854049 | BJ3: =_xlfn.STDEV.S(BJ9:BJ48) -> 0.5619296073 | BN3: =_xlfn.STDEV.S(BN9:BN13) -> 2.542971464 | BO3: =_xlfn.STDEV.S(BO9:BO13) -> 1.152359157
K4: 12 | L4: 12 | P4: 1 | Q4: 1 | U4: =1/5 -> 0.2 | V4: =1/5 -> 0.2 | AG4: 12 | AH4: 12 | AL4: 1 | AM4: 1 | AQ4: =1/5 -> 0.2 | AR4: =1/5 -> 0.2 | BC4: 12 | BD4: 12 | BI4: 1 | BJ4: 1 | BN4: 0.2 | BO4: 0.2
K5: =K3*(K4^0.5) -> 0.4289960158 | L5: =L3*(L4^0.5) -> 0.3469843115 | P5: =P3*(P4^0.5) -> 0.3047138882 | Q5: =Q3*(Q4^0.5) -> 0.276273976 | U5: =U3*(U4^0.5) -> 0.2351399831 | V5: =V3*(V4^0.5) -> 0.2244867091 | AG5: =AG3*(AG4^0.5) -> 0.4175573197 | AH5: =AH3*(AH4^0.5) -> 0.4262980644 | AL5: =AL3*(AL4^0.5) -> 0.4654873883 | AM5: =AM3*(AM4^0.5) -> 0.3627256937 | AQ5: =AQ3*(AQ4^0.5) -> 1.043500655 | AR5: =AR3*(AR4^0.5) -> 0.3330254292 | BC5: =BC3*(BC4^0.5) -> 0.6920936298 | BD5: =BD3*(BD4^0.5) -> 0.667185635 | BI5: =BI3*(BI4^0.5) -> 0.8202854049 | BJ5: =BJ3*(BJ4^0.5) -> 0.5619296073 | BN5: =BN3*(BN4^0.5) -> 1.137251412 | BO5: =BO3*(BO4^0.5) -> 0.515350682
D7: Year | E7: 5-Year | F7: Month 1 | G7: Flag | H7: Counter | I7: Nominal | J7: Real | K7: Change | L7: LN Change | N7: Year | O7: Average | P7: Change | Q7: LN Change | S7: 5-yr | T7: Average | U7: Change | V7: LN Change | Z7: Date | AA7: AAPL | AB7: Year | AC7: 5-Year | AD7: Month 1 | AE7: Flag | AF7: Counter | AG7: Change | AH7: LN Change | AJ7: Year | AK7: Average | AL7: Change | AM7: LN Change | AP7: Average | AQ7: Change | AR7: LN Change | AV7: Date | AW7: BB | AX7: Year | AY7: 5-Year | AZ7: Month 1 | BA7: Flag | BC7: Change | BD7: LN Change | BG7: Year | BH7: Average | BI7: Change | BJ7: LN Change | BM7: Average | BN7: Change | BO7: LN Change
C8: 1973-01-01 | D8: =YEAR(C8) -> 1973 | E8: =MOD(D8,5)=0 -> FALSE | F8: =MONTH(C8)=1 -> TRUE | G8: =AND(F8,E8) -> FALSE | H8: 1 | I8: 2.08 | J8: 15.75221457 | Z8: 1985-01-01 | AA8: 0.09934119135 | AB8: =YEAR(Z8) -> 1985 | AC8: =MOD(AB8,5)=0 -> TRUE | AD8: =MONTH(Z8)=1 -> TRUE | AE8: =AND(AD8,AC8) -> TRUE | AF8: 1 | AJ8: 1985 | AK8: =AVERAGEIF(AB:AB,AJ8,AA:AA) -> 0.06847559785 | AO8: 1 | AP8: =AVERAGEIF(AF:AF,AO8,AA:AA) -> 0.20574217 | AV8: 1999-02-01 | AW8: 1.479166985 | AX8: =YEAR(AV8) -> 1999 | AY8: =MOD(AX8,5)=0 -> FALSE | AZ8: =MONTH(AV8)=1 -> FALSE | BA8: =AND(AZ8,AY8) -> FALSE | BB8: =BA8+BB7 -> 0 | BG8: 1999 | BH8: =AVERAGEIF(AX:AX,BG8,AW:AW) -> 4.21401518 | BL8: 1 | BM8: =AVERAGEIF(BB:BB,BL8,AW:AW) -> 9.217694537
C9: 1973-02-01 | D9: 1973 | E9: FALSE | F9: FALSE | G9: FALSE | H9: =H8+G9 -> 1 | I9: 2.08 | J9: 15.70239925 | K9: =J9/J8-1 -> -0.003162432765 | L9: =LN(J9/J8) -> -0.003167443823 | N9: 1974 | O9: =AVERAGEIF(D:D,N9,J:J) -> 73.10020057 | S9: 1 | T9: =AVERAGEIF(H:H,S9,J:J) -> 50.1456769 | Z9: 1985-02-01 | AA9: 0.08478268981 | AB9: =YEAR(Z9) -> 1985 | AC9: =MOD(AB9,5)=0 -> TRUE | AD9: =MONTH(Z9)=1 -> FALSE | AE9: =AND(AD9,AC9) -> FALSE | AF9: =AF8+AE9 -> 1 | AG9: =AA9/AA8-1 -> -0.1465505028 | AH9: =LN(AA9/AA8) -> -0.1584689099 | AJ9: 1986 | AK9: =AVERAGEIF(AB:AB,AJ9,AA:AA) -> 0.1131508444 | AL9: =AK9/AK8-1 -> 0.652425797 | AM9: =LN(AK9/AK8) -> 0.5022443883 | AO9: 2 | AP9: =AVERAGEIF(AF:AF,AO9,AA:AA) -> 0.3166067287 | AQ9: =AP9/AP8-1 -> 0.5388518974 | AR9: =LN(AP9/AP8) -> 0.4310366172 | AV9: 1999-03-01 | AW9: 1.75 | AX9: =YEAR(AV9) -> 1999 | AY9: =MOD(AX9,5)=0 -> FALSE | AZ9: =MONTH(AV9)=1 -> FALSE | BA9: =AND(AZ9,AY9) -> FALSE | BB9: =BA9+BB8 -> 0 | BC9: =AW9/AW8-1 -> 0.1830983373 | BD9: =LN(AW9/AW8) -> 0.1681367069 | BG9: 2000 | BH9: =AVERAGEIF(AX:AX,BG9,AW:AW) -> 12.51041667 | BI9: =BH9/BH8-1 -> 1.968764025 | BJ9: =LN(BH9/BH8) -> 1.088145713 | BL9: 2 | BM9: =AVERAGEIF(BB:BB,BL9,AW:AW) -> 57.27511113 | BN9: =BM9/BM8-1 -> 5.213604813 | BO9: =LN(BM9/BM8) -> 1.826741213
C10: 1973-03-01 | D10: 1973 | E10: FALSE | F10: FALSE | G10: FALSE | H10: 1 | I10: 2.35 | J10: 17.67447734 | K10: =J10/J9-1 -> 0.1255908768 | L10: =LN(J10/J9) -> 0.1183081216 | N10: 1975 | O10: 64.42027073 | P10: =O10/O9-1 -> -0.1187401645 | Q10: =LN(O10/O9) -> -0.126402764 | S10: 2 | T10: =AVERAGEIF(H:H,S10,J:J) -> 84.48757973 | U10: =T10/T9-1 -> 0.6848427412 | V10: =LN(T10/T9) -> 0.5216722308 | Z10: 1985-03-01 | AA10: 0.07579037547 | AB10: 1985 | AC10: TRUE | AD10: FALSE | AE10: FALSE | AF10: =AF9+AE10 -> 1 | AG10: =AA10/AA9-1 -> -0.1060630933 | AH10: =LN(AA10/AA9) -> -0.1121200804 | AJ10: 1987 | AK10: 0.2744893568 | AL10: =AK10/AK9-1 -> 1.425871043 | AM10: =LN(AK10/AK9) -> 0.886190653 | AO10: 3 | AP10: 0.2557748235 | AQ10: =AP10/AP9-1 -> -0.1921371208 | AR10: =LN(AP10/AP9) -> -0.2133629388 | AV10: 1999-04-01 | AW10: 2.03125 | AX10: 1999 | AY10: FALSE | AZ10: FALSE | BA10: FALSE | BB10: 0 | BC10: =AW10/AW9-1 -> 0.1607142857 | BD10: =LN(AW10/AW9) -> 0.1490355792 | BG10: 2001 | BH10: =AVERAGEIF(AX:AX,BG10,AW:AW) -> 4.770833433 | BI10: =BH10/BH9-1 -> -0.6186511161 | BJ10: =LN(BH10/BH9) -> -0.9640406171 | BL10: 3 | BM10: 25.36849992 | BN10: =BM10/BM9-1 -> -0.5570763737 | BO10: =LN(BM10/BM9) -> -0.8143579248
C11: 1973-04-01 | D11: 1973 | E11: FALSE | F11: FALSE | G11: FALSE | H11: 1 | I11: 2.35 | J11: 17.60192018 | K11: -0.00410519418 | L11: -0.004113643622 | N11: 1976 | O11: 66.97043087 | P11: =O11/O10-1 -> 0.03958629964 | Q11: 0.03882284521 | S11: 3 | T11: 116.782695 | U11: =T11/T10-1 -> 0.3822468976 | V11: =LN(T11/T10) -> 0.3237103617 | Z11: 1985-04-01 | AA11: 0.07279321551 | AB11: 1985 | AC11: TRUE | AD11: FALSE | AE11: FALSE | AF11: 1 | AG11: -0.03954539002 | AH11: -0.04034855455 | AJ11: 1988 | AK11: 0.2863463884 | AL11: 0.04319668956 | AM11: 0.04228973883 | AO11: 4 | AP11: 0.4166848622 | AQ11: 0.6291081999 | AR11: =LN(AP11/AP10) -> 0.4880327485 | AV11: 1999-05-01 | AW11: 2.34375 | AX11: 1999 | AY11: FALSE | AZ11: FALSE | BA11: FALSE | BB11: 0 | BC11: 0.1538461538 | BD11: 0.1431008436 | BG11: 2002 | BH11: 2.682361186 | BI11: -0.4377583658 | BJ11: -0.5758235674 | BL11: 4 | BM11: 8.675666706 | BN11: -0.6580142014 | BO11: =LN(BM11/BM10) -> -1.072986067
C12: 1973-05-01 | D12: 1973 | E12: FALSE | F12: FALSE | G12: FALSE | H12: 1 | I12: 2.35 | J12: 17.52316088 | K12: -0.004474472201 | L12: -0.004484512613 | N12: 1977 | O12: 67.90743276 | P12: 0.01399127759 | Q12: 0.01389430315 | S12: 4 | T12: 52.88790126 | U12: -0.5471255285 | V12: -0.7921402967 | Z12: 1985-05-01 | AA12: 0.05951922759 | AB12: 1985 | AC12: TRUE | AD12: FALSE | AE12: FALSE | AF12: 1 | AG12: -0.1823519929 | AH12: -0.2013233442 | AJ12: 1989 | AK12: 0.2862486628 | AL12: -0.0003412843478 | AM12: -0.0003413425986 | AO12: 5 | AP12: 3.256837402 | AQ12: 6.816068442 | AR12: 2.056181671 | AV12: 1999-06-01 | AW12: 3.375 | AX12: 1999 | AY12: FALSE | AZ12: FALSE | BA12: FALSE | BB12: 0 | BC12: 0.44 | BD12: 0.3646431136 | BG12: 2003 | BH12: 4.752361139 | BI12: 0.7717081369 | BJ12: 0.5719441303 | BL12: 5 | BM12: 5.678833322 | BN12: -0.3454297503 | BO12: -0.423776366
C13: 1973-06-01 | D13: 1973 | E13: FALSE | F13: FALSE | G13: FALSE | H13: 1 | I13: 2.7 | J13: 20.03554523 | K13: 0.1433750664 | L13: 0.133984473 | N13: 1978 | O13: 67.75967787 | P13: -0.002175827889 | Q13: -0.002178198442 | S13: 5 | T13: 44.44568126 | U13: -0.1596247876 | V13: -0.1739068054 | Z13: 1985-06-01 | AA13: 0.06166006252 | AB13: 1985 | AC13: TRUE | AD13: FALSE | AE13: FALSE | AF13: 1 | AG13: 0.03596879553 | AH13: 0.03533702324 | AJ13: 1990 | AK13: 0.2656811513 | AL13: -0.07185190427 | AM13: -0.07456397301 | AO13: 6 | AP13: 14.31573504 | AQ13: 3.395594029 | AR13: 1.480602682 | AV13: 1999-07-01 | AW13: 3.895833015 | AX13: 1999 | AY13: FALSE | AZ13: FALSE | BA13: FALSE | BB13: 0 | BC13: 0.1543208935 | BD13: 0.1435122 | BG13: 2004 | BH13: 21.37250026 | BI13: 3.497238244 | BJ13: 1.503463485 | BL13: 6 | BM13: 4.030587524 | BN13: -0.2902437357 | BO13: -0.3428336576
C14: 1973-07-01 | D14: 1973 | E14: FALSE | F14: FALSE | G14: FALSE | H14: 1 | I14: 2.7 | J14: 19.94276433 | K14: -0.004630814908 | L14: -0.004641570349 | N14: 1979 | O14: 155.3800864 | P14: 1.293105447 | Q14: 0.8299069893 | S14: 6 | T14: 35.43694352 | U14: -0.2026909586 | V14: -0.2265129195 | Z14: 1985-07-01 | AA14: 0.05438122898 | AB14: 1985 | AC14: TRUE | AD14: FALSE | AE14: FALSE | AF14: 1 | AG14: -0.1180477807 | AH14: -0.1256173976 | AJ14: 1991 | AK14: 0.3752059316 | AL14: 0.4122414395 | AM14: 0.3451781156 | AO14: 7 | AP14: 36.26576589 | AQ14: 1.533280044 | AR14: 0.9295149232 | AV14: 1999-08-01 | AW14: 4.958333015 | AX14: 1999 | AY14: FALSE | AZ14: FALSE | BA14: FALSE | BB14: 0 | BC14: 0.272727295 | BD14: 0.2411620743 | BG14: 2005 | BH14: 23.35361099 | BI14: 0.09269438332 | BJ14: 0.0886465574
C15: 1973-08-01 | D15: 1973 | E15: FALSE | F15: FALSE | G15: FALSE | H15: 1 | I15: 2.7 | J15: 19.82476675 | K15: -0.005916811705 | L15: -0.00593438539 | N15: 1980 | O15: 154.7548251 | P15: -0.004024076461 | Q15: -0.004032194843 | S15: 7 | T15: 51.9898688 | U15: 0.467109283 | V15: 0.3832939906 | Z15: 1985-08-01 | AA15: 0.05138326064 | AB15: 1985 | AC15: TRUE | AD15: FALSE | AE15: FALSE | AF15: 1 | AG15: -0.05512873471 | AH15: -0.05670658798 | AJ15: 1992 | AK15: 0.3990832195 | AL15: 0.06363782098 | AM15: 0.06169493916 | AO15: 8 | AP15: 153.0575446 | AQ15: 3.220441535 | AR15: 1.439939752 | AV15: 1999-09-01 | AW15: 5.15625 | AX15: 1999 | AY15: FALSE | AZ15: FALSE | BA15: FALSE | BB15: 0 | BC15: 0.03991603306 | BD15: 0.03913997245 | BG15: 2006 | BH15: 29.69722239 | BI15: 0.2716329993 | BJ15: 0.2403019008
C16: 1973-09-01 | D16: 1973 | E16: FALSE | F16: FALSE | G16: FALSE | H16: 1 | I16: 4.1 | J16: 29.92656131 | K16: 0.5095542706 | L16: 0.4118144222 | N16: 1981 | O16: 132.6365248 | P16: -0.142924786 | Q16: -0.1542295999 | S16: 8 | T16: 109.9421947 | U16: 1.114684981 | V16: 0.7489058563 | Z16: 1985-09-01 | AA16: 0.05395304039 | AB16: 1985 | AC16: TRUE | AD16: FALSE | AE16: FALSE | AF16: 1 | AG16: 0.05001200239 | AH16: 0.04880159495 | AJ16: 1993 | AK16: 0.2905449693 | AL16: -0.271968965 | AM16: -0.3174116011 | AO16: 9 | AP16: 219.1406422 | AQ16: 0.4317532839 | AR16: 0.3588997659 | AV16: 1999-10-01 | AW16: 5.125 | AX16: 1999 | AY16: FALSE | AZ16: FALSE | BA16: FALSE | BB16: 0 | BC16: -0.006060606061 | BD16: -0.006079046076 | BG16: 2007 | BH16: 75.65555636 | BI16: 1.547563384 | BJ16: 0.9351373665
C17: 1973-10-01 | D17: 1973 | E17: FALSE | F17: FALSE | G17: FALSE | H17: 1 | I17: 4.1 | J17: 29.73980464 | K17: -0.006240498895 | L17: -0.006260052199 | N17: 1982 | O17: 111.2843419 | P17: -0.1609826776 | Q17: -0.1755239262 | S17: 9 | T17: 142.4606557 | U17: 0.2957778046 | V17: 0.2591111362 | Z17: 1985-10-01 | AA17: 0.06380093843 | AB17: 1985 | AC17: TRUE | AD17: FALSE | AE17: FALSE | AF17: 1 | AG17: 0.1825272119 | AH17: 0.1676538533 | AJ17: 1994 | AK17: 0.252518372 | AL17: -0.130880247 | AM17: -0.1402743577 | AV17: 1999-11-01 | AW17: 8.541666985 | AX17: 1999 | AY17: FALSE | AZ17: FALSE | BA17: FALSE | BB17: 0 | BC17: 0.6666667287 | BD17: 0.510825661 | BG17: 2008 | BH17: 94.45916684 | BI17: 0.2485423595 | BJ17: 0.2219767584
C18: 1973-11-01 | D18: 1973 | E18: FALSE | F18: FALSE | G18: FALSE | H18: 1 | I18: 4.1 | J18: 29.54388079 | K18: -0.00658793337 | L18: -0.006609729584 | N18: 1983 | O18: 96.12474957 | P18: -0.1362239473 | Q18: -0.1464417421 | S18: 10 | T18: 74.5747735 | U18: -0.4765237241 | V18: -0.647263568 | Z18: 1985-11-01 | AA18: 0.06893972307 | AB18: 1985 | AC18: TRUE | AD18: FALSE | AE18: FALSE | AF18: 1 | AG18: 0.08054402919 | AH18: 0.07746464504 | AJ18: 1995 | AK18: 0.2938975493 | AL18: 0.163866007 | AM18: 0.1517472285 | AV18: 1999-12-01 | AW18: 7.697916985 | AX18: 1999 | AY18: FALSE | AZ18: FALSE | BA18: FALSE | BB18: 0 | BC18: -0.09878048413 | BD18: -0.1040064152 | BG18: 2009 | BH18: 63.20999908 | BI18: -0.3308219711 | BJ18: -0.4017051422
C19: 1973-12-01 | D19: 1973 | E19: FALSE | F19: FALSE | G19: FALSE | H19: 1 | I19: 13 | J19: 93.02634348 | K19: 2.148751654 | L19: 1.147006074 | N19: 1984 | O19: 89.11303346 | P19: -0.07294392063 | Q19: -0.0757412197 | S19: 11 | T19: 84.22111437 | U19: 0.1293512594 | V19: 0.1216433612 | Z19: 1985-12-01 | AA19: 0.07536222041 | AB19: 1985 | AC19: TRUE | AD19: FALSE | AE19: FALSE | AF19: 1 | AG19: 0.09316105499 | AH19: 0.08907354965 | AJ19: 1996 | AK19: 0.1798862914 | AL19: -0.3879285763 | AM19: -0.4909062979 | AV19: 2000-01-01 | AW19: 10.95833302 | AX19: 2000 | AY19: TRUE | AZ19: TRUE | BA19: TRUE | BB19: 1 | BC19: 0.4235452314 | BD19: 0.353150402 | BG19: 2010 | BH19: 59.56999969 | BI19: -0.05758581621 | BJ19: -0.05931041548
C20: 1974-01-01 | D20: 1974 | E20: FALSE | F20: TRUE | G20: FALSE | H20: 1 | I20: 13 | J20: 92.33320792 | K20: -0.007450959984 | L20: -0.007478857046 | N20: 1985 | O20: 81.70213202 | P20: -0.08316293539 | Q20: -0.0868255056 | Z20: 1986-01-01 | AA20: 0.07921651751 | AB20: 1986 | AC20: FALSE | AD20: TRUE | AE20: FALSE | AF20: 1 | AG20: 0.05114362449 | AH20: 0.04987873764 | AJ20: 1997 | AK20: 0.1299894657 | AL20: -0.2773798122 | AM20: -0.3248715229 | AV20: 2000-02-01 | AW20: 22.54166794 | AX20: 2000 | AY20: TRUE | AZ20: FALSE | BA20: FALSE | BB20: 1 | BC20: 1.057034396 | BD20: 0.7212653321 | BG20: 2011 | BH20: 36.04583343 | BI20: -0.3948995532 | BJ20: -0.502360807
C21: 1974-02-01 | D21: 1974 | E21: FALSE | F21: FALSE | G21: FALSE | H21: 1 | I21: 13 | J21: 91.60113726 | K21: -0.007928573931 | L21: -0.007960172204 | N21: 1986 | O21: 41.30542774 | P21: -0.4944388021 | Q21: -0.6820861837 | Z21: 1986-02-01 | AA21: 0.08563905954 | AB21: 1986 | AC21: FALSE | AD21: FALSE | AE21: FALSE | AF21: 1 | AG21: 0.08107579376 | AH21: 0.07795665068 | AJ21: 1998 | AK21: 0.2289424439 | AL21: 0.7612384411 | AM21: 0.5660172213 | AV21: 2000-03-01 | AW21: 17.75 | AX21: 2000 | AY21: TRUE | AZ21: FALSE | BA21: FALSE | BB21: 1 | BC21: -0.2125693605 | BD21: -0.238979989 | BG21: 2012 | BH21: 10.85499994 | BI21: -0.6988556261 | BJ21: -1.200165482
C22: 1974-03-01 | D22: 1974 | E22: FALSE | F22: FALSE | G22: FALSE | H22: 1 | I22: 10.59999847 | J22: 74.07727236 | K22: -0.1913061936 | L22: -0.2123349176 | N22: 1987 | O22: 51.89080834 | P22: 0.2562709353 | Q22: 0.2281477576 | Z22: 1986-03-01 | AA22: 0.09677217901 | AB22: 1986 | AC22: FALSE | AD22: FALSE | AE22: FALSE | AF22: 1 | AG22: 0.1300004872 | AH22: 0.1222180639 | AJ22: 1999 | AK22: 0.4461583669 | AL22: 0.9487796114 | AM22: 0.6672033363 | AV22: 2000-04-01 | AW22: 7.083333015 | AX22: 2000 | AY22: TRUE | AZ22: FALSE | BA22: FALSE | BB22: 1 | BC22: -0.600938985 | BD22: -0.9186409541 | BG22: 2013 | BH22: 10.84249997 | BI22: -0.001151540146 | BJ22: -0.001152203677
C23: 1974-04-01 | D23: 1974 | E23: FALSE | F23: FALSE | G23: FALSE | H23: 1 | I23: 10.59999847 | J23: 73.48613754 | K23: -0.007979975604 | L23: -0.008011986018 | N23: 1988 | O23: 41.01991265 | P23: -0.2094955934 | Q23: -0.2350840479 | Z23: 1986-04-01 | AA23: 0.1036236435 | AB23: 1986 | AC23: FALSE | AD23: FALSE | AE23: FALSE | AF23: 1 | AG23: 0.07079994044 | AH23: 0.06840597704 | AJ23: 2000 | AK23: 0.6528594171 | AL23: 0.463290763 | AM23: 0.3806878466 | AV23: 2000-05-01 | AW23: 5.364583015 | AX23: 2000 | AY23: TRUE | AZ23: FALSE | BA23: FALSE | BB23: 1 | BC23: -0.2426470697 | BD23: -0.2779259119 | BG23: 2014 | BH23: 9.529166579 | BI23: -0.1211282818 | BJ23: -0.1291163326
C24: 1974-05-01 | D24: 1974 | E24: FALSE | F24: FALSE | G24: FALSE | H24: 1 | I24: 10.59999847 | J24: 72.86591826 | K24: -0.008439949262 | L24: -0.008475767312 | N24: 1989 | O24: 48.52122556 | P24: 0.1828700361 | Q24: 0.1679437194 | Z24: 1986-05-01 | AA24: 0.1267462671 | AB24: 1986 | AC24: FALSE | AD24: FALSE | AE24: FALSE | AF24: 1 | AG24: 0.2231404222 | AH24: 0.2014216679 | AJ24: 2001 | AK24: 0.3055109642 | AL24: -0.5320417287 | AM24: -0.7593761509 | AV24: 2000-06-01 | AW24: 7.541666985 | AX24: 2000 | AY24: TRUE | AZ24: FALSE | BA24: FALSE | BB24: 1 | BC24: 0.4058253853 | BD24: 0.3406245931 | BG24: 2015 | BH24: 8.666666706 | BI24: -0.09051157472 | BJ24: -0.09487300757
C25: 1974-06-01 | D25: 1974 | E25: FALSE | F25: FALSE | G25: FALSE | H25: 1 | I25: 10 | J25: 68.15339398 | K25: -0.06467391615 | L25: -0.06686005771 | N25: 1990 | O25: 59.44674144 | P25: 0.2251698253 | Q25: 0.2030794673 | Z25: 1986-06-01 | AA25: 0.1228919923 | AB25: 1986 | AC25: FALSE | AD25: FALSE | AE25: FALSE | AF25: 1 | AG25: -0.03040937488 | AH25: -0.03088133252 | AJ25: 2002 | AK25: 0.2824268999 | AL25: -0.07555887358 | AM25: -0.07856591172 | AV25: 2000-07-01 | AW25: 9.03125 | AX25: 2000 | AY25: TRUE | AZ25: FALSE | BA25: FALSE | BB25: 1 | BC25: 0.1975137617 | BD25: 0.1802475422 | BG25: 2016 | BH25: 7.406666676 | BI25: -0.1453846182 | BJ25: -0.1571037571
C26: 1974-07-01 | D26: 1974 | E26: FALSE | F26: FALSE | G26: FALSE | H26: 1 | I26: 10 | J26: 67.5373301 | K26: -0.009039371924 | L26: -0.009080474931 | N26: 1991 | O26: 46.49299425 | P26: -0.2179050842 | Q26: -0.24577917 | Z26: 1986-07-01 | AA26: 0.1070489809 | AB26: 1986 | AC26: FALSE | AD26: FALSE | AE26: FALSE | AF26: 1 | AG26: -0.1289181755 | AH26: -0.1380193634 | AJ26: 2003 | AK26: 0.2805881364 | AL26: -0.006510582226 | AM26: -0.006531868508 | AV26: 2000-08-01 | AW26: 12.59375 | AX26: 2000 | AY26: TRUE | AZ26: FALSE | BA26: FALSE | BB26: 1 | BC26: 0.3944636678 | BD26: 0.3325098738 | BG26: 2017 | BH26: 9.531666716 | BI26: 0.2869036954 | BJ26: 0.252239097
C27: 1974-08-01 | D27: 1974 | E27: FALSE | F27: FALSE | G27: FALSE | H27: 1 | I27: 10 | J27: 66.95932976 | K27: -0.008558235005 | L27: -0.008595066993 | N27: 1992 | O27: 44.18471569 | P27: -0.04964787901 | Q27: -0.05092270939 | Z27: 1986-08-01 | AA27: 0.1267462671 | AB27: 1986 | AC27: FALSE | AD27: FALSE | AE27: FALSE | AF27: 1 | AG27: 0.1840025568 | AH27: 0.1689006959 | AJ27: 2004 | AK27: 0.5620388935 | AL27: 1.003074331 | AM27: 0.6946831658 | AV27: 2000-09-01 | AW27: 16.42708206 | AX27: 2000 | AY27: TRUE | AZ27: FALSE | BA27: FALSE | BB27: 1 | BC27: 0.3043836873 | BD27: 0.2657306589 | BG27: 2018 | BH27: 10.43833339 | BI27: 0.09512152525 | BJ27: 0.09086533907
C28: 1974-09-01 | D28: 1974 | E28: FALSE | F28: FALSE | G28: FALSE | H28: 1 | I28: 10.29999924 | J28: 68.32253174 | K28: 0.02035865634 | L28: 0.02015418936 | N28: 1993 | O28: 37.35011978 | P28: -0.1546823558 | Q28: -0.168042812 | Z28: 1986-09-01 | AA28: 0.1147567704 | AB28: 1986 | AC28: FALSE | AD28: FALSE | AE28: FALSE | AF28: 1 | AG28: -0.09459447544 | AH28: -0.09937234221 | AJ28: 2005 | AK28: 1.446119189 | AL28: 1.572987752 | AM28: 0.9450677732 | AV28: 2000-10-01 | AW28: 16.66666794 | AX28: 2000 | AY28: TRUE | AZ28: FALSE | BA28: FALSE | BB28: 1 | BC28: 0.01458481035 | BD28: 0.01447947497 | BG28: 2019 | BH28: 7.335000038 | BI28: -0.297301613 | BJ28: -0.3528275161
C29: 1974-10-01 | D29: 1974 | E29: FALSE | F29: FALSE | G29: FALSE | H29: 1 | I29: 10.29999924 | J29: 67.6772361 | K29: -0.009444843731 | L29: -0.009489729115 | N29: 1994 | O29: 34.75383512 | P29: -0.06951208397 | Q29: -0.07204618952 | Z29: 1986-10-01 | AA29: 0.1186103374 | AB29: 1986 | AC29: FALSE | AD29: FALSE | AE29: FALSE | AF29: 1 | AG29: 0.03358030145 | AH29: 0.03302879567 | AJ29: 2006 | AK29: 2.1627494 | AL29: 0.4955540427 | AM29: 0.4024967353 | AV29: 2000-11-01 | AW29: 10.83333302 | AX29: 2000 | AY29: TRUE | AZ29: FALSE | BA29: FALSE | BB29: 1 | BC29: -0.3500000687 | BD29: -0.4307830217 | BG29: 2020 | BH29: 5.06249996 | BI29: -0.3098159599 | BJ29: -0.3707969922
C30: 1974-11-01 | D30: 1974 | E30: FALSE | F30: FALSE | G30: FALSE | H30: 1 | I30: 10.29999924 | J30: 67.0311084 | K30: -0.009547194099 | L30: -0.009593060722 | N30: 1995 | O30: 36.24665385 | P30: 0.04295407192 | Q30: 0.04205714046 | Z30: 1986-11-01 | AA30: 0.1370223314 | AB30: 1986 | AC30: FALSE | AD30: FALSE | AE30: FALSE | AF30: 1 | AG30: 0.1552309384 | AH30: 0.1443002707 | AJ30: 2007 | AK30: 4.003282468 | AL30: 0.8510154103 | AM30: 0.6157343589 | AV30: 2000-12-01 | AW30: 13.33333302 | AX30: 2000 | AY30: TRUE | AZ30: FALSE | BA30: FALSE | BB30: 1 | BC30: 0.2307692375 | BD30: 0.2076393703 | BG30: 2021 | BH30: 10.38916675 | BI30: 1.052181103 | BJ30: 0.7189031802
C31: 1974-12-01 | D31: 1974 | E31: FALSE | F31: FALSE | G31: FALSE | H31: 1 | I31: 10.42000008 | J31: 67.15780337 | K31: 0.001890092187 | L31: 0.00188830821 | N31: 1996 | O31: 43.31121563 | P31: 0.1949024539 | Q31: 0.1780645535 | Z31: 1986-12-01 | AA31: 0.1387357861 | AB31: 1986 | AC31: FALSE | AD31: FALSE | AE31: FALSE | AF31: 1 | AG31: 0.01250493045 | AH31: 0.01242738956 | AJ31: 2008 | AK31: 4.157210767 | AL31: 0.03845052179 | AM31: 0.03772971928 | AV31: 2001-01-01 | AW31: 10.96875 | AX31: 2001 | AY31: FALSE | AZ31: TRUE | BA31: FALSE | BB31: 1 | BC31: -0.1773437304 | BD31: -0.1952168209 | BG31: 2022 | BH31: 5.773333251 | BI31: -0.4442929458 | BJ31: -0.5875140045
C32: 1975-01-01 | D32: 1975 | E32: TRUE | F32: TRUE | G32: TRUE | H32: 2 | I32: 10.42000008 | J32: 66.53632816 | K32: -0.009253953782 | L32: -0.009297037616 | N32: 1997 | O32: 36.75116559 | P32: -0.1514630781 | Q32: -0.1642416809 | Z32: 1987-01-01 | AA32: 0.1901190281 | AB32: 1987 | AC32: FALSE | AD32: TRUE | AE32: FALSE | AF32: 1 | AG32: 0.3703676136 | AH32: 0.3150790349 | AJ32: 2009 | AK32: 4.514825185 | AL32: 0.08602268153 | AM32: 0.08252210668 | AV32: 2001-02-01 | AW32: 6.447916985 | AX32: 2001 | AY32: FALSE | AZ32: FALSE | BA32: FALSE | BB32: 1 | BC32: -0.4121557165 | BD32: -0.5312931901 | BG32: 2023 | BH32: 4.470000009 | BI32: -0.2257505649 | BJ32: -0.2558611897
C33: 1975-02-01 | D33: 1975 | E33: TRUE | F33: FALSE | G33: FALSE | H33: 2 | I33: 10.42000008 | J33: 65.94887471 | K33: -0.008829063292 | L33: -0.008868270417 | N33: 1998 | O33: 24.30563758 | P33: -0.3386430828 | Q33: -0.4134616194 | Z33: 1987-02-01 | AA33: 0.2397896051 | AB33: 1987 | AC33: FALSE | AD33: FALSE | AE33: FALSE | AF33: 1 | AG33: 0.2612604196 | AH33: 0.232111554 | AJ33: 2010 | AK33: 7.805155754 | AL33: 0.7287836038 | AM33: 0.547418042 | AV33: 2001-03-01 | AW33: 3.661667109 | AX33: 2001 | AY33: FALSE | AZ33: FALSE | BA33: FALSE | BB33: 1 | BC33: -0.4321162761 | BD33: -0.5658385927 | BG33: 2024 | BH33: 2.699166636 | BI33: -0.3961595905 | BJ33: -0.5044453387
C34: 1975-03-01 | D34: 1975 | E34: TRUE | F34: FALSE | G34: FALSE | H34: 2 | I34: 10.42000008 | J34: 65.41472124 | K34: -0.008099508459 | L34: -0.008132487675 | N34: 1999 | O34: 36.57004494 | P34: 0.504591057 | Q34: 0.4085211383 | Z34: 1987-03-01 | AA34: 0.220948711 | AB34: 1987 | AC34: FALSE | AD34: FALSE | AE34: FALSE | AF34: 1 | AG34: -0.07857260573 | AH34: -0.08183129579 | AJ34: 2011 | AK34: 11.06561502 | AL34: 0.4177314799 | AM34: 0.3490580448 | AV34: 2001-04-01 | AW34: 5.653333187 | AX34: 2001 | AY34: FALSE | AZ34: FALSE | BA34: FALSE | BB34: 1 | BC34: 0.5439233058 | BD34: 0.434326778 | BG34: 2025 | BH34: 4.030587524 | BI34: 0.4932710974 | BJ34: 0.4009690811
C35: 1975-04-01 | D35: 1975 | E35: TRUE | F35: FALSE | G35: FALSE | H35: 2 | I35: 10.42000008 | J35: 64.88698972 | K35: -0.008067473326 | L35: -0.008100191476 | N35: 2000 | O35: 52.99788585 | P35: 0.4492157705 | Q35: 0.3710225622 | Z35: 1987-04-01 | AA35: 0.271476388 | AB35: 1987 | AC35: FALSE | AD35: FALSE | AE35: FALSE | AF35: 1 | AG35: 0.2286850948 | AH35: 0.205944569 | AJ35: 2012 | AK35: 17.54352872 | AL35: 0.5854092779 | AM35: 0.4608425935 | AV35: 2001-05-01 | AW35: 5.436666965 | AX35: 2001 | AY35: FALSE | AZ35: FALSE | BA35: FALSE | BB35: 1 | BC35: -0.03832539397 | BD35: -0.0390791329 | BG35: 2012 | BH35: 10.85499994 | BI35: 1.693155743 | BJ35: 0.9907136448
C36: 1975-05-01 | D36: 1975 | E36: TRUE | F36: FALSE | G36: FALSE | H36: 2 | I36: 10.42000008 | J36: 64.39982391 | K36: -0.007507912106 | L36: -0.007536238348 | N36: 2001 | O36: 43.40574287 | P36: -0.1809910494 | Q36: -0.1996602665 | Z36: 1987-05-01 | AA36: 0.2706200778 | AB36: 1987 | AC36: FALSE | AD36: FALSE | AE36: FALSE | AF36: 1 | AG36: -0.003154271116 | AH36: -0.003159256315 | AJ36: 2013 | AK36: 14.52061192 | AL36: -0.1723095076 | AM36: -0.1891159959 | AV36: 2001-06-01 | AW36: 5.375 | AX36: 2001 | AY36: FALSE | AZ36: FALSE | BA36: FALSE | BB36: 1 | BC36: -0.01134278886 | BD36: -0.01140760891 | BG36: 2013 | BH36: 10.84249997 | BI36: -0.001151540146 | BJ36: -0.001152203677
C37: 1975-06-01 | D37: 1975 | E37: TRUE | F37: FALSE | G37: FALSE | H37: 2 | I37: 10.43000031 | J37: 63.98142174 | K37: -0.006496945781 | L37: -0.006518142794 | N37: 2002 | O37: 46.181574 | P37: 0.0639507804 | Q37: 0.06198913083 | Z37: 1987-06-01 | AA37: 0.277893126 | AB37: 1987 | AC37: FALSE | AD37: FALSE | AE37: FALSE | AF37: 1 | AG37: 0.02687549357 | AH37: 0.02652069046 | AJ37: 2014 | AK37: 20.64376378 | AL37: 0.4216869021 | AM37: 0.3518441258 | AV37: 2001-07-01 | AW37: 3.921667099 | AX37: 2001 | AY37: FALSE | AZ37: FALSE | BA37: FALSE | BB37: 1 | BC37: -0.2703875165 | BD37: -0.3152417303 | BG37: 2014 | BH37: 9.529166579 | BI37: -0.1211282818 | BJ37: -0.1291163326
C38: 1975-07-01 | D38: 1975 | E38: TRUE | F38: FALSE | G38: FALSE | H38: 2 | I38: 10.43000031 | J38: 63.48890814 | K38: -0.007697759531 | L38: -0.00772754021 | N38: 2003 | O38: 50.2758115 | P38: 0.08865521768 | Q38: 0.08494318931 | Z38: 1987-07-01 | AA38: 0.2830396891 | AB38: 1987 | AC38: FALSE | AD38: FALSE | AE38: FALSE | AF38: 1 | AG38: 0.01851993652 | AH38: 0.01835053089 | AJ38: 2015 | AK38: 26.79468425 | AL38: 0.2979553795 | AM38: 0.2607902413 | AV38: 2001-08-01 | AW38: 2.809999943 | AX38: 2001 | AY38: FALSE | AZ38: FALSE | BA38: FALSE | BB38: 1 | BC38: -0.2834680069 | BD38: -0.3333323808 | BG38: 2015 | BH38: 8.666666706 | BI38: -0.09051157472 | BJ38: -0.09487300757
C39: 1975-08-01 | D39: 1975 | E39: TRUE | F39: FALSE | G39: FALSE | H39: 2 | I39: 10.43000031 | J39: 63.05391247 | K39: -0.006851522348 | L39: -0.006875101793 | N39: 2004 | O39: 67.08832975 | P39: 0.3344057062 | Q39: 0.2884860288 | Z39: 1987-08-01 | AA39: 0.370524466 | AB39: 1987 | AC39: FALSE | AD39: FALSE | AE39: FALSE | AF39: 1 | AG39: 0.3090901395 | AH39: 0.2693323459 | AJ39: 2016 | AK39: 23.86554114 | AL39: -0.1093180678 | AM39: -0.1157678937 | AV39: 2001-09-01 | AW39: 2.680000067 | AX39: 2001 | AY39: FALSE | AZ39: FALSE | BA39: FALSE | BB39: 1 | BC39: -0.04626330202 | BD39: -0.04736764355 | BG39: 2016 | BH39: 7.406666676 | BI39: -0.1453846182 | BJ39: -0.1571037571
C40: 1975-09-01 | D40: 1975 | E40: TRUE | F40: FALSE | G40: FALSE | H40: 2 | I40: 10.46000004 | J40: 62.83561848 | K40: -0.003462021268 | L40: -0.003468027931 | N40: 2005 | O40: 92.57859624 | P40: 0.3799508289 | Q40: 0.3220478673 | Z40: 1987-09-01 | AA40: 0.3881790638 | AB40: 1987 | AC40: FALSE | AD40: FALSE | AE40: FALSE | AF40: 1 | AG40: 0.04764758977 | AH40: 0.04654726005 | AJ40: 2017 | AK40: 35.26119026 | AL40: 0.4774938497 | AM40: 0.3903473077 | AV40: 2001-10-01 | AW40: 2.710000038 | AX40: 2001 | AY40: FALSE | AZ40: FALSE | BA40: FALSE | BB40: 1 | BC40: 0.0111940189 | BD40: 0.01113182954 | BG40: 2017 | BH40: 9.531666716 | BI40: 0.2869036954 | BJ40: 0.252239097
C41: 1975-10-01 | D41: 1975 | E41: TRUE | F41: FALSE | G41: FALSE | H41: 2 | I41: 10.46000004 | J41: 62.4611449 | K41: -0.005959574969 | L41: -0.005977404107 | N41: 2006 | O41: 103.1590625 | P41: 0.1142863112 | Q41: 0.1082141204 | Z41: 1987-10-01 | AA41: 0.265370369 | AB41: 1987 | AC41: FALSE | AD41: FALSE | AE41: FALSE | AF41: 1 | AG41: -0.3163712479 | AH41: -0.3803402689 | AJ41: 2018 | AK41: 44.26312764 | AL41: 0.2552930665 | AM41: 0.2273690645 | AV41: 2001-11-01 | AW41: 3.631666899 | AX41: 2001 | AY41: FALSE | AZ41: FALSE | BA41: FALSE | BB41: 1 | BC41: 0.3400984678 | BD41: 0.2927430947 | BG41: 2018 | BH41: 10.43833339 | BI41: 0.09512152525 | BJ41: 0.09086533907
C42: 1975-11-01 | D42: 1975 | E42: TRUE | F42: FALSE | G42: FALSE | H42: 2 | I42: 10.46000004 | J42: 62.09168543 | K42: -0.005915028837 | L42: -0.005932591912 | N42: 2007 | O42: 117.71307 | P42: 0.1410831691 | Q42: =LN(O42/O41) -> 0.1319779596 | Z42: 1987-11-01 | AA42: 0.2267242968 | AB42: 1987 | AC42: FALSE | AD42: FALSE | AE42: FALSE | AF42: 1 | AG42: -0.1456306983 | AH42: -0.1573917411 | AJ42: 2019 | AK42: 51.14428616 | AL42: 0.1554602866 | AM42: 0.1444987812 | AV42: 2001-12-01 | AW42: 3.953332901 | AX42: 2001 | AY42: FALSE | AZ42: FALSE | BA42: FALSE | BB42: 1 | BC42: 0.08857255118 | BD42: 0.08486725191 | BG42: 2019 | BH42: 7.335000038 | BI42: -0.297301613 | BJ42: -0.3528275161
C43: 1975-12-01 | D43: 1975 | E43: TRUE | F43: FALSE | G43: FALSE | H43: 2 | I43: 11.51000023 | J43: 67.94381982 | K43: 0.09424988785 | L43: 0.0900690946 | N43: 2008 | O43: 140.7616676 | P43: 0.1958032161 | Q43: 0.1788181069 | Z43: 1987-12-01 | AA43: 0.2891874611 | AB43: 1987 | AC43: FALSE | AD43: FALSE | AE43: FALSE | AF43: 1 | AG43: 0.2755027371 | AH43: 0.2433404045 | AJ43: 2020 | AK43: 94.25673771 | AL43: 0.8429573427 | AM43: 0.6113715329 | AV43: 2002-01-01 | AW43: 4.268332958 | AX43: 2002 | AY43: FALSE | AZ43: TRUE | BA43: FALSE | BB43: 1 | BC43: 0.07967961847 | BD43: 0.07666434756 | BG43: 2020 | BH43: 5.06249996 | BI43: -0.3098159599 | BJ43: -0.3707969922
C44: 1976-01-01 | D44: 1976 | E44: FALSE | F44: TRUE | G44: FALSE | H44: 2 | I44: 11.51000023 | J44: 67.57668297 | K44: -0.00540353558 | L44: -0.005418187483 | N44: 2009 | O44: 95.4985772 | P44: -0.321558356 | Q44: -0.3879568108 | Z44: 1988-01-01 | AA44: 0.2857449055 | AB44: 1988 | AC44: FALSE | AD44: TRUE | AE44: FALSE | AF44: 1 | AG44: -0.01190423559 | AH44: -0.01197565839 | AJ44: 2021 | AK44: 138.4823011 | AL44: 0.4692032044 | AM44: 0.384720216 | AV44: 2002-02-01 | AW44: 3.815000057 | AX44: 2002 | AY44: FALSE | AZ44: FALSE | BA44: FALSE | BB44: 1 | BC44: -0.1062084203 | BD44: -0.1122826634 | BG44: 2021 | BH44: 10.38916675 | BI44: 1.052181103 | BJ44: 0.7189031802
C45: 1976-02-01 | D45: =YEAR(C45) -> 1976 | E45: =MOD(D45,5)=0 -> FALSE | F45: =MONTH(C45)=1 -> FALSE | G45: =AND(F45,E45) -> FALSE | H45: 2 | I45: 11.51000023 | J45: 67.23426 | K45: -0.005067176419 | L45: -0.005080058092 | N45: 2010 | O45: 119.124152 | P45: 0.2473919039 | Q45: 0.2210548947 | Z45: 1988-02-01 | AA45: 0.2960730493 | AB45: 1988 | AC45: FALSE | AD45: FALSE | AE45: FALSE | AF45: 1 | AG45: 0.03614462983 | AH45: 0.03550673818 | AJ45: 2022 | AK45: 151.2589404 | AL45: 0.09226189342 | AM45: 0.08825067771 | AV45: 2002-03-01 | AW45: 4.628333092 | AX45: 2002 | AY45: FALSE | AZ45: FALSE | BA45: FALSE | BB45: 1 | BC45: 0.2131934528 | BD45: 0.1932561002 | BG45: 2022 | BH45: 5.773333251 | BI45: -0.4442929458 | BJ45: -0.5875140045
C46: 1976-03-01 | D46: 1976 | E46: FALSE | F46: FALSE | G46: FALSE | H46: =H45+G46 -> 2 | I46: 11.51000023 | J46: 66.90478765 | K46: -0.004900364025 | L46: -0.004912410179 | N46: 2011 | O46: 160.8987512 | P46: 0.3506811883 | Q46: 0.3006090491 | Z46: 1988-03-01 | AA46: 0.2759598792 | AB46: 1988 | AC46: FALSE | AD46: FALSE | AE46: FALSE | AF46: 1 | AG46: -0.06793313405 | AH46: -0.07035072229 | AJ46: 2023 | AK46: 173.5598501 | AL46: 0.147435316 | AM46: 0.1375292919 | AV46: 2002-04-01 | AW46: 2.950000048 | AX46: 2002 | AY46: FALSE | AZ46: FALSE | BA46: FALSE | BB46: 1 | BC46: -0.3626214905 | BD46: -0.4503915934 | BG46: 2023 | BH46: 4.470000009 | BI46: -0.2257505649 | BJ46: -0.2558611897
C47: 1976-04-01 | D47: 1976 | E47: FALSE | F47: FALSE | G47: FALSE | H47: 2 | I47: 11.51000023 | J47: 66.57813068 | K47: -0.004882415397 | L47: -0.004894373325 | N47: 2012 | O47: 156.4420543 | P47: -0.02769876636 | Q47: -0.02808961138 | Z47: 1988-04-01 | AA47: 0.2828582525 | AB47: 1988 | AC47: FALSE | AD47: FALSE | AE47: FALSE | AF47: 1 | AG47: 0.0249977402 | AH47: 0.02469040791 | AJ47: 2024 | AK47: 207.729894 | AL47: 0.1968775839 | AM47: 0.1797161523 | AV47: 2002-05-01 | AW47: 2.519999981 | AX47: 2002 | AY47: FALSE | AZ47: FALSE | BA47: FALSE | BB47: 1 | BC47: -0.1457627321 | BD47: -0.1575462926 | BG47: 2024 | BH47: 2.699166636 | BI47: -0.3961595905 | BJ47: -0.5044453387
C48: 1976-05-01 | D48: 1976 | E48: FALSE | F48: FALSE | G48: FALSE | H48: 2 | I48: 11.51000023 | J48: 66.24506479 | K48: -0.005002632141 | L48: -0.005015187195 | N48: 2013 | O48: 148.7242739 | P48: -0.04933315695 | Q48: -0.05059160058 | Z48: 1988-05-01 | AA48: 0.2863085568 | AB48: 1988 | AC48: FALSE | AD48: FALSE | AE48: FALSE | AF48: 1 | AG48: 0.01219799754 | AH48: 0.01212420148 | AJ48: 2025 | AK48: 219.1406422 | AL48: 0.05493069844 | AM48: 0.05347507609 | AV48: 2002-06-01 | AW48: 1.896667004 | AX48: 2002 | AY48: FALSE | AZ48: FALSE | BA48: FALSE | BB48: 1 | BC48: -0.2473543579 | BD48: -0.2841607568 | BG48: 2025 | BH48: 4.030587524 | BI48: 0.4932710974 | BJ48: 0.4009690811
C49: 1976-06-01 | D49: 1976 | E49: FALSE | F49: FALSE | G49: FALSE | H49: 2 | I49: 11.60000038 | J49: 66.44121591 | K49: 0.00296099221 | L49: 0.002956617107 | N49: 2014 | O49: 127.114047 | P49: -0.1453039663 | Q49: -0.1570093894 | Z49: 1988-06-01 | AA49: 0.3197095096 | AB49: 1988 | AC49: FALSE | AD49: FALSE | AE49: FALSE | AF49: 1 | AG49: 0.1166606866 | AH49: 0.1103427019 | AV49: 2002-07-01 | AW49: 1.956666946 | AX49: 2002 | AY49: FALSE | AZ49: FALSE | BA49: FALSE | BB49: 1 | BC49: 0.03163441061 | BD49: 0.03114435101
C50: 1976-07-01 | D50: 1976 | E50: FALSE | F50: FALSE | G50: FALSE | H50: 2 | I50: 11.60000038 | J50: 66.15324763 | K50: -0.004334181284 | L50: -0.004343601076 | N50: 2015 | O50: 68.33370359 | P50: -0.462422091 | Q50: -0.6206815825 | Z50: 1988-07-01 | AA50: 0.3067481518 | AB50: 1988 | AC50: FALSE | AD50: FALSE | AE50: FALSE | AF50: 1 | AG50: -0.04054104568 | AH50: -0.04138574264 | AV50: 2002-08-01 | AW50: 1.766667008 | AX50: 2002 | AY50: FALSE | AZ50: FALSE | BA50: FALSE | BB50: 1 | BC50: -0.09710387266 | BD50: -0.1021477628
C51: 1976-08-01 | D51: 1976 | E51: FALSE | F51: FALSE | G51: FALSE | H51: 2 | I51: 11.60000038 | J51: 65.84788513 | K51: -0.004615986514 | L51: -0.004626673079 | N51: 2016 | O51: 61.32156149 | P51: -0.1026161576 | Q51: -0.1082715906 | Z51: 1988-08-01 | AA51: 0.2756417394 | AB51: 1988 | AC51: FALSE | AD51: FALSE | AE51: FALSE | AF51: 1 | AG51: -0.1014070084 | AH51: -0.1069250816 | AV51: 2002-09-01 | AW51: 1.570000052 | AX51: 2002 | AY51: FALSE | AZ51: FALSE | BA51: FALSE | BB51: 1 | BC51: -0.1113208969 | BD51: -0.1180190726
C52: 1976-09-01 | D52: 1976 | E52: FALSE | F52: FALSE | G52: FALSE | H52: 2 | I52: 11.89999962 | J52: 67.2504129 | K52: 0.02129951125 | L52: 0.02107584704 | N52: 2017 | O52: 72.64155245 | P52: 0.1846005007 | Q52: 0.1694055875 | Z52: 1988-09-01 | AA52: 0.2995356321 | AB52: 1988 | AC52: FALSE | AD52: FALSE | AE52: FALSE | AF52: 1 | AG52: 0.08668459581 | AH52: 0.08313140578 | AV52: 2002-10-01 | AW52: 2.083333015 | AX52: 2002 | AY52: FALSE | AZ52: FALSE | BA52: FALSE | BB52: 1 | BC52: 0.3269636598 | BD52: 0.2828933697
C53: 1976-10-01 | D53: 1976 | E53: FALSE | F53: FALSE | G53: FALSE | H53: 2 | I53: 11.89999962 | J53: 66.95290679 | K53: -0.004423855567 | L53: -0.004433669771 | N53: 2018 | O53: 89.87528803 | P53: 0.2372434922 | Q53: 0.2128859149 | Z53: 1988-10-01 | AA53: 0.2675041854 | AB53: 1988 | AC53: FALSE | AD53: FALSE | AE53: FALSE | AF53: 1 | AG53: -0.106937016 | AH53: -0.1130981698 | AV53: 2002-11-01 | AW53: 2.546667099 | AX53: 2002 | AY53: FALSE | AZ53: FALSE | BA53: FALSE | BB53: 1 | BC53: 0.222400394 | BD53: 0.2008164618
C54: 1976-11-01 | D54: 1976 | E54: FALSE | F54: FALSE | G54: FALSE | H54: 2 | I54: 11.89999962 | J54: 66.6874634 | K54: -0.00396462828 | L54: -0.003972508253 | N54: 2019 | O54: 80.70176194 | P54: -0.1020695042 | Q54: -0.1076626125 | Z54: 1988-11-01 | AA54: 0.2605787516 | AB54: 1988 | AC54: FALSE | AD54: FALSE | AE54: FALSE | AF54: 1 | AG54: -0.02588906735 | AH54: -0.02623008794 | AV54: 2002-12-01 | AW54: 2.186666965 | AX54: 2002 | AY54: FALSE | AZ54: FALSE | BA54: FALSE | BB54: 1 | BC54: -0.141361285 | BD54: -0.1524070333
C55: 1976-12-01 | D55: 1976 | E55: FALSE | F55: FALSE | G55: FALSE | H55: 2 | I55: 12.5 | J55: 69.77311255 | K55: 0.04627030319 | L55: 0.04523174831 | N55: 2020 | O55: 51.23413828 | P55: -0.365142259 | Q55: -0.4543543351 | Z55: 1988-12-01 | AA55: 0.2794940472 | AB55: 1988 | AC55: FALSE | AD55: FALSE | AE55: FALSE | AF55: 1 | AG55: 0.07258955493 | AH55: 0.07007586944 | AV55: 2003-01-01 | AW55: 2.126667023 | AX55: 2003 | AY55: FALSE | AZ55: TRUE | BA55: FALSE | BB55: 1 | BC55: -0.02743899447 | BD55: -0.02782247484
C56: 1977-01-01 | D56: 1977 | E56: FALSE | F56: TRUE | G56: FALSE | H56: 2 | I56: 12.5 | J56: 69.47811189 | K56: -0.004227999219 | L56: -0.004236962481 | N56: 2021 | O56: 87.73571784 | P56: 0.7124464426 | Q56: 0.5379230163 | Z56: 1989-01-01 | AA56: 0.2621345222 | AB56: 1989 | AC56: FALSE | AD56: TRUE | AE56: FALSE | AF56: 1 | AG56: -0.0621105356 | AH56: -0.06412317871 | AV56: 2003-02-01 | AW56: 2.116667032 | AX56: 2003 | AY56: FALSE | AZ56: FALSE | BA56: FALSE | BB56: 1 | BC56: -0.004702189086 | BD56: -0.004713279156
C57: 1977-02-01 | D57: 1977 | E57: FALSE | F57: FALSE | G57: FALSE | H57: 2 | I57: 12.5 | J57: 69.1462397 | K57: -0.004776643695 | L57: -0.004788088316 | N57: 2022 | O57: 112.1891131 | P57: 0.2787165346 | Q57: 0.2458568676 | Z57: 1989-02-01 | AA57: 0.2517184615 | AB57: 1989 | AC57: FALSE | AD57: FALSE | AE57: FALSE | AF57: 1 | AG57: -0.03973555485 | AH57: -0.04054656876 | AV57: 2003-03-01 | AW57: 2.176666975 | AX57: 2003 | AY57: FALSE | AZ57: FALSE | BA57: FALSE | BB57: 1 | BC57: 0.02834642476 | BD57: 0.02795209933
C58: 1977-03-01 | D58: 1977 | E58: FALSE | F58: FALSE | G58: FALSE | H58: 2 | I58: 12.44999981 | J58: 68.51239285 | K58: -0.009166758165 | L58: -0.00920903143 | N58: 2023 | O58: 87.24352506 | P58: -0.2223530192 | Q58: -0.25148261 | Z58: 1989-03-01 | AA58: 0.2480600178 | AB58: 1989 | AC58: FALSE | AD58: FALSE | AE58: FALSE | AF58: 1 | AG58: -0.01453387116 | AH58: -0.0146405225 | AV58: 2003-04-01 | AW58: 2.601666927 | AX58: 2003 | AY58: FALSE | AZ58: FALSE | BA58: FALSE | BB58: 1 | BC58: 0.1952526304 | BD58: 0.1783575692
C59: 1977-04-01 | D59: 1977 | E59: FALSE | F59: FALSE | G59: FALSE | H59: 2 | I59: 12.44999981 | J59: 68.12974602 | K59: -0.005585074563 | L59: -0.005600729408 | N59: 2024 | O59: 82.7030776 | P59: -0.05204337467 | Q59: -0.05344653164 | Z59: 1989-04-01 | AA59: 0.2715605497 | AB59: 1989 | AC59: FALSE | AD59: FALSE | AE59: FALSE | AF59: 1 | AG59: 0.0947372822 | AH59: 0.09051440955 | AV59: 2003-05-01 | AW59: 3.170000076 | AX59: 2003 | AY59: FALSE | AZ59: FALSE | BA59: FALSE | BB59: 1 | BC59: 0.218449619 | BD59: 0.1975792465
C60: 1977-05-01 | D60: 1977 | E60: FALSE | F60: FALSE | G60: FALSE | H60: 2 | I60: 12.44999981 | J60: 67.76119107 | K60: -0.005409604128 | L60: -0.00542428902 | N60: 2025 | O60: 70.69453524 | P60: -0.1452006709 | Q60: -0.1568885405 | Z60: 1989-05-01 | AA60: 0.3324875832 | AB60: 1989 | AC60: FALSE | AD60: FALSE | AE60: FALSE | AF60: 1 | AG60: 0.2243589265 | AH60: 0.2024173817 | AV60: 2003-06-01 | AW60: 3.603332996 | AX60: 2003 | AY60: FALSE | AZ60: FALSE | BA60: FALSE | BB60: 1 | BC60: 0.1366980788 | BD60: 0.1281276375
C61: 1977-06-01 | D61: 1977 | E61: FALSE | F61: FALSE | G61: FALSE | H61: 2 | I61: 12.63000011 | J61: 68.36151487 | K61: 0.008859404545 | L61: 0.00882039028 | Z61: 1989-06-01 | AA61: 0.2878572643 | AB61: 1989 | AC61: FALSE | AD61: FALSE | AE61: FALSE | AF61: 1 | AG61: -0.1342315357 | AH61: -0.1441377684 | AV61: 2003-07-01 | AW61: 4.013332844 | AX61: 2003 | AY61: FALSE | AZ61: FALSE | BA61: FALSE | BB61: 1 | BC61: 0.1137835021 | BD61: 0.1077627798
C62: 1977-07-01 | D62: 1977 | E62: FALSE | F62: FALSE | G62: FALSE | H62: 2 | I62: 12.63000011 | J62: 67.98616349 | K62: -0.005490682628 | L62: -0.005505811831 | Z62: 1989-07-01 | AA62: 0.2773897648 | AB62: 1989 | AC62: FALSE | AD62: FALSE | AE62: FALSE | AF62: 1 | AG62: -0.03636350648 | AH62: -0.03704113689 | AV62: 2003-08-01 | AW62: 4.746666908 | AX62: 2003 | AY62: FALSE | AZ62: FALSE | BA62: FALSE | BB62: 1 | BC62: 0.182724457 | BD62: 0.167820639
C63: 1977-08-01 | D63: 1977 | E63: FALSE | F63: FALSE | G63: FALSE | H63: 2 | I63: 12.63000011 | J63: 67.62395602 | K63: -0.005327664523 | L63: -0.005341907136 | Z63: 1989-08-01 | AA63: 0.3105362952 | AB63: 1989 | AC63: FALSE | AD63: FALSE | AE63: FALSE | AF63: 1 | AG63: 0.1194944248 | AH63: 0.112877177 | AV63: 2003-09-01 | AW63: 6.366666794 | AX63: 2003 | AY63: FALSE | AZ63: FALSE | BA63: FALSE | BB63: 1 | BC63: 0.3412920934 | BD63: 0.2936333981
C64: 1977-09-01 | D64: 1977 | E64: FALSE | F64: FALSE | G64: FALSE | H64: 2 | I64: 12.68000031 | J64: 67.53117804 | K64: -0.001371969116 | L64: -0.001372911127 | Z64: 1989-09-01 | AA64: 0.3112731874 | AB64: 1989 | AC64: FALSE | AD64: FALSE | AE64: FALSE | AF64: 1 | AG64: 0.002372966493 | AH64: 0.002370155454 | AV64: 2003-10-01 | AW64: 7.353332996 | AX64: 2003 | AY64: FALSE | AZ64: FALSE | BA64: FALSE | BB64: 1 | BC64: 0.154973746 | BD64: 0.144077613
C65: 1977-10-01 | D65: 1977 | E65: FALSE | F65: FALSE | G65: FALSE | H65: 2 | I65: 12.68000031 | J65: 67.18347757 | K65: -0.005148739943 | L65: -0.005162040378 | Z65: 1989-10-01 | AA65: 0.3252635896 | AB65: 1989 | AC65: FALSE | AD65: FALSE | AE65: FALSE | AF65: 1 | AG65: 0.04494573509 | AH65: 0.04396495593 | AV65: 2003-11-01 | AW65: 7.614999771 | AX65: 2003 | AY65: FALSE | AZ65: FALSE | BA65: FALSE | BB65: 1 | BC65: 0.03558478514 | BD65: 0.03496627696
C66: 1977-11-01 | D66: 1977 | E66: FALSE | F66: FALSE | G66: FALSE | H66: 2 | I66: 12.68000031 | J66: 66.82012117 | K66: -0.005408419036 | L66: -0.005423097483 | Z66: 1989-11-01 | AA66: 0.3095247447 | AB66: 1989 | AC66: FALSE | AD66: FALSE | AE66: FALSE | AF66: 1 | AG66: -0.04838797017 | AH66: -0.04959785894 | AV66: 2003-12-01 | AW66: 11.13833332 | AX66: 2003 | AY66: FALSE | AZ66: FALSE | BA66: FALSE | BB66: 1 | BC66: 0.4626833428 | BD66: 0.3802726549
C67: 1977-12-01 | D67: 1977 | E67: FALSE | F67: FALSE | G67: FALSE | H67: 2 | I67: 12.65999985 | J67: 66.3551004 | K67: -0.006959292504 | L67: -0.00698362132 | Z67: 1989-12-01 | AA67: 0.2471779734 | AB67: 1989 | AC67: FALSE | AD67: FALSE | AE67: FALSE | AF67: 1 | AG67: -0.2014274219 | AH67: -0.2249294225 | AV67: 2004-01-01 | AW67: 14.50333309 | AX67: 2004 | AY67: FALSE | AZ67: TRUE | BA67: FALSE | BB67: 1 | BC67: 0.3021098107 | BD67: 0.2639858803
C68: 1978-01-01 | D68: 1978 | E68: FALSE | F68: TRUE | G68: FALSE | H68: 2 | I68: 12.65999985 | J68: 65.99038031 | K68: -0.005496489058 | L68: -0.005511650335 | Z68: 1990-01-01 | AA68: 0.2384125143 | AB68: 1990 | AC68: TRUE | AD68: TRUE | AE68: TRUE | AF68: 2 | AG68: -0.03546213662 | AH68: -0.0361061904 | AV68: 2004-02-01 | AW68: 16.48333359 | AX68: 2004 | AY68: FALSE | AZ68: FALSE | BA68: FALSE | BB68: 1 | BC68: 0.1365203766 | BD68: 0.1279712934
C69: 1978-02-01 | D69: 1978 | E69: FALSE | F69: FALSE | G69: FALSE | H69: 2 | I69: 12.65999985 | J69: 65.64858468 | K69: -0.005179476595 | L69: -0.005192936581 | Z69: 1990-02-01 | AA69: 0.2384125143 | AB69: 1990 | AC69: TRUE | AD69: FALSE | AE69: FALSE | AF69: 2 | AG69: 0 | AH69: 0 | AV69: 2004-03-01 | AW69: 15.55500031 | AX69: 2004 | AY69: FALSE | AZ69: FALSE | BA69: FALSE | BB69: 1 | BC69: -0.05631951071 | BD69: -0.05796763486
C70: 1978-03-01 | D70: 1978 | E70: FALSE | F70: FALSE | G70: FALSE | H70: 2 | I70: 12.68000031 | J70: 65.40534489 | K70: -0.003705179598 | L70: -0.003712060779 | Z70: 1990-03-01 | AA70: 0.2831481397 | AB70: 1990 | AC70: TRUE | AD70: FALSE | AE70: FALSE | AF70: 2 | AG70: 0.1876395856 | AH70: 0.1719677958 | AV70: 2004-04-01 | AW70: 14.51666737 | AX70: 2004 | AY70: FALSE | AZ70: FALSE | BA70: FALSE | BB70: 1 | BC70: -0.06675235736 | BD70: -0.06908468716
C71: 1978-04-01 | D71: 1978 | E71: FALSE | F71: FALSE | G71: FALSE | H71: 2 | I71: 12.69999981 | J71: 65.16562374 | K71: -0.003665161399 | L71: -0.003671894561 | Z71: 1990-04-01 | AA71: 0.2769929469 | AB71: 1990 | AC71: TRUE | AD71: FALSE | AE71: FALSE | AF71: 2 | AG71: -0.02173841883 | AH71: -0.0219781793 | AV71: 2004-05-01 | AW71: 19.98833275 | AX71: 2004 | AY71: FALSE | AZ71: FALSE | BA71: FALSE | BB71: 1 | BC71: 0.3769229703 | BD71: 0.3198512779
C72: 1978-05-01 | D72: 1978 | E72: FALSE | F72: FALSE | G72: FALSE | H72: 2 | I72: 12.72999954 | J72: 64.95406915 | K72: -0.00324641404 | L72: -0.003251695075 | Z72: 1990-05-01 | AA72: 0.2901831269 | AB72: 1990 | AC72: TRUE | AD72: FALSE | AE72: FALSE | AF72: 2 | AG72: 0.04761919108 | AH72: 0.04652015257 | AV72: 2004-06-01 | AW72: 22.81666756 | AX72: 2004 | AY72: FALSE | AZ72: FALSE | BA72: FALSE | BB72: 1 | BC72: 0.1414992858 | BD72: 0.1323425613
C73: 1978-06-01 | D73: 1978 | E73: FALSE | F73: FALSE | G73: FALSE | H73: 2 | I73: 12.77000046 | J73: 64.77100654 | K73: -0.002818339248 | L73: -0.002822318244 | Z73: 1990-06-01 | AA73: 0.3156781495 | AB73: =YEAR(Z73) -> 1990 | AC73: =MOD(AB73,5)=0 -> TRUE | AD73: =MONTH(Z73)=1 -> FALSE | AE73: =AND(AD73,AC73) -> FALSE | AF73: 2 | AG73: 0.08785839068 | AH73: 0.08421098434 | AV73: 2004-07-01 | AW73: 20.55666733 | AX73: =YEAR(AV73) -> 2004 | AY73: =MOD(AX73,5)=0 -> FALSE | AZ73: =MONTH(AV73)=1 -> FALSE | BA73: =AND(AZ73,AY73) -> FALSE | BB73: =BA73+BB72 -> 1 | BC73: -0.09905040792 | BD73: -0.1043059696
C74: 1978-07-01 | D74: 1978 | E74: FALSE | F74: FALSE | G74: FALSE | H74: 2 | I74: 12.78999996 | J74: 64.47242147 | K74: =J74/J73-1 -> -0.004609856876 | L74: =LN(J74/J73) -> -0.004620515034 | Z74: 1990-07-01 | AA74: 0.2962786257 | AB74: 1990 | AC74: TRUE | AD74: FALSE | AE74: FALSE | AF74: =AF73+AE74 -> 2 | AG74: =AA74/AA73-1 -> -0.06145348916 | AH74: =LN(AA74/AA73) -> -0.06342286548 | AV74: 2004-08-01 | AW74: 20.07333374 | AX74: 2004 | AY74: FALSE | AZ74: FALSE | BA74: FALSE | BB74: 1 | BC74: =AW74/AW73-1 -> -0.0235122542 | BD74: =LN(AW74/AW73) -> -0.02379307784
C75: 1978-08-01 | D75: 1978 | E75: FALSE | F75: FALSE | G75: FALSE | H75: 2 | I75: 12.80000019 | J75: 64.118109 | K75: -0.005495566448 | L75: -0.005510722627 | Z75: 1990-08-01 | AA75: 0.2610072196 | AB75: 1990 | AC75: TRUE | AD75: FALSE | AE75: FALSE | AF75: 2 | AG75: -0.1190480956 | AH75: -0.1267522466 | AV75: 2004-09-01 | AW75: 25.44666672 | AX75: 2004 | AY75: FALSE | AZ75: FALSE | BA75: FALSE | BB75: 1 | BC75: 0.2676851313 | BD75: 0.237192506
C76: 1978-09-01 | D76: 1978 | E76: FALSE | F76: FALSE | G76: FALSE | H76: 2 | I76: 12.85000038 | J76: 63.94198246 | K76: -0.002746907891 | L76: -0.002750687565 | Z76: 1990-09-01 | AA76: 0.205191955 | AB76: 1990 | AC76: TRUE | AD76: FALSE | AE76: FALSE | AF76: 2 | AG76: -0.2138456732 | AH76: -0.2406021613 | AV76: 2004-10-01 | AW76: 29.39999962 | AX76: 2004 | AY76: FALSE | AZ76: FALSE | BA76: FALSE | BB76: 1 | BC76: 0.1553575934 | BD76: 0.1444099007
C77: 1978-10-01 | D77: 1978 | E77: FALSE | F77: FALSE | G77: FALSE | H77: 2 | I77: 13.19999981 | J77: 65.21713714 | K77: 0.0199423702 | L77: 0.01974612589 | Z77: 1990-10-01 | AA77: 0.2175742686 | AB77: 1990 | AC77: TRUE | AD77: FALSE | AE77: FALSE | AF77: 2 | AG77: 0.06034502479 | AH77: 0.05859435025 | AV77: 2004-11-01 | AW77: 29.65666771 | AX77: 2004 | AY77: FALSE | AZ77: FALSE | BA77: FALSE | BB77: 1 | BC77: 0.008730207284 | BD77: 0.008692319378
C78: 1978-11-01 | D78: 1978 | E78: FALSE | F78: FALSE | G78: FALSE | H78: 2 | I78: 14.5 | J78: 71.13364074 | K78: 0.09072007529 | L78: 0.08683809766 | Z78: 1990-11-01 | AA78: 0.2600272596 | AB78: 1990 | AC78: TRUE | AD78: FALSE | AE78: FALSE | AF78: 2 | AG78: 0.1951195391 | AH78: 0.1782462131 | AV78: 2004-12-01 | AW78: 27.47333336 | AX78: 2004 | AY78: FALSE | AZ78: FALSE | BA78: FALSE | BB78: 1 | BC78: -0.07362035317 | BD78: -0.07647114258
C79: 1978-12-01 | D79: 1978 | E79: FALSE | F79: FALSE | G79: FALSE | H79: 2 | I79: 17.45000029 | J79: 92.29783431 | K79: 0.2975272087 | L79: 0.260460306 | Z79: 1990-12-01 | AA79: 0.3052670956 | AB79: 1990 | AC79: TRUE | AD79: FALSE | AE79: FALSE | AF79: 2 | AG79: 0.1739811282 | AH79: 0.1604006465 | AV79: 2005-01-01 | AW79: 23.76333237 | AX79: 2005 | AY79: TRUE | AZ79: TRUE | BA79: TRUE | BB79: 2 | BC79: -0.1350400748 | BD79: -0.1450721024
C80: 1979-01-01 | D80: 1979 | E80: FALSE | F80: TRUE | G80: FALSE | H80: 2 | I80: 20.75 | J80: 106.3636509 | K80: 0.1523959549 | L80: 0.1418432141 | Z80: 1991-01-01 | AA80: 0.394007355 | AB80: 1991 | AC80: FALSE | AD80: TRUE | AE80: FALSE | AF80: 2 | AG80: 0.2906971 | AH80: 0.25518246 | AV80: 2005-02-01 | AW80: 22.03666687 | AX80: 2005 | AY80: TRUE | AZ80: FALSE | BA80: FALSE | BB80: 2 | BC80: -0.07266091599 | BD80: -0.07543599388
C81: 1979-02-01 | D81: 1979 | E81: FALSE | F81: FALSE | G81: FALSE | H81: 2 | I81: 22.02499962 | J81: 111.5298785 | K81: 0.04857136399 | L81: 0.04742863198 | Z81: 1991-02-01 | AA81: 0.4064310193 | AB81: 1991 | AC81: FALSE | AD81: FALSE | AE81: FALSE | AF81: 2 | AG81: 0.03153155436 | AH81: 0.03104464381 | AV81: 2005-03-01 | AW81: 25.47333336 | AX81: 2005 | AY81: TRUE | AZ81: FALSE | BA81: FALSE | BB81: 2 | BC81: 0.1559521914 | BD81: 0.1449244124
C82: 1979-03-01 | D82: 1979 | E82: FALSE | F82: FALSE | G82: FALSE | H82: 2 | I82: 22.42500019 | J82: 112.5431056 | K82: 0.009084804237 | L82: 0.009043785646 | Z82: 1991-03-01 | AA82: 0.4837635159 | AB82: 1991 | AC82: FALSE | AD82: FALSE | AE82: FALSE | AF82: 2 | AG82: 0.1902721322 | AH82: 0.1741819635 | AV82: 2005-04-01 | AW82: 21.46999931 | AX82: 2005 | AY82: TRUE | AZ82: FALSE | BA82: FALSE | BB82: 2 | BC82: -0.1571578399 | BD82: -0.1709755744
C83: 1979-04-01 | D83: 1979 | E83: FALSE | F83: FALSE | G83: FALSE | H83: 2 | I83: 33.5 | J83: 154.5576155 | K83: 0.373319269 | L83: 0.3172306336 | Z83: 1991-04-01 | AA83: 0.3912786841 | AB83: 1991 | AC83: FALSE | AD83: FALSE | AE83: FALSE | AF83: 2 | AG83: -0.1911777734 | AH83: -0.2121761306 | AV83: 2005-05-01 | AW83: 27.60666656 | AX83: 2005 | AY83: TRUE | AZ83: FALSE | BA83: FALSE | BB83: 2 | BC83: 0.2858252188 | BD83: 0.2514007059
C84: 1979-05-01 | D84: 1979 | E84: FALSE | F84: FALSE | G84: FALSE | H84: 2 | I84: 34.67499924 | J84: 170.7823989 | K84: 0.1049756318 | L84: 0.09982328207 | Z84: 1991-05-01 | AA84: 0.3343659043 | AB84: 1991 | AC84: FALSE | AD84: FALSE | AE84: FALSE | AF84: 2 | AG84: -0.1454533102 | AH84: -0.157184138 | AV84: 2005-06-01 | AW84: 24.59666634 | AX84: 2005 | AY84: TRUE | AZ84: FALSE | BA84: FALSE | BB84: 2 | BC84: -0.1090316436 | BD84: -0.1154463668
C85: 1979-06-01 | D85: 1979 | E85: FALSE | F85: FALSE | G85: FALSE | H85: 2 | I85: 33.5 | J85: 162.3593851 | K85: -0.04932015154 | L85: -0.05057792037 | Z85: 1991-06-01 | AA85: 0.2959936261 | AB85: 1991 | AC85: FALSE | AD85: FALSE | AE85: FALSE | AF85: 2 | AG85: -0.114761337 | AH85: -0.1218979946 | AV85: 2005-07-01 | AW85: 23.55333328 | AX85: 2005 | AY85: TRUE | AZ85: FALSE | BA85: FALSE | BB85: 2 | BC85: -0.04241766097 | BD85: -0.04334356786
C86: 1979-07-01 | D86: 1979 | E86: FALSE | F86: FALSE | G86: FALSE | H86: 2 | I86: 34 | J86: 164.3700668 | K86: 0.01238414234 | L86: 0.01230808613 | Z86: 1991-07-01 | AA86: 0.3298716843 | AB86: 1991 | AC86: FALSE | AD86: FALSE | AE86: FALSE | AF86: 2 | AG86: 0.1144553639 | AH86: 0.1083658227 | AV86: 2005-08-01 | AW86: 26.10000038 | AX86: 2005 | AY86: TRUE | AZ86: FALSE | BA86: FALSE | BB86: 2 | BC86: 0.1081234265 | BD86: 0.1026679778
C87: 1979-08-01 | D87: 1979 | E87: FALSE | F87: FALSE | G87: FALSE | H87: 2 | I87: 35.5 | J87: 166.2634732 | K87: 0.01151916748 | L87: 0.01145332701 | Z87: 1991-08-01 | AA87: 0.378015399 | AB87: 1991 | AC87: FALSE | AD87: FALSE | AE87: FALSE | AF87: 2 | AG87: 0.1459467937 | AH87: 0.1362311894 | AV87: 2005-09-01 | AW87: 22.76666641 | AX87: 2005 | AY87: TRUE | AZ87: FALSE | BA87: FALSE | BB87: 2 | BC87: -0.1277139433 | BD87: -0.1366378622
C88: 1979-09-01 | D88: 1979 | E88: FALSE | F88: FALSE | G88: FALSE | H88: 2 | I88: 37.25 | J88: 173.7020519 | K88: 0.04473970498 | L88: 0.04376776825 | Z88: 1991-09-01 | AA88: 0.353849113 | AB88: 1991 | AC88: FALSE | AD88: FALSE | AE88: FALSE | AF88: 2 | AG88: -0.06392936917 | AH88: -0.06606434506 | AV88: 2005-10-01 | AW88: 20.49666786 | AX88: 2005 | AY88: TRUE | AZ88: FALSE | BA88: FALSE | BB88: 2 | BC88: -0.09970711167 | BD88: -0.1050351371
C89: 1979-10-01 | D89: 1979 | E89: FALSE | F89: FALSE | G89: FALSE | H89: 2 | I89: 40.75 | J89: 187.7019991 | K89: 0.0805974771 | L89: 0.07751410771 | Z89: 1991-10-01 | AA89: 0.3681459129 | AB89: 1991 | AC89: FALSE | AD89: FALSE | AE89: FALSE | AF89: 2 | AG89: 0.04040366182 | AH89: 0.03960877422 | AV89: 2005-11-01 | AW89: 20.37666702 | AX89: 2005 | AY89: TRUE | AZ89: FALSE | BA89: FALSE | BB89: 2 | BC89: -0.005854651109 | BD89: -0.005871856767
C90: 1979-11-01 | D90: 1979 | E90: FALSE | F90: FALSE | G90: FALSE | H90: 2 | I90: 39.75 | J90: 179.2157357 | K90: -0.0452113635 | L90: -0.04626528603 | Z90: 1991-11-01 | AA90: 0.3627850115 | AB90: 1991 | AC90: FALSE | AD90: FALSE | AE90: FALSE | AF90: 2 | AG90: -0.0145618929 | AH90: -0.01466895792 | AV90: 2005-12-01 | AW90: 22.00333214 | AX90: 2005 | AY90: TRUE | AZ90: FALSE | BA90: FALSE | BB90: 2 | BC90: 0.07982979324 | BD90: 0.07680342986
C91: 1979-12-01 | D91: 1979 | E91: FALSE | F91: FALSE | G91: FALSE | H91: 2 | I91: 39 | J91: 175.1716756 | K91: -0.02256531834 | L91: -0.02282381119 | Z91: 1991-12-01 | AA91: 0.4039639533 | AB91: 1991 | AC91: FALSE | AD91: FALSE | AE91: FALSE | AF91: 2 | AG91: 0.1135078364 | AH91: 0.1075152453 | AV91: 2006-01-01 | AW91: 22.51000023 | AX91: 2006 | AY91: FALSE | AZ91: TRUE | BA91: FALSE | BB91: 2 | BC91: 0.02302688009 | BD91: 0.02276576238
C92: 1980-01-01 | D92: 1980 | E92: TRUE | F92: TRUE | G92: TRUE | H92: 3 | I92: 37.25 | J92: 166.7828468 | K92: -0.04788918495 | L92: -0.0490738486 | Z92: 1992-01-01 | AA92: 0.4639768004 | AB92: 1992 | AC92: FALSE | AD92: TRUE | AE92: FALSE | AF92: 2 | AG92: 0.1485599066 | AH92: 0.1385089026 | AV92: 2006-02-01 | AW92: 23.51000023 | AX92: 2006 | AY92: FALSE | AZ92: FALSE | BA92: FALSE | BB92: 2 | BC92: 0.04442469968 | BD92: 0.0434662072
C93: 1980-02-01 | D93: 1980 | E93: TRUE | F93: FALSE | G93: FALSE | H93: 3 | I93: 37 | J93: 163.8785758 | K93: -0.0174134877 | L93: -0.01756688588 | Z93: 1992-02-01 | AA93: 0.4836826026 | AB93: 1992 | AC93: FALSE | AD93: FALSE | AE93: FALSE | AF93: 2 | AG93: 0.04247152483 | AH93: 0.04159436001 | AV93: 2006-03-01 | AW93: 28.29333305 | AX93: 2006 | AY93: FALSE | AZ93: FALSE | BA93: FALSE | BB93: 2 | BC93: 0.2034594972 | BD93: 0.1852003235
C94: 1980-03-01 | D94: 1980 | E94: TRUE | F94: FALSE | G94: FALSE | H94: 3 | I94: 36.57500076 | J94: 161.5860541 | K94: -0.01398914807 | L94: -0.01408791842 | Z94: 1992-03-01 | AA94: 0.4181803763 | AB94: 1992 | AC94: FALSE | AD94: FALSE | AE94: FALSE | AF94: 2 | AG94: -0.1354239867 | AH94: -0.1455160503 | AV94: 2006-04-01 | AW94: 25.54333305 | AX94: 2006 | AY94: FALSE | AZ94: FALSE | BA94: FALSE | BB94: 2 | BC94: -0.09719604243 | BD94: -0.1022498504
C95: 1980-04-01 | D95: 1980 | E95: TRUE | F95: FALSE | G95: FALSE | H95: 3 | I95: 37.04999924 | J95: 161.2117473 | K95: -0.0023164548 | L95: -0.002319141932 | Z95: 1992-04-01 | AA95: 0.4316408932 | AB95: 1992 | AC95: FALSE | AD95: FALSE | AE95: FALSE | AF95: 2 | AG95: 0.03218830364 | AH95: 0.03168111519 | AV95: 2006-05-01 | AW95: 21.62999916 | AX95: 2006 | AY95: FALSE | AZ95: FALSE | BA95: FALSE | BB95: 2 | BC95: -0.1532037297 | BD95: -0.1662951442
C96: 1980-05-01 | D96: 1980 | E96: TRUE | F96: FALSE | G96: FALSE | H96: 3 | I96: 37 | J96: 157.3435515 | K96: -0.02399450375 | L96: -0.02428706118 | Z96: 1992-05-01 | AA96: 0.4289490283 | AB96: 1992 | AC96: FALSE | AD96: FALSE | AE96: FALSE | AF96: 2 | AG96: -0.006236352972 | AH96: -0.00625588025 | AV96: 2006-06-01 | AW96: 23.25666618 | AX96: 2006 | AY96: FALSE | AZ96: FALSE | BA96: FALSE | BB96: 2 | BC96: 0.07520421109 | BD96: 0.07251060734
C97: 1980-06-01 | D97: 1980 | E97: TRUE | F97: FALSE | G97: FALSE | H97: 3 | I97: 35.375 | J97: 153.1344973 | K97: -0.02675072555 | L97: -0.02711503798 | Z97: 1992-06-01 | AA97: 0.3445949256 | AB97: 1992 | AC97: FALSE | AD97: FALSE | AE97: FALSE | AF97: 2 | AG97: -0.1966529752 | AH97: -0.218968498 | AV97: 2006-07-01 | AW97: 21.87666702 | AX97: 2006 | AY97: FALSE | AZ97: FALSE | BA97: FALSE | BB97: 2 | BC97: -0.05933778943 | BD97: -0.06117117241
C98: 1980-07-01 | D98: 1980 | E98: TRUE | F98: FALSE | G98: FALSE | H98: 3 | I98: 32.94999886 | J98: 136.1679802 | K98: -0.1107948724 | L98: -0.1174273303 | Z98: 1992-07-01 | AA98: 0.3362965584 | AB98: 1992 | AC98: FALSE | AD98: FALSE | AE98: FALSE | AF98: 2 | AG98: -0.02408151323 | AH98: -0.02437621371 | AV98: 2006-08-01 | AW98: 27.5 | AX98: 2006 | AY98: FALSE | AZ98: FALSE | BA98: FALSE | BB98: 2 | BC98: 0.2570470617 | BD98: 0.2287653686
C99: 1980-08-01 | D99: 1980 | E99: TRUE | F99: FALSE | G99: FALSE | H99: 3 | I99: 32.82500076 | J99: 133.9984694 | K99: -0.01593260651 | L99: -0.01606089496 | Z99: 1992-08-01 | AA99: 0.3309011757 | AB99: 1992 | AC99: FALSE | AD99: FALSE | AE99: FALSE | AF99: 2 | AG99: -0.01604352619 | AH99: -0.01617361684 | AV99: 2006-09-01 | AW99: 34.21666718 | AX99: 2006 | AY99: FALSE | AZ99: FALSE | BA99: FALSE | BB99: 2 | BC99: 0.2442424427 | BD99: 0.218526865
C100: 1980-09-01 | D100: 1980 | E100: TRUE | F100: FALSE | G100: FALSE | H100: 3 | I100: 37.35000038 | J100: 150.5558166 | K100: 0.1235637045 | L100: 0.1165055129 | Z100: 1992-09-01 | AA100: 0.3254796267 | AB100: 1992 | AC100: FALSE | AD100: FALSE | AE100: FALSE | AF100: 2 | AG100: -0.01638419407 | AH100: -0.0165198993 | AV100: 2006-10-01 | AW100: 39.15999985 | AX100: 2006 | AY100: FALSE | AZ100: FALSE | BA100: FALSE | BB100: 2 | BC100: 0.1444714836 | BD100: 0.1349429441
C101: 1980-10-01 | D101: 1980 | E101: TRUE | F101: FALSE | G101: FALSE | H101: 3 | I101: 40.29999924 | J101: 160.6579376 | K101: 0.06709884229 | L101: 0.06494360373 | Z101: 1992-10-01 | AA101: 0.3786742389 | AB101: 1992 | AC101: FALSE | AD101: FALSE | AE101: FALSE | AF101: 2 | AG101: 0.1634345376 | AH101: 0.1513764388 | AV101: 2006-11-01 | AW101: 46.27666855 | AX101: 2006 | AY101: FALSE | AZ101: FALSE | BA101: FALSE | BB101: 2 | BC101: 0.1817331136 | BD101: 0.1669821013
C102: 1980-11-01 | D102: 1980 | E102: TRUE | F102: FALSE | G102: FALSE | H102: 3 | I102: 39.75 | J102: 156.3454864 | K102: -0.02684244109 | L102: -0.02720927886 | Z102: 1992-11-01 | AA102: 0.4147383869 | AB102: 1992 | AC102: FALSE | AD102: FALSE | AE102: FALSE | AF102: 2 | AG102: 0.09523792284 | AH102: 0.0909716208 | AV102: 2006-12-01 | AW102: 42.5933342 | AX102: 2006 | AY102: FALSE | AZ102: FALSE | BA102: FALSE | BB102: 2 | BC102: -0.07959376649 | BD102: -0.08294014824
C103: 1980-12-01 | D103: 1980 | E103: TRUE | F103: FALSE | G103: FALSE | H103: 3 | I103: 39.77499962 | J103: 155.3949375 | K103: -0.006079797325 | L103: -0.006098354547 | Z103: 1992-12-01 | AA103: 0.4318840206 | AB103: 1992 | AC103: FALSE | AD103: FALSE | AE103: FALSE | AF103: 2 | AG103: 0.04134084097 | AH103: 0.04050915293 | AV103: 2007-01-01 | AW103: 42.5933342 | AX103: 2007 | AY103: FALSE | AZ103: TRUE | BA103: FALSE | BB103: 2 | BC103: 0 | BD103: 0
C104: 1981-01-01 | D104: 1981 | E104: FALSE | F104: TRUE | G104: FALSE | H104: 3 | I104: 37.89999962 | J104: 147.8420008 | K104: -0.04860477965 | L104: -0.04982571881 | Z104: 1993-01-01 | AA104: 0.4300769866 | AB104: 1993 | AC104: FALSE | AD104: TRUE | AE104: FALSE | AF104: 2 | AG104: -0.004184072412 | AH104: -0.004192850136 | AV104: 2007-02-01 | AW104: 46.86999893 | AX104: 2007 | AY104: FALSE | AZ104: FALSE | BA104: FALSE | BB104: 2 | BC104: 0.100406902 | BD104: 0.09568002234
C105: 1981-02-01 | D105: 1981 | E105: FALSE | F105: FALSE | G105: FALSE | H105: 3 | I105: 37.59999847 | J105: 145.1920669 | K105: -0.01792409445 | L105: -0.01808667672 | Z105: 1993-02-01 | AA105: 0.3830938339 | AB105: 1993 | AC105: FALSE | AD105: FALSE | AE105: FALSE | AF105: 2 | AG105: -0.1092435868 | AH105: -0.1156842748 | AV105: 2007-03-01 | AW105: 45.49666595 | AX105: 2007 | AY105: FALSE | AZ105: FALSE | BA105: FALSE | BB105: 2 | BC105: -0.02930089628 | BD105: -0.0297387416
C106: 1981-03-01 | D106: 1981 | E106: FALSE | F106: FALSE | G106: FALSE | H106: 3 | I106: 36.36999893 | J106: 139.635058 | K106: -0.03827350179 | L106: -0.03902517413 | Z106: 1993-03-01 | AA106: 0.3730630577 | AB106: 1993 | AC106: FALSE | AD106: FALSE | AE106: FALSE | AF106: 2 | AG106: -0.02618360144 | AH106: -0.02653249562 | AV106: 2007-04-01 | AW106: 43.86000061 | AX106: 2007 | AY106: FALSE | AZ106: FALSE | BA106: FALSE | BB106: 2 | BC106: -0.03597330288 | BD106: -0.03663629064
C107: 1981-04-01 | D107: 1981 | E107: FALSE | F107: FALSE | G107: FALSE | H107: 3 | I107: 34.28499985 | J107: 131.0805234 | K107: -0.06126351582 | L107: -0.06322047369 | Z107: 1993-04-01 | AA107: 0.3712521791 | AB107: 1993 | AC107: FALSE | AD107: FALSE | AE107: FALSE | AF107: 2 | AG107: -0.004854081577 | AH107: -0.004865900894 | AV107: 2007-05-01 | AW107: 55.36000061 | AX107: 2007 | AY107: FALSE | AZ107: FALSE | BA107: FALSE | BB107: 2 | BC107: 0.2621978988 | BD107: 0.2328545654
C108: 1981-05-01 | D108: 1981 | E108: FALSE | F108: FALSE | G108: FALSE | H108: 3 | I108: 32.70999908 | J108: 122.8948397 | K108: -0.06244775008 | L108: -0.06448278944 | Z108: 1993-05-01 | AA108: 0.4101883769 | AB108: 1993 | AC108: FALSE | AD108: FALSE | AE108: FALSE | AF108: 2 | AG108: 0.1048780316 | AH108: 0.09973495019 | AV108: 2007-06-01 | AW108: 66.66333008 | AX108: 2007 | AY108: FALSE | AZ108: FALSE | BA108: FALSE | BB108: 2 | BC108: 0.204178637 | BD108: 0.1857977055
C109: 1981-06-01 | D109: =YEAR(C109) -> 1981 | E109: =MOD(D109,5)=0 -> FALSE | F109: =MONTH(C109)=1 -> FALSE | G109: =AND(F109,E109) -> FALSE | H109: 3 | I109: 33.51000023 | J109: 128.6032772 | K109: 0.04644977362 | L109: 0.04540326713 | Z109: 1993-06-01 | AA109: 0.2867344618 | AB109: 1993 | AC109: FALSE | AD109: FALSE | AE109: FALSE | AF109: 2 | AG109: -0.3009688282 | AH109: -0.3580599428 | AV109: 2007-07-01 | AW109: 71.33333588 | AX109: 2007 | AY109: FALSE | AZ109: FALSE | BA109: FALSE | BB109: 2 | BC109: 0.07005359308 | BD109: 0.06770873421
C110: 1981-07-01 | D110: 1981 | E110: FALSE | F110: FALSE | G110: FALSE | H110: =H109+G110 -> 3 | I110: 33.9849987 | J110: 130.2038903 | K110: 0.01244613035 | L110: 0.01236931399 | Z110: 1993-07-01 | AA110: 0.2014399618 | AB110: 1993 | AC110: FALSE | AD110: FALSE | AE110: FALSE | AF110: 2 | AG110: -0.2974686037 | AH110: -0.3530651866 | AV110: 2007-08-01 | AW110: 85.41000366 | AX110: 2007 | AY110: FALSE | AZ110: FALSE | BA110: FALSE | BB110: 2 | BC110: 0.1973364572 | BD110: 0.1800994708
C111: 1981-08-01 | D111: 1981 | E111: FALSE | F111: FALSE | G111: FALSE | H111: 3 | I111: 33.98500061 | J111: 129.4921044 | K111: -0.005466702402 | L111: -0.005481699501 | Z111: 1993-08-01 | AA111: 0.192365855 | AB111: 1993 | AC111: FALSE | AD111: FALSE | AE111: FALSE | AF111: 2 | AG111: -0.04504620996 | AH111: -0.04609232706 | AV111: 2007-09-01 | AW111: 98.55000305 | AX111: 2007 | AY111: FALSE | AZ111: FALSE | BA111: FALSE | BB111: 2 | BC111: 0.1538461401 | BD111: 0.1431008317
C112: 1981-09-01 | D112: 1981 | E112: FALSE | F112: FALSE | G112: FALSE | H112: 3 | I112: 34.61000061 | J112: 130.627632 | K112: 0.00876908764 | L112: 0.008730862495 | Z112: 1993-09-01 | AA112: 0.1704277247 | AB112: 1993 | AC112: FALSE | AD112: FALSE | AE112: FALSE | AF112: 2 | AG112: -0.1140437853 | AH112: -0.1210877486 | AV112: 2007-10-01 | AW112: 124.5100021 | AX112: 2007 | AY112: FALSE | AZ112: FALSE | BA112: FALSE | BB112: 2 | BC112: 0.2634195665 | BD112: 0.2338219866
C113: 1981-10-01 | D113: 1981 | E113: FALSE | F113: FALSE | G113: FALSE | H113: 3 | I113: 35.68000031 | J113: 131.6371698 | K113: 0.007728363327 | L113: 0.007698652506 | Z113: 1993-10-01 | AA113: 0.2241998613 | AB113: 1993 | AC113: FALSE | AD113: FALSE | AE113: FALSE | AF113: 2 | AG113: 0.3155128466 | AH113: 0.274226587 | AV113: 2007-11-01 | AW113: 113.8199997 | AX113: 2007 | AY113: FALSE | AZ113: FALSE | BA113: FALSE | BB113: 2 | BC113: -0.08585657584 | BD113: -0.08976780063
C114: 1981-11-01 | D114: 1981 | E114: FALSE | F114: FALSE | G114: FALSE | H114: 3 | I114: 35.40999985 | J114: 129.1582638 | K114: -0.01883135302 | L114: -0.01901092086 | Z114: 1993-11-01 | AA114: 0.2296677232 | AB114: 1993 | AC114: FALSE | AD114: FALSE | AE114: FALSE | AF114: 2 | AG114: 0.02438833753 | AH114: 0.02409569059 | AV114: 2007-12-01 | AW114: 113.4000015 | AX114: 2007 | AY114: FALSE | AZ114: FALSE | BA114: FALSE | BB114: 2 | BC114: -0.003690020823 | BD114: -0.003696845744
C115: 1981-12-01 | D115: 1981 | E115: FALSE | F115: FALSE | G115: FALSE | H115: 3 | I115: 35.04999949 | J115: 125.2714714 | K115: -0.03009325392 | L115: -0.03055535017 | Z115: 1993-12-01 | AA115: 0.2140296102 | AB115: 1993 | AC115: FALSE | AD115: FALSE | AE115: FALSE | AF115: 2 | AG115: -0.06809016437 | AH115: -0.07051921186 | AV115: 2008-01-01 | AW115: 93.87999725 | AX115: 2008 | AY115: FALSE | AZ115: TRUE | BA115: FALSE | BB115: 2 | BC115: -0.1721340742 | BD115: -0.188904063
C116: 1982-01-01 | D116: 1982 | E116: FALSE | F116: TRUE | G116: FALSE | H116: 3 | I116: 32.27333349 | J116: 109.7510989 | K116: -0.1238939102 | L116: -0.1322680883 | Z116: 1994-01-01 | AA116: 0.2396398932 | AB116: 1994 | AC116: FALSE | AD116: TRUE | AE116: FALSE | AF116: 2 | AG116: 0.1196576632 | AH116: 0.1130229808 | AV116: 2008-02-01 | AW116: 103.8000031 | AX116: 2008 | AY116: FALSE | AZ116: FALSE | BA116: FALSE | BB116: 2 | BC116: 0.1056668735 | BD116: 0.1004486584
C117: 1982-02-01 | D117: 1982 | E117: FALSE | F117: FALSE | G117: FALSE | H117: 3 | I117: 30.16666654 | J117: 101.0778714 | K117: -0.07902633854 | L117: -0.0823238409 | Z117: 1994-02-01 | AA117: 0.2670793533 | AB117: 1994 | AC117: FALSE | AD117: FALSE | AE117: FALSE | AF117: 2 | AG117: 0.1145028893 | AH117: 0.1084084663 | AV117: 2008-03-01 | AW117: 112.2300034 | AX117: 2008 | AY117: FALSE | AZ117: FALSE | BA117: FALSE | BB117: 2 | BC117: 0.08121387338 | BD117: 0.07808436681
C118: 1982-03-01 | D118: 1982 | E118: FALSE | F118: FALSE | G118: FALSE | H118: 3 | I118: 31.56666603 | J118: 113.6330721 | K118: 0.1242131482 | L118: 0.1170833671 | Z118: 1994-03-01 | AA118: 0.2441724986 | AB118: 1994 | AC118: FALSE | AD118: FALSE | AE118: FALSE | AF118: 2 | AG118: -0.08576797294 | AH118: -0.08967088081 | AV118: 2008-04-01 | AW118: 121.6299973 | AX118: 2008 | AY118: FALSE | AZ118: FALSE | BA118: FALSE | BB118: 2 | BC118: 0.08375651444 | BD118: 0.08043326011
C119: 1982-04-01 | D119: 1982 | E119: FALSE | F119: FALSE | G119: FALSE | H119: 3 | I119: 33.04333293 | J119: 120.0681715 | K119: 0.05663051567 | L119: 0.05508508633 | Z119: 1994-04-01 | AA119: 0.2203059196 | AB119: 1994 | AC119: FALSE | AD119: FALSE | AE119: FALSE | AF119: 2 | AG119: -0.09774474634 | AH119: -0.1028578126 | AV119: 2008-05-01 | AW119: 138.8699951 | AX119: 2008 | AY119: FALSE | AZ119: FALSE | BA119: FALSE | BB119: 2 | BC119: 0.1417413323 | BD119: 0.1325545815
C120: 1982-05-01 | D120: 1982 | E120: FALSE | F120: FALSE | G120: FALSE | H120: 3 | I120: 32.76666667 | J120: 117.4538815 | K120: -0.02177338077 | L120: -0.02201391879 | Z120: 1994-05-01 | AA120: 0.214798674 | AB120: 1994 | AC120: FALSE | AD120: FALSE | AE120: FALSE | AF120: 2 | AG120: -0.02499817376 | AH120: -0.02531593492 | AV120: 2008-06-01 | AW120: 116.9000015 | AX120: 2008 | AY120: FALSE | AZ120: FALSE | BA120: FALSE | BB120: 2 | BC120: -0.1582054754 | BD120: -0.172219327
C121: 1982-06-01 | D121: 1982 | E121: FALSE | F121: FALSE | G121: FALSE | H121: 3 | I121: 32.91666718 | J121: 113.7498702 | K121: -0.03153587827 | L121: -0.03204384202 | Z121: 1994-06-01 | AA121: 0.1953719407 | AB121: 1994 | AC121: FALSE | AD121: FALSE | AE121: FALSE | AF121: 2 | AG121: -0.09044158837 | AH121: -0.09479605919 | AV121: 2008-07-01 | AW121: 122.8199997 | AX121: 2008 | AY121: FALSE | AZ121: FALSE | BA121: FALSE | BB121: 2 | BC121: 0.05064155767 | BD121: 0.04940098489
C122: 1982-07-01 | D122: 1982 | E122: FALSE | F122: FALSE | G122: FALSE | H122: 3 | I122: 32.41666641 | J122: 110.3055229 | K122: -0.03028001106 | L122: -0.03074792035 | Z122: 1994-07-01 | AA122: 0.2483619452 | AB122: 1994 | AC122: FALSE | AD122: FALSE | AE122: FALSE | AF122: 2 | AG122: 0.2712262786 | AH122: 0.2399820083 | AV122: 2008-08-01 | AW122: 121.5999985 | AX122: 2008 | AY122: FALSE | AZ122: FALSE | BA122: FALSE | BB122: 2 | BC122: -0.009933245593 | BD122: -0.009982909433
C123: 1982-08-01 | D123: 1982 | E123: FALSE | F123: FALSE | G123: FALSE | H123: 3 | I123: 33.46666641 | J123: 114.462899 | K123: 0.03768964599 | L123: 0.03699674774 | Z123: 1994-08-01 | AA123: 0.2667936981 | AB123: 1994 | AC123: FALSE | AD123: FALSE | AE123: FALSE | AF123: 2 | AG123: 0.07421327333 | AH123: 0.07158855489 | AV123: 2008-09-01 | AW123: 68.30000305 | AX123: 2008 | AY123: FALSE | AZ123: FALSE | BA123: FALSE | BB123: 2 | BC123: -0.4383223363 | BD123: -0.5768271457
C124: 1982-09-01 | D124: 1982 | E124: FALSE | F124: FALSE | G124: FALSE | H124: 3 | I124: 33.78333384 | J124: 116.4908045 | K124: 0.01771670549 | L124: 0.01756159403 | Z124: 1994-09-01 | AA124: 0.2492222041 | AB124: 1994 | AC124: FALSE | AD124: FALSE | AE124: FALSE | AF124: 2 | AG124: -0.06586172803 | AH124: -0.06813080892 | AV124: 2008-10-01 | AW124: 50.43000031 | AX124: 2008 | AY124: FALSE | AZ124: FALSE | BA124: FALSE | BB124: 2 | BC124: -0.2616398528 | BD124: -0.3033235691
C125: 1982-10-01 | D125: 1982 | E125: FALSE | F125: FALSE | G125: FALSE | H125: 3 | I125: 32.84999975 | J125: 112.0279975 | K125: -0.03831037981 | L125: -0.03906352052 | Z125: 1994-10-01 | AA125: 0.3195042908 | AB125: 1994 | AC125: FALSE | AD125: FALSE | AE125: FALSE | AF125: 2 | AG125: 0.2820057185 | AH125: 0.2484258191 | AV125: 2008-11-01 | AW125: 42.47000122 | AX125: 2008 | AY125: FALSE | AZ125: FALSE | BA125: FALSE | BB125: 2 | BC125: -0.1578425349 | BD125: -0.1717882691
C126: 1982-11-01 | D126: 1982 | E126: FALSE | F126: FALSE | G126: FALSE | H126: 3 | I126: 31.46666679 | J126: 104.8406581 | K126: -0.06415663526 | L126: -0.06630716188 | Z126: 1994-11-01 | AA126: 0.2755777836 | AB126: 1994 | AC126: FALSE | AD126: FALSE | AE126: FALSE | AF126: 2 | AG126: -0.1374833093 | AH126: -0.1479007787 | AV126: 2008-12-01 | AW126: 40.58000183 | AX126: 2008 | AY126: FALSE | AZ126: FALSE | BA126: FALSE | BB126: 2 | BC126: -0.04450198576 | BD126: -0.04552259355
C127: 1982-12-01 | D127: 1982 | E127: FALSE | F127: FALSE | G127: FALSE | H127: 3 | I127: 30.65333303 | J127: 101.5502552 | K127: -0.03138479869 | L127: -0.03188785503 | Z127: 1994-12-01 | AA127: 0.2893922627 | AB127: 1994 | AC127: FALSE | AD127: FALSE | AE127: FALSE | AF127: 2 | AG127: 0.0501291466 | AH127: 0.04891315337 | AV127: 2009-01-01 | AW127: 55.40000153 | AX127: 2009 | AY127: FALSE | AZ127: TRUE | BA127: FALSE | BB127: 2 | BC127: 0.3652045103 | BD127: 0.3113042418
C128: 1983-01-01 | D128: 1983 | E128: FALSE | F128: TRUE | G128: FALSE | H128: 3 | I128: 29.11333338 | J128: 95.49923875 | K128: -0.05958642258 | L128: -0.0614355245 | Z128: 1995-01-01 | AA128: 0.2995953858 | AB128: 1995 | AC128: TRUE | AD128: TRUE | AE128: TRUE | AF128: 3 | AG128: 0.03525706941 | AH128: 0.03464977212 | AV128: 2009-02-01 | AW128: 39.93999863 | AX128: 2009 | AY128: FALSE | AZ128: FALSE | BA128: FALSE | BB128: 2 | BC128: -0.2790614165 | BD128: -0.3272013277
C129: 1983-02-01 | D129: 1983 | E129: FALSE | F129: FALSE | G129: FALSE | H129: 3 | I129: 28.32000033 | J129: 92.28159073 | K129: -0.03369291799 | L129: -0.034273605 | Z129: 1995-02-01 | AA129: 0.2931028306 | AB129: 1995 | AC129: TRUE | AD129: FALSE | AE129: FALSE | AF129: 3 | AG129: -0.02167107856 | AH129: -0.021909345 | AV129: 2009-03-01 | AW129: 43.11000061 | AX129: 2009 | AY129: FALSE | AZ129: FALSE | BA129: FALSE | BB129: 2 | BC129: 0.07936910597 | BD129: 0.07637670931
C130: 1983-03-01 | D130: 1983 | E130: FALSE | F130: FALSE | G130: FALSE | H130: 3 | I130: 29.69333331 | J130: 97.06746365 | K130: 0.05186162141 | L130: 0.05056156708 | Z130: 1995-03-01 | AA130: 0.2622851729 | AB130: 1995 | AC130: TRUE | AD130: FALSE | AE130: FALSE | AF130: 3 | AG130: -0.1051428184 | AH130: -0.1110911471 | AV130: 2009-04-01 | AW130: 69.5 | AX130: 2009 | AY130: FALSE | AZ130: FALSE | BA130: FALSE | BB130: 2 | BC130: 0.6121549296 | BD130: 0.4775717497
C131: 1983-04-01 | D131: 1983 | E131: FALSE | F131: FALSE | G131: FALSE | H131: 3 | I131: 29.35999997 | J131: 96.27071628 | K131: -0.008208181594 | L131: -0.008242054199 | Z131: 1995-04-01 | AA131: 0.2846077979 | AB131: 1995 | AC131: TRUE | AD131: FALSE | AE131: FALSE | AF131: 3 | AG131: 0.08510822275 | AH131: 0.08167972649 | AV131: 2009-05-01 | AW131: 78.63999939 | AX131: 2009 | AY131: FALSE | AZ131: FALSE | BA131: FALSE | BB131: 2 | BC131: 0.1315107826 | BD131: 0.1235537155
C132: 1983-05-01 | D132: 1983 | E132: FALSE | F132: FALSE | G132: FALSE | H132: 3 | I132: 29.96666718 | J132: 97.93710449 | K132: 0.01730939867 | L132: 0.01716129762 | Z132: 1995-05-01 | AA132: 0.3092550933 | AB132: 1995 | AC132: TRUE | AD132: FALSE | AE132: FALSE | AF132: 3 | AG132: 0.08660091417 | AH132: 0.08305439645 | AV132: 2009-06-01 | AW132: 71.08999634 | AX132: 2009 | AY132: FALSE | AZ132: FALSE | BA132: FALSE | BB132: 2 | BC132: -0.09600716061 | BD132: -0.1009338396
C133: 1983-06-01 | D133: 1983 | E133: FALSE | F133: FALSE | G133: FALSE | H133: 3 | I133: 30.46666654 | J133: 99.671287 | K133: 0.01770710412 | L133: 0.01755215976 | Z133: 1995-06-01 | AA133: 0.3464870155 | AB133: 1995 | AC133: TRUE | AD133: FALSE | AE133: FALSE | AF133: 3 | AG133: 0.1203922682 | AH133: 0.1136788635 | AV133: 2009-07-01 | AW133: 75.98999786 | AX133: 2009 | AY133: FALSE | AZ133: FALSE | BA133: FALSE | BB133: 2 | BC133: 0.06892673763 | BD133: 0.06665509614
C134: 1983-07-01 | D134: 1983 | E134: FALSE | F134: FALSE | G134: FALSE | H134: 3 | I134: 30.65333303 | J134: 100.438376 | K134: 0.007696188076 | L134: 0.0076667235 | Z134: 1995-07-01 | AA134: 0.3357612193 | AB134: 1995 | AC134: TRUE | AD134: FALSE | AE134: FALSE | AF134: 3 | AG134: -0.03095583887 | AH134: -0.03144509421 | AV134: 2009-08-01 | AW134: 73.05999756 | AX134: 2009 | AY134: FALSE | AZ134: FALSE | BA134: FALSE | BB134: 2 | BC134: -0.03855771006 | BD134: -0.03932073662
C135: 1983-08-01 | D135: 1983 | E135: FALSE | F135: FALSE | G135: FALSE | H135: 3 | I135: 30.07000033 | J135: 97.81006744 | K135: -0.0261683694 | L135: -0.02651685414 | Z135: 1995-08-01 | AA135: 0.3208385408 | AB135: 1995 | AC135: TRUE | AD135: FALSE | AE135: FALSE | AF135: 3 | AG135: -0.04444431821 | AH135: -0.04546224197 | AV135: 2009-09-01 | AW135: 67.62999725 | AX135: 2009 | AY135: FALSE | AZ135: FALSE | BA135: FALSE | BB135: 2 | BC135: -0.07432248134 | BD135: -0.07722935698
C136: 1983-09-01 | D136: 1983 | E136: FALSE | F136: FALSE | G136: FALSE | H136: 3 | I136: 29.61666679 | J136: 95.97290347 | K136: -0.01878297421 | L136: -0.01896161474 | Z136: 1995-09-01 | AA136: 0.2786939442 | AB136: 1995 | AC136: TRUE | AD136: FALSE | AE136: FALSE | AF136: 3 | AG136: -0.1313576495 | AH136: -0.1408238028 | AV136: 2009-10-01 | AW136: 58.72999954 | AX136: 2009 | AY136: FALSE | AZ136: FALSE | BA136: FALSE | BB136: 2 | BC136: -0.1315983746 | BD136: -0.1411009692
C137: 1983-10-01 | D137: 1983 | E137: FALSE | F137: FALSE | G137: FALSE | H137: 3 | I137: 29.16666667 | J137: 93.66334527 | K137: -0.0240646903 | L137: -0.02435897581 | Z137: 1995-10-01 | AA137: 0.2716802359 | AB137: =YEAR(Z137) -> 1995 | AC137: =MOD(AB137,5)=0 -> TRUE | AD137: =MONTH(Z137)=1 -> FALSE | AE137: =AND(AD137,AC137) -> FALSE | AF137: 3 | AG137: -0.02516634645 | AH137: -0.02548843428 | AV137: 2009-11-01 | AW137: 57.88999939 | AX137: =YEAR(AV137) -> 2009 | AY137: =MOD(AX137,5)=0 -> FALSE | AZ137: =MONTH(AV137)=1 -> FALSE | BA137: =AND(AZ137,AY137) -> FALSE | BB137: =BA137+BB136 -> 2 | BC137: -0.01430274407 | BD137: -0.01440601419
C138: 1983-11-01 | D138: 1983 | E138: FALSE | F138: FALSE | G138: FALSE | H138: 3 | I138: 28.81333351 | J138: 92.61311931 | K138: =J138/J137-1 -> -0.01121277439 | L138: =LN(J138/J137) -> -0.01127611145 | Z138: 1995-11-01 | AA138: 0.2852407694 | AB138: 1995 | AC138: TRUE | AD138: FALSE | AE138: FALSE | AF138: =AF137+AE138 -> 3 | AG138: =AA138/AA137-1 -> 0.04991358124 | AH138: =LN(AA138/AA137) -> 0.0487078572 | AV138: 2009-12-01 | AW138: 67.54000092 | AX138: 2009 | AY138: FALSE | AZ138: FALSE | BA138: FALSE | BB138: 2 | BC138: =AW138/AW137-1 -> 0.166695485 | BD138: =LN(AW138/AW137) -> 0.154175381
C139: 1983-12-01 | D139: 1983 | E139: FALSE | F139: FALSE | G139: FALSE | H139: 3 | I139: 29.04333305 | J139: 94.27178244 | K139: 0.01790959141 | L139: 0.01775110417 | Z139: 1995-12-01 | AA139: 0.2392225862 | AB139: 1995 | AC139: TRUE | AD139: FALSE | AE139: FALSE | AF139: 3 | AG139: -0.1613310164 | AH139: -0.1759391871 | AV139: 2010-01-01 | AW139: 62.90999985 | AX139: 2010 | AY139: TRUE | AZ139: TRUE | BA139: TRUE | BB139: 3 | BC139: -0.06855198409 | BD139: -0.07101489736
C140: 1984-01-01 | D140: 1984 | E140: FALSE | F140: TRUE | G140: FALSE | H140: 3 | I140: 29.2033329 | J140: 94.96675538 | K140: 0.007372014415 | L140: 0.00734497393 | Z140: 1996-01-01 | AA140: 0.2073266059 | AB140: 1996 | AC140: FALSE | AD140: TRUE | AE140: FALSE | AF140: 3 | AG140: -0.1333318093 | AH140: -0.1430990851 | AV140: 2010-02-01 | AW140: 70.87999725 | AX140: 2010 | AY140: TRUE | AZ140: FALSE | BA140: FALSE | BB140: 3 | BC140: 0.1266888798 | BD140: 0.1192831364
C141: 1984-02-01 | D141: 1984 | E141: FALSE | F141: FALSE | G141: FALSE | H141: 3 | I141: 29.53333346 | J141: 95.24504939 | K141: 0.002930436191 | L141: 0.002926150833 | Z141: 1996-02-01 | AA141: 0.2063885182 | AB141: 1996 | AC141: FALSE | AD141: FALSE | AE141: FALSE | AF141: 3 | AG141: -0.004524685569 | AH141: -0.004534952941 | AV141: 2010-03-01 | AW141: 73.97000122 | AX141: 2010 | AY141: TRUE | AZ141: FALSE | BA141: FALSE | BB141: 3 | BC141: 0.04359486579 | BD141: 0.04267135456
C142: 1984-03-01 | D142: 1984 | E142: FALSE | F142: FALSE | G142: FALSE | H142: 3 | I142: 29.57333247 | J142: 95.03129433 | K142: -0.002244264261 | L142: -0.002246786396 | Z142: 1996-03-01 | AA142: 0.1843422651 | AB142: 1996 | AC142: FALSE | AD142: FALSE | AE142: FALSE | AF142: 3 | AG142: -0.1068191839 | AH142: -0.112966237 | AV142: 2010-04-01 | AW142: 71.19000244 | AX142: 2010 | AY142: TRUE | AZ142: FALSE | BA142: FALSE | BB142: 3 | BC142: -0.03758278672 | BD142: -0.03830722869
C143: 1984-04-01 | D143: 1984 | E143: FALSE | F143: FALSE | G143: FALSE | H143: 3 | I143: 29.46000036 | J143: 93.95579283 | K143: -0.0113173404 | L143: -0.01138186881 | Z143: 1996-04-01 | AA143: 0.1829351336 | AB143: 1996 | AC143: FALSE | AD143: FALSE | AE143: FALSE | AF143: 3 | AG143: -0.007633255194 | AH143: -0.007662537595 | AV143: 2010-05-01 | AW143: 60.68999863 | AX143: 2010 | AY143: TRUE | AZ143: FALSE | BA143: FALSE | BB143: 3 | BC143: -0.1474926739 | BD143: -0.1595734762
C144: 1984-05-01 | D144: 1984 | E144: FALSE | F144: FALSE | G144: FALSE | H144: 3 | I144: 29.05000051 | J144: 91.43963898 | K144: -0.02678018853 | L144: -0.02714531124 | Z144: 1996-05-01 | AA144: 0.1960689574 | AB144: 1996 | AC144: FALSE | AD144: FALSE | AE144: FALSE | AF144: 3 | AG144: 0.0717949779 | AH144: 0.0693347924 | AV144: 2010-06-01 | AW144: 49.25999832 | AX144: 2010 | AY144: TRUE | AZ144: FALSE | BA144: FALSE | BB144: 3 | BC144: -0.1883341665 | BD144: -0.2086665586
C145: 1984-06-01 | D145: 1984 | E145: FALSE | F145: FALSE | G145: FALSE | H145: 3 | I145: 27.986667 | J145: 87.09940086 | K145: -0.04746560871 | L145: -0.04862906629 | Z145: 1996-06-01 | AA145: 0.1576056778 | AB145: 1996 | AC145: FALSE | AD145: FALSE | AE145: FALSE | AF145: 3 | AG145: -0.1961722044 | AH145: -0.2183702174 | AV145: 2010-07-01 | AW145: 57.52999878 | AX145: 2010 | AY145: TRUE | AZ145: FALSE | BA145: FALSE | BB145: 3 | BC145: 0.1678847085 | BD145: 0.155194171
C146: 1984-07-01 | D146: 1984 | E146: FALSE | F146: FALSE | G146: FALSE | H146: 3 | I146: 28.17000008 | J146: 87.42300929 | K146: 0.003715392238 | L146: 0.003708507216 | Z146: 1996-07-01 | AA146: 0.1651110351 | AB146: 1996 | AC146: FALSE | AD146: FALSE | AE146: FALSE | AF146: 3 | AG146: 0.04762110965 | AH146: 0.04652198393 | AV146: 2010-08-01 | AW146: 42.84000015 | AX146: 2010 | AY146: TRUE | AZ146: FALSE | BA146: FALSE | BB146: 3 | BC146: -0.2553450189 | BD146: -0.2948342805
C147: 1984-08-01 | D147: 1984 | E147: FALSE | F147: FALSE | G147: FALSE | H147: 3 | I147: 28.35333316 | J147: 87.89221686 | K147: 0.005367094648 | L147: 0.005352743124 | Z147: 1996-08-01 | AA147: 0.1819970906 | AB147: 1996 | AC147: FALSE | AD147: FALSE | AE147: FALSE | AF147: 3 | AG147: 0.1022709079 | AH147: 0.09737251348 | AV147: 2010-09-01 | AW147: 48.68999863 | AX147: 2010 | AY147: TRUE | AZ147: FALSE | BA147: FALSE | BB147: 3 | BC147: 0.1365545857 | BD147: 0.1280013928
C148: 1984-09-01 | D148: 1984 | E148: FALSE | F148: FALSE | G148: FALSE | H148: 3 | I148: 27.85333316 | J148: 85.88787234 | K148: -0.02280457351 | L148: -0.02306861982 | Z148: 1996-09-01 | AA148: 0.1665181369 | AB148: 1996 | AC148: FALSE | AD148: FALSE | AE148: FALSE | AF148: 3 | AG148: -0.08505055586 | AH148: -0.08888646754 | AV148: 2010-10-01 | AW148: 56.91999817 | AX148: 2010 | AY148: TRUE | AZ148: FALSE | BA148: FALSE | BB148: 3 | BC148: 0.1690285433 | BD148: 0.1561730991
C149: 1984-10-01 | D149: 1984 | E149: FALSE | F149: FALSE | G149: FALSE | H149: 3 | I149: 27.65000025 | J149: 85.25144094 | K149: -0.007410026408 | L149: -0.007437617036 | Z149: 1996-10-01 | AA149: 0.1726155728 | AB149: 1996 | AC149: FALSE | AD149: FALSE | AE149: FALSE | AF149: 3 | AG149: 0.03661724822 | AH149: 0.03596276586 | AV149: 2010-11-01 | AW149: 61.83000183 | AX149: 2010 | AY149: TRUE | AZ149: FALSE | BA149: FALSE | BB149: 3 | BC149: 0.08626148665 | BD149: 0.08274197213
C150: 1984-11-01 | D150: 1984 | E150: FALSE | F150: FALSE | G150: FALSE | H150: 3 | I150: 26.81333351 | J150: 82.76115897 | K150: -0.02921102499 | L150: -0.02964616179 | Z150: 1996-11-01 | AA150: 0.1810589731 | AB150: 1996 | AC150: FALSE | AD150: FALSE | AE150: FALSE | AF150: 3 | AG150: 0.04891447583 | AH150: 0.04775579685 | AV150: 2010-12-01 | AW150: 58.13000107 | AX150: 2010 | AY150: TRUE | AZ150: FALSE | BA150: FALSE | BB150: 3 | BC150: -0.05984151146 | BD150: -0.0617068131
C151: 1984-12-01 | D151: 1984 | E151: FALSE | F151: FALSE | G151: FALSE | H151: 3 | I151: 26.63333333 | J151: 82.4027714 | K151: -0.004330383587 | L151: -0.004339786855 | Z151: 1996-12-01 | AA151: 0.1566675305 | AB151: 1996 | AC151: FALSE | AD151: FALSE | AE151: FALSE | AF151: 3 | AG151: -0.1347154583 | AH151: -0.1446968762 | AV151: 2011-01-01 | AW151: 59.11000061 | AX151: 2011 | AY151: FALSE | AZ151: TRUE | BA151: FALSE | BB151: 3 | BC151: 0.01685875665 | BD151: 0.01671822507
C152: 1985-01-01 | D152: 1985 | E152: TRUE | F152: TRUE | G152: TRUE | H152: 4 | I152: 27.6 | J152: 85.97568293 | K152: 0.04335911853 | L152: 0.04244542983 | Z152: 1997-01-01 | AA152: 0.124771513 | AB152: 1997 | AC152: FALSE | AD152: TRUE | AE152: FALSE | AF152: 3 | AG152: -0.2035904784 | AH152: -0.2276417511 | AV152: 2011-02-01 | AW152: 66.19999695 | AX152: 2011 | AY152: FALSE | AZ152: FALSE | BA152: FALSE | BB152: 3 | BC152: 0.1199458005 | BD152: 0.1132802917
C153: 1985-02-01 | D153: 1985 | E153: TRUE | F153: FALSE | G153: FALSE | H153: 4 | I153: 27.85 | J153: 85.4244819 | K153: -0.006411127192 | L153: -0.00643176673 | Z153: 1997-02-01 | AA153: 0.1219565049 | AB153: 1997 | AC153: FALSE | AD153: FALSE | AE153: FALSE | AF153: 3 | AG153: -0.02256130502 | AH153: -0.02281970522 | AV153: 2011-03-01 | AW153: 56.54000092 | AX153: 2011 | AY153: FALSE | AZ153: FALSE | BA153: FALSE | BB153: 3 | BC153: -0.1459213969 | BD153: -0.1577320484
C154: 1985-03-01 | D154: 1985 | E154: TRUE | F154: FALSE | G154: FALSE | H154: 4 | I154: 27.8 | J154: 84.5598196 | K154: -0.01012194951 | L154: -0.01017352476 | Z154: 1997-03-01 | AA154: 0.1369664222 | AB154: 1997 | AC154: FALSE | AD154: FALSE | AE154: FALSE | AF154: 3 | AG154: 0.1230759879 | AH154: 0.1160713386 | AV154: 2011-04-01 | AW154: 48.65000153 | AX154: 2011 | AY154: FALSE | AZ154: FALSE | BA154: FALSE | BB154: 3 | BC154: -0.1395472102 | BD154: -0.1502965285
C155: 1985-04-01 | D155: 1985 | E155: TRUE | F155: FALSE | G155: FALSE | H155: 4 | I155: 26.65 | J155: 80.52804169 | K155: -0.04767959455 | L155: -0.04885374047 | Z155: 1997-04-01 | AA155: 0.1275857538 | AB155: 1997 | AC155: FALSE | AD155: FALSE | AE155: FALSE | AF155: 3 | AG155: -0.06848881829 | AH155: -0.07094708503 | AV155: 2011-05-01 | AW155: 42.84999847 | AX155: 2011 | AY155: FALSE | AZ155: FALSE | BA155: FALSE | BB155: 3 | BC155: -0.1192189696 | BD155: -0.1269462306
C156: 1985-05-01 | D156: 1985 | E156: TRUE | F156: FALSE | G156: FALSE | H156: 4 | I156: 26.36666667 | J156: 79.6774945 | K156: -0.01056212434 | L156: -0.01061829948 | Z156: 1997-05-01 | AA156: 0.124771513 | AB156: 1997 | AC156: FALSE | AD156: FALSE | AE156: FALSE | AF156: 3 | AG156: -0.022057641 | AH156: -0.02230454831 | AV156: 2011-06-01 | AW156: 28.85000038 | AX156: 2011 | AY156: FALSE | AZ156: FALSE | BA156: FALSE | BB156: 3 | BC156: -0.3267210873 | BD156: -0.3955956033
C157: 1985-06-01 | D157: 1985 | E157: TRUE | F157: FALSE | G157: FALSE | H157: 4 | I157: 26.38333333 | J157: 79.88320904 | K157: 0.002581840012 | L157: 0.002578512789 | Z157: 1997-06-01 | AA157: 0.1069465354 | AB157: 1997 | AC157: FALSE | AD157: FALSE | AE157: FALSE | AF157: 3 | AG157: -0.142860956 | AH157: -0.1541551285 | AV157: 2011-07-01 | AW157: 25 | AX157: 2011 | AY157: FALSE | AZ157: FALSE | BA157: FALSE | BB157: 3 | BC157: -0.1334488849 | BD157: -0.1432341813
C158: 1985-07-01 | D158: 1985 | E158: TRUE | F158: FALSE | G158: FALSE | H158: 4 | I158: 27.01666667 | J158: 81.29796926 | K158: 0.01771035779 | L158: 0.01755535681 | Z158: 1997-07-01 | AA158: 0.131338045 | AB158: 1997 | AC158: FALSE | AD158: FALSE | AE158: FALSE | AF158: 3 | AG158: 0.2280719941 | AH158: 0.2054454551 | AV158: 2011-08-01 | AW158: 32.49000168 | AX158: 2011 | AY158: FALSE | AZ158: FALSE | BA158: FALSE | BB158: 3 | BC158: 0.2996000671 | BD158: 0.2620565765
C159: 1985-08-01 | D159: 1985 | E159: TRUE | F159: FALSE | G159: FALSE | H159: 4 | I159: 26.98333333 | J159: 81.07508428 | K159: -0.002741581054 | L159: -0.002745346071 | Z159: 1997-08-01 | AA159: 0.1632340252 | AB159: 1997 | AC159: FALSE | AD159: FALSE | AE159: FALSE | AF159: 3 | AG159: 0.2428540812 | AH159: 0.2174104132 | AV159: 2011-09-01 | AW159: 20.29999924 | AX159: 2011 | AY159: FALSE | AZ159: FALSE | BA159: FALSE | BB159: 3 | BC159: -0.3751924226 | BD159: -0.4703115529
C160: 1985-09-01 | D160: 1985 | E160: TRUE | F160: FALSE | G160: FALSE | H160: 4 | I160: 27.81666667 | J160: 83.10015779 | K160: 0.02497775397 | L160: 0.02467090891 | Z160: 1997-09-01 | AA160: 0.1627649963 | AB160: 1997 | AC160: FALSE | AD160: FALSE | AE160: FALSE | AF160: 3 | AG160: -0.002873352838 | AH160: -0.002877488841 | AV160: 2011-10-01 | AW160: 20.20000076 | AX160: 2011 | AY160: FALSE | AZ160: FALSE | BA160: FALSE | BB160: 3 | BC160: -0.004926033393 | BD160: -0.004938206288
C161: 1985-10-01 | D161: 1985 | E161: TRUE | F161: FALSE | G161: FALSE | H161: 4 | I161: 28.6 | J161: 86.29659977 | K161: 0.03846493267 | L161: 0.03774359647 | Z161: 1997-10-01 | AA161: 0.1278202087 | AB161: 1997 | AC161: FALSE | AD161: FALSE | AE161: FALSE | AF161: 3 | AG161: -0.2146947342 | AH161: -0.2416827632 | AV161: 2011-11-01 | AW161: 17.86000061 | AX161: 2011 | AY161: FALSE | AZ161: FALSE | BA161: FALSE | BB161: 3 | BC161: -0.1158415873 | BD161: -0.1231190326
C162: 1985-11-01 | D162: 1985 | E162: TRUE | F162: FALSE | G162: FALSE | H162: 4 | I162: 26.5 | J162: 76.56993016 | K162: -0.112712084 | L162: -0.1195857541 | Z162: 1997-11-01 | AA162: 0.1332141459 | AB162: 1997 | AC162: FALSE | AD162: FALSE | AE162: FALSE | AF162: 3 | AG162: 0.04219940873 | AH162: 0.04133329617 | AV162: 2011-12-01 | AW162: 14.5 | AX162: 2011 | AY162: FALSE | AZ162: FALSE | BA162: FALSE | BB162: 3 | BC162: -0.188129927 | BD162: -0.2084149602
C163: 1985-12-01 | D163: 1985 | E163: TRUE | F163: FALSE | G163: FALSE | H163: 4 | I163: 24.68333333 | J163: 76.03711331 | K163: -0.006958565225 | L163: -0.006982888944 | Z163: 1997-12-01 | AA163: 0.09850392491 | AB163: 1997 | AC163: FALSE | AD163: FALSE | AE163: FALSE | AF163: 3 | AG163: -0.2605595731 | AH163: -0.3018615588 | AV163: 2012-01-01 | AW163: 16.62999916 | AX163: 2012 | AY163: FALSE | AZ163: TRUE | BA163: FALSE | BB163: 3 | BC163: 0.1468964938 | BD163: 0.1370595933
C164: 1986-01-01 | D164: 1986 | E164: FALSE | F164: TRUE | G164: FALSE | H164: 4 | I164: 15.91666667 | J164: 51.65896099 | K164: -0.3206085983 | L164: -0.3865578791 | Z164: 1998-01-01 | AA164: 0.1374355108 | AB164: 1998 | AC164: FALSE | AD164: TRUE | AE164: FALSE | AF164: 3 | AG164: 0.3952287778 | AH164: 0.3330584002 | AV164: 2012-02-01 | AW164: 14.17000008 | AX164: 2012 | AY164: FALSE | AZ164: FALSE | BA164: FALSE | BB164: 3 | BC164: -0.1479253884 | BD164: -0.1600811837
C165: 1986-02-01 | D165: 1986 | E165: FALSE | F165: FALSE | G165: FALSE | H165: 4 | I165: 12.65 | J165: 40.6638781 | K165: -0.2128397994 | L165: -0.2393234927 | Z165: 1998-02-01 | AA165: 0.1773066968 | AB165: 1998 | AC165: FALSE | AD165: FALSE | AE165: FALSE | AF165: 3 | AG165: 0.2901083264 | AH165: 0.2547261888 | AV165: 2012-03-01 | AW165: 14.69999981 | AX165: 2012 | AY165: FALSE | AZ165: FALSE | BA165: FALSE | BB165: 3 | BC165: 0.03740294496 | BD165: 0.03672042172
C166: 1986-03-01 | D166: 1986 | E166: FALSE | F166: FALSE | G166: FALSE | H166: 4 | I166: 11.9 | J166: 36.63209545 | K166: -0.09914899506 | L166: -0.1044154014 | Z166: 1998-03-01 | AA166: 0.2063885182 | AB166: 1998 | AC166: FALSE | AD166: FALSE | AE166: FALSE | AF166: 3 | AG166: 0.1640198705 | AH166: 0.15187942 | AV166: 2012-04-01 | AW166: 14.30000019 | AX166: 2012 | AY166: FALSE | AZ166: FALSE | BA166: FALSE | BB166: 3 | BC166: -0.02721085876 | BD166: -0.02758793021
C167: 1986-04-01 | D167: 1986 | E167: FALSE | F167: FALSE | G167: FALSE | H167: 4 | I167: 13.71666667 | J167: 41.55938226 | K167: 0.1345073699 | L167: 0.1261985214 | Z167: 1998-04-01 | AA167: 0.2054504901 | AB167: 1998 | AC167: FALSE | AD167: FALSE | AE167: FALSE | AF167: 3 | AG167: -0.004544962604 | AH167: -0.004555322348 | AV167: 2012-05-01 | AW167: 10.32999992 | AX167: 2012 | AY167: FALSE | AZ167: FALSE | BA167: FALSE | BB167: 3 | BC167: -0.2776223926 | BD167: -0.3252072749
C168: 1986-05-01 | D168: 1986 | E168: FALSE | F168: FALSE | G168: FALSE | H168: 4 | I168: 11.85 | J168: 34.63884559 | K168: -0.1665216443 | L168: -0.1821475451 | Z168: 1998-05-01 | AA168: 0.1998211741 | AB168: 1998 | AC168: FALSE | AD168: FALSE | AE168: FALSE | AF168: 3 | AG168: -0.02739986636 | AH168: -0.02778224361 | AV168: 2012-06-01 | AW168: 7.389999866 | AX168: 2012 | AY168: FALSE | AZ168: FALSE | BA168: FALSE | BB168: 3 | BC168: -0.2846079457 | BD168: -0.3349245589
C169: 1986-06-01 | D169: 1986 | E169: FALSE | F169: FALSE | G169: FALSE | H169: 4 | I169: 9.616666667 | J169: 27.58311949 | K169: -0.2036940314 | L169: -0.2277717843 | Z169: 1998-06-01 | AA169: 0.2153001279 | AB169: 1998 | AC169: FALSE | AD169: FALSE | AE169: FALSE | AF169: 3 | AG169: 0.07746403145 | AH169: 0.07461016096 | AV169: 2012-07-01 | AW169: 7.150000095 | AX169: 2012 | AY169: FALSE | AZ169: FALSE | BA169: FALSE | BB169: 3 | BC169: -0.03247628897 | BD169: -0.03301534685
C170: 1986-07-01 | D170: 1986 | E170: FALSE | F170: FALSE | G170: FALSE | H170: 4 | I170: 13.7 | J170: 39.79036692 | K170: 0.4425622503 | L170: 0.3664208729 | Z170: 1998-07-01 | AA170: 0.2598618269 | AB170: 1998 | AC170: FALSE | AD170: FALSE | AE170: FALSE | AF170: 3 | AG170: 0.2069747913 | AH170: 0.1881170565 | AV170: 2012-08-01 | AW170: 6.690000057 | AX170: 2012 | AY170: FALSE | AZ170: FALSE | BA170: FALSE | BB170: 3 | BC170: -0.06433566881 | BD170: -0.06649848735
C171: 1986-08-01 | D171: 1986 | E171: FALSE | F171: FALSE | G171: FALSE | H171: 4 | I171: 14.08333333 | J171: 41.33980252 | K171: 0.03893996752 | L171: 0.03820093136 | Z171: 1998-08-01 | AA171: 0.2340632081 | AB171: 1998 | AC171: FALSE | AD171: FALSE | AE171: FALSE | AF171: 3 | AG171: -0.09927821682 | AH171: -0.1045588558 | AV171: 2012-09-01 | AW171: 7.5 | AX171: 2012 | AY171: FALSE | AZ171: FALSE | BA171: FALSE | BB171: 3 | BC171: 0.1210762236 | BD171: 0.1142891378
